Workbook

Sheet PI vs gap
A1: Measurement | B1: Hall
A2: Type | B2: Gap dependence
A4: Project | B4: ='10 mm'!B5 -> 504314
A5: PS serial no | B5: ='10 mm'!B7 -> 2410094
A7: Measurement date | B7: =LEFT('10 mm'!B4,10) -> 09-09-2024
A11: Nominal gap [mm] | B11: Encoder [counts] | C11: Encoder [mm] | D11: PI [T^2mm^3] | E11: PI spec [T^2mm^3] | F11: Encoder value at 10 mm gap:
A12: ='10 mm'!$B$53 -> 10 | B12: ='10 mm'!$B$55 -> 19.8252 | C12: =-1*($F$12-B12)+10 -> 10.003 | D12: ='10 mm'!$K$3 -> 10351.0866 | F12: 19.8222
A13: ='15 mm'!$B$53 -> 15 | B13: ='15 mm'!$B$55 -> 24.82 | C13: =-1*($F$12-B13)+10 -> 14.9978 | D13: ='15 mm'!$K$3 -> 7077.243621
A14: ='20 mm'!$B$53 -> 20 | B14: ='20 mm'!$B$55 -> 29.8258 | C14: 20.0036 | D14: ='20 mm'!$K$3 -> 4904.330093
A15: ='30 mm'!$B$53 -> 30 | B15: ='30 mm'!$B$55 -> 39.8225 | C15: 30.0003 | D15: ='30 mm'!$K$3 -> 2423.782143
A16: ='100 mm'!$B$53 -> 100 | B16: ='100 mm'!$B$55 -> 109.822 | C16: 99.9998 | D16: ='100 mm'!$K$3 -> 39.72966635
A47: Measuring series at larger gaps:
A48: Reference magnet
A49: Tref | B49: 21.38 | C49: degC
A50: Hall ref field | B50: 0.505 | C50: T
A51: NMR ref field | B51: 0.50627 | C51: T
A53: Offset from Faro

Sheet 10 mm
A1: =IF('DF raw data'!A1="","",'DF raw data'!A1) -> Number of header lines | B1: =IF('DF raw data'!B1="","",'DF raw data'!B1) -> 54 | C1: =IF('DF raw data'!C1="","",'DF raw data'!C1) ->  | D1: =IF('DF raw data'!D1="","",'DF raw data'!D1) ->  | F1: T_coeff | G1: -0.001 | H1: /degC | J1: IBy total | K1: =J1267*1000 -> 6.132665281 | L1: muTm | M1: =L1267*1000 -> -41.01284992 | R1: DF ref | S1: 1
A2: =IF('DF raw data'!A2="","",'DF raw data'!A2) -> Measured by | B2: =IF('DF raw data'!B2="","",'DF raw data'!B2) -> Danfysik | C2: =IF('DF raw data'!C2="","",'DF raw data'!C2) ->  | D2: =IF('DF raw data'!D2="","",'DF raw data'!D2) ->  | F2: Tcorr | G2: 20 | H2: degC | J2: JBy total | K2: =K1267 -> -2.074265735 | L2: muTm^2 | M2: =M1267 -> -6.879029771
A3: =IF('DF raw data'!A3="","",'DF raw data'!A3) -> Operator | B3: =IF('DF raw data'!B3="","",'DF raw data'!B3) -> PMHA | C3: =IF('DF raw data'!C3="","",'DF raw data'!C3) ->  | D3: =IF('DF raw data'!D3="","",'DF raw data'!D3) ->  | F3: Step | G3: =A68-A67 -> 0.5 | H3: mm | J3: PI total | K3: =N1267 -> 10351.0866 | L3: T^2mm^3
A4: =IF('DF raw data'!A4="","",'DF raw data'!A4) -> Data-time | B4: =IF('DF raw data'!B4="","",'DF raw data'!B4) -> 09-09-2024, 13:56:42 | C4: =IF('DF raw data'!C4="","",'DF raw data'!C4) ->  | D4: =IF('DF raw data'!D4="","",'DF raw data'!D4) -> 
A5: =IF('DF raw data'!A5="","",'DF raw data'!A5) -> Project | B5: =IF('DF raw data'!B5="","",'DF raw data'!B5) -> 504314 | C5: =IF('DF raw data'!C5="","",'DF raw data'!C5) ->  | D5: Bamb avr | F5: =(AVERAGE(B67:B107) + AVERAGE(B1227:B1267))/2 -> -1.391487489e-05 | G5: =(AVERAGE(C67:C107) + AVERAGE(C1227:C1267))/2 -> 0.0001911876585 | H5: =(AVERAGE(D67:D107) + AVERAGE(D1227:D1267))/2 -> -1.899975171e-05
A6: =IF('DF raw data'!A6="","",'DF raw data'!A6) -> Magnet type | B6: =IF('DF raw data'!B6="","",'DF raw data'!B6) -> Dipole | C6: =IF('DF raw data'!C6="","",'DF raw data'!C6) -> 
A7: =IF('DF raw data'!A7="","",'DF raw data'!A7) -> Magnet nr. | B7: =IF('DF raw data'!B7="","",'DF raw data'!B7) -> 2410094 | C7: =IF('DF raw data'!C7="","",'DF raw data'!C7) -> 
A8: =IF('DF raw data'!A8="","",'DF raw data'!A8) -> Meas. number | B8: =IF('DF raw data'!B8="","",'DF raw data'!B8) -> 386 | C8: =IF('DF raw data'!C8="","",'DF raw data'!C8) -> 
A9: =IF('DF raw data'!A9="","",'DF raw data'!A9) -> Add. info | B9: =IF('DF raw data'!B9="","",'DF raw data'!B9) -> X-alignment scan 3) | C9: =IF('DF raw data'!C9="","",'DF raw data'!C9) ->  | D9: =IF('DF raw data'!D9="","",'DF raw data'!D9) -> 
A10: =IF('DF raw data'!A10="","",'DF raw data'!A10) -> Device | B10: =IF('DF raw data'!B10="","",'DF raw data'!B10) -> (HAL) HALL-PROBE | C10: =IF('DF raw data'!C10="","",'DF raw data'!C10) ->  | D10: =IF('DF raw data'!D10="","",'DF raw data'!D10) -> 
A11: =IF('DF raw data'!A11="","",'DF raw data'!A11) -> Goal | B11: =IF('DF raw data'!B11="","",'DF raw data'!B11) -> (AXI) AXis Integral (Line, EFB) | C11: =IF('DF raw data'!C11="","",'DF raw data'!C11) ->  | D11: =IF('DF raw data'!D11="","",'DF raw data'!D11) -> 
A12: =IF('DF raw data'!A12="","",'DF raw data'!A12) -> Power supply mode | B12: =IF('DF raw data'!B12="","",'DF raw data'!B12) -> (PM) Permanent Magnet (no MPS in use) | C12: =IF('DF raw data'!C12="","",'DF raw data'!C12) ->  | D12: =IF('DF raw data'!D12="","",'DF raw data'!D12) -> 
A13: =IF('DF raw data'!A13="","",'DF raw data'!A13) -> Data format | B13: =IF('DF raw data'!B13="","",'DF raw data'!B13) -> Raw data text file | C13: =IF('DF raw data'!C13="","",'DF raw data'!C13) ->  | D13: =IF('DF raw data'!D13="","",'DF raw data'!D13) -> 
A14: =IF('DF raw data'!A14="","",'DF raw data'!A14) -> Direction of the pos. x-axis | B14: =IF('DF raw data'!B14="","",'DF raw data'!B14) -> See test program | C14: =IF('DF raw data'!C14="","",'DF raw data'!C14) ->  | D14: =IF('DF raw data'!D14="","",'DF raw data'!D14) -> 
A15: =IF('DF raw data'!A15="","",'DF raw data'!A15) -> Direction of the pos. y-axis | B15: =IF('DF raw data'!B15="","",'DF raw data'!B15) -> Vertical up | C15: =IF('DF raw data'!C15="","",'DF raw data'!C15) ->  | D15: =IF('DF raw data'!D15="","",'DF raw data'!D15) -> 
A16: =IF('DF raw data'!A16="","",'DF raw data'!A16) -> Direction of the pos. z-axis | B16: =IF('DF raw data'!B16="","",'DF raw data'!B16) -> See test program | C16: =IF('DF raw data'!C16="","",'DF raw data'!C16) ->  | D16: =IF('DF raw data'!D16="","",'DF raw data'!D16) -> 
A17: =IF('DF raw data'!A17="","",'DF raw data'!A17) -> Mapper type | B17: =IF('DF raw data'!B17="","",'DF raw data'!B17) -> Precision Hall Mapper | C17: =IF('DF raw data'!C17="","",'DF raw data'!C17) ->  | D17: =IF('DF raw data'!D17="","",'DF raw data'!D17) -> 
A18: =IF('DF raw data'!A18="","",'DF raw data'!A18) -> Mapper Danfysik Reg. Number | B18: =IF('DF raw data'!B18="","",'DF raw data'!B18) -> 2033-D (mapper 1) | C18: =IF('DF raw data'!C18="","",'DF raw data'!C18) ->  | D18: =IF('DF raw data'!D18="","",'DF raw data'!D18) -> 
A19: =IF('DF raw data'!A19="","",'DF raw data'!A19) -> Measurement consept | B19: =IF('DF raw data'!B19="","",'DF raw data'!B19) -> Square line grid | C19: =IF('DF raw data'!C19="","",'DF raw data'!C19) ->  | D19: =IF('DF raw data'!D19="","",'DF raw data'!D19) -> 
A20: =IF('DF raw data'!A20="","",'DF raw data'!A20) -> Mode | B20: =IF('DF raw data'!B20="","",'DF raw data'!B20) -> On-the-fly measurement | C20: =IF('DF raw data'!C20="","",'DF raw data'!C20) ->  | D20: =IF('DF raw data'!D20="","",'DF raw data'!D20) -> 
A21: =IF('DF raw data'!A21="","",'DF raw data'!A21) ->  | B21: =IF('DF raw data'!B21="","",'DF raw data'!B21) ->  | C21: =IF('DF raw data'!C21="","",'DF raw data'!C21) ->  | D21: =IF('DF raw data'!D21="","",'DF raw data'!D21) -> 
A22: =IF('DF raw data'!A22="","",'DF raw data'!A22) -> Probe Name | B22: =IF('DF raw data'!B22="","",'DF raw data'!B22) -> ID12_By | C22: =IF('DF raw data'!C22="","",'DF raw data'!C22) ->  | D22: =IF('DF raw data'!D22="","",'DF raw data'!D22) -> 
A23: =IF('DF raw data'!A23="","",'DF raw data'!A23) -> Probe Type | B23: =IF('DF raw data'!B23="","",'DF raw data'!B23) -> DF_ID_3D_Bxyz | C23: =IF('DF raw data'!C23="","",'DF raw data'!C23) ->  | D23: =IF('DF raw data'!D23="","",'DF raw data'!D23) -> 
A24: =IF('DF raw data'!A24="","",'DF raw data'!A24) -> Probe Danfysik Reg. Number | B24: =IF('DF raw data'!B24="","",'DF raw data'!B24) -> 2277 | C24: =IF('DF raw data'!C24="","",'DF raw data'!C24) ->  | D24: =IF('DF raw data'!D24="","",'DF raw data'!D24) -> 
A25: =IF('DF raw data'!A25="","",'DF raw data'!A25) -> Probe Axis | B25: =IF('DF raw data'!B25="","",'DF raw data'!B25) -> By | C25: =IF('DF raw data'!C25="","",'DF raw data'!C25) ->  | D25: =IF('DF raw data'!D25="","",'DF raw data'!D25) -> 
A26: =IF('DF raw data'!A26="","",'DF raw data'!A26) -> Probe Current Supply | B26: =IF('DF raw data'!B26="","",'DF raw data'!B26) -> 1825-D | C26: =IF('DF raw data'!C26="","",'DF raw data'!C26) ->  | D26: =IF('DF raw data'!D26="","",'DF raw data'!D26) -> 
A27: =IF('DF raw data'!A27="","",'DF raw data'!A27) -> Probe Gain Correction | B27: =IF('DF raw data'!B27="","",'DF raw data'!B27) -> 0.99606 | C27: =IF('DF raw data'!C27="","",'DF raw data'!C27) ->  | D27: =IF('DF raw data'!D27="","",'DF raw data'!D27) -> 
A28: =IF('DF raw data'!A28="","",'DF raw data'!A28) -> Probe Offset Correction | B28: =IF('DF raw data'!B28="","",'DF raw data'!B28) -> 0.002758 | C28: =IF('DF raw data'!C28="","",'DF raw data'!C28) ->  | D28: =IF('DF raw data'!D28="","",'DF raw data'!D28) -> 
A29: =IF('DF raw data'!A29="","",'DF raw data'!A29) -> DVM Number | B29: =IF('DF raw data'!B29="","",'DF raw data'!B29) -> 2 | C29: =IF('DF raw data'!C29="","",'DF raw data'!C29) ->  | D29: =IF('DF raw data'!D29="","",'DF raw data'!D29) -> 
A30: =IF('DF raw data'!A30="","",'DF raw data'!A30) -> DVM Type | B30: =IF('DF raw data'!B30="","",'DF raw data'!B30) -> K2701 | C30: =IF('DF raw data'!C30="","",'DF raw data'!C30) ->  | D30: =IF('DF raw data'!D30="","",'DF raw data'!D30) -> 
A31: =IF('DF raw data'!A31="","",'DF raw data'!A31) -> DVM Danfysik Reg. Number | B31: =IF('DF raw data'!B31="","",'DF raw data'!B31) -> 1743-D | C31: =IF('DF raw data'!C31="","",'DF raw data'!C31) ->  | D31: =IF('DF raw data'!D31="","",'DF raw data'!D31) -> 
A32: =IF('DF raw data'!A32="","",'DF raw data'!A32) -> Probe Name | B32: =IF('DF raw data'!B32="","",'DF raw data'!B32) -> ID12_Bx | C32: =IF('DF raw data'!C32="","",'DF raw data'!C32) ->  | D32: =IF('DF raw data'!D32="","",'DF raw data'!D32) -> 
A33: =IF('DF raw data'!A33="","",'DF raw data'!A33) -> Probe Type | B33: =IF('DF raw data'!B33="","",'DF raw data'!B33) -> DF_ID_3D_Bxyz | C33: =IF('DF raw data'!C33="","",'DF raw data'!C33) ->  | D33: =IF('DF raw data'!D33="","",'DF raw data'!D33) -> 
A34: =IF('DF raw data'!A34="","",'DF raw data'!A34) -> Probe Danfysik Reg. Number | B34: =IF('DF raw data'!B34="","",'DF raw data'!B34) -> 2277 | C34: =IF('DF raw data'!C34="","",'DF raw data'!C34) ->  | D34: =IF('DF raw data'!D34="","",'DF raw data'!D34) -> 
A35: =IF('DF raw data'!A35="","",'DF raw data'!A35) -> Probe Axis | B35: =IF('DF raw data'!B35="","",'DF raw data'!B35) -> Bx | C35: =IF('DF raw data'!C35="","",'DF raw data'!C35) ->  | D35: =IF('DF raw data'!D35="","",'DF raw data'!D35) -> 
A36: =IF('DF raw data'!A36="","",'DF raw data'!A36) -> Probe Current Supply | B36: =IF('DF raw data'!B36="","",'DF raw data'!B36) -> 1825-D | C36: =IF('DF raw data'!C36="","",'DF raw data'!C36) ->  | D36: =IF('DF raw data'!D36="","",'DF raw data'!D36) -> 
A37: =IF('DF raw data'!A37="","",'DF raw data'!A37) -> Probe Gain Correction | B37: =IF('DF raw data'!B37="","",'DF raw data'!B37) -> 1 | C37: =IF('DF raw data'!C37="","",'DF raw data'!C37) ->  | D37: =IF('DF raw data'!D37="","",'DF raw data'!D37) -> 
A38: =IF('DF raw data'!A38="","",'DF raw data'!A38) -> Probe Offset Correction | B38: =IF('DF raw data'!B38="","",'DF raw data'!B38) -> -0.17551 | C38: =IF('DF raw data'!C38="","",'DF raw data'!C38) ->  | D38: =IF('DF raw data'!D38="","",'DF raw data'!D38) -> 
A39: =IF('DF raw data'!A39="","",'DF raw data'!A39) -> DVM Number | B39: =IF('DF raw data'!B39="","",'DF raw data'!B39) -> 3 | C39: =IF('DF raw data'!C39="","",'DF raw data'!C39) ->  | D39: =IF('DF raw data'!D39="","",'DF raw data'!D39) -> 
A40: =IF('DF raw data'!A40="","",'DF raw data'!A40) -> DVM Type | B40: =IF('DF raw data'!B40="","",'DF raw data'!B40) -> K2701 | C40: =IF('DF raw data'!C40="","",'DF raw data'!C40) ->  | D40: =IF('DF raw data'!D40="","",'DF raw data'!D40) -> 
A41: =IF('DF raw data'!A41="","",'DF raw data'!A41) -> DVM Danfysik Reg. Number | B41: =IF('DF raw data'!B41="","",'DF raw data'!B41) -> 1744-D | C41: =IF('DF raw data'!C41="","",'DF raw data'!C41) ->  | D41: =IF('DF raw data'!D41="","",'DF raw data'!D41) -> 
A42: =IF('DF raw data'!A42="","",'DF raw data'!A42) -> Probe Name | B42: =IF('DF raw data'!B42="","",'DF raw data'!B42) -> ID12_Bz | C42: =IF('DF raw data'!C42="","",'DF raw data'!C42) ->  | D42: =IF('DF raw data'!D42="","",'DF raw data'!D42) -> 
A43: =IF('DF raw data'!A43="","",'DF raw data'!A43) -> Probe Type | B43: =IF('DF raw data'!B43="","",'DF raw data'!B43) -> DF_ID_3D_Bxyz | C43: =IF('DF raw data'!C43="","",'DF raw data'!C43) ->  | D43: =IF('DF raw data'!D43="","",'DF raw data'!D43) -> 
A44: =IF('DF raw data'!A44="","",'DF raw data'!A44) -> Probe Danfysik Reg. Number | B44: =IF('DF raw data'!B44="","",'DF raw data'!B44) -> 2277 | C44: =IF('DF raw data'!C44="","",'DF raw data'!C44) ->  | D44: =IF('DF raw data'!D44="","",'DF raw data'!D44) -> 
A45: =IF('DF raw data'!A45="","",'DF raw data'!A45) -> Probe Axis | B45: =IF('DF raw data'!B45="","",'DF raw data'!B45) -> Bz | C45: =IF('DF raw data'!C45="","",'DF raw data'!C45) ->  | D45: =IF('DF raw data'!D45="","",'DF raw data'!D45) -> 
A46: =IF('DF raw data'!A46="","",'DF raw data'!A46) -> Probe Current Supply | B46: =IF('DF raw data'!B46="","",'DF raw data'!B46) -> 1825-D | C46: =IF('DF raw data'!C46="","",'DF raw data'!C46) ->  | D46: =IF('DF raw data'!D46="","",'DF raw data'!D46) -> 
A47: =IF('DF raw data'!A47="","",'DF raw data'!A47) -> Probe Gain Correction | B47: =IF('DF raw data'!B47="","",'DF raw data'!B47) -> 1 | C47: =IF('DF raw data'!C47="","",'DF raw data'!C47) ->  | D47: =IF('DF raw data'!D47="","",'DF raw data'!D47) -> 
A48: =IF('DF raw data'!A48="","",'DF raw data'!A48) -> Probe Offset Correction | B48: =IF('DF raw data'!B48="","",'DF raw data'!B48) -> 0.0073096 | C48: =IF('DF raw data'!C48="","",'DF raw data'!C48) ->  | D48: =IF('DF raw data'!D48="","",'DF raw data'!D48) -> 
A49: =IF('DF raw data'!A49="","",'DF raw data'!A49) -> DVM Number | B49: =IF('DF raw data'!B49="","",'DF raw data'!B49) -> 8 | C49: =IF('DF raw data'!C49="","",'DF raw data'!C49) ->  | D49: =IF('DF raw data'!D49="","",'DF raw data'!D49) -> 
A50: =IF('DF raw data'!A50="","",'DF raw data'!A50) -> DVM Type | B50: =IF('DF raw data'!B50="","",'DF raw data'!B50) -> K2700 | C50: =IF('DF raw data'!C50="","",'DF raw data'!C50) ->  | D50: =IF('DF raw data'!D50="","",'DF raw data'!D50) -> 
A51: =IF('DF raw data'!A51="","",'DF raw data'!A51) -> DVM Danfysik Reg. Number | B51: =IF('DF raw data'!B51="","",'DF raw data'!B51) -> 1756-D | C51: =IF('DF raw data'!C51="","",'DF raw data'!C51) ->  | D51: =IF('DF raw data'!D51="","",'DF raw data'!D51) -> 
A52: =IF('DF raw data'!A52="","",'DF raw data'!A52) -> NTC voltage | B52: =IF('DF raw data'!B52="","",'DF raw data'!B52) -> 0.40584 | C52: =IF('DF raw data'!C52="","",'DF raw data'!C52) ->  | D52: =IF('DF raw data'!D52="","",'DF raw data'!D52) -> 
A53: =IF('DF raw data'!A53="","",'DF raw data'!A53) -> PS-Gap: | B53: =IF('DF raw data'!B53="","",'DF raw data'!B53) -> 10 | C53: =IF('DF raw data'!C53="","",'DF raw data'!C53) ->  | D53: =IF('DF raw data'!D53="","",'DF raw data'!D53) -> 
A54: =IF('DF raw data'!A54="","",'DF raw data'!A54) -> PS-Temperature: | B54: =IF('DF raw data'!B54="","",'DF raw data'!B54) -> 25.2 | C54: =IF('DF raw data'!C54="","",'DF raw data'!C54) ->  | D54: =IF('DF raw data'!D54="","",'DF raw data'!D54) -> 
A55: =IF('DF raw data'!A55="","",'DF raw data'!A55) -> PS-Encoder: | B55: =IF('DF raw data'!B55="","",'DF raw data'!B55) -> 19.8252 | C55: =IF('DF raw data'!C55="","",'DF raw data'!C55) ->  | D55: =IF('DF raw data'!D55="","",'DF raw data'!D55) -> 
A56: =IF('DF raw data'!A56="","",'DF raw data'!A56) ->  | B56: =IF('DF raw data'!B56="","",'DF raw data'!B56) -> 
A57: =IF('DF raw data'!A57="","",'DF raw data'!A57) -> Monitor-Index | B57: =IF('DF raw data'!B57="","",'DF raw data'!B57) -> [1,1,4]
A58: =IF('DF raw data'!A58="","",'DF raw data'!A58) ->  | B58: =IF('DF raw data'!B58="","",'DF raw data'!B58) -> 
A59: =IF('DF raw data'!A59="","",'DF raw data'!A59) -> Time [s] | B59: =IF('DF raw data'!B59="","",'DF raw data'!B59) -> Y [mm]
A60: =IF('DF raw data'!A60="","",'DF raw data'!A60) ->  | B60: =IF('DF raw data'!B60="","",'DF raw data'!B60) -> 
A61: =IF('DF raw data'!A61="","",'DF raw data'!A61) -> 214 | B61: =IF('DF raw data'!B61="","",'DF raw data'!B61) -> 31.76
A62: =IF('DF raw data'!A62="","",'DF raw data'!A62) ->  | B62: =IF('DF raw data'!B62="","",'DF raw data'!B62) -> 
A63: =IF('DF raw data'!A63="","",'DF raw data'!A63) -> Measurement-Index | B63: =IF('DF raw data'!B63="","",'DF raw data'!B63) -> [1,1,1201,2]
A64: =IF('DF raw data'!A64="","",'DF raw data'!A64) ->  | B64: =IF('DF raw data'!B64="","",'DF raw data'!B64) -> 
A65: =IF('DF raw data'!A65="","",'DF raw data'!A65) -> Z [mm] | B65: =IF('DF raw data'!B65="","",'DF raw data'!B65) -> By [T] | C65: =IF('DF raw data'!C65="","",'DF raw data'!C65) -> Bx [T] | D65: =IF('DF raw data'!D65="","",'DF raw data'!D65) -> Bz [T] | F65: By_corr | G65: Bx_corr | H65: Bz_corr | J65: Iy | K65: Jy | L65: Ix | M65: Jx | N65: PI
A66: =IF('DF raw data'!A66="","",'DF raw data'!A66) -> [1, 0, 0, 0] | B66: =IF('DF raw data'!B66="","",'DF raw data'!B66) ->  | C66: =IF('DF raw data'!C66="","",'DF raw data'!C66) ->  | D66: =IF('DF raw data'!D66="","",'DF raw data'!D66) -> 
A67: =IF('DF raw data'!A67="","",'DF raw data'!A67) -> -300 | B67: =IF('DF raw data'!B67="","",'DF raw data'!B67) -> -1.44331e-05 | C67: =IF('DF raw data'!C67="","",'DF raw data'!C67) -> 0.000180984 | D67: =IF('DF raw data'!D67="","",'DF raw data'!D67) -> -1.4007e-05 | F67: =(1-$G$1*($B$54-$G$2))*(B67-F$5) -> -5.209198803e-07 | G67: =(1-$G$1*($B$54-$G$2))*(C67-G$5) -> -1.025671756e-05 | H67: =(1-$G$1*($B$54-$G$2))*(D67-H$5) -> 5.018714016e-06 | J67: =F67*$G$3+J66 -> -2.604599402e-07 | K67: =J67*$G$3+K66 -> -1.302299701e-07 | L67: =G67*$G$3+L66 -> -5.12835878e-06 | M67: =L67*$G$3+M66 -> -2.56417939e-06 | N67: =(J67^2+L67^2)*$G$3+N66 -> 1.318395158e-11
A68: =IF('DF raw data'!A68="","",'DF raw data'!A68) -> -299.5 | B68: =IF('DF raw data'!B68="","",'DF raw data'!B68) -> 2.40186e-07 | C68: =IF('DF raw data'!C68="","",'DF raw data'!C68) -> 0.000185878 | D68: =IF('DF raw data'!D68="","",'DF raw data'!D68) -> -1.50828e-05 | F68: 1.422866721e-05 | G68: -5.337268761e-06 | H68: 3.937319856e-06 | J68: =F68*$G$3+J67 -> 6.853873663e-06 | K68: =J68*$G$3+K67 -> 3.296706862e-06 | L68: =G68*$G$3+L67 -> -7.796993161e-06 | M68: =L68*$G$3+M67 -> -6.462675971e-06 | N68: =(J68^2+L68^2)*$G$3+N67 -> 6.706829485e-11
A69: =IF('DF raw data'!A69="","",'DF raw data'!A69) -> -299 | B69: =IF('DF raw data'!B69="","",'DF raw data'!B69) -> -5.27817e-07 | C69: =IF('DF raw data'!C69="","",'DF raw data'!C69) -> 0.00018608 | D69: =IF('DF raw data'!D69="","",'DF raw data'!D69) -> -1.6815e-05 | F69: 1.345667059e-05 | G69: -5.134218361e-06 | H69: 2.196112416e-06 | J69: 1.358220896e-05 | K69: 1.008781134e-05 | L69: -1.036410234e-05 | M69: -1.164472714e-05 | N69: 2.130138036e-10
A70: =IF('DF raw data'!A70="","",'DF raw data'!A70) -> -298.5 | B70: =IF('DF raw data'!B70="","",'DF raw data'!B70) -> -8.28057e-06 | C70: =IF('DF raw data'!C70="","",'DF raw data'!C70) -> 0.000188349 | D70: =IF('DF raw data'!D70="","",'DF raw data'!D70) -> -1.72375e-05 | F70: 5.663603276e-06 | G70: -2.853419561e-06 | H70: 1.771415416e-06 | J70: 1.64140106e-05 | K70: 1.829481664e-05 | L70: -1.179081212e-05 | M70: -1.75401332e-05 | N70: 4.172353008e-10
A71: =IF('DF raw data'!A71="","",'DF raw data'!A71) -> -298 | B71: =IF('DF raw data'!B71="","",'DF raw data'!B71) -> -1.32785e-05 | C71: =IF('DF raw data'!C71="","",'DF raw data'!C71) -> 0.000190899 | D71: =IF('DF raw data'!D71="","",'DF raw data'!D71) -> -1.68126e-05 | F71: 6.396840397e-07 | G71: -2.90159561e-07 | H71: 2.198524896e-06 | J71: 1.673385262e-05 | K71: 2.666174295e-05 | L71: -1.19358919e-05 | M71: -2.350807915e-05 | N71: 6.284789703e-10
A72: =IF('DF raw data'!A72="","",'DF raw data'!A72) -> -297.5 | B72: =IF('DF raw data'!B72="","",'DF raw data'!B72) -> 4.34218e-06 | C72: =IF('DF raw data'!C72="","",'DF raw data'!C72) -> 0.000195934 | D72: =IF('DF raw data'!D72="","",'DF raw data'!D72) -> -1.707e-05 | F72: 1.835199158e-05 | G72: 4.771022439e-06 | H72: 1.939786416e-06 | J72: 2.59098484e-05 | K72: 3.961666715e-05 | L72: -9.550380683e-06 | M72: -2.82832695e-05 | N72: 1.009743978e-09
A73: =IF('DF raw data'!A73="","",'DF raw data'!A73) -> -297 | B73: =IF('DF raw data'!B73="","",'DF raw data'!B73) -> -1.60333e-05 | C73: =IF('DF raw data'!C73="","",'DF raw data'!C73) -> 0.000195837 | D73: =IF('DF raw data'!D73="","",'DF raw data'!D73) -> -1.74544e-05 | F73: -2.12944092e-06 | G73: 4.673518039e-06 | H73: 1.553387536e-06 | J73: 2.484512794e-05 | K73: 5.203923112e-05 | L73: -7.213621663e-06 | M73: -3.189008033e-05 | N73: 1.344402338e-09
A74: =IF('DF raw data'!A74="","",'DF raw data'!A74) -> -296.5 | B74: =IF('DF raw data'!B74="","",'DF raw data'!B74) -> -9.1134e-06 | C74: =IF('DF raw data'!C74="","",'DF raw data'!C74) -> 0.000187409 | D74: =IF('DF raw data'!D74="","",'DF raw data'!D74) -> -1.75515e-05 | F74: 4.82644256e-06 | G74: -3.798307561e-06 | H74: 1.455782616e-06 | J74: 2.725834922e-05 | K74: 6.566840573e-05 | L74: -9.112775444e-06 | M74: -3.644646805e-05 | N74: 1.757432477e-09
A75: =IF('DF raw data'!A75="","",'DF raw data'!A75) -> -296 | B75: =IF('DF raw data'!B75="","",'DF raw data'!B75) -> -1.18044e-05 | C75: =IF('DF raw data'!C75="","",'DF raw data'!C75) -> 0.000187755 | D75: =IF('DF raw data'!D75="","",'DF raw data'!D75) -> -1.75495e-05 | F75: 2.12144936e-06 | G75: -3.450508361e-06 | H75: 1.457793016e-06 | J75: 2.83190739e-05 | K75: 7.982794269e-05 | L75: -1.083802962e-05 | M75: -4.186548286e-05 | N75: 2.217148894e-09
A76: =IF('DF raw data'!A76="","",'DF raw data'!A76) -> -295.5 | B76: =IF('DF raw data'!B76="","",'DF raw data'!B76) -> -1.98142e-05 | C76: =IF('DF raw data'!C76="","",'DF raw data'!C76) -> 0.000187443 | D76: =IF('DF raw data'!D76="","",'DF raw data'!D76) -> -1.71687e-05 | F76: -5.9300016e-06 | G76: -3.764130761e-06 | H76: 1.840573176e-06 | J76: 2.53540731e-05 | K76: 9.250497924e-05 | L76: -1.2720095e-05 | M76: -4.822553036e-05 | N76: 2.619463814e-09
A77: =IF('DF raw data'!A77="","",'DF raw data'!A77) -> -295 | B77: =IF('DF raw data'!B77="","",'DF raw data'!B77) -> -1.82126e-05 | C77: =IF('DF raw data'!C77="","",'DF raw data'!C77) -> 0.00018601 | D77: =IF('DF raw data'!D77="","",'DF raw data'!D77) -> -1.64188e-05 | F77: -4.32007328e-06 | G77: -5.204582361e-06 | H77: 2.594372656e-06 | J77: 2.319403646e-05 | K77: 0.0001041019975 | L77: -1.532238619e-05 | M77: -5.588672346e-05 | N77: 3.005833237e-09
A78: =IF('DF raw data'!A78="","",'DF raw data'!A78) -> -294.5 | B78: =IF('DF raw data'!B78="","",'DF raw data'!B78) -> -1.44965e-05 | C78: =IF('DF raw data'!C78="","",'DF raw data'!C78) -> 0.000189279 | D78: =IF('DF raw data'!D78="","",'DF raw data'!D78) -> -1.63505e-05 | F78: -5.846495603e-07 | G78: -1.918583561e-06 | H78: 2.663027816e-06 | J78: 2.290171168e-05 | K78: 0.0001155528533 | L78: -1.628167797e-05 | M78: -6.402756244e-05 | N78: 3.400623954e-09
A79: =IF('DF raw data'!A79="","",'DF raw data'!A79) -> -294 | B79: =IF('DF raw data'!B79="","",'DF raw data'!B79) -> -8.15237e-06 | C79: =IF('DF raw data'!C79="","",'DF raw data'!C79) -> 0.00019692 | D79: =IF('DF raw data'!D79="","",'DF raw data'!D79) -> -1.71341e-05 | F79: 5.792469916e-06 | G79: 5.762149639e-06 | H79: 1.875353096e-06 | J79: 2.579794664e-05 | K79: 0.0001284518266 | L79: -1.340060315e-05 | M79: -7.072786401e-05 | N79: 3.823179062e-09
A80: =IF('DF raw data'!A80="","",'DF raw data'!A80) -> -293.5 | B80: =IF('DF raw data'!B80="","",'DF raw data'!B80) -> -2.09672e-05 | C80: =IF('DF raw data'!C80="","",'DF raw data'!C80) -> 0.000189168 | D80: =IF('DF raw data'!D80="","",'DF raw data'!D80) -> -1.74416e-05 | F80: -7.0889972e-06 | G80: -2.030160761e-06 | H80: 1.566254096e-06 | J80: 2.225344804e-05 | K80: 0.0001395785507 | L80: -1.441568353e-05 | M80: -7.793570578e-05 | N80: 4.174693003e-09
A81: =IF('DF raw data'!A81="","",'DF raw data'!A81) -> -293 | B81: =IF('DF raw data'!B81="","",'DF raw data'!B81) -> -2.01987e-05 | C81: =IF('DF raw data'!C81="","",'DF raw data'!C81) -> 0.000188949 | D81: =IF('DF raw data'!D81="","",'DF raw data'!D81) -> -1.68993e-05 | F81: -6.316501e-06 | G81: -2.250299561e-06 | H81: 2.111374056e-06 | J81: 1.909519754e-05 | K81: 0.0001491261494 | L81: -1.554083331e-05 | M81: -8.570612243e-05 | N81: 4.477765037e-09
A82: =IF('DF raw data'!A82="","",'DF raw data'!A82) -> -292.5 | B82: =IF('DF raw data'!B82="","",'DF raw data'!B82) -> -1.81488e-05 | C82: =IF('DF raw data'!C82="","",'DF raw data'!C82) -> 0.000193889 | D82: =IF('DF raw data'!D82="","",'DF raw data'!D82) -> -1.62991e-05 | F82: -4.25594152e-06 | G82: 2.715388439e-06 | H82: 2.714695096e-06 | J82: 1.696722678e-05 | K82: 0.0001576097628 | L82: -1.418313909e-05 | M82: -9.279769197e-05 | N82: 4.722289147e-09
A83: =IF('DF raw data'!A83="","",'DF raw data'!A83) -> -292 | B83: =IF('DF raw data'!B83="","",'DF raw data'!B83) -> -1.65469e-05 | C83: =IF('DF raw data'!C83="","",'DF raw data'!C83) -> 0.000196472 | D83: =IF('DF raw data'!D83="","",'DF raw data'!D83) -> -1.60482e-05 | F83: -2.64571164e-06 | G83: 5.311820039e-06 | H83: 2.966899776e-06 | J83: 1.564437096e-05 | K83: 0.0001654319483 | L83: -1.152722907e-05 | M83: -9.856130651e-05 | N83: 4.911100823e-09
A84: =IF('DF raw data'!A84="","",'DF raw data'!A84) -> -291.5 | B84: =IF('DF raw data'!B84="","",'DF raw data'!B84) -> -1.40532e-05 | C84: =IF('DF raw data'!C84="","",'DF raw data'!C84) -> 0.000186968 | D84: =IF('DF raw data'!D84="","",'DF raw data'!D84) -> -8.15848e-06 | F84: -1.390444003e-07 | G84: -4.241600761e-06 | H84: 1.089764632e-05 | J84: 1.557484876e-05 | K84: 0.0001732193727 | L84: -1.364802945e-05 | M84: -0.0001053853212 | N84: 5.125523134e-09
A85: =IF('DF raw data'!A85="","",'DF raw data'!A85) -> -291 | B85: =IF('DF raw data'!B85="","",'DF raw data'!B85) -> -1.28255e-05 | C85: =IF('DF raw data'!C85="","",'DF raw data'!C85) -> 0.000181143 | D85: =IF('DF raw data'!D85="","",'DF raw data'!D85) -> -2.37626e-05 | F85: 1.09503964e-06 | G85: -1.009689076e-05 | H85: -4.787615104e-06 | J85: 1.612236858e-05 | K85: 0.000181280557 | L85: -1.869647483e-05 | M85: -0.0001147335586 | N85: 5.430267604e-09
A86: =IF('DF raw data'!A86="","",'DF raw data'!A86) -> -290.5 | B86: =IF('DF raw data'!B86="","",'DF raw data'!B86) -> -4.24175e-06 | C86: =IF('DF raw data'!C86="","",'DF raw data'!C86) -> 0.000181733 | D86: =IF('DF raw data'!D86="","",'DF raw data'!D86) -> -2.03976e-05 | F86: 9.72342514e-06 | G86: -9.503822761e-06 | H86: -1.405117104e-06 | J86: 2.098408115e-05 | K86: 0.0001917725975 | L86: -2.344838621e-05 | M86: -0.0001264577518 | N86: 5.925346843e-09
A87: =IF('DF raw data'!A87="","",'DF raw data'!A87) -> -290 | B87: =IF('DF raw data'!B87="","",'DF raw data'!B87) -> -2.0527e-05 | C87: =IF('DF raw data'!C87="","",'DF raw data'!C87) -> 0.000178367 | D87: =IF('DF raw data'!D87="","",'DF raw data'!D87) -> -4.14027e-06 | F87: -6.64650816e-06 | G87: -1.288732596e-05 | H87: 1.493675101e-05 | J87: 1.766082707e-05 | K87: 0.0002006030111 | L87: -2.989204919e-05 | M87: -0.0001414037763 | N87: 6.528066552e-09
A88: =IF('DF raw data'!A88="","",'DF raw data'!A88) -> -289.5 | B88: =IF('DF raw data'!B88="","",'DF raw data'!B88) -> -8.02123e-06 | C88: =IF('DF raw data'!C88="","",'DF raw data'!C88) -> 0.000182044 | D88: =IF('DF raw data'!D88="","",'DF raw data'!D88) -> -2.17888e-05 | F88: 5.924291844e-06 | G88: -9.191205561e-06 | H88: -2.803551344e-06 | J88: 2.062297299e-05 | K88: 0.0002109144976 | L88: -3.448765197e-05 | M88: -0.0001586476023 | N88: 7.335419128e-09
A89: =IF('DF raw data'!A89="","",'DF raw data'!A89) -> -289 | B89: =IF('DF raw data'!B89="","",'DF raw data'!B89) -> -1.81477e-06 | C89: =IF('DF raw data'!C89="","",'DF raw data'!C89) -> 0.000182817 | D89: =IF('DF raw data'!D89="","",'DF raw data'!D89) -> -8.33662e-06 | F89: 1.216302544e-05 | G89: -8.414185961e-06 | H89: 1.071857999e-05 | J89: 2.670448571e-05 | K89: 0.0002242667404 | L89: -3.869474495e-05 | M89: -0.0001779949748 | N89: 8.44062555e-09
A90: =IF('DF raw data'!A90="","",'DF raw data'!A90) -> -288.5 | B90: =IF('DF raw data'!B90="","",'DF raw data'!B90) -> -5.5261e-06 | C90: =IF('DF raw data'!C90="","",'DF raw data'!C90) -> 0.000176654 | D90: =IF('DF raw data'!D90="","",'DF raw data'!D90) -> -1.59064e-05 | F90: 8.43239652e-06 | G90: -1.460923356e-05 | H90: 3.109437136e-06 | J90: 3.092068397e-05 | K90: 0.0002397270824 | L90: -4.599936173e-05 | M90: -0.0002009946557 | N90: 9.976640539e-09
A91: =IF('DF raw data'!A91="","",'DF raw data'!A91) -> -288 | B91: =IF('DF raw data'!B91="","",'DF raw data'!B91) -> -1.35363e-05 | C91: =IF('DF raw data'!C91="","",'DF raw data'!C91) -> 0.000179239 | D91: =IF('DF raw data'!D91="","",'DF raw data'!D91) -> -1.45905e-05 | F91: 3.805434797e-07 | G91: -1.201079156e-05 | H91: 4.432179816e-06 | J91: 3.111095571e-05 | K91: 0.0002552825603 | L91: -5.200475751e-05 | M91: -0.0002269970344 | N91: 1.181283372e-08
A92: =IF('DF raw data'!A92="","",'DF raw data'!A92) -> -287.5 | B92: =IF('DF raw data'!B92="","",'DF raw data'!B92) -> -2.57637e-05 | C92: =IF('DF raw data'!C92="","",'DF raw data'!C92) -> 0.000177855 | D92: =IF('DF raw data'!D92="","",'DF raw data'!D92) -> -3.16476e-05 | F92: -1.1910439e-05 | G92: -1.340198836e-05 | H92: -1.27136171e-05 | J92: 2.515573621e-05 | K92: 0.0002678604284 | L92: -5.870575169e-05 | M92: -0.0002563499103 | N92: 1.38524219e-08
A93: =IF('DF raw data'!A93="","",'DF raw data'!A93) -> -287 | B93: =IF('DF raw data'!B93="","",'DF raw data'!B93) -> -1.08439e-05 | C93: =IF('DF raw data'!C93="","",'DF raw data'!C93) -> 0.00018168 | D93: =IF('DF raw data'!D93="","",'DF raw data'!D93) -> -1.67205e-05 | F93: 3.08694396e-06 | G93: -9.557098361e-06 | H93: 2.291103816e-06 | J93: 2.669920819e-05 | K93: 0.0002812100325 | L93: -6.348430087e-05 | M93: -0.0002880920607 | N93: 1.622397398e-08
A94: =IF('DF raw data'!A94="","",'DF raw data'!A94) -> -286.5 | B94: =IF('DF raw data'!B94="","",'DF raw data'!B94) -> -1.04654e-05 | C94: =IF('DF raw data'!C94="","",'DF raw data'!C94) -> 0.000176729 | D94: =IF('DF raw data'!D94="","",'DF raw data'!D94) -> -7.28629e-06 | F94: 3.46741216e-06 | G94: -1.453384356e-05 | H94: 1.177437171e-05 | J94: 2.843291427e-05 | K94: 0.0002954264896 | L94: -7.075122265e-05 | M94: -0.000323467672 | N94: 1.913105704e-08
A95: =IF('DF raw data'!A95="","",'DF raw data'!A95) -> -286 | B95: =IF('DF raw data'!B95="","",'DF raw data'!B95) -> -1.35997e-05 | C95: =IF('DF raw data'!C95="","",'DF raw data'!C95) -> 0.000183944 | D95: =IF('DF raw data'!D95="","",'DF raw data'!D95) -> -1.5436e-05 | F95: 3.168137997e-07 | G95: -7.281325561e-06 | H95: 3.582283216e-06 | J95: 2.859132117e-05 | K95: 0.0003097221502 | L95: -7.439188543e-05 | M95: -0.0003606636148 | N95: 2.230686518e-08
A96: =IF('DF raw data'!A96="","",'DF raw data'!A96) -> -285.5 | B96: =IF('DF raw data'!B96="","",'DF raw data'!B96) -> -7.12225e-06 | C96: =IF('DF raw data'!C96="","",'DF raw data'!C96) -> 0.000191522 | D96: =IF('DF raw data'!D96="","",'DF raw data'!D96) -> -2.48041e-05 | F96: 6.82794654e-06 | G96: 3.36080039e-07 | H96: -5.834530904e-06 | J96: 3.200529444e-05 | K96: 0.0003257247974 | L96: -7.422384541e-05 | M96: -0.0003977755375 | N96: 2.557362423e-08
A97: =IF('DF raw data'!A97="","",'DF raw data'!A97) -> -285 | B97: =IF('DF raw data'!B97="","",'DF raw data'!B97) -> -1.74614e-06 | C97: =IF('DF raw data'!C97="","",'DF raw data'!C97) -> 0.000185243 | D97: =IF('DF raw data'!D97="","",'DF raw data'!D97) -> -1.51631e-05 | F97: 1.223201231e-05 | G97: -5.975570761e-06 | H97: 3.856602296e-06 | J97: 3.812130059e-05 | K97: 0.0003447854477 | L97: -7.72116308e-05 | M97: -0.0004363813529 | N97: 2.928105897e-08
A98: =IF('DF raw data'!A98="","",'DF raw data'!A98) -> -284.5 | B98: =IF('DF raw data'!B98="","",'DF raw data'!B98) -> -9.42868e-06 | C98: =IF('DF raw data'!C98="","",'DF raw data'!C98) -> 0.000187579 | D98: =IF('DF raw data'!D98="","",'DF raw data'!D98) -> -2.50783e-05 | F98: 4.509523104e-06 | G98: -3.627423561e-06 | H98: -6.110156744e-06 | J98: 4.037606215e-05 | K98: 0.0003649734788 | L98: -7.902534258e-05 | M98: -0.0004758940241 | N98: 3.321867455e-08
A99: =IF('DF raw data'!A99="","",'DF raw data'!A99) -> -284 | B99: =IF('DF raw data'!B99="","",'DF raw data'!B99) -> -1.56464e-05 | C99: =IF('DF raw data'!C99="","",'DF raw data'!C99) -> 0.000187587 | D99: =IF('DF raw data'!D99="","",'DF raw data'!D99) -> -2.14575e-05 | F99: -1.74052904e-06 | G99: -3.619381961e-06 | H99: -2.470528584e-06 | J99: 3.950579763e-05 | K99: 0.0003847263776 | L99: -8.083503356e-05 | M99: -0.0005163115409 | N99: 3.72661799e-08
A100: =IF('DF raw data'!A100="","",'DF raw data'!A100) -> -283.5 | B100: =IF('DF raw data'!B100="","",'DF raw data'!B100) -> -1.06499e-05 | C100: =IF('DF raw data'!C100="","",'DF raw data'!C100) -> 0.000188833 | D100: =IF('DF raw data'!D100="","",'DF raw data'!D100) -> -1.93133e-05 | F100: 3.28195276e-06 | G100: -2.366902761e-06 | H100: -3.151787438e-07 | J100: 4.114677401e-05 | K100: 0.0004052997646 | L100: -8.201848494e-05 | M100: -0.0005573207834 | N100: 4.147622434e-08
A101: =IF('DF raw data'!A101="","",'DF raw data'!A101) -> -283 | B101: =IF('DF raw data'!B101="","",'DF raw data'!B101) -> -2.01281e-05 | C101: =IF('DF raw data'!C101="","",'DF raw data'!C101) -> 0.000193603 | D101: =IF('DF raw data'!D101="","",'DF raw data'!D101) -> -2.66774e-05 | F101: -6.24553388e-06 | G101: 2.427901239e-06 | H101: -7.717572064e-06 | J101: 3.802400707e-05 | K101: 0.0004243117681 | L101: -8.080453432e-05 | M101: -0.0005977230506 | N101: 4.546382328e-08
A102: =IF('DF raw data'!A102="","",'DF raw data'!A102) -> -282.5 | B102: =IF('DF raw data'!B102="","",'DF raw data'!B102) -> -1.55781e-05 | C102: =IF('DF raw data'!C102="","",'DF raw data'!C102) -> 0.000196739 | D102: =IF('DF raw data'!D102="","",'DF raw data'!D102) -> -2.78817e-05 | F102: -1.67187388e-06 | G102: 5.580208439e-06 | H102: -8.928134424e-06 | J102: 3.718807013e-05 | K102: 0.0004429058032 | L102: -7.80144301e-05 | M102: -0.0006367302656 | N102: 4.919842521e-08
A103: =IF('DF raw data'!A103="","",'DF raw data'!A103) -> -282 | B103: =IF('DF raw data'!B103="","",'DF raw data'!B103) -> -1.38487e-05 | C103: =IF('DF raw data'!C103="","",'DF raw data'!C103) -> 0.000195588 | D103: =IF('DF raw data'!D103="","",'DF raw data'!D103) -> -2.67019e-05 | F103: 6.651899967e-08 | G103: 4.423223239e-06 | H103: -7.742199464e-06 | J103: 3.722132963e-05 | K103: 0.000461516468 | L103: -7.580281848e-05 | M103: -0.0006746316748 | N103: 5.276417255e-08
A104: =IF('DF raw data'!A104="","",'DF raw data'!A104) -> -281.5 | B104: =IF('DF raw data'!B104="","",'DF raw data'!B104) -> -7.18858e-06 | C104: =IF('DF raw data'!C104="","",'DF raw data'!C104) -> 0.000188149 | D104: =IF('DF raw data'!D104="","",'DF raw data'!D104) -> -2.11408e-05 | F104: 6.761271624e-06 | G104: -3.054459561e-06 | H104: -2.152181744e-06 | J104: 4.060196544e-05 | K104: 0.0004818174507 | L104: -7.733004826e-05 | M104: -0.000713296699 | N104: 5.657840053e-08
A105: =IF('DF raw data'!A105="","",'DF raw data'!A105) -> -281 | B105: =IF('DF raw data'!B105="","",'DF raw data'!B105) -> -1.1028e-06 | C105: =IF('DF raw data'!C105="","",'DF raw data'!C105) -> 0.000186578 | D105: =IF('DF raw data'!D105="","",'DF raw data'!D105) -> -1.91883e-05 | F105: 1.287869768e-05 | G105: -4.633628761e-06 | H105: -1.895287438e-07 | J105: 4.704131428e-05 | K105: 0.0005053381079 | L105: -7.964686264e-05 | M105: -0.0007531201303 | N105: 6.085665452e-08
A106: =IF('DF raw data'!A106="","",'DF raw data'!A106) -> -280.5 | B106: =IF('DF raw data'!B106="","",'DF raw data'!B106) -> -5.52536e-06 | C106: =IF('DF raw data'!C106="","",'DF raw data'!C106) -> 0.000192587 | D106: =IF('DF raw data'!D106="","",'DF raw data'!D106) -> -1.70343e-05 | F106: 8.433140368e-06 | G106: 1.406618039e-06 | H106: 1.975672056e-06 | J106: 5.125788446e-05 | K106: 0.0005309670501 | L106: -7.894355362e-05 | M106: -0.0007925919071 | N106: 6.528638221e-08
A107: =IF('DF raw data'!A107="","",'DF raw data'!A107) -> -280 | B107: =IF('DF raw data'!B107="","",'DF raw data'!B107) -> -1.9368e-05 | C107: =IF('DF raw data'!C107="","",'DF raw data'!C107) -> 0.000184986 | D107: =IF('DF raw data'!D107="","",'DF raw data'!D107) -> -1.29312e-05 | F107: -5.48148136e-06 | G107: -6.233907161e-06 | H107: 6.100108176e-06 | J107: 4.851714378e-05 | K107: 0.000555225622 | L107: -8.20605072e-05 | M107: -0.0008336221607 | N107: 6.983030225e-08
A108: =IF('DF raw data'!A108="","",'DF raw data'!A108) -> -279.5 | B108: =IF('DF raw data'!B108="","",'DF raw data'!B108) -> -1.28995e-05 | C108: =IF('DF raw data'!C108="","",'DF raw data'!C108) -> 0.000189844 | D108: =IF('DF raw data'!D108="","",'DF raw data'!D108) -> -8.75728e-06 | F108: 1.02065484e-06 | G108: -1.350645561e-06 | H108: 1.029573256e-05 | J108: 4.90274712e-05 | K108: 0.0005797393576 | L108: -8.273582998e-05 | M108: -0.0008749900757 | N108: 7.445475749e-08
A109: =IF('DF raw data'!A109="","",'DF raw data'!A109) -> -279 | B109: =IF('DF raw data'!B109="","",'DF raw data'!B109) -> -1.85386e-05 | C109: =IF('DF raw data'!C109="","",'DF raw data'!C109) -> 0.000192321 | D109: =IF('DF raw data'!D109="","",'DF raw data'!D109) -> -7.73973e-06 | F109: -4.64776848e-06 | G109: 1.139234839e-06 | H109: 1.131857382e-05 | J109: 4.670358696e-05 | K109: 0.0006030911511 | L109: -8.216621256e-05 | M109: -0.000916073182 | N109: 7.892101326e-08
A110: =IF('DF raw data'!A110="","",'DF raw data'!A110) -> -278.5 | B110: =IF('DF raw data'!B110="","",'DF raw data'!B110) -> -8.09198e-06 | C110: =IF('DF raw data'!C110="","",'DF raw data'!C110) -> 0.000195795 | D110: =IF('DF raw data'!D110="","",'DF raw data'!D110) -> -1.18461e-05 | F110: 5.853173944e-06 | G110: 4.631299639e-06 | H110: 7.190850696e-06 | J110: 4.963017393e-05 | K110: 0.000627906238 | L110: -7.985056274e-05 | M110: -0.0009559984633 | N110: 8.334064652e-08
A111: =IF('DF raw data'!A111="","",'DF raw data'!A111) -> -278 | B111: =IF('DF raw data'!B111="","",'DF raw data'!B111) -> -1.23321e-06 | C111: =IF('DF raw data'!C111="","",'DF raw data'!C111) -> 0.000199476 | D111: =IF('DF raw data'!D111="","",'DF raw data'!D111) -> -1.56764e-05 | F111: 1.274760955e-05 | G111: 8.331440839e-06 | H111: 3.340633136e-06 | J111: 5.600397871e-05 | K111: 0.0006559082274 | L111: -7.568484232e-05 | M111: -0.0009938408845 | N111: 8.777296702e-08
A112: =IF('DF raw data'!A112="","",'DF raw data'!A112) -> -277.5 | B112: =IF('DF raw data'!B112="","",'DF raw data'!B112) -> -2.29546e-05 | C112: =IF('DF raw data'!C112="","",'DF raw data'!C112) -> 0.000187219 | D112: =IF('DF raw data'!D112="","",'DF raw data'!D112) -> -1.64468e-05 | F112: -9.08673168e-06 | G112: -3.989295561e-06 | H112: 2.566227056e-06 | J112: 5.146061287e-05 | K112: 0.0006816385338 | L112: -7.76794901e-05 | M112: -0.00103268063 | N112: 9.211411595e-08
A113: =IF('DF raw data'!A113="","",'DF raw data'!A113) -> -277 | B113: =IF('DF raw data'!B113="","",'DF raw data'!B113) -> -1.36604e-05 | C113: =IF('DF raw data'!C113="","",'DF raw data'!C113) -> 0.000195467 | D113: =IF('DF raw data'!D113="","",'DF raw data'!D113) -> -2.06613e-05 | F113: 2.557981597e-07 | G113: 4.301594039e-06 | H113: -1.670188344e-06 | J113: 5.158851195e-05 | K113: 0.0007074327898 | L113: -7.552869308e-05 | M113: -0.001070444976 | N113: 9.629709497e-08
A114: =IF('DF raw data'!A114="","",'DF raw data'!A114) -> -276.5 | B114: =IF('DF raw data'!B114="","",'DF raw data'!B114) -> -1.50736e-05 | C114: =IF('DF raw data'!C114="","",'DF raw data'!C114) -> 0.000201817 | D114: =IF('DF raw data'!D114="","",'DF raw data'!D114) -> -1.57278e-05 | F114: -1.16475048e-06 | G114: 1.068461404e-05 | H114: 3.288965856e-06 | J114: 5.100613671e-05 | K114: 0.0007329358581 | L114: -7.018638606e-05 | M114: -0.001105538169 | N114: 1.000609724e-07
A115: =IF('DF raw data'!A115="","",'DF raw data'!A115) -> -276 | B115: =IF('DF raw data'!B115="","",'DF raw data'!B115) -> -2.30847e-05 | C115: =IF('DF raw data'!C115="","",'DF raw data'!C115) -> 0.000195525 | D115: =IF('DF raw data'!D115="","",'DF raw data'!D115) -> -1.20966e-05 | F115: -9.2175082e-06 | G115: 4.359895639e-06 | H115: 6.939048096e-06 | J115: 4.639738261e-05 | K115: 0.0007561345494 | L115: -6.800643824e-05 | M115: -0.001139541388 | N115: 1.034497687e-07
A116: =IF('DF raw data'!A116="","",'DF raw data'!A116) -> -275.5 | B116: =IF('DF raw data'!B116="","",'DF raw data'!B116) -> -1.59723e-05 | C116: =IF('DF raw data'!C116="","",'DF raw data'!C116) -> 0.000195646 | D116: =IF('DF raw data'!D116="","",'DF raw data'!D116) -> -1.31703e-05 | F116: -2.06812372e-06 | G116: 4.481524839e-06 | H116: 5.859764856e-06 | J116: 4.536332075e-05 | K116: 0.0007788162098 | L116: -6.576567582e-05 | M116: -0.001172424226 | N116: 1.066412462e-07
A117: =IF('DF raw data'!A117="","",'DF raw data'!A117) -> -275 | B117: =IF('DF raw data'!B117="","",'DF raw data'!B117) -> -1.6298e-05 | C117: =IF('DF raw data'!C117="","",'DF raw data'!C117) -> 0.000190095 | D117: =IF('DF raw data'!D117="","",'DF raw data'!D117) -> -4.28618e-06 | F117: -2.39551736e-06 | G117: -1.098340361e-06 | H117: 1.479008228e-05 | J117: 4.416556207e-05 | K117: 0.0008008989908 | L117: -6.6314846e-05 | M117: -0.001205581649 | N117: 1.098153741e-07
A118: =IF('DF raw data'!A118="","",'DF raw data'!A118) -> -274.5 | B118: =IF('DF raw data'!B118="","",'DF raw data'!B118) -> -8.15918e-06 | C118: =IF('DF raw data'!C118="","",'DF raw data'!C118) -> 0.000183667 | D118: =IF('DF raw data'!D118="","",'DF raw data'!D118) -> -6.85055e-06 | F118: 5.785624504e-06 | G118: -7.559765961e-06 | H118: 1.221237756e-05 | J118: 4.705837432e-05 | K118: 0.000824428178 | L118: -7.009472899e-05 | M118: -0.001240629014 | N118: 1.133792549e-07
A119: =IF('DF raw data'!A119="","",'DF raw data'!A119) -> -274 | B119: =IF('DF raw data'!B119="","",'DF raw data'!B119) -> -8.27767e-06 | C119: =IF('DF raw data'!C119="","",'DF raw data'!C119) -> 0.000180991 | D119: =IF('DF raw data'!D119="","",'DF raw data'!D119) -> -2.12955e-05 | F119: 5.666518356e-06 | G119: -1.024968116e-05 | H119: -2.307686184e-06 | J119: 4.989163349e-05 | K119: 0.0008493739947 | L119: -7.521956957e-05 | M119: -0.001278238798 | N119: 1.174528342e-07
A120: =IF('DF raw data'!A120="","",'DF raw data'!A120) -> -273.5 | B120: =IF('DF raw data'!B120="","",'DF raw data'!B120) -> -3.66317e-06 | C120: =IF('DF raw data'!C120="","",'DF raw data'!C120) -> 0.000188266 | D120: =IF('DF raw data'!D120="","",'DF raw data'!D120) -> -2.31933e-05 | F120: 1.030501376e-05 | G120: -2.936851161e-06 | H120: -4.215354744e-06 | J120: 5.504414037e-05 | K120: 0.0008768960649 | L120: -7.668799515e-05 | M120: -0.001316582796 | N120: 1.219082872e-07
A121: =IF('DF raw data'!A121="","",'DF raw data'!A121) -> -273 | B121: =IF('DF raw data'!B121="","",'DF raw data'!B121) -> -5.64789e-06 | C121: =IF('DF raw data'!C121="","",'DF raw data'!C121) -> 0.0001867 | D121: =IF('DF raw data'!D121="","",'DF raw data'!D121) -> -2.54792e-05 | F121: 8.309973212e-06 | G121: -4.510994361e-06 | H121: -6.513141424e-06 | J121: 5.919912698e-05 | K121: 0.0009064956284 | L121: -7.894349233e-05 | M121: -0.001356054542 | N121: 1.26776593e-07
A122: =IF('DF raw data'!A122="","",'DF raw data'!A122) -> -272.5 | B122: =IF('DF raw data'!B122="","",'DF raw data'!B122) -> -1.32119e-05 | C122: =IF('DF raw data'!C122="","",'DF raw data'!C122) -> 0.000184139 | D122: =IF('DF raw data'!D122="","",'DF raw data'!D122) -> -2.10821e-05 | F122: 7.066303597e-07 | G122: -7.085311561e-06 | H122: -2.093176504e-06 | J122: 5.955244216e-05 | K122: 0.0009362718495 | L122: -8.248614811e-05 | M122: -0.001397297616 | N122: 1.31951822e-07
A123: =IF('DF raw data'!A123="","",'DF raw data'!A123) -> -272 | B123: =IF('DF raw data'!B123="","",'DF raw data'!B123) -> -1.13631e-05 | C123: =IF('DF raw data'!C123="","",'DF raw data'!C123) -> 0.000191014 | D123: =IF('DF raw data'!D123="","",'DF raw data'!D123) -> -6.29898e-06 | F123: 2.56504412e-06 | G123: -1.74561561e-07 | H123: 1.276681572e-05 | J123: 6.083496422e-05 | K123: 0.0009666893316 | L123: -8.257342889e-05 | M123: -0.001438584331 | N123: 1.372114541e-07
A124: =IF('DF raw data'!A124="","",'DF raw data'!A124) -> -271.5 | B124: =IF('DF raw data'!B124="","",'DF raw data'!B124) -> -1.39817e-05 | C124: =IF('DF raw data'!C124="","",'DF raw data'!C124) -> 0.00018925 | D124: =IF('DF raw data'!D124="","",'DF raw data'!D124) -> -1.96223e-05 | F124: -6.717260033e-08 | G124: -1.947734361e-06 | H124: -6.257855438e-07 | J124: 6.080137792e-05 | K124: 0.0009970900206 | L124: -8.354729607e-05 | M124: -0.001480357979 | N124: 1.425499332e-07
A125: =IF('DF raw data'!A125="","",'DF raw data'!A125) -> -271 | B125: =IF('DF raw data'!B125="","",'DF raw data'!B125) -> 6.07184e-06 | C125: =IF('DF raw data'!C125="","",'DF raw data'!C125) -> 0.000191632 | D125: =IF('DF raw data'!D125="","",'DF raw data'!D125) -> -1.66221e-05 | F125: 2.009064581e-05 | G125: 4.46652039e-07 | H125: 2.390015496e-06 | J125: 7.084670082e-05 | K125: 0.001032513371 | L125: -8.332397005e-05 | M125: -0.001522019964 | N125: 1.485310027e-07
A126: =IF('DF raw data'!A126="","",'DF raw data'!A126) -> -270.5 | B126: =IF('DF raw data'!B126="","",'DF raw data'!B126) -> -2.96107e-06 | C126: =IF('DF raw data'!C126="","",'DF raw data'!C126) -> 0.000193522 | D126: =IF('DF raw data'!D126="","",'DF raw data'!D126) -> -1.91991e-05 | F126: 1.101076468e-05 | G126: 2.346480039e-06 | H126: -2.003849038e-07 | J126: 7.635208316e-05 | K126: 0.001070689413 | L126: -8.215073003e-05 | M126: -0.001563095329 | N126: 1.548201942e-07
A127: =IF('DF raw data'!A127="","",'DF raw data'!A127) -> -270 | B127: =IF('DF raw data'!B127="","",'DF raw data'!B127) -> -9.11253e-06 | C127: =IF('DF raw data'!C127="","",'DF raw data'!C127) -> 0.000191476 | D127: =IF('DF raw data'!D127="","",'DF raw data'!D127) -> -1.85791e-05 | F127: 4.827317084e-06 | G127: 2.89840839e-07 | H127: 4.228390962e-07 | J127: 7.87657417e-05 | K127: 0.001110072283 | L127: -8.200580961e-05 | M127: -0.001604098234 | N127: 1.612846916e-07
A128: =IF('DF raw data'!A128="","",'DF raw data'!A128) -> -269.5 | B128: =IF('DF raw data'!B128="","",'DF raw data'!B128) -> -1.02e-05 | C128: =IF('DF raw data'!C128="","",'DF raw data'!C128) -> 0.000194234 | D128: =IF('DF raw data'!D128="","",'DF raw data'!D128) -> -2.13987e-05 | F128: 3.73419224e-06 | G128: 3.062182439e-06 | H128: -2.411422824e-06 | J128: =F128*$G$3+J127 -> 8.063283782e-05 | K128: =J128*$G$3+K127 -> 0.001150388702 | L128: =G128*$G$3+L127 -> -8.047471839e-05 | M128: =L128*$G$3+M127 -> -0.001644335593 | N128: =(J128^2+L128^2)*$G$3+N127 -> 1.677736091e-07
A129: =IF('DF raw data'!A129="","",'DF raw data'!A129) -> -269 | B129: =IF('DF raw data'!B129="","",'DF raw data'!B129) -> -1.73797e-05 | C129: =IF('DF raw data'!C129="","",'DF raw data'!C129) -> 0.000197127 | D129: =IF('DF raw data'!D129="","",'DF raw data'!D129) -> -1.58346e-05 | F129: -3.4828422e-06 | G129: 5.970226039e-06 | H129: 3.181610496e-06 | J129: 7.889141672e-05 | K129: 0.001189834411 | L129: -7.748960537e-05 | M129: -0.001683080395 | N129: 1.738878563e-07
A130: =IF('DF raw data'!A130="","",'DF raw data'!A130) -> -268.5 | B130: =IF('DF raw data'!B130="","",'DF raw data'!B130) -> -8.14948e-06 | C130: =IF('DF raw data'!C130="","",'DF raw data'!C130) -> 0.000195972 | D130: =IF('DF raw data'!D130="","",'DF raw data'!D130) -> -2.17375e-05 | F130: 5.795374944e-06 | G130: 4.809220039e-06 | H130: -2.751984584e-06 | J130: 8.178910419e-05 | K130: 0.001230728963 | L130: -7.508499535e-05 | M130: -0.001720622893 | N130: 1.800514634e-07
A131: =IF('DF raw data'!A131="","",'DF raw data'!A131) -> -268 | B131: =IF('DF raw data'!B131="","",'DF raw data'!B131) -> -1.43706e-05 | C131: =IF('DF raw data'!C131="","",'DF raw data'!C131) -> 0.000198793 | D131: =IF('DF raw data'!D131="","",'DF raw data'!D131) -> -1.24833e-05 | F131: =(1-$G$1*($B$54-$G$2))*(B131-F$5) -> -4.580948803e-07 | G131: =(1-$G$1*($B$54-$G$2))*(C131-G$5) -> 7.644889239e-06 | H131: =(1-$G$1*($B$54-$G$2))*(D131-H$5) -> 6.550337256e-06 | J131: 8.156005675e-05 | K131: 0.001271508991 | L131: -7.126255073e-05 | M131: -0.001756254168 | N131: 1.859166604e-07
A132: =IF('DF raw data'!A132="","",'DF raw data'!A132) -> -267.5 | B132: =IF('DF raw data'!B132="","",'DF raw data'!B132) -> -6.35505e-06 | C132: =IF('DF raw data'!C132="","",'DF raw data'!C132) -> 0.00019686 | D132: =IF('DF raw data'!D132="","",'DF raw data'!D132) -> -2.2321e-05 | F132: 7.59913598e-06 | G132: 5.701837639e-06 | H132: -3.338518784e-06 | J132: 8.535962474e-05 | K132: 0.001314188804 | L132: -6.841163191e-05 | M132: -0.001790459984 | N132: 1.918998688e-07
A133: =IF('DF raw data'!A133="","",'DF raw data'!A133) -> -267 | B133: =IF('DF raw data'!B133="","",'DF raw data'!B133) -> -2.18619e-05 | C133: =IF('DF raw data'!C133="","",'DF raw data'!C133) -> 0.000193534 | D133: =IF('DF raw data'!D133="","",'DF raw data'!D133) -> -2.04114e-05 | F133: -7.98834964e-06 | G133: 2.358542439e-06 | H133: -1.418988864e-06 | J133: 8.136544992e-05 | K133: 0.001354871528 | L133: -6.723236069e-05 | M133: -0.001824076165 | N133: 1.974701322e-07
A134: =IF('DF raw data'!A134="","",'DF raw data'!A134) -> -266.5 | B134: =IF('DF raw data'!B134="","",'DF raw data'!B134) -> -8.15594e-06 | C134: =IF('DF raw data'!C134="","",'DF raw data'!C134) -> 0.00020074 | D134: =IF('DF raw data'!D134="","",'DF raw data'!D134) -> -1.18547e-05 | F134: 5.788881352e-06 | G134: 9.602013639e-06 | H134: 7.182205976e-06 | J134: 8.42598906e-05 | K134: 0.001397001474 | L134: -6.243135387e-05 | M134: -0.001855291842 | N134: 2.029688338e-07
A135: =IF('DF raw data'!A135="","",'DF raw data'!A135) -> -266 | B135: =IF('DF raw data'!B135="","",'DF raw data'!B135) -> -1.36636e-05 | C135: =IF('DF raw data'!C135="","",'DF raw data'!C135) -> 0.000204019 | D135: =IF('DF raw data'!D135="","",'DF raw data'!D135) -> -1.54694e-05 | F135: 2.525815197e-07 | G135: 1.289806444e-05 | H135: 3.548709536e-06 | J135: 8.438618136e-05 | K135: 0.001439194564 | L135: -5.598232165e-05 | M135: -0.001883283003 | N135: 2.080963578e-07
A136: =IF('DF raw data'!A136="","",'DF raw data'!A136) -> -265.5 | B136: =IF('DF raw data'!B136="","",'DF raw data'!B136) -> -7.77303e-06 | C136: =IF('DF raw data'!C136="","",'DF raw data'!C136) -> 0.000202526 | D136: =IF('DF raw data'!D136="","",'DF raw data'!D136) -> -9.46076e-06 | F136: 6.173782484e-06 | G136: 1.139730084e-05 | H136: 9.588594464e-06 | J136: 8.74730726e-05 | K136: 0.001482931101 | L136: -5.028367123e-05 | M136: -0.001908424838 | N136: 2.131863508e-07
A137: =IF('DF raw data'!A137="","",'DF raw data'!A137) -> -265 | B137: =IF('DF raw data'!B137="","",'DF raw data'!B137) -> -1.7312e-05 | C137: =IF('DF raw data'!C137="","",'DF raw data'!C137) -> 0.000196327 | D137: =IF('DF raw data'!D137="","",'DF raw data'!D137) -> -2.13948e-05 | F137: -3.41479016e-06 | G137: 5.166066039e-06 | H137: -2.407502544e-06 | J137: 8.576567752e-05 | K137: 0.00152581394 | L137: -4.770063821e-05 | M137: -0.001932275157 | N137: 2.180019019e-07
A138: =IF('DF raw data'!A138="","",'DF raw data'!A138) -> -264.5 | B138: =IF('DF raw data'!B138="","",'DF raw data'!B138) -> -9.30862e-06 | C138: =IF('DF raw data'!C138="","",'DF raw data'!C138) -> 0.000191262 | D138: =IF('DF raw data'!D138="","",'DF raw data'!D138) -> -1.29276e-05 | F138: 4.630207416e-06 | G138: 7.472803902e-08 | H138: 6.103726896e-06 | J138: 8.808078123e-05 | K138: 0.00156985433 | L138: -4.76632742e-05 | M138: -0.001956106794 | N138: 2.230169078e-07
A139: =IF('DF raw data'!A139="","",'DF raw data'!A139) -> -264 | B139: =IF('DF raw data'!B139="","",'DF raw data'!B139) -> -1.71218e-05 | C139: =IF('DF raw data'!C139="","",'DF raw data'!C139) -> 0.000194193 | D139: =IF('DF raw data'!D139="","",'DF raw data'!D139) -> -1.79121e-05 | F139: -3.22360112e-06 | G139: 3.020969239e-06 | H139: 1.093307496e-06 | J139: 8.646898067e-05 | K139: 0.00161308882 | L139: -4.615278958e-05 | M139: -0.001979183189 | N139: 2.278203901e-07
A140: =IF('DF raw data'!A140="","",'DF raw data'!A140) -> -263.5 | B140: =IF('DF raw data'!B140="","",'DF raw data'!B140) -> -8.53971e-06 | C140: =IF('DF raw data'!C140="","",'DF raw data'!C140) -> 0.000196501 | D140: =IF('DF raw data'!D140="","",'DF raw data'!D140) -> -1.29702e-05 | F140: 5.403115748e-06 | G140: 5.340970839e-06 | H140: 6.060905376e-06 | J140: 8.917053854e-05 | K140: 0.00165767409 | L140: -4.348230416e-05 | M140: -0.002000924341 | N140: 2.32741438e-07
A141: =IF('DF raw data'!A141="","",'DF raw data'!A141) -> -263 | B141: =IF('DF raw data'!B141="","",'DF raw data'!B141) -> -1.07862e-05 | C141: =IF('DF raw data'!C141="","",'DF raw data'!C141) -> 0.000197501 | D141: =IF('DF raw data'!D141="","",'DF raw data'!D141) -> -6.24053e-06 | F141: 3.144944e-06 | G141: 6.346170839e-06 | H141: 1.282556966e-05 | J141: 9.074301054e-05 | K141: 0.001703045595 | L141: -4.030921874e-05 | M141: -0.002021078951 | N141: 2.376710015e-07
A142: =IF('DF raw data'!A142="","",'DF raw data'!A142) -> -262.5 | B142: =IF('DF raw data'!B142="","",'DF raw data'!B142) -> 1.13781e-06 | C142: =IF('DF raw data'!C142="","",'DF raw data'!C142) -> 0.000208062 | D142: =IF('DF raw data'!D142="","",'DF raw data'!D142) -> -1.5969e-05 | F142: 1.513095885e-05 | G142: 1.696208804e-05 | H142: 3.046511616e-06 | J142: 9.830848997e-05 | K142: 0.00175219984 | L142: -3.182817472e-05 | M142: -0.002036993038 | N142: 2.430097974e-07
A143: =IF('DF raw data'!A143="","",'DF raw data'!A143) -> -262 | B143: =IF('DF raw data'!B143="","",'DF raw data'!B143) -> -1.63498e-05 | C143: =IF('DF raw data'!C143="","",'DF raw data'!C143) -> 0.00020428 | D143: =IF('DF raw data'!D143="","",'DF raw data'!D143) -> -2.26603e-05 | F143: -2.44758672e-06 | G143: 1.316042164e-05 | H143: -3.679583144e-06 | J143: 9.708469661e-05 | K143: 0.001800742188 | L143: -2.52479639e-05 | M143: -0.00204961702 | N143: 2.480412464e-07
A144: =IF('DF raw data'!A144="","",'DF raw data'!A144) -> -261.5 | B144: =IF('DF raw data'!B144="","",'DF raw data'!B144) -> -1.40491e-05 | C144: =IF('DF raw data'!C144="","",'DF raw data'!C144) -> 0.000210158 | D144: =IF('DF raw data'!D144="","",'DF raw data'!D144) -> -1.49748e-05 | F144: -1.349230803e-07 | G144: 1.906898724e-05 | H144: 4.045881456e-06 | J144: 9.701723507e-05 | K144: 0.001849250806 | L144: -1.571347028e-05 | M144: -0.002057473755 | N144: 2.52870875e-07
A145: =IF('DF raw data'!A145="","",'DF raw data'!A145) -> -261 | B145: =IF('DF raw data'!B145="","",'DF raw data'!B145) -> -2.34053e-05 | C145: =IF('DF raw data'!C145="","",'DF raw data'!C145) -> 0.000201023 | D145: =IF('DF raw data'!D145="","",'DF raw data'!D145) -> -1.10163e-05 | F145: -9.53977532e-06 | G145: 9.886485239e-06 | H145: 8.024965656e-06 | J145: 9.224734741e-05 | K145: 0.00189537448 | L145: -1.077022766e-05 | M145: -0.002062858869 | N145: 2.571836604e-07
A146: =IF('DF raw data'!A146="","",'DF raw data'!A146) -> -260.5 | B146: =IF('DF raw data'!B146="","",'DF raw data'!B146) -> -2.44861e-05 | C146: =IF('DF raw data'!C146="","",'DF raw data'!C146) -> 0.000183027 | D146: =IF('DF raw data'!D146="","",'DF raw data'!D146) -> -2.6631e-05 | F146: -1.062619548e-05 | G146: -8.203093961e-06 | H146: -7.670930784e-06 | J146: 8.693424967e-05 | K146: 0.001938841604 | L146: -1.487177464e-05 | M146: -0.002070294756 | N146: 2.610730271e-07
A147: =IF('DF raw data'!A147="","",'DF raw data'!A147) -> -260 | B147: =IF('DF raw data'!B147="","",'DF raw data'!B147) -> -1.60956e-05 | C147: =IF('DF raw data'!C147="","",'DF raw data'!C147) -> 0.000188172 | D147: =IF('DF raw data'!D147="","",'DF raw data'!D147) -> -1.93489e-05 | F147: -2.19206488e-06 | G147: -3.031339961e-06 | H147: -3.509638638e-07 | J147: 8.583821723e-05 | K147: 0.001981760713 | L147: -1.638744462e-05 | M147: -0.002078488478 | N147: 2.648914011e-07
A148: =IF('DF raw data'!A148="","",'DF raw data'!A148) -> -259.5 | B148: =IF('DF raw data'!B148="","",'DF raw data'!B148) -> -1.0392e-05 | C148: =IF('DF raw data'!C148="","",'DF raw data'!C148) -> 0.000188911 | D148: =IF('DF raw data'!D148="","",'DF raw data'!D148) -> -2.24204e-05 | F148: 3.54119384e-06 | G148: -2.288497161e-06 | H148: -3.438435664e-06 | J148: 8.760881415e-05 | K148: 0.00202556512 | L148: -1.75316932e-05 | M148: -0.002087254325 | N148: 2.688827334e-07
A149: =IF('DF raw data'!A149="","",'DF raw data'!A149) -> -259 | B149: =IF('DF raw data'!B149="","",'DF raw data'!B149) -> -1.65389e-05 | C149: =IF('DF raw data'!C149="","",'DF raw data'!C149) -> 0.000185263 | D149: =IF('DF raw data'!D149="","",'DF raw data'!D149) -> -2.76256e-05 | F149: -2.63767004e-06 | G149: -5.955466761e-06 | H149: -8.670702704e-06 | J149: 8.628997913e-05 | K149: 0.00206871011 | L149: -2.050942658e-05 | M149: -0.002097509038 | N149: 2.728160319e-07
A150: =IF('DF raw data'!A150="","",'DF raw data'!A150) -> -258.5 | B150: =IF('DF raw data'!B150="","",'DF raw data'!B150) -> -3.21661e-06 | C150: =IF('DF raw data'!C150="","",'DF raw data'!C150) -> 0.000195838 | D150: =IF('DF raw data'!D150="","",'DF raw data'!D150) -> -2.04435e-05 | F150: 1.075389587e-05 | G150: 4.674523239e-06 | H150: -1.451255784e-06 | J150: 9.166692706e-05 | K150: 0.002114543573 | L150: -1.817216496e-05 | M150: -0.002106595121 | N150: 2.771825585e-07
A151: =IF('DF raw data'!A151="","",'DF raw data'!A151) -> -258 | B151: =IF('DF raw data'!B151="","",'DF raw data'!B151) -> -6.29041e-06 | C151: =IF('DF raw data'!C151="","",'DF raw data'!C151) -> 0.000204194 | D151: =IF('DF raw data'!D151="","",'DF raw data'!D151) -> -2.25486e-05 | F151: 7.664112108e-06 | G151: 1.307397444e-05 | H151: -3.567302304e-06 | J151: 9.549898311e-05 | K151: 0.002162293065 | L151: -1.163517774e-05 | M151: -0.00211241271 | N151: 2.81810275e-07
A152: =IF('DF raw data'!A152="","",'DF raw data'!A152) -> -257.5 | B152: =IF('DF raw data'!B152="","",'DF raw data'!B152) -> -1.33351e-05 | C152: =IF('DF raw data'!C152="","",'DF raw data'!C152) -> 0.000212898 | D152: =IF('DF raw data'!D152="","",'DF raw data'!D152) -> -2.89651e-05 | F152: 5.827897197e-07 | G152: 2.182323524e-05 | H152: -1.00171681e-05 | J152: 9.579037797e-05 | K152: 0.002210188254 | L152: -7.23560122e-07 | M152: -0.00211277449 | N152: 2.863984351e-07
A153: =IF('DF raw data'!A153="","",'DF raw data'!A153) -> -257 | B153: =IF('DF raw data'!B153="","",'DF raw data'!B153) -> -2.5193e-05 | C153: =IF('DF raw data'!C153="","",'DF raw data'!C153) -> 0.000215188 | D153: =IF('DF raw data'!D153="","",'DF raw data'!D153) -> -2.11251e-05 | F153: -1.133677136e-05 | G153: 2.412514324e-05 | H153: -2.136400104e-06 | J153: 9.012199229e-05 | K153: 0.00225524925 | L153: 1.13390115e-05 | M153: -0.002107104984 | N153: 2.905237084e-07
A154: =IF('DF raw data'!A154="","",'DF raw data'!A154) -> -256.5 | B154: =IF('DF raw data'!B154="","",'DF raw data'!B154) -> -3.5337e-06 | C154: =IF('DF raw data'!C154="","",'DF raw data'!C154) -> 0.000209739 | D154: =IF('DF raw data'!D154="","",'DF raw data'!D154) -> -2.52995e-05 | F154: 1.0435157e-05 | G154: 1.864780844e-05 | H154: -6.332506984e-06 | J154: 9.533957079e-05 | K154: 0.002302919035 | L154: 2.066291572e-05 | M154: -0.002096773526 | N154: 2.952820033e-07
A155: =IF('DF raw data'!A155="","",'DF raw data'!A155) -> -256 | B155: =IF('DF raw data'!B155="","",'DF raw data'!B155) -> -1.87245e-05 | C155: =IF('DF raw data'!C155="","",'DF raw data'!C155) -> 0.000214939 | D155: =IF('DF raw data'!D155="","",'DF raw data'!D155) -> -1.6579e-05 | F155: -4.83463516e-06 | G155: 2.387484844e-05 | H155: 2.433339616e-06 | J155: 9.292225321e-05 | K155: 0.002349380162 | L155: 3.260033994e-05 | M155: -0.002080473356 | N155: 3.00130667e-07
A156: =IF('DF raw data'!A156="","",'DF raw data'!A156) -> -255.5 | B156: =IF('DF raw data'!B156="","",'DF raw data'!B156) -> -8.91799e-06 | C156: =IF('DF raw data'!C156="","",'DF raw data'!C156) -> 0.000206628 | D156: =IF('DF raw data'!D156="","",'DF raw data'!D156) -> -2.25443e-05 | F156: 5.022868692e-06 | G156: 1.552063124e-05 | H156: -3.562979944e-06 | J156: 9.543368756e-05 | K156: 0.002397097006 | L156: 4.036065556e-05 | M156: -0.002060293028 | N156: 3.054989526e-07
A157: =IF('DF raw data'!A157="","",'DF raw data'!A157) -> -255 | B157: =IF('DF raw data'!B157="","",'DF raw data'!B157) -> -9.62782e-06 | C157: =IF('DF raw data'!C157="","",'DF raw data'!C157) -> 0.000194487 | D157: =IF('DF raw data'!D157="","",'DF raw data'!D157) -> -1.41138e-05 | F157: 4.309347576e-06 | G157: 3.316498039e-06 | H157: 4.911358656e-06 | J157: 9.758836135e-05 | K157: 0.002445891186 | L157: 4.201890458e-05 | M157: -0.002039283576 | N157: 3.111434909e-07
A158: =IF('DF raw data'!A158="","",'DF raw data'!A158) -> -254.5 | B158: =IF('DF raw data'!B158="","",'DF raw data'!B158) -> -4.88165e-06 | C158: =IF('DF raw data'!C158="","",'DF raw data'!C158) -> 0.000201021 | D158: =IF('DF raw data'!D158="","",'DF raw data'!D158) -> -2.18178e-05 | F158: 9.08019766e-06 | G158: 9.884474839e-06 | H158: -2.832702144e-06 | J158: 0.0001021284602 | K158: 0.002496955416 | L158: 4.6961142e-05 | M158: -0.002015803005 | N158: 3.174612765e-07
A159: =IF('DF raw data'!A159="","",'DF raw data'!A159) -> -254 | B159: =IF('DF raw data'!B159="","",'DF raw data'!B159) -> -2.26303e-05 | C159: =IF('DF raw data'!C159="","",'DF raw data'!C159) -> 0.000206858 | D159: =IF('DF raw data'!D159="","",'DF raw data'!D159) -> -2.05233e-05 | F159: -8.76074532e-06 | G159: 1.575182724e-05 | H159: -1.531470744e-06 | J159: 9.774808752e-05 | K159: 0.00254582946 | L159: 5.483705561e-05 | M159: -0.001988384477 | N159: 3.237421721e-07
A160: =IF('DF raw data'!A160="","",'DF raw data'!A160) -> -253.5 | B160: =IF('DF raw data'!B160="","",'DF raw data'!B160) -> -2.37227e-05 | C160: =IF('DF raw data'!C160="","",'DF raw data'!C160) -> 0.000205235 | D160: =IF('DF raw data'!D160="","",'DF raw data'!D160) -> -1.81032e-05 | F160: -9.8588258e-06 | G160: 1.412038764e-05 | H160: 9.012137762e-07 | J160: 9.281867462e-05 | K160: 0.002592238797 | L160: 6.189724943e-05 | M160: -0.001957435853 | N160: 3.299654601e-07
A161: =IF('DF raw data'!A161="","",'DF raw data'!A161) -> -253 | B161: =IF('DF raw data'!B161="","",'DF raw data'!B161) -> -1.87911e-05 | C161: =IF('DF raw data'!C161="","",'DF raw data'!C161) -> 0.000195315 | D161: =IF('DF raw data'!D161="","",'DF raw data'!D161) -> -1.27325e-05 | F161: -4.90158148e-06 | G161: 4.148803639e-06 | H161: 6.299841416e-06 | J161: 9.036788388e-05 | K161: 0.002637422739 | L161: 6.397165125e-05 | M161: -0.001925450027 | N161: 3.360948234e-07
A162: =IF('DF raw data'!A162="","",'DF raw data'!A162) -> -252.5 | B162: =IF('DF raw data'!B162="","",'DF raw data'!B162) -> -1.00873e-05 | C162: =IF('DF raw data'!C162="","",'DF raw data'!C162) -> 0.000198495 | D162: =IF('DF raw data'!D162="","",'DF raw data'!D162) -> 2.00422e-06 | F162: 3.84747828e-06 | G162: 7.345339639e-06 | H162: 2.111319236e-05 | J162: 9.229162302e-05 | K162: 0.002683568551 | L162: 6.764432107e-05 | M162: -0.001891627866 | N162: 3.426415723e-07
A163: =IF('DF raw data'!A163="","",'DF raw data'!A163) -> -252 | B163: =IF('DF raw data'!B163="","",'DF raw data'!B163) -> -1.65477e-05 | C163: =IF('DF raw data'!C163="","",'DF raw data'!C163) -> 0.000202931 | D163: =IF('DF raw data'!D163="","",'DF raw data'!D163) -> -1.3911e-05 | F163: -2.6465158e-06 | G163: 1.180440684e-05 | H163: 5.115213216e-06 | J163: 9.096836512e-05 | K163: 0.002729052733 | L163: 7.354652449e-05 | M163: -0.001854854604 | N163: 3.494837397e-07
A164: =IF('DF raw data'!A164="","",'DF raw data'!A164) -> -251.5 | B164: =IF('DF raw data'!B164="","",'DF raw data'!B164) -> -7.38329e-06 | C164: =IF('DF raw data'!C164="","",'DF raw data'!C164) -> 0.000212297 | D164: =IF('DF raw data'!D164="","",'DF raw data'!D164) -> -1.78247e-05 | F164: 6.565549132e-06 | G164: 2.121911004e-05 | H164: 1.181161976e-06 | J164: 9.425113968e-05 | K164: 0.002776178303 | L164: 8.415607951e-05 | M164: -0.001812776564 | N164: 3.574665012e-07
A165: =IF('DF raw data'!A165="","",'DF raw data'!A165) -> -251 | B165: =IF('DF raw data'!B165="","",'DF raw data'!B165) -> -1.06597e-05 | C165: =IF('DF raw data'!C165="","",'DF raw data'!C165) -> 0.000217645 | D165: =IF('DF raw data'!D165="","",'DF raw data'!D165) -> -3.58271e-06 | F165: 3.2721018e-06 | G165: 2.659491964e-05 | H165: 1.549721032e-05 | J165: 9.588719058e-05 | K165: 0.002824121899 | L165: 9.745353933e-05 | M165: -0.001764049795 | N165: 3.66812274e-07
A166: =IF('DF raw data'!A166="","",'DF raw data'!A166) -> -250.5 | B166: =IF('DF raw data'!B166="","",'DF raw data'!B166) -> -9.12148e-06 | C166: =IF('DF raw data'!C166="","",'DF raw data'!C166) -> 0.000215641 | D166: =IF('DF raw data'!D166="","",'DF raw data'!D166) -> -5.45368e-06 | F166: 4.818320544e-06 | G166: 2.458049884e-05 | H166: 1.361651128e-05 | J166: 9.829635085e-05 | K166: 0.002873270074 | L166: 0.0001097437888 | M166: -0.0017091779 | N166: 3.776652099e-07
A167: =IF('DF raw data'!A167="","",'DF raw data'!A167) -> -250 | B167: =IF('DF raw data'!B167="","",'DF raw data'!B167) -> -1.48185e-05 | C167: =IF('DF raw data'!C167="","",'DF raw data'!C167) -> 0.000207186 | D167: =IF('DF raw data'!D167="","",'DF raw data'!D167) -> -1.26572e-05 | F167: -9.083239603e-07 | G167: 1.608153284e-05 | H167: 6.375532976e-06 | J167: 9.784218887e-05 | K167: 0.002922191168 | L167: 0.0001177845552 | M167: -0.001650285623 | N167: 3.893883576e-07
A168: =IF('DF raw data'!A168="","",'DF raw data'!A168) -> -249.5 | B168: =IF('DF raw data'!B168="","",'DF raw data'!B168) -> -2.38356e-06 | C168: =IF('DF raw data'!C168="","",'DF raw data'!C168) -> 0.000209944 | D168: =IF('DF raw data'!D168="","",'DF raw data'!D168) -> -2.03842e-05 | F168: 1.159127773e-05 | G168: 1.885387444e-05 | H168: -1.391647424e-06 | J168: 0.0001036378277 | K168: 0.002974010082 | L168: 0.0001272114924 | M168: -0.001586679877 | N168: 4.028501391e-07
A169: =IF('DF raw data'!A169="","",'DF raw data'!A169) -> -249 | B169: =IF('DF raw data'!B169="","",'DF raw data'!B169) -> -2.23831e-05 | C169: =IF('DF raw data'!C169="","",'DF raw data'!C169) -> 0.000211427 | D169: =IF('DF raw data'!D169="","",'DF raw data'!D169) -> -6.27423e-06 | F169: -8.51225988e-06 | G169: 2.034458604e-05 | H169: 1.279169442e-05 | J169: 9.93816978e-05 | K169: 0.003023700931 | L169: 0.0001373837854 | M169: -0.001517987984 | N169: 4.172256523e-07
A170: =IF('DF raw data'!A170="","",'DF raw data'!A170) -> -248.5 | B170: =IF('DF raw data'!B170="","",'DF raw data'!B170) -> -1.49448e-05 | C170: =IF('DF raw data'!C170="","",'DF raw data'!C170) -> 0.000215618 | D170: =IF('DF raw data'!D170="","",'DF raw data'!D170) -> -1.72914e-05 | F170: -1.03528072e-06 | G170: 2.455737924e-05 | H170: 1.717235136e-06 | J170: 9.886405744e-05 | K170: 0.00307313296 | L170: 0.000149662475 | M170: -0.001443156746 | N170: 4.333121315e-07
A171: =IF('DF raw data'!A171="","",'DF raw data'!A171) -> -248 | B171: =IF('DF raw data'!B171="","",'DF raw data'!B171) -> -2.00039e-05 | C171: =IF('DF raw data'!C171="","",'DF raw data'!C171) -> 0.000226815 | D171: =IF('DF raw data'!D171="","",'DF raw data'!D171) -> -1.92216e-05 | F171: -6.12068804e-06 | G171: 3.581260364e-05 | H171: -2.230019038e-07 | J171: 9.580371342e-05 | K171: 0.003121034817 | L171: 0.0001675687768 | M171: -0.001359372358 | N171: 4.519409547e-07
A172: =IF('DF raw data'!A172="","",'DF raw data'!A172) -> -247.5 | B172: =IF('DF raw data'!B172="","",'DF raw data'!B172) -> -1.12955e-05 | C172: =IF('DF raw data'!C172="","",'DF raw data'!C172) -> 0.000229833 | D172: =IF('DF raw data'!D172="","",'DF raw data'!D172) -> -1.25915e-05 | F172: 2.63299564e-06 | G172: 3.884629724e-05 | H172: 6.441574616e-06 | J172: 9.712021124e-05 | K172: 0.003169594922 | L172: 0.0001869919255 | M172: -0.001265876395 | N172: 4.741401125e-07
A173: =IF('DF raw data'!A173="","",'DF raw data'!A173) -> -247 | B173: =IF('DF raw data'!B173="","",'DF raw data'!B173) -> -9.37007e-06 | C173: =IF('DF raw data'!C173="","",'DF raw data'!C173) -> 0.000222127 | D173: =IF('DF raw data'!D173="","",'DF raw data'!D173) -> -1.61484e-05 | F173: 4.568437876e-06 | G173: 3.110022604e-05 | H173: 2.866178736e-06 | J173: 9.940443017e-05 | K173: 0.003219297137 | L173: 0.0002025420385 | M173: -0.001164605376 | N173: 4.995923715e-07
A174: =IF('DF raw data'!A174="","",'DF raw data'!A174) -> -246.5 | B174: =IF('DF raw data'!B174="","",'DF raw data'!B174) -> -6.8078e-06 | C174: =IF('DF raw data'!C174="","",'DF raw data'!C174) -> 0.000216887 | D174: =IF('DF raw data'!D174="","",'DF raw data'!D174) -> -1.59253e-05 | F174: 7.14403168e-06 | G174: 2.583297804e-05 | H174: 3.090438856e-06 | J174: 0.000102976446 | K174: 0.00327078536 | L174: 0.0002154585275 | M174: -0.001056876112 | N174: 5.281056343e-07
A175: =IF('DF raw data'!A175="","",'DF raw data'!A175) -> -246 | B175: =IF('DF raw data'!B175="","",'DF raw data'!B175) -> -2.33307e-05 | C175: =IF('DF raw data'!C175="","",'DF raw data'!C175) -> 0.000206608 | D175: =IF('DF raw data'!D175="","",'DF raw data'!D175) -> -2.69818e-05 | F175: -9.4647874e-06 | G175: 1.550052724e-05 | H175: -8.023554944e-06 | J175: 9.824405231e-05 | K175: 0.003319907387 | L175: 0.0002232087911 | M175: -0.0009452717167 | N175: 5.578426634e-07
A176: =IF('DF raw data'!A176="","",'DF raw data'!A176) -> -245.5 | B176: =IF('DF raw data'!B176="","",'DF raw data'!B176) -> -1.78899e-05 | C176: =IF('DF raw data'!C176="","",'DF raw data'!C176) -> 0.000210219 | D176: =IF('DF raw data'!D176="","",'DF raw data'!D176) -> -2.14438e-05 | F176: -3.99569524e-06 | G176: 1.913030444e-05 | H176: -2.456757344e-06 | J176: 9.624620469e-05 | K176: 0.003368030489 | L176: 0.0002327739433 | M176: -0.000828884745 | N176: 5.895661837e-07
A177: =IF('DF raw data'!A177="","",'DF raw data'!A177) -> -245 | B177: =IF('DF raw data'!B177="","",'DF raw data'!B177) -> -2.9503e-05 | C177: =IF('DF raw data'!C177="","",'DF raw data'!C177) -> 0.000212386 | D177: =IF('DF raw data'!D177="","",'DF raw data'!D177) -> 6.00829e-06 | F177: -1.566918336e-05 | G177: 2.130857284e-05 | H177: 2.513808352e-05 | J177: 8.841161301e-05 | K177: 0.003412236295 | L177: 0.0002434282298 | M177: -0.0007071706302 | N177: 6.231031419e-07
A178: =IF('DF raw data'!A178="","",'DF raw data'!A178) -> -244.5 | B178: =IF('DF raw data'!B178="","",'DF raw data'!B178) -> -1.0461e-05 | C178: =IF('DF raw data'!C178="","",'DF raw data'!C178) -> 0.000204305 | D178: =IF('DF raw data'!D178="","",'DF raw data'!D178) -> -1.47972e-05 | F178: 3.47183504e-06 | G178: 1.318555164e-05 | H178: 4.224404976e-06 | J178: 9.014753053e-05 | K178: 0.003457310061 | L178: 0.0002500210056 | M178: -0.0005821601274 | N178: 6.584216822e-07
A179: =IF('DF raw data'!A179="","",'DF raw data'!A179) -> -244 | B179: =IF('DF raw data'!B179="","",'DF raw data'!B179) -> -1.24444e-05 | C179: =IF('DF raw data'!C179="","",'DF raw data'!C179) -> 0.00020441 | D179: =IF('DF raw data'!D179="","",'DF raw data'!D179) -> -1.76905e-05 | F179: 1.47812136e-06 | G179: 1.329109764e-05 | H179: 1.316059816e-06 | J179: 9.088659121e-05 | K179: 0.003502753356 | L179: 0.0002566665544 | M179: -0.0004538268502 | N179: 6.954907285e-07
A180: =IF('DF raw data'!A180="","",'DF raw data'!A180) -> -243.5 | B180: =IF('DF raw data'!B180="","",'DF raw data'!B180) -> -1.37896e-05 | C180: =IF('DF raw data'!C180="","",'DF raw data'!C180) -> 0.000218259 | D180: =IF('DF raw data'!D180="","",'DF raw data'!D180) -> -2.02865e-05 | F180: 1.259263197e-07 | G180: 2.721211244e-05 | H180: -1.293439384e-06 | J180: 9.094955437e-05 | K180: 0.003548228133 | L180: 0.0002702726106 | M180: -0.0003186905448 | N180: 7.361502812e-07
A181: =IF('DF raw data'!A181="","",'DF raw data'!A181) -> -243 | B181: =IF('DF raw data'!B181="","",'DF raw data'!B181) -> -1.88527e-05 | C181: =IF('DF raw data'!C181="","",'DF raw data'!C181) -> 0.000216352 | D181: =IF('DF raw data'!D181="","",'DF raw data'!D181) -> -1.59198e-05 | F181: -4.9635018e-06 | G181: 2.529519604e-05 | H181: 3.095967456e-06 | J181: 8.846780347e-05 | K181: 0.003592462035 | L181: 0.0002829202086 | M181: -0.0001772304405 | N181: 7.800854796e-07
A182: =IF('DF raw data'!A182="","",'DF raw data'!A182) -> -242.5 | B182: =IF('DF raw data'!B182="","",'DF raw data'!B182) -> -1.85316e-05 | C182: =IF('DF raw data'!C182="","",'DF raw data'!C182) -> 0.000211064 | D182: =IF('DF raw data'!D182="","",'DF raw data'!D182) -> -2.00124e-05 | F182: -4.64073208e-06 | G182: 1.997969844e-05 | H182: -1.017914064e-06 | J182: 8.614743743e-05 | K182: 0.003635535754 | L182: 0.0002929100579 | M182: -3.07754116e-05 | N182: 8.266943211e-07
A183: =IF('DF raw data'!A183="","",'DF raw data'!A183) -> -242 | B183: =IF('DF raw data'!B183="","",'DF raw data'!B183) -> -2.05233e-05 | C183: =IF('DF raw data'!C183="","",'DF raw data'!C183) -> 0.000199886 | D183: =IF('DF raw data'!D183="","",'DF raw data'!D183) -> -8.57007e-06 | F183: -6.64278892e-06 | G183: 8.743572839e-06 | H183: 1.048391605e-05 | J183: 8.282604297e-05 | K183: 0.003676948775 | L183: 0.0002972818443 | M183: 0.0001178655105 | N183: 8.743126452e-07
A184: =IF('DF raw data'!A184="","",'DF raw data'!A184) -> -241.5 | B184: =IF('DF raw data'!B184="","",'DF raw data'!B184) -> -6.74385e-06 | C184: =IF('DF raw data'!C184="","",'DF raw data'!C184) -> 0.000198241 | D184: =IF('DF raw data'!D184="","",'DF raw data'!D184) -> -1.59215e-05 | F184: 7.20831422e-06 | G184: 7.090018839e-06 | H184: 3.094258616e-06 | J184: 8.643020008e-05 | K184: 0.003720163875 | L184: 0.0003008268537 | M184: 0.0002682789374 | N184: 9.232961329e-07
A185: =IF('DF raw data'!A185="","",'DF raw data'!A185) -> -241 | B185: =IF('DF raw data'!B185="","",'DF raw data'!B185) -> -4.69271e-06 | C185: =IF('DF raw data'!C185="","",'DF raw data'!C185) -> 0.000203856 | D185: =IF('DF raw data'!D185="","",'DF raw data'!D185) -> -1.63867e-05 | F185: 9.270120148e-06 | G185: 1.273421684e-05 | H185: 2.626639576e-06 | J185: 9.106526016e-05 | K185: 0.003765696505 | L185: 0.0003071939621 | M185: 0.0004218759185 | N185: 9.746266389e-07
A186: =IF('DF raw data'!A186="","",'DF raw data'!A186) -> -240.5 | B186: =IF('DF raw data'!B186="","",'DF raw data'!B186) -> -1.53973e-05 | C186: =IF('DF raw data'!C186="","",'DF raw data'!C186) -> 0.000202774 | D186: =IF('DF raw data'!D186="","",'DF raw data'!D186) -> -1.14033e-05 | F186: -1.49013372e-06 | G186: 1.164659044e-05 | H186: 7.635953256e-06 | J186: 9.03201933e-05 | K186: 0.003810856602 | L186: 0.0003130172573 | M186: 0.0005783845471 | N186: 1.027695409e-06
A187: =IF('DF raw data'!A187="","",'DF raw data'!A187) -> -240 | B187: =IF('DF raw data'!B187="","",'DF raw data'!B187) -> -1.34151e-05 | C187: =IF('DF raw data'!C187="","",'DF raw data'!C187) -> 0.000204844 | D187: =IF('DF raw data'!D187="","",'DF raw data'!D187) -> -3.01939e-06 | F187: 5.023737197e-07 | G187: 1.372735444e-05 | H187: 1.606345959e-05 | J187: 9.057138016e-05 | K187: 0.003856142292 | L187: 0.0003198809346 | M187: 0.0007383250144 | N187: 1.082958903e-06
A188: =IF('DF raw data'!A188="","",'DF raw data'!A188) -> -239.5 | B188: =IF('DF raw data'!B188="","",'DF raw data'!B188) -> -9.05715e-06 | C188: =IF('DF raw data'!C188="","",'DF raw data'!C188) -> 0.000204898 | D188: =IF('DF raw data'!D188="","",'DF raw data'!D188) -> -5.71661e-06 | F188: 4.88298506e-06 | G188: 1.378163524e-05 | H188: 1.335221404e-05 | J188: 9.301287269e-05 | K188: 0.003902648729 | L188: 0.0003267717522 | M188: 0.0009017108905 | N188: 1.140674489e-06
A189: =IF('DF raw data'!A189="","",'DF raw data'!A189) -> -239 | B189: =IF('DF raw data'!B189="","",'DF raw data'!B189) -> -1.67424e-05 | C189: =IF('DF raw data'!C189="","",'DF raw data'!C189) -> 0.00021182 | D189: =IF('DF raw data'!D189="","",'DF raw data'!D189) -> -9.66575e-06 | F189: -2.84222824e-06 | G189: 2.073962964e-05 | H189: 9.382538516e-06 | J189: 9.159175857e-05 | K189: 0.003948444608 | L189: 0.000337141567 | M189: 0.001070281674 | N189: 1.201701232e-06
A190: =IF('DF raw data'!A190="","",'DF raw data'!A190) -> -238.5 | B190: =IF('DF raw data'!B190="","",'DF raw data'!B190) -> -1.94357e-05 | C190: =IF('DF raw data'!C190="","",'DF raw data'!C190) -> 0.000202244 | D190: =IF('DF raw data'!D190="","",'DF raw data'!D190) -> -9.02599e-06 | F190: -5.5495334e-06 | G190: 1.111383444e-05 | H190: 1.002562527e-05 | J190: 8.881699187e-05 | K190: 0.003992853104 | L190: 0.0003426984842 | M190: 0.001241630916 | N190: 1.264366587e-06
A191: =IF('DF raw data'!A191="","",'DF raw data'!A191) -> -238 | B191: =IF('DF raw data'!B191="","",'DF raw data'!B191) -> -1.90531e-05 | C191: =IF('DF raw data'!C191="","",'DF raw data'!C191) -> 0.000199181 | D191: =IF('DF raw data'!D191="","",'DF raw data'!D191) -> -3.46873e-06 | F191: -5.16494388e-06 | G191: 8.034906839e-06 | H191: 1.561178302e-05 | J191: 8.623451992e-05 | K191: 0.004035970364 | L191: 0.0003467159376 | M191: 0.001414988885 | N191: 1.328190754e-06
A192: =IF('DF raw data'!A192="","",'DF raw data'!A192) -> -237.5 | B192: =IF('DF raw data'!B192="","",'DF raw data'!B192) -> -1.99483e-05 | C192: =IF('DF raw data'!C192="","",'DF raw data'!C192) -> 0.000211291 | D192: =IF('DF raw data'!D192="","",'DF raw data'!D192) -> -9.13569e-06 | F192: -6.06479892e-06 | G192: 2.020787884e-05 | H192: 9.915354828e-06 | J192: =F192*$G$3+J191 -> 8.320212046e-05 | K192: =J192*$G$3+K191 -> 0.004077571424 | L192: =G192*$G$3+L191 -> 0.0003568198771 | M192: =L192*$G$3+M191 -> 0.001593398823 | N192: =(J192^2+L192^2)*$G$3+N191 -> 1.395312263e-06
A193: =IF('DF raw data'!A193="","",'DF raw data'!A193) -> -237 | B193: =IF('DF raw data'!B193="","",'DF raw data'!B193) -> -2.07167e-05 | C193: =IF('DF raw data'!C193="","",'DF raw data'!C193) -> 0.000219806 | D193: =IF('DF raw data'!D193="","",'DF raw data'!D193) -> -6.87728e-06 | F193: -6.8371946e-06 | G193: 2.876715684e-05 | H193: 1.218550856e-05 | J193: 7.978352316e-05 | K193: 0.004117463186 | L193: 0.0003712034555 | M193: 0.001779000551 | N193: 1.467390971e-06
A194: =IF('DF raw data'!A194="","",'DF raw data'!A194) -> -236.5 | B194: =IF('DF raw data'!B194="","",'DF raw data'!B194) -> -1.61636e-05 | C194: =IF('DF raw data'!C194="","",'DF raw data'!C194) -> 0.000211925 | D194: =IF('DF raw data'!D194="","",'DF raw data'!D194) -> -1.55495e-05 | F194: -2.26041848e-06 | G194: 2.084517564e-05 | H194: 3.468193016e-06 | J194: 7.865331392e-05 | K194: 0.004156789843 | L194: 0.0003816260433 | M194: 0.001969813573 | N194: 1.543303361e-06
A195: =IF('DF raw data'!A195="","",'DF raw data'!A195) -> -236 | B195: =IF('DF raw data'!B195="","",'DF raw data'!B195) -> -2.43593e-05 | C195: =IF('DF raw data'!C195="","",'DF raw data'!C195) -> 0.000206925 | D195: =IF('DF raw data'!D195="","",'DF raw data'!D195) -> -2.14236e-05 | F195: =(1-$G$1*($B$54-$G$2))*(B195-F$5) -> -1.049873612e-05 | G195: =(1-$G$1*($B$54-$G$2))*(C195-G$5) -> 1.581917564e-05 | H195: =(1-$G$1*($B$54-$G$2))*(D195-H$5) -> -2.436452304e-06 | J195: 7.340394586e-05 | K195: 0.004193491815 | L195: 0.0003895356311 | M195: 0.002164581388 | N195: 1.621866434e-06
A196: =IF('DF raw data'!A196="","",'DF raw data'!A196) -> -235.5 | B196: =IF('DF raw data'!B196="","",'DF raw data'!B196) -> -2.03271e-05 | C196: =IF('DF raw data'!C196="","",'DF raw data'!C196) -> 0.000200008 | D196: =IF('DF raw data'!D196="","",'DF raw data'!D196) -> -1.79486e-05 | F196: -6.44556868e-06 | G196: 8.866207239e-06 | H196: 1.056617696e-06 | J196: 7.018116152e-05 | K196: 0.004228582396 | L196: 0.0003939687347 | M196: 0.002361565756 | N196: 1.701934814e-06
A197: =IF('DF raw data'!A197="","",'DF raw data'!A197) -> -235 | B197: =IF('DF raw data'!B197="","",'DF raw data'!B197) -> -2.78951e-05 | C197: =IF('DF raw data'!C197="","",'DF raw data'!C197) -> 0.00020221 | D197: =IF('DF raw data'!D197="","",'DF raw data'!D197) -> -2.99343e-06 | F197: -1.405292228e-05 | G197: 1.107965764e-05 | H197: 1.608955458e-05 | J197: 6.315470038e-05 | K197: 0.004260159746 | L197: 0.0003995085636 | M197: 0.002561320038 | N197: 1.783732618e-06
A198: =IF('DF raw data'!A198="","",'DF raw data'!A198) -> -234.5 | B198: =IF('DF raw data'!B198="","",'DF raw data'!B198) -> -1.64256e-05 | C198: =IF('DF raw data'!C198="","",'DF raw data'!C198) -> 0.000207333 | D198: =IF('DF raw data'!D198="","",'DF raw data'!D198) -> -6.78114e-06 | F198: -2.52378088e-06 | G198: 1.622929724e-05 | H198: 1.228214849e-05 | J198: 6.189280994e-05 | K198: 0.004291106151 | L198: 0.0004076232122 | M198: 0.002765131644 | N198: 1.86872632e-06
A199: =IF('DF raw data'!A199="","",'DF raw data'!A199) -> -234 | B199: =IF('DF raw data'!B199="","",'DF raw data'!B199) -> -1.46317e-05 | C199: =IF('DF raw data'!C199="","",'DF raw data'!C199) -> 0.000212557 | D199: =IF('DF raw data'!D199="","",'DF raw data'!D199) -> -4.11889e-06 | F199: -7.205526003e-07 | G199: 2.148046204e-05 | H199: 1.495824219e-05 | J199: 6.153253364e-05 | K199: 0.004321872418 | L199: 0.0004183634432 | M199: 0.002974313365 | N199: 1.958133432e-06
A200: =IF('DF raw data'!A200="","",'DF raw data'!A200) -> -233.5 | B200: =IF('DF raw data'!B200="","",'DF raw data'!B200) -> -1.44364e-05 | C200: =IF('DF raw data'!C200="","",'DF raw data'!C200) -> 0.000214475 | D200: =IF('DF raw data'!D200="","",'DF raw data'!D200) -> -1.11028e-05 | F200: -5.242370403e-07 | G200: 2.340843564e-05 | H200: 7.938015856e-06 | J200: 6.127041512e-05 | K200: 0.004352507626 | L200: 0.000430067661 | M200: 0.003189347196 | N200: 2.05248956e-06
... 1079 more rows

Sheet 15 mm
A1: =IF('DF raw data'!E1="","",'DF raw data'!E1) -> Number of header lines | B1: =IF('DF raw data'!F1="","",'DF raw data'!F1) -> 54 | C1: =IF('DF raw data'!C1="","",'DF raw data'!C1) ->  | D1: =IF('DF raw data'!D1="","",'DF raw data'!D1) ->  | F1: T_coeff | G1: -0.001 | H1: /degC | J1: IBy total | K1: =J1267*1000 -> 9.13057107 | L1: muTm | M1: =L1267*1000 -> -27.83333858 | R1: DF ref | S1: 1
A2: =IF('DF raw data'!E2="","",'DF raw data'!E2) -> Measured by | B2: =IF('DF raw data'!F2="","",'DF raw data'!F2) -> Danfysik | C2: =IF('DF raw data'!C2="","",'DF raw data'!C2) ->  | D2: =IF('DF raw data'!D2="","",'DF raw data'!D2) ->  | F2: Tcorr | G2: 20 | H2: degC | J2: JBy total | K2: =K1267 -> -0.07869571242 | L2: muTm^2 | M2: =M1267 -> -2.018198331
A3: =IF('DF raw data'!E3="","",'DF raw data'!E3) -> Operator | B3: =IF('DF raw data'!F3="","",'DF raw data'!F3) -> PMHA | C3: =IF('DF raw data'!C3="","",'DF raw data'!C3) ->  | D3: =IF('DF raw data'!D3="","",'DF raw data'!D3) ->  | F3: Step | G3: =A68-A67 -> 0.5 | H3: mm | J3: PI total | K3: =N1267 -> 7077.243621 | L3: T^2mm^3
A4: =IF('DF raw data'!E4="","",'DF raw data'!E4) -> Data-time | B4: =IF('DF raw data'!F4="","",'DF raw data'!F4) -> 09-09-2024, 14:58:10 | C4: =IF('DF raw data'!C4="","",'DF raw data'!C4) ->  | D4: =IF('DF raw data'!D4="","",'DF raw data'!D4) -> 
A5: =IF('DF raw data'!E5="","",'DF raw data'!E5) -> Project | B5: =IF('DF raw data'!F5="","",'DF raw data'!F5) -> 504314 | C5: =IF('DF raw data'!C5="","",'DF raw data'!C5) ->  | D5: Bamb avr | F5: =(AVERAGE(B67:B107) + AVERAGE(B1227:B1267))/2 -> -2.131758061e-05 | G5: =(AVERAGE(C67:C107) + AVERAGE(C1227:C1267))/2 -> 0.0001728352439 | H5: =(AVERAGE(D67:D107) + AVERAGE(D1227:D1267))/2 -> -2.556780232e-05
A6: =IF('DF raw data'!E6="","",'DF raw data'!E6) -> Magnet type | B6: =IF('DF raw data'!F6="","",'DF raw data'!F6) -> Dipole | C6: =IF('DF raw data'!C6="","",'DF raw data'!C6) -> 
A7: =IF('DF raw data'!E7="","",'DF raw data'!E7) -> Magnet nr. | B7: =IF('DF raw data'!F7="","",'DF raw data'!F7) -> 2410094 | C7: =IF('DF raw data'!C7="","",'DF raw data'!C7) -> 
A8: =IF('DF raw data'!E8="","",'DF raw data'!E8) -> Meas. number | B8: =IF('DF raw data'!F8="","",'DF raw data'!F8) -> 399 | C8: =IF('DF raw data'!C8="","",'DF raw data'!C8) -> 
A9: =IF('DF raw data'!E9="","",'DF raw data'!E9) -> Add. info | B9: =IF('DF raw data'!F9="","",'DF raw data'!F9) ->  | C9: =IF('DF raw data'!C9="","",'DF raw data'!C9) ->  | D9: =IF('DF raw data'!D9="","",'DF raw data'!D9) -> 
A10: =IF('DF raw data'!E10="","",'DF raw data'!E10) -> Device | B10: =IF('DF raw data'!F10="","",'DF raw data'!F10) -> (HAL) HALL-PROBE | C10: =IF('DF raw data'!C10="","",'DF raw data'!C10) ->  | D10: =IF('DF raw data'!D10="","",'DF raw data'!D10) -> 
A11: =IF('DF raw data'!E11="","",'DF raw data'!E11) -> Goal | B11: =IF('DF raw data'!F11="","",'DF raw data'!F11) -> (AXI) AXis Integral (Line, EFB) | C11: =IF('DF raw data'!C11="","",'DF raw data'!C11) ->  | D11: =IF('DF raw data'!D11="","",'DF raw data'!D11) -> 
A12: =IF('DF raw data'!E12="","",'DF raw data'!E12) -> Power supply mode | B12: =IF('DF raw data'!F12="","",'DF raw data'!F12) -> (PM) Permanent Magnet (no MPS in use) | C12: =IF('DF raw data'!C12="","",'DF raw data'!C12) ->  | D12: =IF('DF raw data'!D12="","",'DF raw data'!D12) -> 
A13: =IF('DF raw data'!E13="","",'DF raw data'!E13) -> Data format | B13: =IF('DF raw data'!F13="","",'DF raw data'!F13) -> Raw data text file | C13: =IF('DF raw data'!C13="","",'DF raw data'!C13) ->  | D13: =IF('DF raw data'!D13="","",'DF raw data'!D13) -> 
A14: =IF('DF raw data'!E14="","",'DF raw data'!E14) -> Direction of the pos. x-axis | B14: =IF('DF raw data'!F14="","",'DF raw data'!F14) -> See test program | C14: =IF('DF raw data'!C14="","",'DF raw data'!C14) ->  | D14: =IF('DF raw data'!D14="","",'DF raw data'!D14) -> 
A15: =IF('DF raw data'!E15="","",'DF raw data'!E15) -> Direction of the pos. y-axis | B15: =IF('DF raw data'!F15="","",'DF raw data'!F15) -> Vertical up | C15: =IF('DF raw data'!C15="","",'DF raw data'!C15) ->  | D15: =IF('DF raw data'!D15="","",'DF raw data'!D15) -> 
A16: =IF('DF raw data'!E16="","",'DF raw data'!E16) -> Direction of the pos. z-axis | B16: =IF('DF raw data'!F16="","",'DF raw data'!F16) -> See test program | C16: =IF('DF raw data'!C16="","",'DF raw data'!C16) ->  | D16: =IF('DF raw data'!D16="","",'DF raw data'!D16) -> 
A17: =IF('DF raw data'!E17="","",'DF raw data'!E17) -> Mapper type | B17: =IF('DF raw data'!F17="","",'DF raw data'!F17) -> Precision Hall Mapper | C17: =IF('DF raw data'!C17="","",'DF raw data'!C17) ->  | D17: =IF('DF raw data'!D17="","",'DF raw data'!D17) -> 
A18: =IF('DF raw data'!E18="","",'DF raw data'!E18) -> Mapper Danfysik Reg. Number | B18: =IF('DF raw data'!F18="","",'DF raw data'!F18) -> 2033-D (mapper 1) | C18: =IF('DF raw data'!C18="","",'DF raw data'!C18) ->  | D18: =IF('DF raw data'!D18="","",'DF raw data'!D18) -> 
A19: =IF('DF raw data'!E19="","",'DF raw data'!E19) -> Measurement consept | B19: =IF('DF raw data'!F19="","",'DF raw data'!F19) -> Square line grid | C19: =IF('DF raw data'!C19="","",'DF raw data'!C19) ->  | D19: =IF('DF raw data'!D19="","",'DF raw data'!D19) -> 
A20: =IF('DF raw data'!E20="","",'DF raw data'!E20) -> Mode | B20: =IF('DF raw data'!F20="","",'DF raw data'!F20) -> On-the-fly measurement | C20: =IF('DF raw data'!C20="","",'DF raw data'!C20) ->  | D20: =IF('DF raw data'!D20="","",'DF raw data'!D20) -> 
A21: =IF('DF raw data'!E21="","",'DF raw data'!E21) ->  | B21: =IF('DF raw data'!F21="","",'DF raw data'!F21) ->  | C21: =IF('DF raw data'!C21="","",'DF raw data'!C21) ->  | D21: =IF('DF raw data'!D21="","",'DF raw data'!D21) -> 
A22: =IF('DF raw data'!E22="","",'DF raw data'!E22) -> Probe Name | B22: =IF('DF raw data'!F22="","",'DF raw data'!F22) -> ID12_By | C22: =IF('DF raw data'!C22="","",'DF raw data'!C22) ->  | D22: =IF('DF raw data'!D22="","",'DF raw data'!D22) -> 
A23: =IF('DF raw data'!E23="","",'DF raw data'!E23) -> Probe Type | B23: =IF('DF raw data'!F23="","",'DF raw data'!F23) -> DF_ID_3D_Bxyz | C23: =IF('DF raw data'!C23="","",'DF raw data'!C23) ->  | D23: =IF('DF raw data'!D23="","",'DF raw data'!D23) -> 
A24: =IF('DF raw data'!E24="","",'DF raw data'!E24) -> Probe Danfysik Reg. Number | B24: =IF('DF raw data'!F24="","",'DF raw data'!F24) -> 2277 | C24: =IF('DF raw data'!C24="","",'DF raw data'!C24) ->  | D24: =IF('DF raw data'!D24="","",'DF raw data'!D24) -> 
A25: =IF('DF raw data'!E25="","",'DF raw data'!E25) -> Probe Axis | B25: =IF('DF raw data'!F25="","",'DF raw data'!F25) -> By | C25: =IF('DF raw data'!C25="","",'DF raw data'!C25) ->  | D25: =IF('DF raw data'!D25="","",'DF raw data'!D25) -> 
A26: =IF('DF raw data'!E26="","",'DF raw data'!E26) -> Probe Current Supply | B26: =IF('DF raw data'!F26="","",'DF raw data'!F26) -> 1825-D | C26: =IF('DF raw data'!C26="","",'DF raw data'!C26) ->  | D26: =IF('DF raw data'!D26="","",'DF raw data'!D26) -> 
A27: =IF('DF raw data'!E27="","",'DF raw data'!E27) -> Probe Gain Correction | B27: =IF('DF raw data'!F27="","",'DF raw data'!F27) -> 0.99606 | C27: =IF('DF raw data'!C27="","",'DF raw data'!C27) ->  | D27: =IF('DF raw data'!D27="","",'DF raw data'!D27) -> 
A28: =IF('DF raw data'!E28="","",'DF raw data'!E28) -> Probe Offset Correction | B28: =IF('DF raw data'!F28="","",'DF raw data'!F28) -> 0.002758 | C28: =IF('DF raw data'!C28="","",'DF raw data'!C28) ->  | D28: =IF('DF raw data'!D28="","",'DF raw data'!D28) -> 
A29: =IF('DF raw data'!E29="","",'DF raw data'!E29) -> DVM Number | B29: =IF('DF raw data'!F29="","",'DF raw data'!F29) -> 2 | C29: =IF('DF raw data'!C29="","",'DF raw data'!C29) ->  | D29: =IF('DF raw data'!D29="","",'DF raw data'!D29) -> 
A30: =IF('DF raw data'!E30="","",'DF raw data'!E30) -> DVM Type | B30: =IF('DF raw data'!F30="","",'DF raw data'!F30) -> K2701 | C30: =IF('DF raw data'!C30="","",'DF raw data'!C30) ->  | D30: =IF('DF raw data'!D30="","",'DF raw data'!D30) -> 
A31: =IF('DF raw data'!E31="","",'DF raw data'!E31) -> DVM Danfysik Reg. Number | B31: =IF('DF raw data'!F31="","",'DF raw data'!F31) -> 1743-D | C31: =IF('DF raw data'!C31="","",'DF raw data'!C31) ->  | D31: =IF('DF raw data'!D31="","",'DF raw data'!D31) -> 
A32: =IF('DF raw data'!E32="","",'DF raw data'!E32) -> Probe Name | B32: =IF('DF raw data'!F32="","",'DF raw data'!F32) -> ID12_Bx | C32: =IF('DF raw data'!C32="","",'DF raw data'!C32) ->  | D32: =IF('DF raw data'!D32="","",'DF raw data'!D32) -> 
A33: =IF('DF raw data'!E33="","",'DF raw data'!E33) -> Probe Type | B33: =IF('DF raw data'!F33="","",'DF raw data'!F33) -> DF_ID_3D_Bxyz | C33: =IF('DF raw data'!C33="","",'DF raw data'!C33) ->  | D33: =IF('DF raw data'!D33="","",'DF raw data'!D33) -> 
A34: =IF('DF raw data'!E34="","",'DF raw data'!E34) -> Probe Danfysik Reg. Number | B34: =IF('DF raw data'!F34="","",'DF raw data'!F34) -> 2277 | C34: =IF('DF raw data'!C34="","",'DF raw data'!C34) ->  | D34: =IF('DF raw data'!D34="","",'DF raw data'!D34) -> 
A35: =IF('DF raw data'!E35="","",'DF raw data'!E35) -> Probe Axis | B35: =IF('DF raw data'!F35="","",'DF raw data'!F35) -> Bx | C35: =IF('DF raw data'!C35="","",'DF raw data'!C35) ->  | D35: =IF('DF raw data'!D35="","",'DF raw data'!D35) -> 
A36: =IF('DF raw data'!E36="","",'DF raw data'!E36) -> Probe Current Supply | B36: =IF('DF raw data'!F36="","",'DF raw data'!F36) -> 1825-D | C36: =IF('DF raw data'!C36="","",'DF raw data'!C36) ->  | D36: =IF('DF raw data'!D36="","",'DF raw data'!D36) -> 
A37: =IF('DF raw data'!E37="","",'DF raw data'!E37) -> Probe Gain Correction | B37: =IF('DF raw data'!F37="","",'DF raw data'!F37) -> 1 | C37: =IF('DF raw data'!C37="","",'DF raw data'!C37) ->  | D37: =IF('DF raw data'!D37="","",'DF raw data'!D37) -> 
A38: =IF('DF raw data'!E38="","",'DF raw data'!E38) -> Probe Offset Correction | B38: =IF('DF raw data'!F38="","",'DF raw data'!F38) -> -0.17551 | C38: =IF('DF raw data'!C38="","",'DF raw data'!C38) ->  | D38: =IF('DF raw data'!D38="","",'DF raw data'!D38) -> 
A39: =IF('DF raw data'!E39="","",'DF raw data'!E39) -> DVM Number | B39: =IF('DF raw data'!F39="","",'DF raw data'!F39) -> 3 | C39: =IF('DF raw data'!C39="","",'DF raw data'!C39) ->  | D39: =IF('DF raw data'!D39="","",'DF raw data'!D39) -> 
A40: =IF('DF raw data'!E40="","",'DF raw data'!E40) -> DVM Type | B40: =IF('DF raw data'!F40="","",'DF raw data'!F40) -> K2701 | C40: =IF('DF raw data'!C40="","",'DF raw data'!C40) ->  | D40: =IF('DF raw data'!D40="","",'DF raw data'!D40) -> 
A41: =IF('DF raw data'!E41="","",'DF raw data'!E41) -> DVM Danfysik Reg. Number | B41: =IF('DF raw data'!F41="","",'DF raw data'!F41) -> 1744-D | C41: =IF('DF raw data'!C41="","",'DF raw data'!C41) ->  | D41: =IF('DF raw data'!D41="","",'DF raw data'!D41) -> 
A42: =IF('DF raw data'!E42="","",'DF raw data'!E42) -> Probe Name | B42: =IF('DF raw data'!F42="","",'DF raw data'!F42) -> ID12_Bz | C42: =IF('DF raw data'!C42="","",'DF raw data'!C42) ->  | D42: =IF('DF raw data'!D42="","",'DF raw data'!D42) -> 
A43: =IF('DF raw data'!E43="","",'DF raw data'!E43) -> Probe Type | B43: =IF('DF raw data'!F43="","",'DF raw data'!F43) -> DF_ID_3D_Bxyz | C43: =IF('DF raw data'!C43="","",'DF raw data'!C43) ->  | D43: =IF('DF raw data'!D43="","",'DF raw data'!D43) -> 
A44: =IF('DF raw data'!E44="","",'DF raw data'!E44) -> Probe Danfysik Reg. Number | B44: =IF('DF raw data'!F44="","",'DF raw data'!F44) -> 2277 | C44: =IF('DF raw data'!C44="","",'DF raw data'!C44) ->  | D44: =IF('DF raw data'!D44="","",'DF raw data'!D44) -> 
A45: =IF('DF raw data'!E45="","",'DF raw data'!E45) -> Probe Axis | B45: =IF('DF raw data'!F45="","",'DF raw data'!F45) -> Bz | C45: =IF('DF raw data'!C45="","",'DF raw data'!C45) ->  | D45: =IF('DF raw data'!D45="","",'DF raw data'!D45) -> 
A46: =IF('DF raw data'!E46="","",'DF raw data'!E46) -> Probe Current Supply | B46: =IF('DF raw data'!F46="","",'DF raw data'!F46) -> 1825-D | C46: =IF('DF raw data'!C46="","",'DF raw data'!C46) ->  | D46: =IF('DF raw data'!D46="","",'DF raw data'!D46) -> 
A47: =IF('DF raw data'!E47="","",'DF raw data'!E47) -> Probe Gain Correction | B47: =IF('DF raw data'!F47="","",'DF raw data'!F47) -> 1 | C47: =IF('DF raw data'!C47="","",'DF raw data'!C47) ->  | D47: =IF('DF raw data'!D47="","",'DF raw data'!D47) -> 
A48: =IF('DF raw data'!E48="","",'DF raw data'!E48) -> Probe Offset Correction | B48: =IF('DF raw data'!F48="","",'DF raw data'!F48) -> 0.0073096 | C48: =IF('DF raw data'!C48="","",'DF raw data'!C48) ->  | D48: =IF('DF raw data'!D48="","",'DF raw data'!D48) -> 
A49: =IF('DF raw data'!E49="","",'DF raw data'!E49) -> DVM Number | B49: =IF('DF raw data'!F49="","",'DF raw data'!F49) -> 8 | C49: =IF('DF raw data'!C49="","",'DF raw data'!C49) ->  | D49: =IF('DF raw data'!D49="","",'DF raw data'!D49) -> 
A50: =IF('DF raw data'!E50="","",'DF raw data'!E50) -> DVM Type | B50: =IF('DF raw data'!F50="","",'DF raw data'!F50) -> K2700 | C50: =IF('DF raw data'!C50="","",'DF raw data'!C50) ->  | D50: =IF('DF raw data'!D50="","",'DF raw data'!D50) -> 
A51: =IF('DF raw data'!E51="","",'DF raw data'!E51) -> DVM Danfysik Reg. Number | B51: =IF('DF raw data'!F51="","",'DF raw data'!F51) -> 1756-D | C51: =IF('DF raw data'!C51="","",'DF raw data'!C51) ->  | D51: =IF('DF raw data'!D51="","",'DF raw data'!D51) -> 
A52: =IF('DF raw data'!E52="","",'DF raw data'!E52) -> NTC voltage | B52: =IF('DF raw data'!F52="","",'DF raw data'!F52) -> 0.40584 | C52: =IF('DF raw data'!C52="","",'DF raw data'!C52) ->  | D52: =IF('DF raw data'!D52="","",'DF raw data'!D52) -> 
A53: =IF('DF raw data'!E53="","",'DF raw data'!E53) -> PS-Gap: | B53: =IF('DF raw data'!F53="","",'DF raw data'!F53) -> 15 | C53: =IF('DF raw data'!C53="","",'DF raw data'!C53) ->  | D53: =IF('DF raw data'!D53="","",'DF raw data'!D53) -> 
A54: =IF('DF raw data'!E54="","",'DF raw data'!E54) -> PS-Temperature: | B54: =IF('DF raw data'!F54="","",'DF raw data'!F54) -> 25 | C54: =IF('DF raw data'!C54="","",'DF raw data'!C54) ->  | D54: =IF('DF raw data'!D54="","",'DF raw data'!D54) -> 
A55: =IF('DF raw data'!E55="","",'DF raw data'!E55) -> PS-Encoder: | B55: =IF('DF raw data'!F55="","",'DF raw data'!F55) -> 24.82 | C55: =IF('DF raw data'!C55="","",'DF raw data'!C55) ->  | D55: =IF('DF raw data'!D55="","",'DF raw data'!D55) -> 
A56: =IF('DF raw data'!E56="","",'DF raw data'!E56) ->  | B56: =IF('DF raw data'!F56="","",'DF raw data'!F56) -> 
A57: =IF('DF raw data'!E57="","",'DF raw data'!E57) -> Monitor-Index | B57: =IF('DF raw data'!F57="","",'DF raw data'!F57) -> [1,1,4]
A58: =IF('DF raw data'!E58="","",'DF raw data'!E58) ->  | B58: =IF('DF raw data'!F58="","",'DF raw data'!F58) -> 
A59: =IF('DF raw data'!E59="","",'DF raw data'!E59) -> Time [s] | B59: =IF('DF raw data'!F59="","",'DF raw data'!F59) -> Y [mm]
A60: =IF('DF raw data'!E60="","",'DF raw data'!E60) ->  | B60: =IF('DF raw data'!F60="","",'DF raw data'!F60) -> 
A61: =IF('DF raw data'!E61="","",'DF raw data'!E61) -> 208.4 | B61: =IF('DF raw data'!F61="","",'DF raw data'!F61) -> 31.76
A62: =IF('DF raw data'!E62="","",'DF raw data'!E62) ->  | B62: =IF('DF raw data'!F62="","",'DF raw data'!F62) -> 
A63: =IF('DF raw data'!E63="","",'DF raw data'!E63) -> Measurement-Index | B63: =IF('DF raw data'!F63="","",'DF raw data'!F63) -> [1,1,1201,2]
A64: =IF('DF raw data'!E64="","",'DF raw data'!E64) ->  | B64: =IF('DF raw data'!F64="","",'DF raw data'!F64) -> 
A65: =IF('DF raw data'!E65="","",'DF raw data'!E65) -> Z [mm] | B65: =IF('DF raw data'!F65="","",'DF raw data'!F65) -> By [T] | C65: =IF('DF raw data'!G65="","",'DF raw data'!G65) -> Bx [T] | D65: =IF('DF raw data'!H65="","",'DF raw data'!H65) -> Bz [T] | F65: By_corr | G65: Bx_corr | H65: Bz_corr | J65: Iy | K65: Jy | L65: Ix | M65: Jx | N65: PI
B66: =IF('DF raw data'!F66="","",'DF raw data'!F66) ->  | C66: =IF('DF raw data'!G66="","",'DF raw data'!G66) ->  | D66: =IF('DF raw data'!H66="","",'DF raw data'!H66) -> 
A67: =IF('DF raw data'!E67="","",'DF raw data'!E67) -> -300 | B67: =IF('DF raw data'!F67="","",'DF raw data'!F67) -> -1.93394e-05 | C67: =IF('DF raw data'!G67="","",'DF raw data'!G67) -> 0.00018872 | D67: =IF('DF raw data'!H67="","",'DF raw data'!H67) -> -2.39953e-05 | F67: =(1-$G$1*($B$54-$G$2))*(B67-F$5) -> 1.988071513e-06 | G67: =(1-$G$1*($B$54-$G$2))*(C67-G$5) -> 1.596417988e-05 | H67: =(1-$G$1*($B$54-$G$2))*(D67-H$5) -> 1.580364829e-06 | J67: =F67*$G$3+J66 -> 9.940357564e-07 | K67: =J67*$G$3+K66 -> 4.970178782e-07 | L67: =G67*$G$3+L66 -> 7.982089939e-06 | M67: =L67*$G$3+M66 -> 3.99104497e-06 | N67: =(J67^2+L67^2)*$G$3+N66 -> 3.235093344e-11
A68: =IF('DF raw data'!E68="","",'DF raw data'!E68) -> -299.5 | B68: =IF('DF raw data'!F68="","",'DF raw data'!F68) -> -1.16495e-05 | C68: =IF('DF raw data'!G68="","",'DF raw data'!G68) -> 0.000194235 | D68: =IF('DF raw data'!H68="","",'DF raw data'!H68) -> -2.44131e-05 | F68: 9.716421013e-06 | G68: 2.150675488e-05 | H68: 1.160475829e-06 | J68: =F68*$G$3+J67 -> 5.852246263e-06 | K68: =J68*$G$3+K67 -> 3.42314101e-06 | L68: =G68*$G$3+L67 -> 1.873546738e-05 | M68: =L68*$G$3+M67 -> 1.335877866e-05 | N68: =(J68^2+L68^2)*$G$3+N67 -> 2.249841955e-10
A69: =IF('DF raw data'!E69="","",'DF raw data'!E69) -> -299 | B69: =IF('DF raw data'!F69="","",'DF raw data'!F69) -> -2.11962e-05 | C69: =IF('DF raw data'!G69="","",'DF raw data'!G69) -> 0.00020028 | D69: =IF('DF raw data'!H69="","",'DF raw data'!H69) -> -2.49694e-05 | F69: 1.219875128e-07 | G69: 2.758197988e-05 | H69: 6.013943287e-07 | J69: 5.913240019e-06 | K69: 6.379761019e-06 | L69: 3.252645732e-05 | M69: 2.962200732e-05 | N69: 7.714526121e-10
A70: =IF('DF raw data'!E70="","",'DF raw data'!E70) -> -298.5 | B70: =IF('DF raw data'!F70="","",'DF raw data'!F70) -> -1.70313e-05 | C70: =IF('DF raw data'!G70="","",'DF raw data'!G70) -> 0.000193564 | D70: =IF('DF raw data'!H70="","",'DF raw data'!H70) -> -2.53196e-05 | F70: 4.307712013e-06 | G70: 2.083239988e-05 | H70: 2.494433287e-07 | J70: 8.067096026e-06 | K70: 1.041330903e-05 | L70: 4.294265726e-05 | M70: 5.109333595e-05 | N70: 1.726027537e-09
A71: =IF('DF raw data'!E71="","",'DF raw data'!E71) -> -298 | B71: =IF('DF raw data'!F71="","",'DF raw data'!F71) -> -2.06834e-05 | C71: =IF('DF raw data'!G71="","",'DF raw data'!G71) -> 0.000184901 | D71: =IF('DF raw data'!H71="","",'DF raw data'!H71) -> -2.55796e-05 | F71: 6.373515128e-07 | G71: 1.212608488e-05 | H71: -1.185667134e-08 | J71: 8.385771782e-06 | K71: 1.460619492e-05 | L71: 4.90056997e-05 | M71: 7.559618579e-05 | N71: 2.961967423e-09
A72: =IF('DF raw data'!E72="","",'DF raw data'!E72) -> -297.5 | B72: =IF('DF raw data'!F72="","",'DF raw data'!F72) -> -2.54892e-05 | C72: =IF('DF raw data'!G72="","",'DF raw data'!G72) -> 0.000195778 | D72: =IF('DF raw data'!H72="","",'DF raw data'!H72) -> -2.52423e-05 | F72: -4.192477487e-06 | G72: 2.305746988e-05 | H72: 3.271298287e-07 | J72: 6.289533038e-06 | K72: 1.775096144e-05 | L72: 6.053443463e-05 | M72: 0.0001058634031 | N72: 4.813955424e-09
A73: =IF('DF raw data'!E73="","",'DF raw data'!E73) -> -297 | B73: =IF('DF raw data'!F73="","",'DF raw data'!F73) -> -3.08083e-05 | C73: =IF('DF raw data'!G73="","",'DF raw data'!G73) -> 0.000197204 | D73: =IF('DF raw data'!H73="","",'DF raw data'!H73) -> -2.39532e-05 | F73: -9.538172987e-06 | G73: 2.449059988e-05 | H73: 1.622675329e-06 | J73: 1.520446545e-06 | K73: 1.851118471e-05 | L73: 7.277973457e-05 | M73: 0.0001422532704 | N73: 7.463556185e-09
A74: =IF('DF raw data'!E74="","",'DF raw data'!E74) -> -296.5 | B74: =IF('DF raw data'!F74="","",'DF raw data'!F74) -> -2.21589e-05 | C74: =IF('DF raw data'!G74="","",'DF raw data'!G74) -> 0.000184984 | D74: =IF('DF raw data'!H74="","",'DF raw data'!H74) -> -2.303e-05 | F74: -8.455259872e-07 | G74: 1.220949988e-05 | H74: 2.550491329e-06 | J74: 1.097683551e-06 | K74: 1.906002649e-05 | L74: 7.888448451e-05 | M74: 0.0001816955127 | N74: 1.057553959e-08
A75: =IF('DF raw data'!E75="","",'DF raw data'!E75) -> -296 | B75: =IF('DF raw data'!F75="","",'DF raw data'!F75) -> -9.27916e-06 | C75: =IF('DF raw data'!G75="","",'DF raw data'!G75) -> 0.000180381 | D75: =IF('DF raw data'!H75="","",'DF raw data'!H75) -> -2.36948e-05 | F75: 1.209861271e-05 | G75: 7.583484878e-06 | H75: 1.882367329e-06 | J75: 7.146989908e-06 | K75: 2.263352144e-05 | L75: 8.267622695e-05 | M75: 0.0002230336261 | N75: 1.401875857e-08
A76: =IF('DF raw data'!E76="","",'DF raw data'!E76) -> -295.5 | B76: =IF('DF raw data'!F76="","",'DF raw data'!F76) -> -1.20337e-05 | C76: =IF('DF raw data'!G76="","",'DF raw data'!G76) -> 0.0001823 | D76: =IF('DF raw data'!H76="","",'DF raw data'!H76) -> -2.492e-05 | F76: 9.330300013e-06 | G76: 9.512079878e-06 | H76: 6.510413287e-07 | J76: 1.181213991e-05 | K76: 2.85395914e-05 | L76: 8.743226689e-05 | M76: 0.0002667497596 | N76: 1.791072254e-08
A77: =IF('DF raw data'!E77="","",'DF raw data'!E77) -> -295 | B77: =IF('DF raw data'!F77="","",'DF raw data'!F77) -> -2.04274e-05 | C77: =IF('DF raw data'!G77="","",'DF raw data'!G77) -> 0.000191008 | D77: =IF('DF raw data'!H77="","",'DF raw data'!H77) -> -2.50279e-05 | F77: 8.946315128e-07 | G77: 1.826361988e-05 | H77: 5.426018287e-07 | J77: 1.225945567e-05 | K77: 3.466931924e-05 | L77: 9.656407683e-05 | M77: 0.000315031798 | N77: 2.264818014e-08
A78: =IF('DF raw data'!E78="","",'DF raw data'!E78) -> -294.5 | B78: =IF('DF raw data'!F78="","",'DF raw data'!F78) -> -1.79929e-05 | C78: =IF('DF raw data'!G78="","",'DF raw data'!G78) -> 0.000187885 | D78: =IF('DF raw data'!H78="","",'DF raw data'!H78) -> -2.428e-05 | F78: 3.341304013e-06 | G78: 1.512500488e-05 | H78: 1.294241329e-06 | J78: 1.393010768e-05 | K78: 4.163437307e-05 | L78: 0.0001041265793 | M78: 0.0003670950876 | N78: 2.816637634e-08
A79: =IF('DF raw data'!E79="","",'DF raw data'!E79) -> -294 | B79: =IF('DF raw data'!F79="","",'DF raw data'!F79) -> -1.47252e-05 | C79: =IF('DF raw data'!G79="","",'DF raw data'!G79) -> 0.000192024 | D79: =IF('DF raw data'!H79="","",'DF raw data'!H79) -> -2.41838e-05 | F79: 6.625342513e-06 | G79: 1.928469988e-05 | H79: 1.390922329e-06 | J79: 1.724277893e-05 | K79: 5.025576254e-05 | L79: 0.0001137689292 | M79: 0.0004239795522 | N79: 3.478671768e-08
A80: =IF('DF raw data'!E80="","",'DF raw data'!E80) -> -293.5 | B80: =IF('DF raw data'!F80="","",'DF raw data'!F80) -> -6.90742e-06 | C80: =IF('DF raw data'!G80="","",'DF raw data'!G80) -> 0.0001922 | D80: =IF('DF raw data'!H80="","",'DF raw data'!H80) -> -2.52074e-05 | F80: 1.448221141e-05 | G80: 1.946157988e-05 | H80: 3.622043287e-07 | J80: 2.448388464e-05 | K80: 6.249770486e-05 | L80: 0.0001234997191 | M80: 0.0004857294118 | N80: 4.27125383e-08
A81: =IF('DF raw data'!E81="","",'DF raw data'!E81) -> -293 | B81: =IF('DF raw data'!F81="","",'DF raw data'!F81) -> -1.95297e-05 | C81: =IF('DF raw data'!G81="","",'DF raw data'!G81) -> 0.000181713 | D81: =IF('DF raw data'!H81="","",'DF raw data'!H81) -> -2.61794e-05 | F81: 1.796820013e-06 | G81: 8.922144878e-06 | H81: -6.146556713e-07 | J81: 2.538229465e-05 | K81: 7.518885218e-05 | L81: 0.0001279607916 | M81: 0.0005497098076 | N81: 5.122165083e-08
A82: =IF('DF raw data'!E82="","",'DF raw data'!E82) -> -292.5 | B82: =IF('DF raw data'!F82="","",'DF raw data'!F82) -> -2.17082e-05 | C82: =IF('DF raw data'!G82="","",'DF raw data'!G82) -> 0.000187377 | D82: =IF('DF raw data'!H82="","",'DF raw data'!H82) -> -2.60798e-05 | F82: -3.925724872e-07 | G82: 1.461446488e-05 | H82: -5.145576713e-07 | J82: 2.51860084e-05 | K82: 8.778185639e-05 | L82: 0.000135268024 | M82: 0.0006173438196 | N82: 6.06875375e-08
A83: =IF('DF raw data'!E83="","",'DF raw data'!E83) -> -292 | B83: =IF('DF raw data'!F83="","",'DF raw data'!F83) -> -3.15124e-05 | C83: =IF('DF raw data'!G83="","",'DF raw data'!G83) -> 0.000190394 | D83: =IF('DF raw data'!H83="","",'DF raw data'!H83) -> -2.49198e-05 | F83: -1.024579349e-05 | G83: 1.764654988e-05 | H83: 6.512423287e-07 | J83: 2.006311166e-05 | K83: 9.781341221e-05 | L83: 0.000144091299 | M83: 0.0006893894691 | N83: 7.126995295e-08
A84: =IF('DF raw data'!E84="","",'DF raw data'!E84) -> -291.5 | B84: =IF('DF raw data'!F84="","",'DF raw data'!F84) -> -2.73528e-05 | C84: =IF('DF raw data'!G84="","",'DF raw data'!G84) -> 0.000186762 | D84: =IF('DF raw data'!H84="","",'DF raw data'!H84) -> -1.69456e-05 | F84: -6.065395487e-06 | G84: 1.399638988e-05 | H84: 8.665313329e-06 | J84: 1.703041392e-05 | K84: 0.0001063286192 | L84: 0.0001510894939 | M84: 0.000764934216 | N84: 8.282898803e-08
A85: =IF('DF raw data'!E85="","",'DF raw data'!E85) -> -291 | B85: =IF('DF raw data'!F85="","",'DF raw data'!F85) -> -1.43437e-05 | C85: =IF('DF raw data'!G85="","",'DF raw data'!G85) -> 0.000191775 | D85: =IF('DF raw data'!H85="","",'DF raw data'!H85) -> -1.96296e-05 | F85: 7.008750013e-06 | G85: 1.903445488e-05 | H85: 5.967893329e-06 | J85: 2.053478892e-05 | K85: 0.0001165960136 | L85: 0.0001606067213 | M85: 0.0008452375767 | N85: 9.593708628e-08
A86: =IF('DF raw data'!E86="","",'DF raw data'!E86) -> -290.5 | B86: =IF('DF raw data'!F86="","",'DF raw data'!F86) -> -2.85019e-05 | C86: =IF('DF raw data'!G86="","",'DF raw data'!G86) -> 0.000190085 | D86: =IF('DF raw data'!H86="","",'DF raw data'!H86) -> -2.34563e-05 | F86: -7.220240987e-06 | G86: 1.733600488e-05 | H86: 2.122059829e-06 | J86: 1.692466843e-05 | K86: 0.0001250583478 | L86: 0.0001692747238 | M86: 0.0009298749386 | N86: 1.104072745e-07
A87: =IF('DF raw data'!E87="","",'DF raw data'!E87) -> -290 | B87: =IF('DF raw data'!F87="","",'DF raw data'!F87) -> -2.16529e-05 | C87: =IF('DF raw data'!G87="","",'DF raw data'!G87) -> 0.000188207 | D87: =IF('DF raw data'!H87="","",'DF raw data'!H87) -> -1.2714e-05 | F87: -3.369959872e-07 | G87: 1.544861488e-05 | H87: 1.291807133e-05 | J87: 1.675617043e-05 | K87: 0.0001334364331 | L87: 0.0001769990312 | M87: 0.001018374454 | N87: 1.262119877e-07
A88: =IF('DF raw data'!E88="","",'DF raw data'!E88) -> -289.5 | B88: =IF('DF raw data'!F88="","",'DF raw data'!F88) -> -1.97861e-05 | C88: =IF('DF raw data'!G88="","",'DF raw data'!G88) -> 0.0001862 | D88: =IF('DF raw data'!H88="","",'DF raw data'!H88) -> -2.6089e-05 | F88: 1.539138013e-06 | G88: 1.343157988e-05 | H88: -5.238036713e-07 | J88: 1.752573944e-05 | K88: 0.0001421993028 | L88: 0.0001837148212 | M88: 0.001110231865 | N88: 1.432411312e-07
A89: =IF('DF raw data'!E89="","",'DF raw data'!E89) -> -289 | B89: =IF('DF raw data'!F89="","",'DF raw data'!F89) -> -2.35619e-05 | C89: =IF('DF raw data'!G89="","",'DF raw data'!G89) -> 0.000175162 | D89: =IF('DF raw data'!H89="","",'DF raw data'!H89) -> -3.3096e-05 | F89: -2.255540987e-06 | G89: 2.338389878e-06 | H89: -7.565838671e-06 | J89: 1.639796895e-05 | K89: 0.0001503982873 | L89: 0.0001848840161 | M89: 0.001202673873 | N89: 1.604666276e-07
A90: =IF('DF raw data'!E90="","",'DF raw data'!E90) -> -288.5 | B90: =IF('DF raw data'!F90="","",'DF raw data'!F90) -> -1.38189e-05 | C90: =IF('DF raw data'!G90="","",'DF raw data'!G90) -> 0.00017998 | D90: =IF('DF raw data'!H90="","",'DF raw data'!H90) -> -3.84691e-05 | F90: 7.536174013e-06 | G90: 7.180479878e-06 | H90: -1.296580417e-05 | J90: 2.016605595e-05 | K90: 0.0001604813152 | L90: 0.000188474256 | M90: 0.001296911001 | N90: 1.784312351e-07
A91: =IF('DF raw data'!E91="","",'DF raw data'!E91) -> -288 | B91: =IF('DF raw data'!F91="","",'DF raw data'!F91) -> -1.16454e-05 | C91: =IF('DF raw data'!G91="","",'DF raw data'!G91) -> 0.000188123 | D91: =IF('DF raw data'!H91="","",'DF raw data'!H91) -> -3.07713e-05 | F91: 9.720541513e-06 | G91: 1.536419488e-05 | H91: -5.229515171e-06 | J91: 2.502632671e-05 | K91: 0.0001729944786 | L91: 0.0001961563535 | M91: 0.001394989178 | N91: 1.979830511e-07
A92: =IF('DF raw data'!E92="","",'DF raw data'!E92) -> -287.5 | B92: =IF('DF raw data'!F92="","",'DF raw data'!F92) -> -1.91424e-05 | C92: =IF('DF raw data'!G92="","",'DF raw data'!G92) -> 0.000190293 | D92: =IF('DF raw data'!H92="","",'DF raw data'!H92) -> -3.05821e-05 | F92: 2.186056513e-06 | G92: 1.754504488e-05 | H92: -5.039369171e-06 | J92: 2.611935497e-05 | K92: 0.0001860541561 | L92: 0.0002049288759 | M92: 0.001497453616 | N92: 2.193220836e-07
A93: =IF('DF raw data'!E93="","",'DF raw data'!E93) -> -287 | B93: =IF('DF raw data'!F93="","",'DF raw data'!F93) -> -1.10069e-05 | C93: =IF('DF raw data'!G93="","",'DF raw data'!G93) -> 0.000184398 | D93: =IF('DF raw data'!H93="","",'DF raw data'!H93) -> -2.73943e-05 | F93: 1.036223401e-05 | G93: 1.162056988e-05 | H93: -1.835630171e-06 | J93: 3.130047197e-05 | K93: 0.0002017043921 | L93: 0.0002107391609 | M93: 0.001602823196 | N93: 2.420174403e-07
A94: =IF('DF raw data'!E94="","",'DF raw data'!E94) -> -286.5 | B94: =IF('DF raw data'!F94="","",'DF raw data'!F94) -> -2.52256e-05 | C94: =IF('DF raw data'!G94="","",'DF raw data'!G94) -> 0.000191481 | D94: =IF('DF raw data'!H94="","",'DF raw data'!H94) -> -3.65698e-05 | F94: -3.927559487e-06 | G94: 1.873898488e-05 | H94: -1.105700767e-05 | J94: 2.933669223e-05 | K94: 0.0002163727382 | L94: 0.0002201086533 | M94: 0.001712877523 | N94: 2.666716707e-07
A95: =IF('DF raw data'!E95="","",'DF raw data'!E95) -> -286 | B95: =IF('DF raw data'!F95="","",'DF raw data'!F95) -> -2.22152e-05 | C95: =IF('DF raw data'!G95="","",'DF raw data'!G95) -> 0.000189328 | D95: =IF('DF raw data'!H95="","",'DF raw data'!H95) -> -3.4647e-05 | F95: -9.021074872e-07 | G95: 1.657521988e-05 | H95: -9.124593671e-06 | J95: 2.888563849e-05 | K95: 0.0002308155574 | L95: 0.0002283962632 | M95: 0.001827075654 | N95: 2.931712873e-07
A96: =IF('DF raw data'!E96="","",'DF raw data'!E96) -> -285.5 | B96: =IF('DF raw data'!F96="","",'DF raw data'!F96) -> -1.81185e-05 | C96: =IF('DF raw data'!G96="","",'DF raw data'!G96) -> 0.000188582 | D96: =IF('DF raw data'!H96="","",'DF raw data'!H96) -> -2.82101e-05 | F96: 3.215076013e-06 | G96: 1.582548988e-05 | H96: -2.655509171e-06 | J96: 3.049317649e-05 | K96: 0.0002460621457 | L96: 0.0002363090082 | M96: 0.001945230158 | N96: 3.215571778e-07
A97: =IF('DF raw data'!E97="","",'DF raw data'!E97) -> -285 | B97: =IF('DF raw data'!F97="","",'DF raw data'!F97) -> -2.53035e-05 | C97: =IF('DF raw data'!G97="","",'DF raw data'!G97) -> 0.000178015 | D97: =IF('DF raw data'!H97="","",'DF raw data'!H97) -> -1.5315e-05 | F97: -4.005848987e-06 | G97: 5.205654878e-06 | H97: 1.030406633e-05 | J97: 2.8490252e-05 | K97: 0.0002603072717 | L97: 0.0002389118356 | M97: 0.002064686076 | N97: 3.505024577e-07
A98: =IF('DF raw data'!E98="","",'DF raw data'!E98) -> -284.5 | B98: =IF('DF raw data'!F98="","",'DF raw data'!F98) -> -2.0811e-05 | C98: =IF('DF raw data'!G98="","",'DF raw data'!G98) -> 0.000182679 | D98: =IF('DF raw data'!H98="","",'DF raw data'!H98) -> -2.64869e-05 | F98: 5.091135128e-07 | G98: 9.892974878e-06 | H98: -9.236931713e-07 | J98: 2.874480875e-05 | K98: 0.000274679676 | L98: 0.000243858323 | M98: 0.002186615238 | N98: 3.806490305e-07
A99: =IF('DF raw data'!E99="","",'DF raw data'!E99) -> -284 | B99: =IF('DF raw data'!F99="","",'DF raw data'!F99) -> -1.38943e-05 | C99: =IF('DF raw data'!G99="","",'DF raw data'!G99) -> 0.000175104 | D99: =IF('DF raw data'!H99="","",'DF raw data'!H99) -> -2.12535e-05 | F99: 7.460397013e-06 | G99: 2.280099878e-06 | H99: 4.335873829e-06 | J99: 3.247500726e-05 | K99: 0.0002909171797 | L99: 0.000244998373 | M99: 0.002309114424 | N99: 4.11188445e-07
A100: =IF('DF raw data'!E100="","",'DF raw data'!E100) -> -283.5 | B100: =IF('DF raw data'!F100="","",'DF raw data'!F100) -> -9.14712e-06 | C100: =IF('DF raw data'!G100="","",'DF raw data'!G100) -> 0.000170782 | D100: =IF('DF raw data'!H100="","",'DF raw data'!H100) -> -2.97918e-05 | F100: 1.223131291e-05 | G100: -2.063510122e-06 | H100: -4.245117671e-06 | J100: 3.859066372e-05 | K100: 0.0003102125115 | L100: 0.0002439666179 | M100: 0.002431097733 | N100: 4.4169292e-07
A101: =IF('DF raw data'!E101="","",'DF raw data'!E101) -> -283 | B101: =IF('DF raw data'!F101="","",'DF raw data'!F101) -> -4.85481e-06 | C101: =IF('DF raw data'!G101="","",'DF raw data'!G101) -> 0.000179834 | D101: =IF('DF raw data'!H101="","",'DF raw data'!H101) -> -2.87466e-05 | F101: 1.654508446e-05 | G101: 7.033749878e-06 | H101: -3.194691671e-06 | J101: 4.686320595e-05 | K101: 0.0003336441145 | L101: 0.0002474834929 | M101: 0.00255483948 | N101: 4.734150396e-07
A102: =IF('DF raw data'!E102="","",'DF raw data'!E102) -> -282.5 | B102: =IF('DF raw data'!F102="","",'DF raw data'!F102) -> -1.9591e-05 | C102: =IF('DF raw data'!G102="","",'DF raw data'!G102) -> 0.000178748 | D102: =IF('DF raw data'!H102="","",'DF raw data'!H102) -> -3.03633e-05 | F102: 1.735213513e-06 | G102: 5.942319878e-06 | H102: -4.819475171e-06 | J102: 4.773081271e-05 | K102: 0.0003575095209 | L102: 0.0002504546528 | M102: 0.002680066806 | N102: 5.059179214e-07
A103: =IF('DF raw data'!E103="","",'DF raw data'!E103) -> -282 | B103: =IF('DF raw data'!F103="","",'DF raw data'!F103) -> -1.6702e-05 | C103: =IF('DF raw data'!G103="","",'DF raw data'!G103) -> 0.000183971 | D103: =IF('DF raw data'!H103="","",'DF raw data'!H103) -> -3.88735e-05 | F103: 4.638658513e-06 | G103: 1.119143488e-05 | H103: -1.337222617e-05 | J103: 5.005014196e-05 | K103: 0.0003825345918 | L103: 0.0002560503702 | M103: 0.002808091991 | N103: 5.399513258e-07
A104: =IF('DF raw data'!E104="","",'DF raw data'!E104) -> -281.5 | B104: =IF('DF raw data'!F104="","",'DF raw data'!F104) -> -2.27395e-05 | C104: =IF('DF raw data'!G104="","",'DF raw data'!G104) -> 0.000188771 | D104: =IF('DF raw data'!H104="","",'DF raw data'!H104) -> -1.67444e-05 | F104: -1.429028987e-06 | G104: 1.601543488e-05 | H104: 8.867519329e-06 | J104: 4.933562747e-05 | K104: 0.0004072024056 | L104: 0.0002640580877 | M104: 0.002940121035 | N104: 5.760316647e-07
A105: =IF('DF raw data'!E105="","",'DF raw data'!E105) -> -281 | B105: =IF('DF raw data'!F105="","",'DF raw data'!F105) -> -2.27358e-05 | C105: =IF('DF raw data'!G105="","",'DF raw data'!G105) -> 0.000191043 | D105: =IF('DF raw data'!H105="","",'DF raw data'!H105) -> -2.23319e-05 | F105: -1.425310487e-06 | G105: 1.829879488e-05 | H105: 3.252081829e-06 | J105: 4.862297222e-05 | K105: 0.0004315138917 | L105: 0.0002732074851 | M105: 0.003076724777 | N105: 6.145349264e-07
A106: =IF('DF raw data'!E106="","",'DF raw data'!E106) -> -280.5 | B106: =IF('DF raw data'!F106="","",'DF raw data'!F106) -> -2.72838e-05 | C106: =IF('DF raw data'!G106="","",'DF raw data'!G106) -> 0.00019128 | D106: =IF('DF raw data'!H106="","",'DF raw data'!H106) -> -2.49501e-05 | F106: -5.996050487e-06 | G106: 1.853697988e-05 | H106: 6.207908287e-07 | J106: 4.562494698e-05 | K106: 0.0004543263652 | L106: 0.0002824759751 | M106: 0.003217962765 | N106: 6.554720826e-07
A107: =IF('DF raw data'!E107="","",'DF raw data'!E107) -> -280 | B107: =IF('DF raw data'!F107="","",'DF raw data'!F107) -> -2.24751e-05 | C107: =IF('DF raw data'!G107="","",'DF raw data'!G107) -> 0.000194876 | D107: =IF('DF raw data'!H107="","",'DF raw data'!H107) -> -2.9073e-05 | F107: -1.163306987e-06 | G107: 2.215095988e-05 | H107: -3.522723671e-06 | J107: 4.504329349e-05 | K107: 0.0004768480119 | L107: 0.000293551455 | M107: 0.003364738492 | N107: 6.995727601e-07
A108: =IF('DF raw data'!E108="","",'DF raw data'!E108) -> -279.5 | B108: =IF('DF raw data'!F108="","",'DF raw data'!F108) -> -2.86258e-05 | C108: =IF('DF raw data'!G108="","",'DF raw data'!G108) -> 0.000190417 | D108: =IF('DF raw data'!H108="","",'DF raw data'!H108) -> -3.02498e-05 | F108: -7.344760487e-06 | G108: 1.766966488e-05 | H108: -4.705407671e-06 | J108: 4.137091324e-05 | K108: 0.0004975334685 | L108: 0.0003023862874 | M108: 0.003515931636 | N108: 7.461472697e-07
A109: =IF('DF raw data'!E109="","",'DF raw data'!E109) -> -279 | B109: =IF('DF raw data'!F109="","",'DF raw data'!F109) -> -2.86928e-05 | C109: =IF('DF raw data'!G109="","",'DF raw data'!G109) -> 0.000191168 | D109: =IF('DF raw data'!H109="","",'DF raw data'!H109) -> -2.52457e-05 | F109: -7.412095487e-06 | G109: 1.842441988e-05 | H109: 3.237128287e-07 | J109: 3.76648655e-05 | K109: 0.0005163659013 | L109: 0.0003115984974 | M109: 0.003671730885 | N109: 7.954034025e-07
A110: =IF('DF raw data'!E110="","",'DF raw data'!E110) -> -278.5 | B110: =IF('DF raw data'!F110="","",'DF raw data'!F110) -> -1.83104e-05 | C110: =IF('DF raw data'!G110="","",'DF raw data'!G110) -> 0.000185081 | D110: =IF('DF raw data'!H110="","",'DF raw data'!H110) -> -2.93826e-05 | F110: 3.022216513e-06 | G110: 1.230698488e-05 | H110: -3.833871671e-06 | J110: 3.917597376e-05 | K110: 0.0005359538882 | L110: 0.0003177519898 | M110: 0.00383060688 | N110: 8.466539445e-07
A111: =IF('DF raw data'!E111="","",'DF raw data'!E111) -> -278 | B111: =IF('DF raw data'!F111="","",'DF raw data'!F111) -> -3.4841e-05 | C111: =IF('DF raw data'!G111="","",'DF raw data'!G111) -> 0.000182097 | D111: =IF('DF raw data'!H111="","",'DF raw data'!H111) -> -2.96286e-05 | F111: -1.359103649e-05 | G111: 9.308064878e-06 | H111: -4.081101671e-06 | J111: 3.238045551e-05 | K111: 0.0005521441159 | L111: 0.0003224060223 | M111: 0.003991809891 | N111: 8.991510131e-07
A112: =IF('DF raw data'!E112="","",'DF raw data'!E112) -> -277.5 | B112: =IF('DF raw data'!F112="","",'DF raw data'!F112) -> -1.94678e-05 | C112: =IF('DF raw data'!G112="","",'DF raw data'!G112) -> 0.000177958 | D112: =IF('DF raw data'!H112="","",'DF raw data'!H112) -> -2.32228e-05 | F112: 1.859029513e-06 | G112: 5.148369878e-06 | H112: 2.356727329e-06 | J112: 3.330997027e-05 | K112: 0.0005687991011 | L112: 0.0003249802072 | M112: 0.004154299995 | N112: 9.525118577e-07
A113: =IF('DF raw data'!E113="","",'DF raw data'!E113) -> -277 | B113: =IF('DF raw data'!F113="","",'DF raw data'!F113) -> -1.85664e-05 | C113: =IF('DF raw data'!G113="","",'DF raw data'!G113) -> 0.000181573 | D113: =IF('DF raw data'!H113="","",'DF raw data'!H113) -> -2.88989e-05 | F113: 2.764936513e-06 | G113: 8.781444878e-06 | H113: -3.347753171e-06 | J113: 3.469243853e-05 | K113: 0.0005861453203 | L113: 0.0003293709296 | M113: 0.004318985459 | N113: 1.007356245e-06
A114: =IF('DF raw data'!E114="","",'DF raw data'!E114) -> -276.5 | B114: =IF('DF raw data'!F114="","",'DF raw data'!F114) -> -1.22863e-05 | C114: =IF('DF raw data'!G114="","",'DF raw data'!G114) -> 0.000185106 | D114: =IF('DF raw data'!H114="","",'DF raw data'!H114) -> -3.09757e-05 | F114: 9.076437013e-06 | G114: 1.233210988e-05 | H114: -5.434937171e-06 | J114: 3.923065703e-05 | K114: 0.0006057606488 | L114: 0.0003355369846 | M114: 0.004486753952 | N114: 1.064418301e-06
A115: =IF('DF raw data'!E115="","",'DF raw data'!E115) -> -276 | B115: =IF('DF raw data'!F115="","",'DF raw data'!F115) -> -2.51716e-05 | C115: =IF('DF raw data'!G115="","",'DF raw data'!G115) -> 0.000182779 | D115: =IF('DF raw data'!H115="","",'DF raw data'!H115) -> -2.04672e-05 | F115: -3.873289487e-06 | G115: 9.993474878e-06 | H115: 5.126105329e-06 | J115: 3.729401229e-05 | K115: 0.000624407655 | L115: 0.000340533722 | M115: 0.004657020813 | N115: 1.123095331e-06
A116: =IF('DF raw data'!E116="","",'DF raw data'!E116) -> -275.5 | B116: =IF('DF raw data'!F116="","",'DF raw data'!F116) -> -1.90112e-05 | C116: =IF('DF raw data'!G116="","",'DF raw data'!G116) -> 0.000188072 | D116: =IF('DF raw data'!H116="","",'DF raw data'!H116) -> -3.59887e-05 | F116: 2.317912513e-06 | G116: 1.531293988e-05 | H116: -1.047300217e-05 | J116: 3.845296855e-05 | K116: 0.0006436341393 | L116: 0.000348190192 | M116: 0.004831115909 | N116: 1.184452851e-06
A117: =IF('DF raw data'!E117="","",'DF raw data'!E117) -> -275 | B117: =IF('DF raw data'!F117="","",'DF raw data'!F117) -> -3.14463e-05 | C117: =IF('DF raw data'!G117="","",'DF raw data'!G117) -> 0.000180034 | D117: =IF('DF raw data'!H117="","",'DF raw data'!H117) -> -2.74246e-05 | F117: -1.017936299e-05 | G117: 7.234749878e-06 | H117: -1.866081671e-06 | J117: 3.336328705e-05 | K117: 0.0006603157828 | L117: 0.0003518075669 | M117: 0.005007019692 | N117: 1.246893688e-06
A118: =IF('DF raw data'!E118="","",'DF raw data'!E118) -> -274.5 | B118: =IF('DF raw data'!F118="","",'DF raw data'!F118) -> -2.02339e-05 | C118: =IF('DF raw data'!G118="","",'DF raw data'!G118) -> 0.000181824 | D118: =IF('DF raw data'!H118="","",'DF raw data'!H118) -> -2.75912e-05 | F118: 1.089099013e-06 | G118: 9.033699878e-06 | H118: -2.033514671e-06 | J118: 3.390783656e-05 | K118: 0.0006772697011 | L118: 0.0003563244168 | M118: 0.0051851819 | N118: 1.310952103e-06
A119: =IF('DF raw data'!E119="","",'DF raw data'!E119) -> -274 | B119: =IF('DF raw data'!F119="","",'DF raw data'!F119) -> -2.05531e-05 | C119: =IF('DF raw data'!G119="","",'DF raw data'!G119) -> 0.000177629 | D119: =IF('DF raw data'!H119="","",'DF raw data'!H119) -> -2.83827e-05 | F119: 7.683030128e-07 | G119: 4.817724878e-06 | H119: -2.828972171e-06 | J119: 3.429198806e-05 | K119: 0.0006944156951 | L119: 0.0003587332793 | M119: 0.00536454854 | N119: 1.375884856e-06
A120: =IF('DF raw data'!E120="","",'DF raw data'!E120) -> -273.5 | B120: =IF('DF raw data'!F120="","",'DF raw data'!F120) -> -1.87031e-05 | C120: =IF('DF raw data'!G120="","",'DF raw data'!G120) -> 0.000179361 | D120: =IF('DF raw data'!H120="","",'DF raw data'!H120) -> -1.67959e-05 | F120: 2.627553013e-06 | G120: 6.558384878e-06 | H120: 8.815761829e-06 | J120: 3.560576457e-05 | K120: 0.0007122185774 | L120: 0.0003620124717 | M120: 0.005545554776 | N120: 1.442045256e-06
A121: =IF('DF raw data'!E121="","",'DF raw data'!E121) -> -273 | B121: =IF('DF raw data'!F121="","",'DF raw data'!F121) -> -2.6838e-05 | C121: =IF('DF raw data'!G121="","",'DF raw data'!G121) -> 0.000188945 | D121: =IF('DF raw data'!H121="","",'DF raw data'!H121) -> -1.96329e-05 | F121: -5.548021487e-06 | G121: 1.619030488e-05 | H121: 5.964576829e-06 | J121: 3.283175383e-05 | K121: 0.0007286344543 | L121: 0.0003701076241 | M121: 0.005730608588 | N121: 1.511074045e-06
A122: =IF('DF raw data'!E122="","",'DF raw data'!E122) -> -272.5 | B122: =IF('DF raw data'!F122="","",'DF raw data'!F122) -> -3.83026e-05 | C122: =IF('DF raw data'!G122="","",'DF raw data'!G122) -> 0.000189755 | D122: =IF('DF raw data'!H122="","",'DF raw data'!H122) -> -2.89654e-05 | F122: -1.706994449e-05 | G122: 1.700435488e-05 | H122: -3.414585671e-06 | J122: 2.429678158e-05 | K122: 0.0007407828451 | L122: 0.0003786098016 | M122: 0.005919913489 | N122: 1.583041903e-06
A123: =IF('DF raw data'!E123="","",'DF raw data'!E123) -> -272 | B123: =IF('DF raw data'!F123="","",'DF raw data'!F123) -> -2.10054e-05 | C123: =IF('DF raw data'!G123="","",'DF raw data'!G123) -> 0.000193779 | D123: =IF('DF raw data'!H123="","",'DF raw data'!H123) -> -2.22194e-05 | F123: 3.137415128e-07 | G123: 2.104847488e-05 | H123: 3.365144329e-06 | J123: 2.445365234e-05 | K123: 0.0007530096713 | L123: 0.000389134039 | M123: 0.006114480508 | N123: 1.659053544e-06
A124: =IF('DF raw data'!E124="","",'DF raw data'!E124) -> -271.5 | B124: =IF('DF raw data'!F124="","",'DF raw data'!F124) -> -2.39522e-05 | C124: =IF('DF raw data'!G124="","",'DF raw data'!G124) -> 0.000190471 | D124: =IF('DF raw data'!H124="","",'DF raw data'!H124) -> -2.48469e-05 | F124: -2.647792487e-06 | G124: 1.772393488e-05 | H124: 7.245068287e-07 | J124: 2.31297561e-05 | K124: 0.0007645745493 | L124: 0.0003979960065 | M124: 0.006313478512 | N124: 1.738521447e-06
A125: =IF('DF raw data'!E125="","",'DF raw data'!E125) -> -271 | B125: =IF('DF raw data'!F125="","",'DF raw data'!F125) -> -1.71001e-05 | C125: =IF('DF raw data'!G125="","",'DF raw data'!G125) -> 0.000185051 | D125: =IF('DF raw data'!H125="","",'DF raw data'!H125) -> -1.74315e-05 | F125: 4.238568013e-06 | G125: 1.227683488e-05 | H125: 8.176983829e-06 | J125: 2.52490401e-05 | K125: 0.0007771990694 | L125: 0.0004041344239 | M125: 0.006515545724 | N125: 1.82050252e-06
A126: =IF('DF raw data'!E126="","",'DF raw data'!E126) -> -270.5 | B126: =IF('DF raw data'!F126="","",'DF raw data'!F126) -> -1.06218e-05 | C126: =IF('DF raw data'!G126="","",'DF raw data'!G126) -> 0.000193753 | D126: =IF('DF raw data'!H126="","",'DF raw data'!H126) -> -2.87487e-05 | F126: 1.074925951e-05 | G126: 2.102234488e-05 | H126: -3.196802171e-06 | J126: 3.062366986e-05 | K126: 0.0007925109043 | L126: 0.0004146455963 | M126: 0.006722868522 | N126: 1.90693691e-06
A127: =IF('DF raw data'!E127="","",'DF raw data'!E127) -> -270 | B127: =IF('DF raw data'!F127="","",'DF raw data'!F127) -> -3.0549e-05 | C127: =IF('DF raw data'!G127="","",'DF raw data'!G127) -> 0.000192757 | D127: =IF('DF raw data'!H127="","",'DF raw data'!H127) -> -2.79205e-05 | F127: -9.277576487e-06 | G127: 2.002136488e-05 | H127: -2.364461171e-06 | J127: 2.598488162e-05 | K127: 0.0008055033451 | L127: 0.0004246562788 | M127: 0.006935196661 | N127: 1.997440995e-06
A128: =IF('DF raw data'!E128="","",'DF raw data'!E128) -> -269.5 | B128: =IF('DF raw data'!F128="","",'DF raw data'!F128) -> -3.29765e-05 | C128: =IF('DF raw data'!G128="","",'DF raw data'!G128) -> 0.000188805 | D128: =IF('DF raw data'!H128="","",'DF raw data'!H128) -> -4.07763e-05 | F128: -1.171721399e-05 | G128: 1.604960488e-05 | H128: -1.528454017e-05 | J128: 2.012627462e-05 | K128: 0.0008155664824 | L128: 0.0004326810812 | M128: 0.007151537202 | N128: 2.091249987e-06
A129: =IF('DF raw data'!E129="","",'DF raw data'!E129) -> -269 | B129: =IF('DF raw data'!F129="","",'DF raw data'!F129) -> -3.74753e-05 | C129: =IF('DF raw data'!G129="","",'DF raw data'!G129) -> 0.000178621 | D129: =IF('DF raw data'!H129="","",'DF raw data'!H129) -> -1.81906e-05 | F129: -1.623850799e-05 | G129: 5.814684878e-06 | H129: 7.414088329e-06 | J129: 1.200702063e-05 | K129: 0.0008215699927 | L129: 0.0004355884237 | M129: 0.007369331414 | N129: 2.186190709e-06
A130: =IF('DF raw data'!E130="","",'DF raw data'!E130) -> -268.5 | B130: =IF('DF raw data'!F130="","",'DF raw data'!F130) -> -2.47794e-05 | C130: =IF('DF raw data'!G130="","",'DF raw data'!G130) -> 0.000185718 | D130: =IF('DF raw data'!H130="","",'DF raw data'!H130) -> -3.39835e-05 | F130: -3.479128487e-06 | G130: 1.294716988e-05 | H130: -8.457776171e-06 | J130: 1.026745638e-05 | K130: 0.0008267037209 | L130: 0.0004420620086 | M130: 0.007590362418 | N130: 2.283952829e-06
A131: =IF('DF raw data'!E131="","",'DF raw data'!E131) -> -268 | B131: =IF('DF raw data'!F131="","",'DF raw data'!F131) -> -2.61364e-05 | C131: =IF('DF raw data'!G131="","",'DF raw data'!G131) -> 0.000192965 | D131: =IF('DF raw data'!H131="","",'DF raw data'!H131) -> -1.44709e-05 | F131: =(1-$G$1*($B$54-$G$2))*(B131-F$5) -> -4.842913487e-06 | G131: =(1-$G$1*($B$54-$G$2))*(C131-G$5) -> 2.023040488e-05 | H131: =(1-$G$1*($B$54-$G$2))*(D131-H$5) -> 1.115238683e-05 | J131: 7.845999641e-06 | K131: 0.0008306267207 | L131: 0.000452177211 | M131: 0.007816451023 | N131: 2.386215724e-06
A132: =IF('DF raw data'!E132="","",'DF raw data'!E132) -> -267.5 | B132: =IF('DF raw data'!F132="","",'DF raw data'!F132) -> -1.40168e-05 | C132: =IF('DF raw data'!G132="","",'DF raw data'!G132) -> 0.000189369 | D132: =IF('DF raw data'!H132="","",'DF raw data'!H132) -> -3.04816e-05 | F132: 7.337284513e-06 | G132: 1.661642488e-05 | H132: -4.938366671e-06 | J132: =F132*$G$3+J131 -> 1.15146419e-05 | K132: =J132*$G$3+K131 -> 0.0008363840417 | L132: =G132*$G$3+L131 -> 0.0004604854235 | M132: =L132*$G$3+M131 -> 0.008046693735 | N132: =(J132^2+L132^2)*$G$3+N131 -> 2.49230543e-06
A133: =IF('DF raw data'!E133="","",'DF raw data'!E133) -> -267 | B133: =IF('DF raw data'!F133="","",'DF raw data'!F133) -> -2.90109e-05 | C133: =IF('DF raw data'!G133="","",'DF raw data'!G133) -> 0.000187458 | D133: =IF('DF raw data'!H133="","",'DF raw data'!H133) -> -2.80111e-05 | F133: -7.731785987e-06 | G133: 1.469586988e-05 | H133: -2.455514171e-06 | J133: 7.648748904e-06 | K133: 0.0008402084161 | L133: 0.0004678333584 | M133: 0.008280610414 | N133: 2.601768707e-06
A134: =IF('DF raw data'!E134="","",'DF raw data'!E134) -> -266.5 | B134: =IF('DF raw data'!F134="","",'DF raw data'!F134) -> -2.0559e-05 | C134: =IF('DF raw data'!G134="","",'DF raw data'!G134) -> 0.000184036 | D134: =IF('DF raw data'!H134="","",'DF raw data'!H134) -> -2.056e-05 | F134: 7.623735128e-07 | G134: 1.125675988e-05 | H134: 5.032841329e-06 | J134: 8.02993566e-06 | K134: 0.000844223384 | L134: 0.0004734617384 | M134: 0.008517341283 | N134: 2.713883956e-06
A135: =IF('DF raw data'!E135="","",'DF raw data'!E135) -> -266 | B135: =IF('DF raw data'!F135="","",'DF raw data'!F135) -> -2.20972e-05 | C135: =IF('DF raw data'!G135="","",'DF raw data'!G135) -> 0.000182342 | D135: =IF('DF raw data'!H135="","",'DF raw data'!H135) -> -1.83941e-05 | F135: -7.835174872e-07 | G135: 9.554289878e-06 | H135: 7.209570829e-06 | J135: 7.638176917e-06 | K135: 0.0008480424724 | L135: 0.0004782388833 | M135: 0.008756460725 | N135: 2.828269342e-06
A136: =IF('DF raw data'!E136="","",'DF raw data'!E136) -> -265.5 | B136: =IF('DF raw data'!F136="","",'DF raw data'!F136) -> -1.41509e-05 | C136: =IF('DF raw data'!G136="","",'DF raw data'!G136) -> 0.000188598 | D136: =IF('DF raw data'!H136="","",'DF raw data'!H136) -> -2.1381e-05 | F136: 7.202514013e-06 | G136: 1.584156988e-05 | H136: 4.207736329e-06 | J136: 1.123943392e-05 | K136: 0.0008536621894 | L136: 0.0004861596682 | M136: 0.008999540559 | N136: 2.946508116e-06
A137: =IF('DF raw data'!E137="","",'DF raw data'!E137) -> -265 | B137: =IF('DF raw data'!F137="","",'DF raw data'!F137) -> -2.77951e-05 | C137: =IF('DF raw data'!G137="","",'DF raw data'!G137) -> 0.000191293 | D137: =IF('DF raw data'!H137="","",'DF raw data'!H137) -> -2.57173e-05 | F137: -6.509906987e-06 | G137: 1.855004488e-05 | H137: -1.502451713e-07 | J137: 7.98448043e-06 | K137: 0.0008576544296 | L137: 0.0004954346907 | M137: 0.009247257905 | N137: 3.069267758e-06
A138: =IF('DF raw data'!E138="","",'DF raw data'!E138) -> -264.5 | B138: =IF('DF raw data'!F138="","",'DF raw data'!F138) -> -1.85682e-05 | C138: =IF('DF raw data'!G138="","",'DF raw data'!G138) -> 0.000188728 | D138: =IF('DF raw data'!H138="","",'DF raw data'!H138) -> -2.75774e-05 | F138: 2.763127513e-06 | G138: 1.597221988e-05 | H138: -2.019645671e-06 | J138: 9.366044186e-06 | K138: 0.0008623374517 | L138: 0.0005034208006 | M138: 0.009498968305 | N138: 3.196027871e-06
A139: =IF('DF raw data'!E139="","",'DF raw data'!E139) -> -264 | B139: =IF('DF raw data'!F139="","",'DF raw data'!F139) -> -3.23479e-05 | C139: =IF('DF raw data'!G139="","",'DF raw data'!G139) -> 0.000186535 | D139: =IF('DF raw data'!H139="","",'DF raw data'!H139) -> -1.9768e-05 | F139: -1.108547099e-05 | G139: 1.376825488e-05 | H139: 5.828801329e-06 | J139: 3.823308692e-06 | K139: 0.000864249106 | L139: 0.000510304928 | M139: 0.009754120769 | N139: 3.326240739e-06
A140: =IF('DF raw data'!E140="","",'DF raw data'!E140) -> -263.5 | B140: =IF('DF raw data'!F140="","",'DF raw data'!F140) -> -2.80516e-05 | C140: =IF('DF raw data'!G140="","",'DF raw data'!G140) -> 0.000200399 | D140: =IF('DF raw data'!H140="","",'DF raw data'!H140) -> -2.78756e-05 | F140: -6.767689487e-06 | G140: 2.770157488e-05 | H140: -2.319336671e-06 | J140: 4.394639488e-07 | K140: 0.000864468838 | L140: 0.0005241557155 | M140: 0.01001619863 | N140: 3.463610443e-06
A141: =IF('DF raw data'!E141="","",'DF raw data'!E141) -> -263 | B141: =IF('DF raw data'!F141="","",'DF raw data'!F141) -> -3.15838e-05 | C141: =IF('DF raw data'!G141="","",'DF raw data'!G141) -> 0.00019003 | D141: =IF('DF raw data'!H141="","",'DF raw data'!H141) -> -1.24636e-05 | F141: -1.031755049e-05 | G141: 1.728072988e-05 | H141: 1.316972333e-05 | J141: -4.719311295e-06 | K141: 0.0008621091824 | L141: 0.0005327960804 | M141: 0.01028259667 | N141: 3.60555741e-06
A142: =IF('DF raw data'!E142="","",'DF raw data'!E142) -> -262.5 | B142: =IF('DF raw data'!F142="","",'DF raw data'!F142) -> -1.85094e-05 | C142: =IF('DF raw data'!G142="","",'DF raw data'!G142) -> 0.000190765 | D142: =IF('DF raw data'!H142="","",'DF raw data'!H142) -> -1.98362e-05 | F142: 2.822221513e-06 | G142: 1.801940488e-05 | H142: 5.760260329e-06 | J142: -3.308200538e-06 | K142: 0.0008604550821 | L142: 0.0005418057829 | M142: 0.01055349956 | N142: 3.752339636e-06
A143: =IF('DF raw data'!E143="","",'DF raw data'!E143) -> -262 | B143: =IF('DF raw data'!F143="","",'DF raw data'!F143) -> -2.06316e-05 | C143: =IF('DF raw data'!G143="","",'DF raw data'!G143) -> 0.00018054 | D143: =IF('DF raw data'!H143="","",'DF raw data'!H143) -> -5.51546e-06 | F143: 6.894105128e-07 | G143: 7.743279878e-06 | H143: 2.015260403e-05 | J143: -2.963495282e-06 | K143: 0.0008589733345 | L143: 0.0005456774228 | M143: 0.01082633827 | N143: 3.901225952e-06
A144: =IF('DF raw data'!E144="","",'DF raw data'!E144) -> -261.5 | B144: =IF('DF raw data'!F144="","",'DF raw data'!F144) -> -1.66519e-05 | C144: =IF('DF raw data'!G144="","",'DF raw data'!G144) -> 0.000180563 | D144: =IF('DF raw data'!H144="","",'DF raw data'!H144) -> -1.8565e-05 | F144: 4.689009013e-06 | G144: 7.766394878e-06 | H144: 7.037816329e-06 | J144: -6.189907756e-07 | K144: 0.0008586638391 | L144: 0.0005495606202 | M144: 0.01110111858 | N144: 4.052234581e-06
A145: =IF('DF raw data'!E145="","",'DF raw data'!E145) -> -261 | B145: =IF('DF raw data'!F145="","",'DF raw data'!F145) -> -1.47297e-05 | C145: =IF('DF raw data'!G145="","",'DF raw data'!G145) -> 0.000184223 | D145: =IF('DF raw data'!H145="","",'DF raw data'!H145) -> -1.64804e-05 | F145: 6.620820013e-06 | G145: 1.144469488e-05 | H145: 9.132839329e-06 | J145: 2.691419231e-06 | K145: 0.0008600095487 | L145: 0.0005552829677 | M145: 0.01137876006 | N145: 4.20640779e-06
A146: =IF('DF raw data'!E146="","",'DF raw data'!E146) -> -260.5 | B146: =IF('DF raw data'!F146="","",'DF raw data'!F146) -> -2.08108e-05 | C146: =IF('DF raw data'!G146="","",'DF raw data'!G146) -> 0.000175364 | D146: =IF('DF raw data'!H146="","",'DF raw data'!H146) -> -2.80142e-05 | F146: 5.093145128e-07 | G146: 2.541399878e-06 | H146: -2.458629671e-06 | J146: 2.946076487e-06 | K146: 0.0008614825869 | L146: 0.0005565536676 | M146: 0.0116570369 | N146: 4.361288122e-06
A147: =IF('DF raw data'!E147="","",'DF raw data'!E147) -> -260 | B147: =IF('DF raw data'!F147="","",'DF raw data'!F147) -> -2.0486e-05 | C147: =IF('DF raw data'!G147="","",'DF raw data'!G147) -> 0.000172278 | D147: =IF('DF raw data'!H147="","",'DF raw data'!H147) -> -3.22872e-05 | F147: 8.357385128e-07 | G147: -5.60030122e-07 | H147: -6.752994671e-06 | J147: 3.363945744e-06 | K147: 0.0008631645598 | L147: 0.0005562736526 | M147: 0.01193517372 | N147: 4.516013968e-06
A148: =IF('DF raw data'!E148="","",'DF raw data'!E148) -> -259.5 | B148: =IF('DF raw data'!F148="","",'DF raw data'!F148) -> -3.27341e-05 | C148: =IF('DF raw data'!G148="","",'DF raw data'!G148) -> 0.000178468 | D148: =IF('DF raw data'!H148="","",'DF raw data'!H148) -> -2.06924e-05 | F148: -1.147360199e-05 | G148: 5.660919878e-06 | H148: 4.899779329e-06 | J148: -2.37285525e-06 | K148: 0.0008619781322 | L148: 0.0005591041125 | M148: 0.01221472578 | N148: 4.672315488e-06
A149: =IF('DF raw data'!E149="","",'DF raw data'!E149) -> -259 | B149: =IF('DF raw data'!F149="","",'DF raw data'!F149) -> -2.06179e-05 | C149: =IF('DF raw data'!G149="","",'DF raw data'!G149) -> 0.00017856 | D149: =IF('DF raw data'!H149="","",'DF raw data'!H149) -> -2.65127e-05 | F149: 7.031790128e-07 | G149: 5.753379878e-06 | H149: -9.496221713e-07 | J149: -2.021265744e-06 | K149: 0.0008609674993 | L149: 0.0005619808024 | M149: 0.01249571618 | N149: 4.830228742e-06
A150: =IF('DF raw data'!E150="","",'DF raw data'!E150) -> -258.5 | B150: =IF('DF raw data'!F150="","",'DF raw data'!F150) -> -2.10736e-05 | C150: =IF('DF raw data'!G150="","",'DF raw data'!G150) -> 0.000185391 | D150: =IF('DF raw data'!H150="","",'DF raw data'!H150) -> -1.81731e-05 | F150: 2.452005128e-07 | G150: 1.261853488e-05 | H150: 7.431675829e-06 | J150: -1.898665487e-06 | K150: 0.0008600181666 | L150: 0.0005682900699 | M150: 0.01277986122 | N150: 4.991707346e-06
A151: =IF('DF raw data'!E151="","",'DF raw data'!E151) -> -258 | B151: =IF('DF raw data'!F151="","",'DF raw data'!F151) -> -2.48442e-05 | C151: =IF('DF raw data'!G151="","",'DF raw data'!G151) -> 0.000183317 | D151: =IF('DF raw data'!H151="","",'DF raw data'!H151) -> -3.05317e-05 | F151: -3.544252487e-06 | G151: 1.053416488e-05 | H151: -4.988717171e-06 | J151: -3.670791731e-06 | K151: 0.0008581827707 | L151: 0.0005735571523 | M151: 0.01306663979 | N151: 5.156197987e-06
A152: =IF('DF raw data'!E152="","",'DF raw data'!E152) -> -257.5 | B152: =IF('DF raw data'!F152="","",'DF raw data'!F152) -> -2.09402e-05 | C152: =IF('DF raw data'!G152="","",'DF raw data'!G152) -> 0.000179122 | D152: =IF('DF raw data'!H152="","",'DF raw data'!H152) -> -2.62627e-05 | F152: 3.792675128e-07 | G152: 6.318189878e-06 | H152: -6.983721713e-07 | J152: -3.481157974e-06 | K152: 0.0008564421917 | L152: 0.0005767162473 | M152: 0.01335499792 | N152: 5.322504861e-06
A153: =IF('DF raw data'!E153="","",'DF raw data'!E153) -> -257 | B153: =IF('DF raw data'!F153="","",'DF raw data'!F153) -> -2.28094e-05 | C153: =IF('DF raw data'!G153="","",'DF raw data'!G153) -> 0.000187488 | D153: =IF('DF raw data'!H153="","",'DF raw data'!H153) -> -6.65902e-06 | F153: -1.499278487e-06 | G153: 1.472601988e-05 | H153: 1.900332623e-05 | J153: -4.230797218e-06 | K153: 0.0008543267931 | L153: 0.0005840792572 | M153: 0.01364703754 | N153: 5.4930881e-06
A154: =IF('DF raw data'!E154="","",'DF raw data'!E154) -> -256.5 | B154: =IF('DF raw data'!F154="","",'DF raw data'!F154) -> -8.83218e-06 | C154: =IF('DF raw data'!G154="","",'DF raw data'!G154) -> 0.000190611 | D154: =IF('DF raw data'!H154="","",'DF raw data'!H154) -> -2.18127e-05 | F154: 1.254782761e-05 | G154: 1.786463488e-05 | H154: 3.773877829e-06 | J154: 2.043116588e-06 | K154: 0.0008553483514 | L154: 0.0005930115746 | M154: 0.01394354333 | N154: 5.668921551e-06
A155: =IF('DF raw data'!E155="","",'DF raw data'!E155) -> -256 | B155: =IF('DF raw data'!F155="","",'DF raw data'!F155) -> -2.66397e-05 | C155: =IF('DF raw data'!G155="","",'DF raw data'!G155) -> 0.000183533 | D155: =IF('DF raw data'!H155="","",'DF raw data'!H155) -> -2.80604e-05 | F155: -5.348729987e-06 | G155: 1.075124488e-05 | H155: -2.505060671e-06 | J155: -6.312484052e-07 | K155: 0.0008550327272 | L155: 0.0005983871971 | M155: 0.01424273693 | N155: 5.847955369e-06
A156: =IF('DF raw data'!E156="","",'DF raw data'!E156) -> -255.5 | B156: =IF('DF raw data'!F156="","",'DF raw data'!F156) -> -2.742e-05 | C156: =IF('DF raw data'!G156="","",'DF raw data'!G156) -> 0.000181404 | D156: =IF('DF raw data'!H156="","",'DF raw data'!H156) -> -1.40941e-05 | F156: -6.132931487e-06 | G156: 8.611599878e-06 | H156: 1.153107083e-05 | J156: -3.697714149e-06 | K156: 0.0008531838701 | L156: 0.000602692997 | M156: 0.01454408343 | N156: 6.02958163e-06
A157: =IF('DF raw data'!E157="","",'DF raw data'!E157) -> -255 | B157: =IF('DF raw data'!F157="","",'DF raw data'!F157) -> -2.17714e-05 | C157: =IF('DF raw data'!G157="","",'DF raw data'!G157) -> 0.000177157 | D157: =IF('DF raw data'!H157="","",'DF raw data'!H157) -> -2.66036e-05 | F157: -4.560884872e-07 | G157: 4.343364878e-06 | H157: -1.040976671e-06 | J157: -3.925758392e-06 | K157: 0.0008512209909 | L157: 0.0006048646795 | M157: 0.01484651577 | N157: 6.212519976e-06
A158: =IF('DF raw data'!E158="","",'DF raw data'!E158) -> -254.5 | B158: =IF('DF raw data'!F158="","",'DF raw data'!F158) -> -1.92126e-05 | C158: =IF('DF raw data'!G158="","",'DF raw data'!G158) -> 0.000175785 | D158: =IF('DF raw data'!H158="","",'DF raw data'!H158) -> -2.22536e-05 | F158: 2.115505513e-06 | G158: 2.964504878e-06 | H158: 3.330773329e-06 | J158: -2.868005636e-06 | K158: 0.0008497869881 | L158: 0.0006063469319 | M158: 0.01514968923 | N158: 6.39635239e-06
A159: =IF('DF raw data'!E159="","",'DF raw data'!E159) -> -254 | B159: =IF('DF raw data'!F159="","",'DF raw data'!F159) -> -2.46578e-05 | C159: =IF('DF raw data'!G159="","",'DF raw data'!G159) -> 0.000183426 | D159: =IF('DF raw data'!H159="","",'DF raw data'!H159) -> -2.16383e-05 | F159: -3.356920487e-06 | G159: 1.064370988e-05 | H159: 3.949149829e-06 | J159: -4.54646588e-06 | K159: 0.0008475137552 | L159: 0.0006116687868 | M159: 0.01545552363 | N159: 6.583432077e-06
A160: =IF('DF raw data'!E160="","",'DF raw data'!E160) -> -253.5 | B160: =IF('DF raw data'!F160="","",'DF raw data'!F160) -> -2.36359e-05 | C160: =IF('DF raw data'!G160="","",'DF raw data'!G160) -> 0.000184743 | D160: =IF('DF raw data'!H160="","",'DF raw data'!H160) -> -1.92239e-05 | F160: -2.329910987e-06 | G160: 1.196729488e-05 | H160: 6.375621829e-06 | J160: -5.711421373e-06 | K160: 0.0008446580445 | L160: 0.0006176524343 | M160: 0.01576434985 | N160: 6.774195652e-06
A161: =IF('DF raw data'!E161="","",'DF raw data'!E161) -> -253 | B161: =IF('DF raw data'!F161="","",'DF raw data'!F161) -> -3.39575e-05 | C161: =IF('DF raw data'!G161="","",'DF raw data'!G161) -> 0.000187856 | D161: =IF('DF raw data'!H161="","",'DF raw data'!H161) -> -7.59208e-06 | F161: -1.270311899e-05 | G161: 1.509585988e-05 | H161: 1.806560093e-05 | J161: -1.206298087e-05 | K161: 0.000838626554 | L161: 0.0006252003642 | M161: 0.01607695003 | N161: 6.969706158e-06
A162: =IF('DF raw data'!E162="","",'DF raw data'!E162) -> -252.5 | B162: =IF('DF raw data'!F162="","",'DF raw data'!F162) -> -2.40208e-05 | C162: =IF('DF raw data'!G162="","",'DF raw data'!G162) -> 0.000191148 | D162: =IF('DF raw data'!H162="","",'DF raw data'!H162) -> -1.86009e-05 | F162: -2.716735487e-06 | G162: 1.840431988e-05 | H162: 7.001736829e-06 | J162: -1.342134861e-05 | K162: 0.0008319158797 | L162: 0.0006344025241 | M162: 0.01639415129 | N162: 7.171029505e-06
A163: =IF('DF raw data'!E163="","",'DF raw data'!E163) -> -252 | B163: =IF('DF raw data'!F163="","",'DF raw data'!F163) -> -1.50494e-05 | C163: =IF('DF raw data'!G163="","",'DF raw data'!G163) -> 0.000193552 | D163: =IF('DF raw data'!H163="","",'DF raw data'!H163) -> -1.76567e-05 | F163: 6.299521513e-06 | G163: 2.082033988e-05 | H163: 7.950657829e-06 | J163: -1.027158785e-05 | K163: 0.0008267800858 | L163: 0.0006448126941 | M163: 0.01671655764 | N163: 7.378973963e-06
A164: =IF('DF raw data'!E164="","",'DF raw data'!E164) -> -251.5 | B164: =IF('DF raw data'!F164="","",'DF raw data'!F164) -> -2.22161e-05 | C164: =IF('DF raw data'!G164="","",'DF raw data'!G164) -> 0.000194916 | D164: =IF('DF raw data'!H164="","",'DF raw data'!H164) -> -3.50461e-05 | F164: -9.030119872e-07 | G164: 2.219115988e-05 | H164: -9.525689171e-06 | J164: -1.072309385e-05 | K164: 0.0008214185389 | L164: 0.000655908274 | M164: 0.01704451177 | N164: 7.594139288e-06
A165: =IF('DF raw data'!E165="","",'DF raw data'!E165) -> -251 | B165: =IF('DF raw data'!F165="","",'DF raw data'!F165) -> -2.8889e-05 | C165: =IF('DF raw data'!G165="","",'DF raw data'!G165) -> 0.000181887 | D165: =IF('DF raw data'!H165="","",'DF raw data'!H165) -> -1.76222e-05 | F165: -7.609276487e-06 | G165: 9.097014878e-06 | H165: 7.985330329e-06 | J165: -1.452773209e-05 | K165: 0.0008141546728 | L165: 0.0006604567815 | M165: 0.01737474016 | N165: 7.812346395e-06
A166: =IF('DF raw data'!E166="","",'DF raw data'!E166) -> -250.5 | B166: =IF('DF raw data'!F166="","",'DF raw data'!F166) -> -2.04913e-05 | C166: =IF('DF raw data'!G166="","",'DF raw data'!G166) -> 0.000182212 | D166: =IF('DF raw data'!H166="","",'DF raw data'!H166) -> -2.68388e-05 | F166: 8.304120128e-07 | G166: 9.423639878e-06 | H166: -1.277352671e-06 | J166: -1.411252608e-05 | K166: 0.0008070984098 | L166: 0.0006651686014 | M166: 0.01770732446 | N166: 8.033670611e-06
A167: =IF('DF raw data'!E167="","",'DF raw data'!E167) -> -250 | B167: =IF('DF raw data'!F167="","",'DF raw data'!F167) -> -2.17739e-05 | C167: =IF('DF raw data'!G167="","",'DF raw data'!G167) -> 0.00018386 | D167: =IF('DF raw data'!H167="","",'DF raw data'!H167) -> -2.24079e-05 | F167: -4.586009872e-07 | G167: 1.107987988e-05 | H167: 3.175701829e-06 | J167: -1.434182658e-05 | K167: 0.0007999274965 | L167: 0.0006707085413 | M167: 0.01804267874 | N167: 8.258698429e-06
A168: =IF('DF raw data'!E168="","",'DF raw data'!E168) -> -249.5 | B168: =IF('DF raw data'!F168="","",'DF raw data'!F168) -> -1.59474e-05 | C168: =IF('DF raw data'!G168="","",'DF raw data'!G168) -> 0.000186511 | D168: =IF('DF raw data'!H168="","",'DF raw data'!H168) -> -1.82285e-05 | F168: 5.397031513e-06 | G168: 1.374413488e-05 | H168: 7.375998829e-06 | J168: -1.164331082e-05 | K168: 0.0007941058411 | L168: 0.0006775806088 | M168: 0.01838146904 | N168: 8.488323953e-06
A169: =IF('DF raw data'!E169="","",'DF raw data'!E169) -> -249 | B169: =IF('DF raw data'!F169="","",'DF raw data'!F169) -> -2.01109e-05 | C169: =IF('DF raw data'!G169="","",'DF raw data'!G169) -> 0.000179845 | D169: =IF('DF raw data'!H169="","",'DF raw data'!H169) -> -1.75531e-05 | F169: 1.212714013e-06 | G169: 7.044804878e-06 | H169: 8.054775829e-06 | J169: -1.103695382e-05 | K169: 0.0007885873642 | L169: 0.0006811030112 | M169: 0.01872202055 | N169: 8.720335516e-06
A170: =IF('DF raw data'!E170="","",'DF raw data'!E170) -> -248.5 | B170: =IF('DF raw data'!F170="","",'DF raw data'!F170) -> -3.17084e-05 | C170: =IF('DF raw data'!G170="","",'DF raw data'!G170) -> 0.000188904 | D170: =IF('DF raw data'!H170="","",'DF raw data'!H170) -> -2.22304e-05 | F170: -1.044277349e-05 | G170: 1.614909988e-05 | H170: 3.354089329e-06 | J170: -1.625834056e-05 | K170: 0.0007804581939 | L170: 0.0006891775612 | M170: 0.01906660933 | N170: 8.957950538e-06
A171: =IF('DF raw data'!E171="","",'DF raw data'!E171) -> -248 | B171: =IF('DF raw data'!F171="","",'DF raw data'!F171) -> -2.67647e-05 | C171: =IF('DF raw data'!G171="","",'DF raw data'!G171) -> 0.000189898 | D171: =IF('DF raw data'!H171="","",'DF raw data'!H171) -> -3.24083e-05 | F171: -5.474354987e-06 | G171: 1.714806988e-05 | H171: -6.874700171e-06 | J171: -1.899551805e-05 | K171: 0.0007709604349 | L171: 0.0006977515961 | M171: 0.01941548512 | N171: 9.201559598e-06
A172: =IF('DF raw data'!E172="","",'DF raw data'!E172) -> -247.5 | B172: =IF('DF raw data'!F172="","",'DF raw data'!F172) -> -1.49822e-05 | C172: =IF('DF raw data'!G172="","",'DF raw data'!G172) -> 0.000200025 | D172: =IF('DF raw data'!H172="","",'DF raw data'!H172) -> -2.43729e-05 | F172: 6.367057513e-06 | G172: 2.732570488e-05 | H172: 1.200876829e-06 | J172: -1.58119893e-05 | K172: 0.0007630544402 | L172: 0.0007114144485 | M172: 0.01977119235 | N172: 9.454739866e-06
A173: =IF('DF raw data'!E173="","",'DF raw data'!E173) -> -247 | B173: =IF('DF raw data'!F173="","",'DF raw data'!F173) -> -2.62601e-05 | C173: =IF('DF raw data'!G173="","",'DF raw data'!G173) -> 0.000201477 | D173: =IF('DF raw data'!H173="","",'DF raw data'!H173) -> -2.00867e-05 | F173: -4.967231987e-06 | G173: 2.878496488e-05 | H173: 5.508507829e-06 | J173: -1.829560529e-05 | K173: 0.0007539066376 | L173: 0.000725806931 | M173: 0.02013409581 | N173: 9.718305081e-06
A174: =IF('DF raw data'!E174="","",'DF raw data'!E174) -> -246.5 | B174: =IF('DF raw data'!F174="","",'DF raw data'!F174) -> -1.4525e-05 | C174: =IF('DF raw data'!G174="","",'DF raw data'!G174) -> 0.000196638 | D174: =IF('DF raw data'!H174="","",'DF raw data'!H174) -> -3.80259e-05 | F174: 6.826543513e-06 | G174: 2.392176988e-05 | H174: -1.252038817e-05 | J174: -1.488233353e-05 | K174: 0.0007464654708 | L174: 0.0007377678159 | M174: 0.02050297972 | N174: 9.990566499e-06
A175: =IF('DF raw data'!E175="","",'DF raw data'!E175) -> -246 | B175: =IF('DF raw data'!F175="","",'DF raw data'!F175) -> -3.19622e-05 | C175: =IF('DF raw data'!G175="","",'DF raw data'!G175) -> 0.000194623 | D175: =IF('DF raw data'!H175="","",'DF raw data'!H175) -> -2.08733e-05 | F175: -1.069784249e-05 | G175: 2.189669488e-05 | H175: 4.717974829e-06 | J175: -2.023125478e-05 | K175: 0.0007363498434 | L175: 0.0007487161634 | M175: 0.0208773378 | N175: 1.02710591e-05
A176: =IF('DF raw data'!E176="","",'DF raw data'!E176) -> -245.5 | B176: =IF('DF raw data'!F176="","",'DF raw data'!F176) -> -1.51115e-05 | C176: =IF('DF raw data'!G176="","",'DF raw data'!G176) -> 0.000193192 | D176: =IF('DF raw data'!H176="","",'DF raw data'!H176) -> -2.27226e-05 | F176: 6.237111013e-06 | G176: 2.045853988e-05 | H176: 2.859428329e-06 | J176: -1.711269927e-05 | K176: 0.0007277934938 | L176: 0.0007589454333 | M176: 0.02125681052 | N176: 1.05592046e-05
A177: =IF('DF raw data'!E177="","",'DF raw data'!E177) -> -245 | B177: =IF('DF raw data'!F177="","",'DF raw data'!F177) -> -3.15247e-05 | C177: =IF('DF raw data'!G177="","",'DF raw data'!G177) -> 0.000189677 | D177: =IF('DF raw data'!H177="","",'DF raw data'!H177) -> -3.62647e-06 | F177: -1.025815499e-05 | G177: 1.692596488e-05 | H177: 2.205103898e-05 | J177: -2.224177676e-05 | K177: 0.0007166726054 | L177: 0.0007674084157 | M177: 0.02164051473 | N177: 1.085390979e-05
A178: =IF('DF raw data'!E178="","",'DF raw data'!E178) -> -244.5 | B178: =IF('DF raw data'!F178="","",'DF raw data'!F178) -> -2.6899e-05 | C178: =IF('DF raw data'!G178="","",'DF raw data'!G178) -> 0.000187421 | D178: =IF('DF raw data'!H178="","",'DF raw data'!H178) -> -2.73999e-05 | F178: -5.609326487e-06 | G178: 1.465868488e-05 | H178: -1.841258171e-06 | J178: -2.504644001e-05 | K178: 0.0007041493854 | L178: 0.0007747377582 | M178: 0.02202788361 | N178: 1.115433275e-05
A179: =IF('DF raw data'!E179="","",'DF raw data'!E179) -> -244 | B179: =IF('DF raw data'!F179="","",'DF raw data'!F179) -> -3.35018e-05 | C179: =IF('DF raw data'!G179="","",'DF raw data'!G179) -> 0.000196306 | D179: =IF('DF raw data'!H179="","",'DF raw data'!H179) -> -1.78432e-05 | F179: -1.224514049e-05 | G179: 2.358810988e-05 | H179: 7.763225329e-06 | J179: -3.116901025e-05 | K179: 0.0006885648803 | L179: 0.0007865318131 | M179: 0.02242114951 | N179: 1.146413465e-05
A180: =IF('DF raw data'!E180="","",'DF raw data'!E180) -> -243.5 | B180: =IF('DF raw data'!F180="","",'DF raw data'!F180) -> -1.88338e-05 | C180: =IF('DF raw data'!G180="","",'DF raw data'!G180) -> 0.000196545 | D180: =IF('DF raw data'!H180="","",'DF raw data'!H180) -> -1.41426e-05 | F180: 2.496199513e-06 | G180: 2.382830488e-05 | H180: 1.148232833e-05 | J180: -2.99209105e-05 | K180: 0.000673604425 | L180: 0.0007984459655 | M180: 0.0228203725 | N180: 1.178334026e-05
A181: =IF('DF raw data'!E181="","",'DF raw data'!E181) -> -243 | B181: =IF('DF raw data'!F181="","",'DF raw data'!F181) -> -2.13318e-05 | C181: =IF('DF raw data'!G181="","",'DF raw data'!G181) -> 0.000189991 | D181: =IF('DF raw data'!H181="","",'DF raw data'!H181) -> -1.2047e-05 | F181: -1.42904872e-08 | G181: 1.724153488e-05 | H181: 1.358840633e-05 | J181: -2.992805574e-05 | K181: 0.0006586403972 | L181: 0.000807066733 | M181: 0.02322390586 | N181: 1.210946646e-05
A182: =IF('DF raw data'!E182="","",'DF raw data'!E182) -> -242.5 | B182: =IF('DF raw data'!F182="","",'DF raw data'!F182) -> -2.7547e-05 | C182: =IF('DF raw data'!G182="","",'DF raw data'!G182) -> 0.000192145 | D182: =IF('DF raw data'!H182="","",'DF raw data'!H182) -> -1.67545e-05 | F182: -6.260566487e-06 | G182: 1.940630488e-05 | H182: 8.857368829e-06 | J182: -3.305833898e-05 | K182: 0.0006421112277 | L182: 0.0008167698854 | M182: 0.02363229081 | N182: 1.244356941e-05
A183: =IF('DF raw data'!E183="","",'DF raw data'!E183) -> -242 | B183: =IF('DF raw data'!F183="","",'DF raw data'!F183) -> -3.90166e-05 | C183: =IF('DF raw data'!G183="","",'DF raw data'!G183) -> 0.000190179 | D183: =IF('DF raw data'!H183="","",'DF raw data'!H183) -> -1.0798e-05 | F183: -1.778751449e-05 | G183: 1.743047488e-05 | H183: 1.484365133e-05 | J183: -4.195209623e-05 | K183: 0.0006211351796 | L183: 0.0008254851229 | M183: 0.02404503337 | N183: 1.278516224e-05
A184: =IF('DF raw data'!E184="","",'DF raw data'!E184) -> -241.5 | B184: =IF('DF raw data'!F184="","",'DF raw data'!F184) -> -2.09369e-05 | C184: =IF('DF raw data'!G184="","",'DF raw data'!G184) -> 0.000183571 | D184: =IF('DF raw data'!H184="","",'DF raw data'!H184) -> -3.18681e-05 | F184: 3.825840128e-07 | G184: 1.078943488e-05 | H184: -6.331799171e-06 | J184: -4.176080422e-05 | K184: 0.0006002547775 | L184: 0.0008308798403 | M184: 0.02446047329 | N184: 1.313121488e-05
A185: =IF('DF raw data'!E185="","",'DF raw data'!E185) -> -241 | B185: =IF('DF raw data'!F185="","",'DF raw data'!F185) -> -2.18416e-05 | C185: =IF('DF raw data'!G185="","",'DF raw data'!G185) -> 0.000186784 | D185: =IF('DF raw data'!H185="","",'DF raw data'!H185) -> -1.63857e-05 | F185: -5.266394872e-07 | G185: 1.401849988e-05 | H185: 9.228012829e-06 | J185: -4.202412396e-05 | K185: 0.0005792427155 | L185: 0.0008378890902 | M185: 0.02487941783 | N185: 1.348312696e-05
A186: =IF('DF raw data'!E186="","",'DF raw data'!E186) -> -240.5 | B186: =IF('DF raw data'!F186="","",'DF raw data'!F186) -> -2.56921e-05 | C186: =IF('DF raw data'!G186="","",'DF raw data'!G186) -> 0.000195191 | D186: =IF('DF raw data'!H186="","",'DF raw data'!H186) -> -1.13837e-05 | F186: -4.396391987e-06 | G186: 2.246753488e-05 | H186: 1.425502283e-05 | J186: -4.422231996e-05 | K186: 0.0005571315555 | L186: 0.0008491228577 | M186: 0.02530397926 | N186: 1.384460958e-05
A187: =IF('DF raw data'!E187="","",'DF raw data'!E187) -> -240 | B187: =IF('DF raw data'!F187="","",'DF raw data'!F187) -> -2.54288e-05 | C187: =IF('DF raw data'!G187="","",'DF raw data'!G187) -> 0.000205334 | D187: =IF('DF raw data'!H187="","",'DF raw data'!H187) -> -1.78658e-05 | F187: -4.131775487e-06 | G187: 3.266124988e-05 | H187: 7.740512329e-06 | J187: -4.62882077e-05 | K187: 0.0005339874516 | L187: 0.0008654534826 | M187: 0.025736706 | N187: 1.422018574e-05
A188: =IF('DF raw data'!E188="","",'DF raw data'!E188) -> -239.5 | B188: =IF('DF raw data'!F188="","",'DF raw data'!F188) -> -1.66469e-05 | C188: =IF('DF raw data'!G188="","",'DF raw data'!G188) -> 0.000202199 | D188: =IF('DF raw data'!H188="","",'DF raw data'!H188) -> -2.68052e-05 | F188: 4.694034013e-06 | G188: 2.951057488e-05 | H188: -1.243584671e-06 | J188: -4.394119069e-05 | K188: 0.0005120168563 | L188: 0.0008802087701 | M188: 0.02617681039 | N188: 1.46085349e-05
A189: =IF('DF raw data'!E189="","",'DF raw data'!E189) -> -239 | B189: =IF('DF raw data'!F189="","",'DF raw data'!F189) -> -2.5682e-05 | C189: =IF('DF raw data'!G189="","",'DF raw data'!G189) -> 0.00019821 | D189: =IF('DF raw data'!H189="","",'DF raw data'!H189) -> -2.255e-05 | F189: -4.386241487e-06 | G189: 2.550162988e-05 | H189: 3.032891329e-06 | J189: -4.613431144e-05 | K189: 0.0004889497006 | L189: 0.000892959585 | M189: 0.02662329018 | N189: 1.500828749e-05
A190: =IF('DF raw data'!E190="","",'DF raw data'!E190) -> -238.5 | B190: =IF('DF raw data'!F190="","",'DF raw data'!F190) -> -2.53065e-05 | C190: =IF('DF raw data'!G190="","",'DF raw data'!G190) -> 0.000201401 | D190: =IF('DF raw data'!H190="","",'DF raw data'!H190) -> -1.31814e-05 | F190: -4.008863987e-06 | G190: 2.870858488e-05 | H190: 1.244833433e-05 | J190: -4.813874343e-05 | K190: 0.0004648803289 | L190: 0.0009073138774 | M190: 0.02707694712 | N190: 1.54210554e-05
A191: =IF('DF raw data'!E191="","",'DF raw data'!E191) -> -238 | B191: =IF('DF raw data'!F191="","",'DF raw data'!F191) -> -2.27384e-05 | C191: =IF('DF raw data'!G191="","",'DF raw data'!G191) -> 0.000194577 | D191: =IF('DF raw data'!H191="","",'DF raw data'!H191) -> -1.65936e-05 | F191: -1.427923487e-06 | G191: 2.185046488e-05 | H191: 9.019073329e-06 | J191: -4.885270517e-05 | K191: 0.0004404539763 | L191: 0.0009182391099 | M191: 0.02753606667 | N191: 1.584383022e-05
A192: =IF('DF raw data'!E192="","",'DF raw data'!E192) -> -237.5 | B192: =IF('DF raw data'!F192="","",'DF raw data'!F192) -> -2.33812e-05 | C192: =IF('DF raw data'!G192="","",'DF raw data'!G192) -> 0.000197066 | D192: =IF('DF raw data'!H192="","",'DF raw data'!H192) -> -1.75061e-05 | F192: -2.073937487e-06 | G192: 2.435190988e-05 | H192: 8.102010829e-06 | J192: -4.988967392e-05 | K192: 0.0004155091393 | L192: 0.0009304150648 | M192: 0.02800127421 | N192: 1.627791081e-05
A193: =IF('DF raw data'!E193="","",'DF raw data'!E193) -> -237 | B193: =IF('DF raw data'!F193="","",'DF raw data'!F193) -> -2.88871e-05 | C193: =IF('DF raw data'!G193="","",'DF raw data'!G193) -> 0.000202431 | D193: =IF('DF raw data'!H193="","",'DF raw data'!H193) -> -1.99911e-05 | F193: -7.607366987e-06 | G193: 2.974373488e-05 | H193: 5.604585829e-06 | J193: -5.369335741e-05 | K193: 0.0003886624606 | L193: 0.0009452869323 | M193: 0.02847391767 | N193: 1.672613599e-05
A194: =IF('DF raw data'!E194="","",'DF raw data'!E194) -> -236.5 | B194: =IF('DF raw data'!F194="","",'DF raw data'!F194) -> -2.73507e-05 | C194: =IF('DF raw data'!G194="","",'DF raw data'!G194) -> 0.000198173 | D194: =IF('DF raw data'!H194="","",'DF raw data'!H194) -> -2.2874e-05 | F194: -6.063284987e-06 | G194: 2.546444488e-05 | H194: 2.707271329e-06 | J194: -5.672499991e-05 | K194: 0.0003602999607 | L194: 0.0009580191547 | M194: 0.02895292725 | N194: 1.71866452e-05
A195: =IF('DF raw data'!E195="","",'DF raw data'!E195) -> -236 | B195: =IF('DF raw data'!F195="","",'DF raw data'!F195) -> -4.65651e-05 | C195: =IF('DF raw data'!G195="","",'DF raw data'!G195) -> 0.000203205 | D195: =IF('DF raw data'!H195="","",'DF raw data'!H195) -> -2.94125e-05 | F195: =(1-$G$1*($B$54-$G$2))*(B195-F$5) -> -2.537375699e-05 | G195: =(1-$G$1*($B$54-$G$2))*(C195-G$5) -> 3.052160488e-05 | H195: =(1-$G$1*($B$54-$G$2))*(D195-H$5) -> -3.863921171e-06 | J195: -6.94118784e-05 | K195: 0.0003255940215 | L195: 0.0009732799571 | M195: 0.02943956723 | N195: 1.766269115e-05
A196: =IF('DF raw data'!E196="","",'DF raw data'!E196) -> -235.5 | B196: =IF('DF raw data'!F196="","",'DF raw data'!F196) -> -2.02365e-05 | C196: =IF('DF raw data'!G196="","",'DF raw data'!G196) -> 0.000205178 | D196: =IF('DF raw data'!H196="","",'DF raw data'!H196) -> -2.48521e-05 | F196: 1.086486013e-06 | G196: 3.250446988e-05 | H196: 7.192808287e-07 | J196: =F196*$G$3+J195 -> -6.886863539e-05 | K196: =J196*$G$3+K195 -> 0.0002911597038 | L196: =G196*$G$3+L195 -> 0.0009895321921 | M196: =L196*$G$3+M195 -> 0.02993433332 | N196: =(J196^2+L196^2)*$G$3+N195 -> 1.815464957e-05
A197: =IF('DF raw data'!E197="","",'DF raw data'!E197) -> -235 | B197: =IF('DF raw data'!F197="","",'DF raw data'!F197) -> -2.75479e-05 | C197: =IF('DF raw data'!G197="","",'DF raw data'!G197) -> 0.000202497 | D197: =IF('DF raw data'!H197="","",'DF raw data'!H197) -> -1.07906e-05 | F197: -6.261470987e-06 | G197: 2.981006488e-05 | H197: 1.485108833e-05 | J197: -7.199937089e-05 | K197: 0.0002551600183 | L197: 0.001004437225 | M197: 0.03043655194 | N197: 1.866168859e-05
A198: =IF('DF raw data'!E198="","",'DF raw data'!E198) -> -234.5 | B198: =IF('DF raw data'!F198="","",'DF raw data'!F198) -> -2.57439e-05 | C198: =IF('DF raw data'!G198="","",'DF raw data'!G198) -> 0.00020297 | D198: =IF('DF raw data'!H198="","",'DF raw data'!H198) -> -3.00003e-05 | F198: -4.448450987e-06 | G198: 3.028542988e-05 | H198: -4.454660171e-06 | J198: -7.422359638e-05 | K198: 0.0002180482201 | L198: 0.001019579939 | M198: 0.03094634191 | N198: 1.918421479e-05
A199: =IF('DF raw data'!E199="","",'DF raw data'!E199) -> -234 | B199: =IF('DF raw data'!F199="","",'DF raw data'!F199) -> -2.55549e-05 | C199: =IF('DF raw data'!G199="","",'DF raw data'!G199) -> 0.000193349 | D199: =IF('DF raw data'!H199="","",'DF raw data'!H199) -> -2.12333e-05 | F199: -4.258505987e-06 | G199: 2.061632488e-05 | H199: 4.356174829e-06 | J199: -7.635284937e-05 | K199: 0.0001798717954 | L199: 0.001029888102 | M199: 0.03146128596 | N199: 1.971746442e-05
A200: =IF('DF raw data'!E200="","",'DF raw data'!E200) -> -233.5 | B200: =IF('DF raw data'!F200="","",'DF raw data'!F200) -> -1.91502e-05 | C200: =IF('DF raw data'!G200="","",'DF raw data'!G200) -> 0.000199347 | D200: =IF('DF raw data'!H200="","",'DF raw data'!H200) -> -2.01684e-05 | F200: 2.178217513e-06 | G200: 2.664431488e-05 | H200: 5.426399329e-06 | J200: -7.526374062e-05 | K200: 0.0001422399251 | L200: 0.001043210259 | M200: 0.03198289109 | N200: 2.026444056e-05
... 1079 more rows

Sheet 20 mm
A1: =IF('DF raw data'!I1="","",'DF raw data'!I1) -> Number of header lines | B1: =IF('DF raw data'!J1="","",'DF raw data'!J1) -> 54 | C1: =IF('DF raw data'!C1="","",'DF raw data'!C1) ->  | D1: =IF('DF raw data'!D1="","",'DF raw data'!D1) ->  | F1: T_coeff | G1: -0.001 | H1: /degC | J1: IBy total | K1: =J1267*1000 -> 8.288057321 | L1: muTm | M1: =L1267*1000 -> -17.49623028 | R1: DF ref | S1: 1
A2: =IF('DF raw data'!I2="","",'DF raw data'!I2) -> Measured by | B2: =IF('DF raw data'!J2="","",'DF raw data'!J2) -> Danfysik | C2: =IF('DF raw data'!C2="","",'DF raw data'!C2) ->  | D2: =IF('DF raw data'!D2="","",'DF raw data'!D2) ->  | F2: Tcorr | G2: 20 | H2: degC | J2: JBy total | K2: =K1267 -> 0.2434062124 | L2: muTm^2 | M2: =M1267 -> -0.8935247014
A3: =IF('DF raw data'!I3="","",'DF raw data'!I3) -> Operator | B3: =IF('DF raw data'!J3="","",'DF raw data'!J3) -> PMHA | C3: =IF('DF raw data'!C3="","",'DF raw data'!C3) ->  | D3: =IF('DF raw data'!D3="","",'DF raw data'!D3) ->  | F3: Step | G3: =A68-A67 -> 0.5 | H3: mm | J3: PI total | K3: =N1267 -> 4904.330093 | L3: T^2mm^3
A4: =IF('DF raw data'!I4="","",'DF raw data'!I4) -> Data-time | B4: =IF('DF raw data'!J4="","",'DF raw data'!J4) -> 09-09-2024, 15:02:19 | C4: =IF('DF raw data'!C4="","",'DF raw data'!C4) ->  | D4: =IF('DF raw data'!D4="","",'DF raw data'!D4) -> 
A5: =IF('DF raw data'!I5="","",'DF raw data'!I5) -> Project | B5: =IF('DF raw data'!J5="","",'DF raw data'!J5) -> 504314 | C5: =IF('DF raw data'!C5="","",'DF raw data'!C5) ->  | D5: Bamb avr | F5: =(AVERAGE(B67:B107) + AVERAGE(B1227:B1267))/2 -> -1.73440428e-05 | G5: =(AVERAGE(C67:C107) + AVERAGE(C1227:C1267))/2 -> 0.000171231878 | H5: =(AVERAGE(D67:D107) + AVERAGE(D1227:D1267))/2 -> -2.795909024e-05
A6: =IF('DF raw data'!I6="","",'DF raw data'!I6) -> Magnet type | B6: =IF('DF raw data'!J6="","",'DF raw data'!J6) -> Dipole | C6: =IF('DF raw data'!C6="","",'DF raw data'!C6) -> 
A7: =IF('DF raw data'!I7="","",'DF raw data'!I7) -> Magnet nr. | B7: =IF('DF raw data'!J7="","",'DF raw data'!J7) -> 2410094 | C7: =IF('DF raw data'!C7="","",'DF raw data'!C7) -> 
A8: =IF('DF raw data'!I8="","",'DF raw data'!I8) -> Meas. number | B8: =IF('DF raw data'!J8="","",'DF raw data'!J8) -> 400 | C8: =IF('DF raw data'!C8="","",'DF raw data'!C8) -> 
A9: =IF('DF raw data'!I9="","",'DF raw data'!I9) -> Add. info | B9: =IF('DF raw data'!J9="","",'DF raw data'!J9) ->  | C9: =IF('DF raw data'!C9="","",'DF raw data'!C9) ->  | D9: =IF('DF raw data'!D9="","",'DF raw data'!D9) -> 
A10: =IF('DF raw data'!I10="","",'DF raw data'!I10) -> Device | B10: =IF('DF raw data'!J10="","",'DF raw data'!J10) -> (HAL) HALL-PROBE | C10: =IF('DF raw data'!C10="","",'DF raw data'!C10) ->  | D10: =IF('DF raw data'!D10="","",'DF raw data'!D10) -> 
A11: =IF('DF raw data'!I11="","",'DF raw data'!I11) -> Goal | B11: =IF('DF raw data'!J11="","",'DF raw data'!J11) -> (AXI) AXis Integral (Line, EFB) | C11: =IF('DF raw data'!C11="","",'DF raw data'!C11) ->  | D11: =IF('DF raw data'!D11="","",'DF raw data'!D11) -> 
A12: =IF('DF raw data'!I12="","",'DF raw data'!I12) -> Power supply mode | B12: =IF('DF raw data'!J12="","",'DF raw data'!J12) -> (PM) Permanent Magnet (no MPS in use) | C12: =IF('DF raw data'!C12="","",'DF raw data'!C12) ->  | D12: =IF('DF raw data'!D12="","",'DF raw data'!D12) -> 
A13: =IF('DF raw data'!I13="","",'DF raw data'!I13) -> Data format | B13: =IF('DF raw data'!J13="","",'DF raw data'!J13) -> Raw data text file | C13: =IF('DF raw data'!C13="","",'DF raw data'!C13) ->  | D13: =IF('DF raw data'!D13="","",'DF raw data'!D13) -> 
A14: =IF('DF raw data'!I14="","",'DF raw data'!I14) -> Direction of the pos. x-axis | B14: =IF('DF raw data'!J14="","",'DF raw data'!J14) -> See test program | C14: =IF('DF raw data'!C14="","",'DF raw data'!C14) ->  | D14: =IF('DF raw data'!D14="","",'DF raw data'!D14) -> 
A15: =IF('DF raw data'!I15="","",'DF raw data'!I15) -> Direction of the pos. y-axis | B15: =IF('DF raw data'!J15="","",'DF raw data'!J15) -> Vertical up | C15: =IF('DF raw data'!C15="","",'DF raw data'!C15) ->  | D15: =IF('DF raw data'!D15="","",'DF raw data'!D15) -> 
A16: =IF('DF raw data'!I16="","",'DF raw data'!I16) -> Direction of the pos. z-axis | B16: =IF('DF raw data'!J16="","",'DF raw data'!J16) -> See test program | C16: =IF('DF raw data'!C16="","",'DF raw data'!C16) ->  | D16: =IF('DF raw data'!D16="","",'DF raw data'!D16) -> 
A17: =IF('DF raw data'!I17="","",'DF raw data'!I17) -> Mapper type | B17: =IF('DF raw data'!J17="","",'DF raw data'!J17) -> Precision Hall Mapper | C17: =IF('DF raw data'!C17="","",'DF raw data'!C17) ->  | D17: =IF('DF raw data'!D17="","",'DF raw data'!D17) -> 
A18: =IF('DF raw data'!I18="","",'DF raw data'!I18) -> Mapper Danfysik Reg. Number | B18: =IF('DF raw data'!J18="","",'DF raw data'!J18) -> 2033-D (mapper 1) | C18: =IF('DF raw data'!C18="","",'DF raw data'!C18) ->  | D18: =IF('DF raw data'!D18="","",'DF raw data'!D18) -> 
A19: =IF('DF raw data'!I19="","",'DF raw data'!I19) -> Measurement consept | B19: =IF('DF raw data'!J19="","",'DF raw data'!J19) -> Square line grid | C19: =IF('DF raw data'!C19="","",'DF raw data'!C19) ->  | D19: =IF('DF raw data'!D19="","",'DF raw data'!D19) -> 
A20: =IF('DF raw data'!I20="","",'DF raw data'!I20) -> Mode | B20: =IF('DF raw data'!J20="","",'DF raw data'!J20) -> On-the-fly measurement | C20: =IF('DF raw data'!C20="","",'DF raw data'!C20) ->  | D20: =IF('DF raw data'!D20="","",'DF raw data'!D20) -> 
A21: =IF('DF raw data'!I21="","",'DF raw data'!I21) ->  | B21: =IF('DF raw data'!J21="","",'DF raw data'!J21) ->  | C21: =IF('DF raw data'!C21="","",'DF raw data'!C21) ->  | D21: =IF('DF raw data'!D21="","",'DF raw data'!D21) -> 
A22: =IF('DF raw data'!I22="","",'DF raw data'!I22) -> Probe Name | B22: =IF('DF raw data'!J22="","",'DF raw data'!J22) -> ID12_By | C22: =IF('DF raw data'!C22="","",'DF raw data'!C22) ->  | D22: =IF('DF raw data'!D22="","",'DF raw data'!D22) -> 
A23: =IF('DF raw data'!I23="","",'DF raw data'!I23) -> Probe Type | B23: =IF('DF raw data'!J23="","",'DF raw data'!J23) -> DF_ID_3D_Bxyz | C23: =IF('DF raw data'!C23="","",'DF raw data'!C23) ->  | D23: =IF('DF raw data'!D23="","",'DF raw data'!D23) -> 
A24: =IF('DF raw data'!I24="","",'DF raw data'!I24) -> Probe Danfysik Reg. Number | B24: =IF('DF raw data'!J24="","",'DF raw data'!J24) -> 2277 | C24: =IF('DF raw data'!C24="","",'DF raw data'!C24) ->  | D24: =IF('DF raw data'!D24="","",'DF raw data'!D24) -> 
A25: =IF('DF raw data'!I25="","",'DF raw data'!I25) -> Probe Axis | B25: =IF('DF raw data'!J25="","",'DF raw data'!J25) -> By | C25: =IF('DF raw data'!C25="","",'DF raw data'!C25) ->  | D25: =IF('DF raw data'!D25="","",'DF raw data'!D25) -> 
A26: =IF('DF raw data'!I26="","",'DF raw data'!I26) -> Probe Current Supply | B26: =IF('DF raw data'!J26="","",'DF raw data'!J26) -> 1825-D | C26: =IF('DF raw data'!C26="","",'DF raw data'!C26) ->  | D26: =IF('DF raw data'!D26="","",'DF raw data'!D26) -> 
A27: =IF('DF raw data'!I27="","",'DF raw data'!I27) -> Probe Gain Correction | B27: =IF('DF raw data'!J27="","",'DF raw data'!J27) -> 0.99606 | C27: =IF('DF raw data'!C27="","",'DF raw data'!C27) ->  | D27: =IF('DF raw data'!D27="","",'DF raw data'!D27) -> 
A28: =IF('DF raw data'!I28="","",'DF raw data'!I28) -> Probe Offset Correction | B28: =IF('DF raw data'!J28="","",'DF raw data'!J28) -> 0.002758 | C28: =IF('DF raw data'!C28="","",'DF raw data'!C28) ->  | D28: =IF('DF raw data'!D28="","",'DF raw data'!D28) -> 
A29: =IF('DF raw data'!I29="","",'DF raw data'!I29) -> DVM Number | B29: =IF('DF raw data'!J29="","",'DF raw data'!J29) -> 2 | C29: =IF('DF raw data'!C29="","",'DF raw data'!C29) ->  | D29: =IF('DF raw data'!D29="","",'DF raw data'!D29) -> 
A30: =IF('DF raw data'!I30="","",'DF raw data'!I30) -> DVM Type | B30: =IF('DF raw data'!J30="","",'DF raw data'!J30) -> K2701 | C30: =IF('DF raw data'!C30="","",'DF raw data'!C30) ->  | D30: =IF('DF raw data'!D30="","",'DF raw data'!D30) -> 
A31: =IF('DF raw data'!I31="","",'DF raw data'!I31) -> DVM Danfysik Reg. Number | B31: =IF('DF raw data'!J31="","",'DF raw data'!J31) -> 1743-D | C31: =IF('DF raw data'!C31="","",'DF raw data'!C31) ->  | D31: =IF('DF raw data'!D31="","",'DF raw data'!D31) -> 
A32: =IF('DF raw data'!I32="","",'DF raw data'!I32) -> Probe Name | B32: =IF('DF raw data'!J32="","",'DF raw data'!J32) -> ID12_Bx | C32: =IF('DF raw data'!C32="","",'DF raw data'!C32) ->  | D32: =IF('DF raw data'!D32="","",'DF raw data'!D32) -> 
A33: =IF('DF raw data'!I33="","",'DF raw data'!I33) -> Probe Type | B33: =IF('DF raw data'!J33="","",'DF raw data'!J33) -> DF_ID_3D_Bxyz | C33: =IF('DF raw data'!C33="","",'DF raw data'!C33) ->  | D33: =IF('DF raw data'!D33="","",'DF raw data'!D33) -> 
A34: =IF('DF raw data'!I34="","",'DF raw data'!I34) -> Probe Danfysik Reg. Number | B34: =IF('DF raw data'!J34="","",'DF raw data'!J34) -> 2277 | C34: =IF('DF raw data'!C34="","",'DF raw data'!C34) ->  | D34: =IF('DF raw data'!D34="","",'DF raw data'!D34) -> 
A35: =IF('DF raw data'!I35="","",'DF raw data'!I35) -> Probe Axis | B35: =IF('DF raw data'!J35="","",'DF raw data'!J35) -> Bx | C35: =IF('DF raw data'!C35="","",'DF raw data'!C35) ->  | D35: =IF('DF raw data'!D35="","",'DF raw data'!D35) -> 
A36: =IF('DF raw data'!I36="","",'DF raw data'!I36) -> Probe Current Supply | B36: =IF('DF raw data'!J36="","",'DF raw data'!J36) -> 1825-D | C36: =IF('DF raw data'!C36="","",'DF raw data'!C36) ->  | D36: =IF('DF raw data'!D36="","",'DF raw data'!D36) -> 
A37: =IF('DF raw data'!I37="","",'DF raw data'!I37) -> Probe Gain Correction | B37: =IF('DF raw data'!J37="","",'DF raw data'!J37) -> 1 | C37: =IF('DF raw data'!C37="","",'DF raw data'!C37) ->  | D37: =IF('DF raw data'!D37="","",'DF raw data'!D37) -> 
A38: =IF('DF raw data'!I38="","",'DF raw data'!I38) -> Probe Offset Correction | B38: =IF('DF raw data'!J38="","",'DF raw data'!J38) -> -0.17551 | C38: =IF('DF raw data'!C38="","",'DF raw data'!C38) ->  | D38: =IF('DF raw data'!D38="","",'DF raw data'!D38) -> 
A39: =IF('DF raw data'!I39="","",'DF raw data'!I39) -> DVM Number | B39: =IF('DF raw data'!J39="","",'DF raw data'!J39) -> 3 | C39: =IF('DF raw data'!C39="","",'DF raw data'!C39) ->  | D39: =IF('DF raw data'!D39="","",'DF raw data'!D39) -> 
A40: =IF('DF raw data'!I40="","",'DF raw data'!I40) -> DVM Type | B40: =IF('DF raw data'!J40="","",'DF raw data'!J40) -> K2701 | C40: =IF('DF raw data'!C40="","",'DF raw data'!C40) ->  | D40: =IF('DF raw data'!D40="","",'DF raw data'!D40) -> 
A41: =IF('DF raw data'!I41="","",'DF raw data'!I41) -> DVM Danfysik Reg. Number | B41: =IF('DF raw data'!J41="","",'DF raw data'!J41) -> 1744-D | C41: =IF('DF raw data'!C41="","",'DF raw data'!C41) ->  | D41: =IF('DF raw data'!D41="","",'DF raw data'!D41) -> 
A42: =IF('DF raw data'!I42="","",'DF raw data'!I42) -> Probe Name | B42: =IF('DF raw data'!J42="","",'DF raw data'!J42) -> ID12_Bz | C42: =IF('DF raw data'!C42="","",'DF raw data'!C42) ->  | D42: =IF('DF raw data'!D42="","",'DF raw data'!D42) -> 
A43: =IF('DF raw data'!I43="","",'DF raw data'!I43) -> Probe Type | B43: =IF('DF raw data'!J43="","",'DF raw data'!J43) -> DF_ID_3D_Bxyz | C43: =IF('DF raw data'!C43="","",'DF raw data'!C43) ->  | D43: =IF('DF raw data'!D43="","",'DF raw data'!D43) -> 
A44: =IF('DF raw data'!I44="","",'DF raw data'!I44) -> Probe Danfysik Reg. Number | B44: =IF('DF raw data'!J44="","",'DF raw data'!J44) -> 2277 | C44: =IF('DF raw data'!C44="","",'DF raw data'!C44) ->  | D44: =IF('DF raw data'!D44="","",'DF raw data'!D44) -> 
A45: =IF('DF raw data'!I45="","",'DF raw data'!I45) -> Probe Axis | B45: =IF('DF raw data'!J45="","",'DF raw data'!J45) -> Bz | C45: =IF('DF raw data'!C45="","",'DF raw data'!C45) ->  | D45: =IF('DF raw data'!D45="","",'DF raw data'!D45) -> 
A46: =IF('DF raw data'!I46="","",'DF raw data'!I46) -> Probe Current Supply | B46: =IF('DF raw data'!J46="","",'DF raw data'!J46) -> 1825-D | C46: =IF('DF raw data'!C46="","",'DF raw data'!C46) ->  | D46: =IF('DF raw data'!D46="","",'DF raw data'!D46) -> 
A47: =IF('DF raw data'!I47="","",'DF raw data'!I47) -> Probe Gain Correction | B47: =IF('DF raw data'!J47="","",'DF raw data'!J47) -> 1 | C47: =IF('DF raw data'!C47="","",'DF raw data'!C47) ->  | D47: =IF('DF raw data'!D47="","",'DF raw data'!D47) -> 
A48: =IF('DF raw data'!I48="","",'DF raw data'!I48) -> Probe Offset Correction | B48: =IF('DF raw data'!J48="","",'DF raw data'!J48) -> 0.0073096 | C48: =IF('DF raw data'!C48="","",'DF raw data'!C48) ->  | D48: =IF('DF raw data'!D48="","",'DF raw data'!D48) -> 
A49: =IF('DF raw data'!I49="","",'DF raw data'!I49) -> DVM Number | B49: =IF('DF raw data'!J49="","",'DF raw data'!J49) -> 8 | C49: =IF('DF raw data'!C49="","",'DF raw data'!C49) ->  | D49: =IF('DF raw data'!D49="","",'DF raw data'!D49) -> 
A50: =IF('DF raw data'!I50="","",'DF raw data'!I50) -> DVM Type | B50: =IF('DF raw data'!J50="","",'DF raw data'!J50) -> K2700 | C50: =IF('DF raw data'!C50="","",'DF raw data'!C50) ->  | D50: =IF('DF raw data'!D50="","",'DF raw data'!D50) -> 
A51: =IF('DF raw data'!I51="","",'DF raw data'!I51) -> DVM Danfysik Reg. Number | B51: =IF('DF raw data'!J51="","",'DF raw data'!J51) -> 1756-D | C51: =IF('DF raw data'!C51="","",'DF raw data'!C51) ->  | D51: =IF('DF raw data'!D51="","",'DF raw data'!D51) -> 
A52: =IF('DF raw data'!I52="","",'DF raw data'!I52) -> NTC voltage | B52: =IF('DF raw data'!J52="","",'DF raw data'!J52) -> 0.40584 | C52: =IF('DF raw data'!C52="","",'DF raw data'!C52) ->  | D52: =IF('DF raw data'!D52="","",'DF raw data'!D52) -> 
A53: =IF('DF raw data'!I53="","",'DF raw data'!I53) -> PS-Gap: | B53: =IF('DF raw data'!J53="","",'DF raw data'!J53) -> 20 | C53: =IF('DF raw data'!C53="","",'DF raw data'!C53) ->  | D53: =IF('DF raw data'!D53="","",'DF raw data'!D53) -> 
A54: =IF('DF raw data'!I54="","",'DF raw data'!I54) -> PS-Temperature: | B54: =IF('DF raw data'!J54="","",'DF raw data'!J54) -> 25 | C54: =IF('DF raw data'!C54="","",'DF raw data'!C54) ->  | D54: =IF('DF raw data'!D54="","",'DF raw data'!D54) -> 
A55: =IF('DF raw data'!I55="","",'DF raw data'!I55) -> PS-Encoder: | B55: =IF('DF raw data'!J55="","",'DF raw data'!J55) -> 29.8258 | C55: =IF('DF raw data'!C55="","",'DF raw data'!C55) ->  | D55: =IF('DF raw data'!D55="","",'DF raw data'!D55) -> 
A56: =IF('DF raw data'!I56="","",'DF raw data'!I56) ->  | B56: =IF('DF raw data'!J56="","",'DF raw data'!J56) -> 
A57: =IF('DF raw data'!I57="","",'DF raw data'!I57) -> Monitor-Index | B57: =IF('DF raw data'!J57="","",'DF raw data'!J57) -> [1,1,4]
A58: =IF('DF raw data'!I58="","",'DF raw data'!I58) ->  | B58: =IF('DF raw data'!J58="","",'DF raw data'!J58) -> 
A59: =IF('DF raw data'!I59="","",'DF raw data'!I59) -> Time [s] | B59: =IF('DF raw data'!J59="","",'DF raw data'!J59) -> Y [mm]
A60: =IF('DF raw data'!I60="","",'DF raw data'!I60) ->  | B60: =IF('DF raw data'!J60="","",'DF raw data'!J60) -> 
A61: =IF('DF raw data'!I61="","",'DF raw data'!I61) -> 206.2 | B61: =IF('DF raw data'!J61="","",'DF raw data'!J61) -> 31.76
A62: =IF('DF raw data'!I62="","",'DF raw data'!I62) ->  | B62: =IF('DF raw data'!J62="","",'DF raw data'!J62) -> 
A63: =IF('DF raw data'!I63="","",'DF raw data'!I63) -> Measurement-Index | B63: =IF('DF raw data'!J63="","",'DF raw data'!J63) -> [1,1,1201,2]
A64: =IF('DF raw data'!I64="","",'DF raw data'!I64) ->  | B64: =IF('DF raw data'!J64="","",'DF raw data'!J64) -> 
A65: =IF('DF raw data'!I65="","",'DF raw data'!I65) -> Z [mm] | B65: =IF('DF raw data'!J65="","",'DF raw data'!J65) -> By [T] | C65: =IF('DF raw data'!K65="","",'DF raw data'!K65) -> Bx [T] | D65: =IF('DF raw data'!L65="","",'DF raw data'!L65) -> Bz [T] | F65: By_corr | G65: Bx_corr | H65: Bz_corr | J65: Iy | K65: Jy | L65: Ix | M65: Jx | N65: PI
A66: =IF('DF raw data'!I66="","",'DF raw data'!I66) -> [1, 0, 0, 0] | B66: =IF('DF raw data'!J66="","",'DF raw data'!J66) ->  | C66: =IF('DF raw data'!K66="","",'DF raw data'!K66) ->  | D66: =IF('DF raw data'!L66="","",'DF raw data'!L66) -> 
A67: =IF('DF raw data'!I67="","",'DF raw data'!I67) -> -300 | B67: =IF('DF raw data'!J67="","",'DF raw data'!J67) -> -1.50549e-05 | C67: =IF('DF raw data'!K67="","",'DF raw data'!K67) -> 0.000192399 | D67: =IF('DF raw data'!L67="","",'DF raw data'!L67) -> -4.1377e-05 | F67: =(1-$G$1*($B$54-$G$2))*(B67-F$5) -> 2.300588519e-06 | G67: =(1-$G$1*($B$54-$G$2))*(C67-G$5) -> 2.127295756e-05 | H67: =(1-$G$1*($B$54-$G$2))*(D67-H$5) -> -1.34849993e-05 | J67: =F67*$G$3+J66 -> 1.150294259e-06 | K67: =J67*$G$3+K66 -> 5.751471297e-07 | L67: =G67*$G$3+L66 -> 1.063647878e-05 | M67: =L67*$G$3+M66 -> 5.31823939e-06 | N67: =(J67^2+L67^2)*$G$3+N66 -> 5.722892887e-11
A68: =IF('DF raw data'!I68="","",'DF raw data'!I68) -> -299.5 | B68: =IF('DF raw data'!J68="","",'DF raw data'!J68) -> -1.69776e-05 | C68: =IF('DF raw data'!K68="","",'DF raw data'!K68) -> 0.000193454 | D68: =IF('DF raw data'!L68="","",'DF raw data'!L68) -> -4.12014e-05 | F68: 3.682750189e-07 | G68: 2.233323256e-05 | H68: -1.33085213e-05 | J68: =F68*$G$3+J67 -> 1.334431769e-06 | K68: =J68*$G$3+K67 -> 1.242363014e-06 | L68: =G68*$G$3+L67 -> 2.180309506e-05 | M68: =L68*$G$3+M67 -> 1.621978692e-05 | N68: =(J68^2+L68^2)*$G$3+N67 -> 2.958067601e-10
A69: =IF('DF raw data'!I69="","",'DF raw data'!I69) -> -299 | B69: =IF('DF raw data'!J69="","",'DF raw data'!J69) -> -1.65934e-05 | C69: =IF('DF raw data'!K69="","",'DF raw data'!K69) -> 0.000186627 | D69: =IF('DF raw data'!L69="","",'DF raw data'!L69) -> -4.09305e-05 | F69: 7.543960189e-07 | G69: 1.547209756e-05 | H69: -1.30362668e-05 | J69: 1.711629778e-06 | K69: 2.098177903e-06 | L69: 2.953914384e-05 | M69: 3.098935884e-05 | N69: 7.335521077e-10
A70: =IF('DF raw data'!I70="","",'DF raw data'!I70) -> -298.5 | B70: =IF('DF raw data'!J70="","",'DF raw data'!J70) -> -1.37722e-05 | C70: =IF('DF raw data'!K70="","",'DF raw data'!K70) -> 0.00018369 | D70: =IF('DF raw data'!L70="","",'DF raw data'!L70) -> -4.08904e-05 | F70: 3.589702019e-06 | G70: 1.252041256e-05 | H70: -1.29959663e-05 | J70: 3.506480788e-06 | K70: 3.851418297e-06 | L70: 3.579935012e-05 | M70: 4.88890339e-05 | N70: 1.380496546e-09
A71: =IF('DF raw data'!I71="","",'DF raw data'!I71) -> -298 | B71: =IF('DF raw data'!J71="","",'DF raw data'!J71) -> -1.53758e-05 | C71: =IF('DF raw data'!K71="","",'DF raw data'!K71) -> 0.000193303 | D71: =IF('DF raw data'!L71="","",'DF raw data'!L71) -> -4.10098e-05 | F71: 1.978084019e-06 | G71: 2.218147756e-05 | H71: -1.31159633e-05 | J71: 4.495522797e-06 | K71: 6.099179696e-06 | L71: 4.68900889e-05 | M71: 7.233407835e-05 | N71: 2.489941627e-09
A72: =IF('DF raw data'!I72="","",'DF raw data'!I72) -> -297.5 | B72: =IF('DF raw data'!J72="","",'DF raw data'!J72) -> -1.29395e-05 | C72: =IF('DF raw data'!K72="","",'DF raw data'!K72) -> 0.000196449 | D72: =IF('DF raw data'!L72="","",'DF raw data'!L72) -> -4.09375e-05 | F72: 4.426565519e-06 | G72: 2.534320756e-05 | H72: -1.30433018e-05 | J72: 6.708805557e-06 | K72: 9.453582474e-06 | L72: 5.956169268e-05 | M72: 0.0001021149247 | N72: 4.286243281e-09
A73: =IF('DF raw data'!I73="","",'DF raw data'!I73) -> -297 | B73: =IF('DF raw data'!J73="","",'DF raw data'!J73) -> -1.74907e-05 | C73: =IF('DF raw data'!K73="","",'DF raw data'!K73) -> 0.000204871 | D73: =IF('DF raw data'!L73="","",'DF raw data'!L73) -> -4.05649e-05 | F73: -1.473904811e-07 | G73: 3.380731756e-05 | H73: -1.26688388e-05 | J73: 6.635110316e-06 | K73: 1.277113763e-05 | L73: 7.646535146e-05 | M73: 0.0001403476004 | N73: 7.231730613e-09
A74: =IF('DF raw data'!I74="","",'DF raw data'!I74) -> -296.5 | B74: =IF('DF raw data'!J74="","",'DF raw data'!J74) -> -1.01202e-05 | C74: =IF('DF raw data'!K74="","",'DF raw data'!K74) -> 0.000199454 | D74: =IF('DF raw data'!L74="","",'DF raw data'!L74) -> -4.07632e-05 | F74: 7.259962019e-06 | G74: 2.836323256e-05 | H74: -1.28681303e-05 | J74: 1.026509133e-05 | K74: 1.79036833e-05 | L74: 9.064696774e-05 | M74: 0.0001856710843 | N74: 1.139285304e-08
A75: =IF('DF raw data'!I75="","",'DF raw data'!I75) -> -296 | B75: =IF('DF raw data'!J75="","",'DF raw data'!J75) -> -5.25061e-06 | C75: =IF('DF raw data'!K75="","",'DF raw data'!K75) -> 0.000198869 | D75: =IF('DF raw data'!L75="","",'DF raw data'!L75) -> -4.18665e-05 | F75: 1.215389997e-05 | G75: 2.777530756e-05 | H75: -1.39769468e-05 | J75: 1.634204131e-05 | K75: 2.607470395e-05 | L75: 0.0001045346215 | M75: 0.0002379383951 | N75: 1.699012775e-08
A76: =IF('DF raw data'!I76="","",'DF raw data'!I76) -> -295.5 | B76: =IF('DF raw data'!J76="","",'DF raw data'!J76) -> -1.73593e-05 | C76: =IF('DF raw data'!K76="","",'DF raw data'!K76) -> 0.000202092 | D76: =IF('DF raw data'!L76="","",'DF raw data'!L76) -> -4.24715e-05 | F76: -1.53334811e-08 | G76: 3.101442256e-05 | H76: -1.45849718e-05 | J76: 1.633437457e-05 | K76: 3.424189123e-05 | L76: 0.0001200418328 | M76: 0.0002979593115 | N76: 2.432855446e-08
A77: =IF('DF raw data'!I77="","",'DF raw data'!I77) -> -295 | B77: =IF('DF raw data'!J77="","",'DF raw data'!J77) -> -2.53075e-05 | C77: =IF('DF raw data'!K77="","",'DF raw data'!K77) -> 0.000196591 | D77: =IF('DF raw data'!L77="","",'DF raw data'!L77) -> -4.16951e-05 | F77: -8.003274481e-06 | G77: 2.548591756e-05 | H77: -1.38046898e-05 | J77: 1.233273733e-05 | K77: 4.04082599e-05 | L77: 0.0001327847916 | M77: 0.0003643517073 | N77: 3.32205031e-08
A78: =IF('DF raw data'!I78="","",'DF raw data'!I78) -> -294.5 | B78: =IF('DF raw data'!J78="","",'DF raw data'!J78) -> -2.00514e-05 | C78: =IF('DF raw data'!K78="","",'DF raw data'!K78) -> 0.00019599 | D78: =IF('DF raw data'!L78="","",'DF raw data'!L78) -> -4.07148e-05 | F78: -2.720893981e-06 | G78: 2.488191256e-05 | H78: -1.28194883e-05 | J78: 1.097229034e-05 | K78: 4.589440507e-05 | L78: 0.0001452257479 | M78: 0.0004369645812 | N78: 4.38259576e-08
A79: =IF('DF raw data'!I79="","",'DF raw data'!I79) -> -294 | B79: =IF('DF raw data'!J79="","",'DF raw data'!J79) -> -1.59525e-05 | C79: =IF('DF raw data'!K79="","",'DF raw data'!K79) -> 0.000193087 | D79: =IF('DF raw data'!L79="","",'DF raw data'!L79) -> -4.06412e-05 | F79: 1.398500519e-06 | G79: 2.196439756e-05 | H79: -1.27455203e-05 | J79: 1.16715406e-05 | K79: 5.173017537e-05 | L79: 0.0001562079466 | M79: 0.0005150685545 | N79: 5.609453133e-08
A80: =IF('DF raw data'!I80="","",'DF raw data'!I80) -> -293.5 | B80: =IF('DF raw data'!J80="","",'DF raw data'!J80) -> -1.76165e-05 | C80: =IF('DF raw data'!K80="","",'DF raw data'!K80) -> 0.000192851 | D80: =IF('DF raw data'!L80="","",'DF raw data'!L80) -> -4.11395e-05 | F80: -2.738194811e-07 | G80: 2.172721756e-05 | H80: -1.32463118e-05 | J80: 1.153463086e-05 | K80: 5.74974908e-05 | L80: 0.0001670715554 | M80: 0.0005986043322 | N80: 7.01175075e-08
A81: =IF('DF raw data'!I81="","",'DF raw data'!I81) -> -293 | B81: =IF('DF raw data'!J81="","",'DF raw data'!J81) -> -1.56957e-05 | C81: =IF('DF raw data'!K81="","",'DF raw data'!K81) -> 0.000185463 | D81: =IF('DF raw data'!L81="","",'DF raw data'!L81) -> -4.13743e-05 | F81: 1.656584519e-06 | G81: 1.430227756e-05 | H81: -1.34822858e-05 | J81: 1.236292312e-05 | K81: 6.367895235e-05 | L81: 0.0001742226942 | M81: 0.0006857156793 | N81: 8.537070202e-08
A82: =IF('DF raw data'!I82="","",'DF raw data'!I82) -> -292.5 | B82: =IF('DF raw data'!J82="","",'DF raw data'!J82) -> -2.40877e-05 | C82: =IF('DF raw data'!K82="","",'DF raw data'!K82) -> 0.000183928 | D82: =IF('DF raw data'!L82="","",'DF raw data'!L82) -> -4.09459e-05 | F82: -6.777375481e-06 | G82: 1.275960256e-05 | H82: -1.30517438e-05 | J82: 8.974235376e-06 | K82: 6.816607004e-05 | L82: 0.0001806024955 | M82: 0.0007760169271 | N82: 1.017196012e-07
A83: =IF('DF raw data'!I83="","",'DF raw data'!I83) -> -292 | B83: =IF('DF raw data'!J83="","",'DF raw data'!J83) -> -1.65936e-05 | C83: =IF('DF raw data'!K83="","",'DF raw data'!K83) -> 0.000187533 | D83: =IF('DF raw data'!L83="","",'DF raw data'!L83) -> -4.05323e-05 | F83: 7.541950189e-07 | G83: 1.638262756e-05 | H83: -1.26360758e-05 | J83: 9.351332886e-06 | K83: 7.284173649e-05 | L83: 0.0001887938093 | M83: 0.0008704138317 | N83: 1.195848761e-07
A84: =IF('DF raw data'!I84="","",'DF raw data'!I84) -> -291.5 | B84: =IF('DF raw data'!J84="","",'DF raw data'!J84) -> -1.40326e-05 | C84: =IF('DF raw data'!K84="","",'DF raw data'!K84) -> 0.000193492 | D84: =IF('DF raw data'!L84="","",'DF raw data'!L84) -> -3.46231e-05 | F84: 3.328000019e-06 | G84: 2.237142256e-05 | H84: -6.697329805e-06 | J84: 1.10153329e-05 | K84: 7.834940293e-05 | L84: 0.0001999795205 | M84: 0.000970403592 | N84: 1.396414492e-07
A85: =IF('DF raw data'!I85="","",'DF raw data'!I85) -> -291 | B85: =IF('DF raw data'!J85="","",'DF raw data'!J85) -> -1.47478e-05 | C85: =IF('DF raw data'!K85="","",'DF raw data'!K85) -> 0.000199904 | D85: =IF('DF raw data'!L85="","",'DF raw data'!L85) -> -2.1136e-05 | F85: 2.609224019e-06 | G85: 2.881548256e-05 | H85: 6.857205695e-06 | J85: 1.23199449e-05 | K85: 8.450937539e-05 | L85: 0.0002143872618 | M85: 0.001077597223 | N85: 1.626982887e-07
A86: =IF('DF raw data'!I86="","",'DF raw data'!I86) -> -290.5 | B86: =IF('DF raw data'!J86="","",'DF raw data'!J86) -> -1.72429e-05 | C86: =IF('DF raw data'!K86="","",'DF raw data'!K86) -> 0.000197316 | D86: =IF('DF raw data'!L86="","",'DF raw data'!L86) -> -2.45928e-05 | F86: 1.016485189e-07 | G86: 2.621454256e-05 | H86: 3.383121695e-06 | J86: 1.237076916e-05 | K86: 9.069475997e-05 | L86: 0.0002274945331 | M86: 0.001191344489 | N86: 1.88651688e-07
A87: =IF('DF raw data'!I87="","",'DF raw data'!I87) -> -290 | B87: =IF('DF raw data'!J87="","",'DF raw data'!J87) -> -1.35322e-05 | C87: =IF('DF raw data'!K87="","",'DF raw data'!K87) -> 0.000203786 | D87: =IF('DF raw data'!L87="","",'DF raw data'!L87) -> -1.8058e-05 | F87: 3.830902019e-06 | G87: 3.271689256e-05 | H87: 9.950595695e-06 | J87: 1.428622017e-05 | K87: 9.783787005e-05 | L87: 0.0002438529794 | M87: 0.001313270979 | N87: 2.184858738e-07
A88: =IF('DF raw data'!I88="","",'DF raw data'!I88) -> -289.5 | B88: =IF('DF raw data'!J88="","",'DF raw data'!J88) -> -1.76937e-05 | C88: =IF('DF raw data'!K88="","",'DF raw data'!K88) -> 0.000195352 | D88: =IF('DF raw data'!L88="","",'DF raw data'!L88) -> -2.08889e-05 | F88: -3.514054811e-07 | G88: 2.424072256e-05 | H88: 7.105541195e-06 | J88: 1.411051743e-05 | K88: 0.0001048931288 | L88: 0.0002559733407 | M88: 0.001441257649 | N88: 2.513466027e-07
A89: =IF('DF raw data'!I89="","",'DF raw data'!I89) -> -289 | B89: =IF('DF raw data'!J89="","",'DF raw data'!J89) -> -1.75017e-05 | C89: =IF('DF raw data'!K89="","",'DF raw data'!K89) -> 0.00019041 | D89: =IF('DF raw data'!L89="","",'DF raw data'!L89) -> -2.34187e-05 | F89: -1.584454811e-07 | G89: 1.927401256e-05 | H89: 4.563092195e-06 | J89: 1.403129469e-05 | K89: 0.0001119087761 | L89: 0.000265610347 | M89: 0.001574062823 | N89: 2.867194695e-07
A90: =IF('DF raw data'!I90="","",'DF raw data'!I90) -> -288.5 | B90: =IF('DF raw data'!J90="","",'DF raw data'!J90) -> -2.11501e-05 | C90: =IF('DF raw data'!K90="","",'DF raw data'!K90) -> 0.000192576 | D90: =IF('DF raw data'!L90="","",'DF raw data'!L90) -> -2.64343e-05 | F90: -3.825087481e-06 | G90: 2.145084256e-05 | H90: 1.532414195e-06 | J90: 1.211875095e-05 | K90: 0.0001179681516 | L90: 0.0002763357682 | M90: 0.001712230707 | N90: 3.2497363e-07
A91: =IF('DF raw data'!I91="","",'DF raw data'!I91) -> -288 | B91: =IF('DF raw data'!J91="","",'DF raw data'!J91) -> -2.20508e-05 | C91: =IF('DF raw data'!K91="","",'DF raw data'!K91) -> 0.000206346 | D91: =IF('DF raw data'!L91="","",'DF raw data'!L91) -> -2.41778e-05 | F91: -4.730290981e-06 | G91: 3.528969256e-05 | H91: 3.800196695e-06 | J91: 9.753605461e-06 | K91: 0.0001228449543 | L91: 0.0002939806145 | M91: 0.001859221014 | N91: 3.682334973e-07
A92: =IF('DF raw data'!I92="","",'DF raw data'!I92) -> -287.5 | B92: =IF('DF raw data'!J92="","",'DF raw data'!J92) -> -1.82113e-05 | C92: =IF('DF raw data'!K92="","",'DF raw data'!K92) -> 0.000204904 | D92: =IF('DF raw data'!L92="","",'DF raw data'!L92) -> -1.30262e-05 | F92: -8.715934811e-07 | G92: 3.384048256e-05 | H92: 1.50075547e-05 | J92: 9.317808721e-06 | K92: 0.0001275038587 | L92: 0.0003109008558 | M92: 0.002014671442 | N92: 4.166065791e-07
A93: =IF('DF raw data'!I93="","",'DF raw data'!I93) -> -287 | B93: =IF('DF raw data'!J93="","",'DF raw data'!J93) -> -1.98968e-06 | C93: =IF('DF raw data'!K93="","",'DF raw data'!K93) -> 0.000201906 | D93: =IF('DF raw data'!L93="","",'DF raw data'!L93) -> -3.09175e-05 | F93: 1.543113462e-05 | G93: 3.082749256e-05 | H93: -2.973201805e-06 | J93: 1.703337603e-05 | K93: 0.0001360205467 | L93: 0.0003263146021 | M93: 0.002177828743 | N93: 4.699922568e-07
A94: =IF('DF raw data'!I94="","",'DF raw data'!I94) -> -286.5 | B94: =IF('DF raw data'!J94="","",'DF raw data'!J94) -> -1.21781e-05 | C94: =IF('DF raw data'!K94="","",'DF raw data'!K94) -> 0.000193942 | D94: =IF('DF raw data'!L94="","",'DF raw data'!L94) -> -2.9172e-05 | F94: 5.191772519e-06 | G94: 2.282367256e-05 | H94: -1.218974305e-06 | J94: 1.962926229e-05 | K94: 0.0001458351778 | L94: 0.0003377264384 | M94: 0.002346691962 | N94: 5.272144844e-07
A95: =IF('DF raw data'!I95="","",'DF raw data'!I95) -> -286 | B95: =IF('DF raw data'!J95="","",'DF raw data'!J95) -> -1.14062e-05 | C95: =IF('DF raw data'!K95="","",'DF raw data'!K95) -> 0.000182737 | D95: =IF('DF raw data'!L95="","",'DF raw data'!L95) -> -3.56015e-05 | F95: 5.967532019e-06 | G95: 1.156264756e-05 | H95: -7.680621805e-06 | J95: 2.26130283e-05 | K95: 0.000157141692 | L95: 0.0003435077621 | M95: 0.002518445844 | N95: 5.864689502e-07
A96: =IF('DF raw data'!I96="","",'DF raw data'!I96) -> -285.5 | B96: =IF('DF raw data'!J96="","",'DF raw data'!J96) -> -7.69067e-06 | C96: =IF('DF raw data'!K96="","",'DF raw data'!K96) -> 0.000186675 | D96: =IF('DF raw data'!L96="","",'DF raw data'!L96) -> -3.30778e-05 | F96: 9.701639669e-06 | G96: 1.552033756e-05 | H96: -5.144303305e-06 | J96: 2.746384813e-05 | K96: 0.0001708736161 | L96: 0.0003512679309 | M96: 0.002694079809 | N96: 6.485406613e-07
A97: =IF('DF raw data'!I97="","",'DF raw data'!I97) -> -285 | B97: =IF('DF raw data'!J97="","",'DF raw data'!J97) -> -1.00696e-05 | C97: =IF('DF raw data'!K97="","",'DF raw data'!K97) -> 0.000203674 | D97: =IF('DF raw data'!L97="","",'DF raw data'!L97) -> -2.19327e-05 | F97: 7.310815019e-06 | G97: 3.260433256e-05 | H97: 6.056522195e-06 | J97: 3.111925564e-05 | K97: 0.0001864332439 | L97: 0.0003675700972 | M97: 0.002877864858 | N97: 7.165787536e-07
A98: =IF('DF raw data'!I98="","",'DF raw data'!I98) -> -284.5 | B98: =IF('DF raw data'!J98="","",'DF raw data'!J98) -> -2.09621e-05 | C98: =IF('DF raw data'!K98="","",'DF raw data'!K98) -> 0.000211015 | D98: =IF('DF raw data'!L98="","",'DF raw data'!L98) -> -1.97232e-05 | F98: -3.636147481e-06 | G98: 3.998203756e-05 | H98: 8.277069695e-06 | J98: 2.93011819e-05 | K98: 0.0002010838348 | L98: 0.000387561116 | M98: 0.003071645416 | N98: 7.921098425e-07
A99: =IF('DF raw data'!I99="","",'DF raw data'!I99) -> -284 | B99: =IF('DF raw data'!J99="","",'DF raw data'!J99) -> -9.80957e-06 | C99: =IF('DF raw data'!K99="","",'DF raw data'!K99) -> 0.000210614 | D99: =IF('DF raw data'!L99="","",'DF raw data'!L99) -> -2.76465e-05 | F99: 7.572145169e-06 | G99: 3.957903256e-05 | H99: 3.141531951e-07 | J99: 3.308725449e-05 | K99: 0.0002176274621 | L99: 0.0004073506323 | M99: 0.003275320732 | N99: 8.756244945e-07
A100: =IF('DF raw data'!I100="","",'DF raw data'!I100) -> -283.5 | B100: =IF('DF raw data'!J100="","",'DF raw data'!J100) -> -1.76316e-05 | C100: =IF('DF raw data'!K100="","",'DF raw data'!K100) -> 0.000209009 | D100: =IF('DF raw data'!L100="","",'DF raw data'!L100) -> -1.79961e-05 | F100: -2.889949811e-07 | G100: 3.796600756e-05 | H100: 1.00128052e-05 | J100: 3.2942757e-05 | K100: 0.0002340988406 | L100: 0.000426333636 | M100: 0.00348848755 | N100: 9.670472917e-07
A101: =IF('DF raw data'!I101="","",'DF raw data'!I101) -> -283 | B101: =IF('DF raw data'!J101="","",'DF raw data'!J101) -> -1.45566e-05 | C101: =IF('DF raw data'!K101="","",'DF raw data'!K101) -> 0.000204886 | D101: =IF('DF raw data'!L101="","",'DF raw data'!L101) -> -1.92128e-05 | F101: 2.801380019e-06 | G101: 3.382239256e-05 | H101: 8.790021695e-06 | J101: 3.434344701e-05 | K101: 0.0002512705641 | L101: 0.0004432448323 | M101: 0.003710109966 | N101: 1.065870019e-06
A102: =IF('DF raw data'!I102="","",'DF raw data'!I102) -> -282.5 | B102: =IF('DF raw data'!J102="","",'DF raw data'!J102) -> -2.71184e-05 | C102: =IF('DF raw data'!K102="","",'DF raw data'!K102) -> 0.000205672 | D102: =IF('DF raw data'!L102="","",'DF raw data'!L102) -> -1.15607e-05 | F102: -9.823228981e-06 | G102: 3.461232256e-05 | H102: 1.64803822e-05 | J102: 2.943183252e-05 | K102: 0.0002659864803 | L102: 0.0004605509936 | M102: 0.003940385463 | N102: 1.172356744e-06
A103: =IF('DF raw data'!I103="","",'DF raw data'!I103) -> -282 | B103: =IF('DF raw data'!J103="","",'DF raw data'!J103) -> -1.51953e-05 | C103: =IF('DF raw data'!K103="","",'DF raw data'!K103) -> 0.000196348 | D103: =IF('DF raw data'!L103="","",'DF raw data'!L103) -> -2.23408e-05 | F103: 2.159486519e-06 | G103: 2.524170256e-05 | H103: 5.646381695e-06 | J103: 3.051157577e-05 | K103: 0.0002812422682 | L103: 0.0004731718449 | M103: 0.004176971385 | N103: 1.284768019e-06
A104: =IF('DF raw data'!I104="","",'DF raw data'!I104) -> -281.5 | B104: =IF('DF raw data'!J104="","",'DF raw data'!J104) -> -1.09685e-05 | C104: =IF('DF raw data'!K104="","",'DF raw data'!K104) -> 0.000194085 | D104: =IF('DF raw data'!L104="","",'DF raw data'!L104) -> -1.7468e-05 | F104: 6.407420519e-06 | G104: 2.296738756e-05 | H104: 1.05435457e-05 | J104: 3.371528603e-05 | K104: 0.0002980999112 | L104: 0.0004846555387 | M104: 0.004419299154 | N104: 1.402781875e-06
A105: =IF('DF raw data'!I105="","",'DF raw data'!I105) -> -281 | B105: =IF('DF raw data'!J105="","",'DF raw data'!J105) -> -2.18233e-06 | C105: =IF('DF raw data'!K105="","",'DF raw data'!K105) -> 0.000190051 | D105: =IF('DF raw data'!L105="","",'DF raw data'!L105) -> -3.04441e-05 | F105: 1.523752137e-05 | G105: 1.891321756e-05 | H105: -2.497434805e-06 | J105: 4.133404672e-05 | K105: 0.0003187669346 | L105: 0.0004941121474 | M105: 0.004666355228 | N105: 1.525709534e-06
A106: =IF('DF raw data'!I106="","",'DF raw data'!I106) -> -280.5 | B106: =IF('DF raw data'!J106="","",'DF raw data'!J106) -> -2.33329e-05 | C106: =IF('DF raw data'!K106="","",'DF raw data'!K106) -> 0.000194378 | D106: =IF('DF raw data'!L106="","",'DF raw data'!L106) -> -1.99311e-05 | F106: -6.018801481e-06 | G106: 2.326185256e-05 | H106: 8.068130195e-06 | J106: 3.832464598e-05 | K106: 0.0003379292576 | L106: 0.0005057430737 | M106: 0.004919226765 | N106: 1.654331952e-06
A107: =IF('DF raw data'!I107="","",'DF raw data'!I107) -> -280 | B107: =IF('DF raw data'!J107="","",'DF raw data'!J107) -> -2.91673e-05 | C107: =IF('DF raw data'!K107="","",'DF raw data'!K107) -> 0.00019892 | D107: =IF('DF raw data'!L107="","",'DF raw data'!L107) -> -1.75417e-05 | F107: -1.188237348e-05 | G107: 2.782656256e-05 | H107: 1.04694772e-05 | J107: 3.238345924e-05 | K107: 0.0003541209872 | L107: 0.000519656355 | M107: 0.005179054943 | N107: 1.789877659e-06
A108: =IF('DF raw data'!I108="","",'DF raw data'!I108) -> -279.5 | B108: =IF('DF raw data'!J108="","",'DF raw data'!J108) -> -2.41672e-05 | C108: =IF('DF raw data'!K108="","",'DF raw data'!K108) -> 0.00019316 | D108: =IF('DF raw data'!L108="","",'DF raw data'!L108) -> -1.81692e-05 | F108: -6.857272981e-06 | G108: 2.203776256e-05 | H108: 9.838839695e-06 | J108: 2.895482275e-05 | K108: 0.0003685983986 | L108: 0.0005306752363 | M108: 0.005444392561 | N108: 1.931104954e-06
A109: =IF('DF raw data'!I109="","",'DF raw data'!I109) -> -279 | B109: =IF('DF raw data'!J109="","",'DF raw data'!J109) -> -3.92323e-06 | C109: =IF('DF raw data'!K109="","",'DF raw data'!K109) -> 0.000188173 | D109: =IF('DF raw data'!L109="","",'DF raw data'!L109) -> -1.38469e-05 | F109: 1.348791687e-05 | G109: 1.702582756e-05 | H109: 1.41827512e-05 | J109: 3.569878118e-05 | K109: 0.0003864477892 | L109: 0.0005391881501 | M109: 0.005713986636 | N109: 2.077104086e-06
A110: =IF('DF raw data'!I110="","",'DF raw data'!I110) -> -278.5 | B110: =IF('DF raw data'!J110="","",'DF raw data'!J110) -> -2.10301e-05 | C110: =IF('DF raw data'!K110="","",'DF raw data'!K110) -> 0.000185005 | D110: =IF('DF raw data'!L110="","",'DF raw data'!L110) -> -1.44566e-05 | F110: -3.704487481e-06 | G110: 1.384198756e-05 | H110: 1.35700027e-05 | J110: 3.384653744e-05 | K110: 0.0004033710579 | L110: 0.0005461091438 | M110: 0.005987041208 | N110: 2.226794478e-06
A111: =IF('DF raw data'!I111="","",'DF raw data'!I111) -> -278 | B111: =IF('DF raw data'!J111="","",'DF raw data'!J111) -> -1.07774e-05 | C111: =IF('DF raw data'!K111="","",'DF raw data'!K111) -> 0.000186984 | D111: =IF('DF raw data'!L111="","",'DF raw data'!L111) -> -1.69209e-05 | F111: 6.599476019e-06 | G111: 1.583088256e-05 | H111: 1.10933812e-05 | J111: 3.714627545e-05 | K111: 0.0004219441956 | L111: 0.0005540245851 | M111: 0.0062640535 | N111: 2.380956021e-06
A112: =IF('DF raw data'!I112="","",'DF raw data'!I112) -> -277.5 | B112: =IF('DF raw data'!J112="","",'DF raw data'!J112) -> -1.14191e-05 | C112: =IF('DF raw data'!K112="","",'DF raw data'!K112) -> 0.00019253 | D112: =IF('DF raw data'!L112="","",'DF raw data'!L112) -> -1.43894e-05 | F112: 5.954567519e-06 | G112: 2.140461256e-05 | H112: 1.36375387e-05 | J112: 4.012355921e-05 | K112: 0.0004420059752 | L112: 0.0005647268914 | M112: 0.006546416946 | N112: 2.541219202e-06
A113: =IF('DF raw data'!I113="","",'DF raw data'!I113) -> -277 | B113: =IF('DF raw data'!J113="","",'DF raw data'!J113) -> -2.00617e-05 | C113: =IF('DF raw data'!K113="","",'DF raw data'!K113) -> 0.000186781 | D113: =IF('DF raw data'!L113="","",'DF raw data'!L113) -> -2.74897e-05 | F113: -2.731245481e-06 | G113: 1.562686756e-05 | H113: 4.717371951e-07 | J113: 3.875793647e-05 | K113: 0.0004613849435 | L113: 0.0005725403252 | M113: 0.006832687108 | N113: 2.705871503e-06
A114: =IF('DF raw data'!I114="","",'DF raw data'!I114) -> -276.5 | B114: =IF('DF raw data'!J114="","",'DF raw data'!J114) -> -7.05596e-06 | C114: =IF('DF raw data'!K114="","",'DF raw data'!K114) -> 0.000179718 | D114: =IF('DF raw data'!L114="","",'DF raw data'!L114) -> -2.41049e-05 | F114: 1.033952322e-05 | G114: 8.528552561e-06 | H114: 3.873461195e-06 | J114: 4.392769808e-05 | K114: 0.0004833487925 | L114: 0.0005768046015 | M114: 0.007121089409 | N114: 2.873188099e-06
A115: =IF('DF raw data'!I115="","",'DF raw data'!I115) -> -276 | B115: =IF('DF raw data'!J115="","",'DF raw data'!J115) -> -1.96196e-05 | C115: =IF('DF raw data'!K115="","",'DF raw data'!K115) -> 0.000176724 | D115: =IF('DF raw data'!L115="","",'DF raw data'!L115) -> -1.7681e-05 | F115: -2.286934981e-06 | G115: 5.519582561e-06 | H115: 1.03294807e-05 | J115: 4.278423059e-05 | K115: 0.0005047409078 | L115: 0.0005795643927 | M115: 0.007410871606 | N115: 3.042050787e-06
A116: =IF('DF raw data'!I116="","",'DF raw data'!I116) -> -275.5 | B116: =IF('DF raw data'!J116="","",'DF raw data'!J116) -> -2.50672e-05 | C116: =IF('DF raw data'!K116="","",'DF raw data'!K116) -> 0.000186288 | D116: =IF('DF raw data'!L116="","",'DF raw data'!L116) -> -1.39064e-05 | F116: -7.761772981e-06 | G116: 1.513140256e-05 | H116: 1.41229537e-05 | J116: 3.89033441e-05 | K116: 0.0005241925798 | L116: 0.000587130094 | M116: 0.007704436653 | N116: 3.215168395e-06
A117: =IF('DF raw data'!I117="","",'DF raw data'!I117) -> -275 | B117: =IF('DF raw data'!J117="","",'DF raw data'!J117) -> -2.21095e-05 | C117: =IF('DF raw data'!K117="","",'DF raw data'!K117) -> 0.000196783 | D117: =IF('DF raw data'!L117="","",'DF raw data'!L117) -> -3.1275e-05 | F117: -4.789284481e-06 | G117: 2.567887756e-05 | H117: -3.332489305e-06 | J117: 3.650870186e-05 | K117: 0.0005424469308 | L117: 0.0005999695328 | M117: 0.008004421419 | N117: 3.395816558e-06
A118: =IF('DF raw data'!I118="","",'DF raw data'!I118) -> -274.5 | B118: =IF('DF raw data'!J118="","",'DF raw data'!J118) -> -1.90387e-05 | C118: =IF('DF raw data'!K118="","",'DF raw data'!K118) -> 0.000189762 | D118: =IF('DF raw data'!L118="","",'DF raw data'!L118) -> -2.26209e-05 | F118: -1.703130481e-06 | G118: 1.862277256e-05 | H118: 5.364881195e-06 | J118: 3.565713662e-05 | K118: 0.0005602754991 | L118: 0.0006092809191 | M118: 0.008309061879 | N118: 3.582063893e-06
A119: =IF('DF raw data'!I119="","",'DF raw data'!I119) -> -274 | B119: =IF('DF raw data'!J119="","",'DF raw data'!J119) -> -1.48125e-05 | C119: =IF('DF raw data'!K119="","",'DF raw data'!K119) -> 0.000190382 | D119: =IF('DF raw data'!L119="","",'DF raw data'!L119) -> -1.94533e-05 | F119: 2.544200519e-06 | G119: 1.924587256e-05 | H119: 8.548319195e-06 | J119: 3.692923688e-05 | K119: 0.0005787401175 | L119: 0.0006189038554 | M119: 0.008618513806 | N119: 3.774266768e-06
A120: =IF('DF raw data'!I120="","",'DF raw data'!I120) -> -273.5 | B120: =IF('DF raw data'!J120="","",'DF raw data'!J120) -> -1.56415e-05 | C120: =IF('DF raw data'!K120="","",'DF raw data'!K120) -> 0.000190656 | D120: =IF('DF raw data'!L120="","",'DF raw data'!L120) -> -2.45415e-05 | F120: 1.711055519e-06 | G120: 1.952124256e-05 | H120: 3.434678195e-06 | J120: 3.778476464e-05 | K120: 0.0005976324998 | L120: 0.0006286644766 | M120: 0.008932846045 | N120: 3.972590125e-06
A121: =IF('DF raw data'!I121="","",'DF raw data'!I121) -> -273 | B121: =IF('DF raw data'!J121="","",'DF raw data'!J121) -> -2.41623e-05 | C121: =IF('DF raw data'!K121="","",'DF raw data'!K121) -> 0.00018226 | D121: =IF('DF raw data'!L121="","",'DF raw data'!L121) -> -2.80281e-05 | F121: -6.852348481e-06 | G121: 1.108326256e-05 | H121: -6.935480488e-08 | J121: 3.435859039e-05 | K121: 0.000614811795 | L121: 0.0006342061079 | M121: 0.009249949098 | N121: 4.174289075e-06
A122: =IF('DF raw data'!I122="","",'DF raw data'!I122) -> -272.5 | B122: =IF('DF raw data'!J122="","",'DF raw data'!J122) -> -2.10266e-05 | C122: =IF('DF raw data'!K122="","",'DF raw data'!K122) -> 0.000175012 | D122: =IF('DF raw data'!L122="","",'DF raw data'!L122) -> -2.01939e-05 | F122: -3.700969981e-06 | G122: 3.799022561e-06 | H122: 7.804016195e-06 | J122: 3.25081054e-05 | K122: 0.0006310658477 | L122: 0.0006361056192 | M122: 0.009568001908 | N122: 4.377132643e-06
A123: =IF('DF raw data'!I123="","",'DF raw data'!I123) -> -272 | B123: =IF('DF raw data'!J123="","",'DF raw data'!J123) -> -1.73742e-05 | C123: =IF('DF raw data'!K123="","",'DF raw data'!K123) -> 0.000176517 | D123: =IF('DF raw data'!L123="","",'DF raw data'!L123) -> -2.18924e-05 | F123: -3.03079811e-08 | G123: 5.311547561e-06 | H123: 6.097023695e-06 | J123: 3.249295141e-05 | K123: 0.0006473123234 | L123: 0.000638761393 | M123: 0.009887382605 | N123: 4.581668597e-06
A124: =IF('DF raw data'!I124="","",'DF raw data'!I124) -> -271.5 | B124: =IF('DF raw data'!J124="","",'DF raw data'!J124) -> -2.40342e-05 | C124: =IF('DF raw data'!K124="","",'DF raw data'!K124) -> 0.000172166 | D124: =IF('DF raw data'!L124="","",'DF raw data'!L124) -> -2.6083e-05 | F124: -6.723607981e-06 | G124: 9.38792561e-07 | H124: 1.885470695e-06 | J124: 2.913114742e-05 | K124: 0.0006618778971 | L124: 0.0006392307893 | M124: 0.010206998 | N124: 4.78640091e-06
A125: =IF('DF raw data'!I125="","",'DF raw data'!I125) -> -271 | B125: =IF('DF raw data'!J125="","",'DF raw data'!J125) -> -1.60981e-05 | C125: =IF('DF raw data'!K125="","",'DF raw data'!K125) -> 0.000174903 | D125: =IF('DF raw data'!L125="","",'DF raw data'!L125) -> -1.3577e-05 | F125: 1.252172519e-06 | G125: 3.689477561e-06 | H125: 1.44540007e-05 | J125: 2.975723368e-05 | K125: 0.000676756514 | L125: 0.000641075528 | M125: 0.01052753576 | N125: 4.992332573e-06
A126: =IF('DF raw data'!I126="","",'DF raw data'!I126) -> -270.5 | B126: =IF('DF raw data'!J126="","",'DF raw data'!J126) -> -1.53275e-05 | C126: =IF('DF raw data'!K126="","",'DF raw data'!K126) -> 0.000186705 | D126: =IF('DF raw data'!L126="","",'DF raw data'!L126) -> -1.45183e-05 | F126: 2.026625519e-06 | G126: 1.555048756e-05 | H126: 1.35079942e-05 | J126: 3.077054644e-05 | K126: 0.0006921417872 | L126: 0.0006488507718 | M126: 0.01085196115 | N126: 5.203309648e-06
A127: =IF('DF raw data'!I127="","",'DF raw data'!I127) -> -270 | B127: =IF('DF raw data'!J127="","",'DF raw data'!J127) -> -2.03175e-05 | C127: =IF('DF raw data'!K127="","",'DF raw data'!K127) -> 0.000180324 | D127: =IF('DF raw data'!L127="","",'DF raw data'!L127) -> -2.81451e-05 | F127: -2.988324481e-06 | G127: 9.137582561e-06 | H127: -1.869398049e-07 | J127: 2.92763842e-05 | K127: 0.0007067799793 | L127: 0.0006534195631 | M127: 0.01117867093 | N127: 5.417216764e-06
A128: =IF('DF raw data'!I128="","",'DF raw data'!I128) -> -269.5 | B128: =IF('DF raw data'!J128="","",'DF raw data'!J128) -> -2.26931e-05 | C128: =IF('DF raw data'!K128="","",'DF raw data'!K128) -> 0.000181421 | D128: =IF('DF raw data'!L128="","",'DF raw data'!L128) -> -1.91831e-05 | F128: -5.375802481e-06 | G128: 1.024006756e-05 | H128: 8.819870195e-06 | J128: 2.658848296e-05 | K128: 0.0007200742208 | L128: 0.0006585395969 | M128: 0.01150794073 | N128: 5.634407438e-06
A129: =IF('DF raw data'!I129="","",'DF raw data'!I129) -> -269 | B129: =IF('DF raw data'!J129="","",'DF raw data'!J129) -> -2.44912e-05 | C129: =IF('DF raw data'!K129="","",'DF raw data'!K129) -> 0.000190016 | D129: =IF('DF raw data'!L129="","",'DF raw data'!L129) -> -1.45414e-05 | F129: -7.182892981e-06 | G129: 1.887804256e-05 | H129: 1.34847787e-05 | J129: 2.299703647e-05 | K129: 0.000731572739 | L129: 0.0006679786182 | M129: 0.01184193004 | N129: 5.857769587e-06
A130: =IF('DF raw data'!I130="","",'DF raw data'!I130) -> -268.5 | B130: =IF('DF raw data'!J130="","",'DF raw data'!J130) -> -2.32723e-05 | C130: =IF('DF raw data'!K130="","",'DF raw data'!K130) -> 0.000192955 | D130: =IF('DF raw data'!L130="","",'DF raw data'!L130) -> -1.54427e-05 | F130: -5.957898481e-06 | G130: 2.183173756e-05 | H130: 1.25789722e-05 | J130: 2.001808723e-05 | K130: 0.0007415817826 | L130: 0.000678894487 | M130: 0.01218137728 | N130: 6.088418811e-06
A131: =IF('DF raw data'!I131="","",'DF raw data'!I131) -> -268 | B131: =IF('DF raw data'!J131="","",'DF raw data'!J131) -> -1.21804e-05 | C131: =IF('DF raw data'!K131="","",'DF raw data'!K131) -> 0.000181045 | D131: =IF('DF raw data'!L131="","",'DF raw data'!L131) -> -2.6992e-05 | F131: =(1-$G$1*($B$54-$G$2))*(B131-F$5) -> 5.189461019e-06 | G131: =(1-$G$1*($B$54-$G$2))*(C131-G$5) -> 9.862187561e-06 | H131: =(1-$G$1*($B$54-$G$2))*(D131-H$5) -> 9.719256951e-07 | J131: 2.261281774e-05 | K131: 0.0007528881915 | L131: 0.0006838255807 | M131: 0.01252329007 | N131: 6.322483193e-06
A132: =IF('DF raw data'!I132="","",'DF raw data'!I132) -> -267.5 | B132: =IF('DF raw data'!J132="","",'DF raw data'!J132) -> -1.75639e-05 | C132: =IF('DF raw data'!K132="","",'DF raw data'!K132) -> 0.000173314 | D132: =IF('DF raw data'!L132="","",'DF raw data'!L132) -> -2.41325e-05 | F132: -2.209564811e-07 | G132: 2.092532561e-06 | H132: 3.845723195e-06 | J132: =F132*$G$3+J131 -> 2.25023395e-05 | K132: =J132*$G$3+K131 -> 0.0007641393613 | L132: =G132*$G$3+L131 -> 0.000684871847 | M132: =L132*$G$3+M131 -> 0.012865726 | N132: =(J132^2+L132^2)*$G$3+N131 -> 6.557261095e-06
A133: =IF('DF raw data'!I133="","",'DF raw data'!I133) -> -267 | B133: =IF('DF raw data'!J133="","",'DF raw data'!J133) -> -2.34594e-05 | C133: =IF('DF raw data'!K133="","",'DF raw data'!K133) -> 0.000182122 | D133: =IF('DF raw data'!L133="","",'DF raw data'!L133) -> -2.46748e-05 | F133: -6.145933981e-06 | G133: 1.094457256e-05 | H133: 3.300711695e-06 | J133: 1.942937251e-05 | K133: 0.0007738540475 | L133: 0.0006903441333 | M133: 0.01321089806 | N133: 6.795737356e-06
A134: =IF('DF raw data'!I134="","",'DF raw data'!I134) -> -266.5 | B134: =IF('DF raw data'!J134="","",'DF raw data'!J134) -> -1.84007e-05 | C134: =IF('DF raw data'!K134="","",'DF raw data'!K134) -> 0.000181147 | D134: =IF('DF raw data'!L134="","",'DF raw data'!L134) -> -1.85816e-05 | F134: -1.061940481e-06 | G134: 9.964697561e-06 | H134: 9.424377695e-06 | J134: 1.889840227e-05 | K134: 0.0007833032486 | L134: 0.0006953264821 | M134: 0.0135585613 | N134: 7.037655389e-06
A135: =IF('DF raw data'!I135="","",'DF raw data'!I135) -> -266 | B135: =IF('DF raw data'!J135="","",'DF raw data'!J135) -> -2.31371e-05 | C135: =IF('DF raw data'!K135="","",'DF raw data'!K135) -> 0.000175829 | D135: =IF('DF raw data'!L135="","",'DF raw data'!L135) -> -2.76739e-05 | F135: -5.822022481e-06 | G135: 4.620107561e-06 | H135: 2.866161951e-07 | J135: 1.598739103e-05 | K135: 0.0007912969442 | L135: 0.0006976365359 | M135: 0.01390737957 | N135: 7.281131556e-06
A136: =IF('DF raw data'!I136="","",'DF raw data'!I136) -> -265.5 | B136: =IF('DF raw data'!J136="","",'DF raw data'!J136) -> -2.03885e-05 | C136: =IF('DF raw data'!K136="","",'DF raw data'!K136) -> 0.000178722 | D136: =IF('DF raw data'!L136="","",'DF raw data'!L136) -> -1.64272e-05 | F136: -3.059679481e-06 | G136: 7.527572561e-06 | H136: 1.15895497e-05 | J136: 1.445755129e-05 | K136: 0.0007985257198 | L136: 0.0007014003221 | M136: 0.01425807973 | N136: 7.527217272e-06
A137: =IF('DF raw data'!I137="","",'DF raw data'!I137) -> -265 | B137: =IF('DF raw data'!J137="","",'DF raw data'!J137) -> -1.00729e-05 | C137: =IF('DF raw data'!K137="","",'DF raw data'!K137) -> 0.000189193 | D137: =IF('DF raw data'!L137="","",'DF raw data'!L137) -> -1.62469e-05 | F137: 7.307498519e-06 | G137: 1.805092756e-05 | H137: 1.17707512e-05 | J137: 1.811130055e-05 | K137: 0.0008075813701 | L137: 0.0007104257859 | M137: 0.01461329263 | N137: 7.77973368e-06
A138: =IF('DF raw data'!I138="","",'DF raw data'!I138) -> -264.5 | B138: =IF('DF raw data'!J138="","",'DF raw data'!J138) -> -8.85588e-06 | C138: =IF('DF raw data'!K138="","",'DF raw data'!K138) -> 0.000189991 | D138: =IF('DF raw data'!L138="","",'DF raw data'!L138) -> -1.51329e-05 | F138: 8.530603619e-06 | G138: 1.885291756e-05 | H138: 1.28903212e-05 | J138: 2.237660236e-05 | K138: 0.0008187696713 | L138: 0.0007198522447 | M138: 0.01497321875 | N138: 8.039077663e-06
A139: =IF('DF raw data'!I139="","",'DF raw data'!I139) -> -264 | B139: =IF('DF raw data'!J139="","",'DF raw data'!J139) -> -1.93644e-05 | C139: =IF('DF raw data'!K139="","",'DF raw data'!K139) -> 0.00018018 | D139: =IF('DF raw data'!L139="","",'DF raw data'!L139) -> -1.51616e-05 | F139: -2.030458981e-06 | G139: 8.992862561e-06 | H139: 1.28614777e-05 | J139: 2.136137286e-05 | K139: 0.0008294503577 | L139: 0.000724348676 | M139: 0.01533539309 | N139: 8.30164632e-06
A140: =IF('DF raw data'!I140="","",'DF raw data'!I140) -> -263.5 | B140: =IF('DF raw data'!J140="","",'DF raw data'!J140) -> -1.65444e-05 | C140: =IF('DF raw data'!K140="","",'DF raw data'!K140) -> 0.000188214 | D140: =IF('DF raw data'!L140="","",'DF raw data'!L140) -> -1.57504e-05 | F140: 8.036410189e-07 | G140: 1.706703256e-05 | H140: 1.22697337e-05 | J140: 2.176319337e-05 | K140: 0.0008403319544 | L140: 0.0007328821923 | M140: 0.01570183418 | N140: 8.570441292e-06
A141: =IF('DF raw data'!I141="","",'DF raw data'!I141) -> -263 | B141: =IF('DF raw data'!J141="","",'DF raw data'!J141) -> -1.37877e-05 | C141: =IF('DF raw data'!K141="","",'DF raw data'!K141) -> 0.000195142 | D141: =IF('DF raw data'!L141="","",'DF raw data'!L141) -> -1.84234e-05 | F141: 3.574124519e-06 | G141: 2.402967256e-05 | H141: 9.583368695e-06 | J141: 2.355025563e-05 | K141: 0.0008521070822 | L141: 0.0007448970285 | M141: 0.0160742827 | N141: 8.848154391e-06
A142: =IF('DF raw data'!I142="","",'DF raw data'!I142) -> -262.5 | B142: =IF('DF raw data'!J142="","",'DF raw data'!J142) -> -1.49295e-05 | C142: =IF('DF raw data'!K142="","",'DF raw data'!K142) -> 0.000189919 | D142: =IF('DF raw data'!L142="","",'DF raw data'!L142) -> -3.5922e-05 | F142: 2.426615519e-06 | G142: 1.878055756e-05 | H142: -8.002724305e-06 | J142: 2.476356339e-05 | K142: 0.0008644888639 | L142: 0.0007542873073 | M142: 0.01645142635 | N142: 9.132935679e-06
A143: =IF('DF raw data'!I143="","",'DF raw data'!I143) -> -262 | B143: =IF('DF raw data'!J143="","",'DF raw data'!J143) -> -2.08994e-05 | C143: =IF('DF raw data'!K143="","",'DF raw data'!K143) -> 0.000188102 | D143: =IF('DF raw data'!L143="","",'DF raw data'!L143) -> -1.96219e-05 | F143: -3.573133981e-06 | G143: 1.695447256e-05 | H143: 8.378876195e-06 | J143: 2.29769964e-05 | K143: 0.0008759773621 | L143: 0.0007627645436 | M143: 0.01683280862 | N143: 9.424104524e-06
A144: =IF('DF raw data'!I144="","",'DF raw data'!I144) -> -261.5 | B144: =IF('DF raw data'!J144="","",'DF raw data'!J144) -> -2.6407e-05 | C144: =IF('DF raw data'!K144="","",'DF raw data'!K144) -> 0.000188714 | D144: =IF('DF raw data'!L144="","",'DF raw data'!L144) -> -2.37848e-05 | F144: -9.108271981e-06 | G144: 1.756953256e-05 | H144: 4.195161695e-06 | J144: 1.842286041e-05 | K144: 0.0008851887923 | L144: 0.0007715493099 | M144: 0.01721858328 | N144: 9.721918394e-06
A145: =IF('DF raw data'!I145="","",'DF raw data'!I145) -> -261 | B145: =IF('DF raw data'!J145="","",'DF raw data'!J145) -> -2.82065e-05 | C145: =IF('DF raw data'!K145="","",'DF raw data'!K145) -> 0.000183248 | D145: =IF('DF raw data'!L145="","",'DF raw data'!L145) -> -1.57502e-05 | F145: -1.091676948e-05 | G145: 1.207620256e-05 | H145: 1.22699347e-05 | J145: 1.296447567e-05 | K145: 0.0008916710301 | L145: 0.0007775874112 | M145: 0.01760737698 | N145: 1.002432352e-05
A146: =IF('DF raw data'!I146="","",'DF raw data'!I146) -> -260.5 | B146: =IF('DF raw data'!J146="","",'DF raw data'!J146) -> -3.02628e-05 | C146: =IF('DF raw data'!K146="","",'DF raw data'!K146) -> 0.000186546 | D146: =IF('DF raw data'!L146="","",'DF raw data'!L146) -> -6.08011e-06 | F146: -1.298335098e-05 | G146: 1.539069256e-05 | H146: 2.198837515e-05 | J146: 6.472800181e-06 | K146: 0.0008949074302 | L146: 0.0007852827574 | M146: 0.01800001836 | N146: 1.033267898e-05
A147: =IF('DF raw data'!I147="","",'DF raw data'!I147) -> -260 | B147: =IF('DF raw data'!J147="","",'DF raw data'!J147) -> -2.4485e-05 | C147: =IF('DF raw data'!K147="","",'DF raw data'!K147) -> 0.000185329 | D147: =IF('DF raw data'!L147="","",'DF raw data'!L147) -> -2.34272e-05 | F147: -7.176661981e-06 | G147: 1.416760756e-05 | H147: 4.554549695e-06 | J147: 2.884469191e-06 | K147: 0.0008963496648 | L147: 0.0007923665612 | M147: 0.01839620164 | N147: 1.064660552e-05
A148: =IF('DF raw data'!I148="","",'DF raw data'!I148) -> -259.5 | B148: =IF('DF raw data'!J148="","",'DF raw data'!J148) -> -1.98764e-05 | C148: =IF('DF raw data'!K148="","",'DF raw data'!K148) -> 0.000172941 | D148: =IF('DF raw data'!L148="","",'DF raw data'!L148) -> -1.59476e-05 | F148: -2.545018981e-06 | G148: 1.717667561e-06 | H148: 1.20715477e-05 | J148: 1.6119597e-06 | K148: 0.0008971556447 | L148: 0.000793225395 | M148: 0.01879281434 | N148: 1.096121008e-05
A149: =IF('DF raw data'!I149="","",'DF raw data'!I149) -> -259 | B149: =IF('DF raw data'!J149="","",'DF raw data'!J149) -> -2.03869e-05 | C149: =IF('DF raw data'!K149="","",'DF raw data'!K149) -> 0.000176048 | D149: =IF('DF raw data'!L149="","",'DF raw data'!L149) -> -1.94176e-05 | F149: -3.058071481e-06 | G149: 4.840202561e-06 | H149: 8.584197695e-06 | J149: 8.292395945e-08 | K149: 0.0008971971066 | L149: 0.0007956454963 | M149: 0.01919063709 | N149: 1.127773596e-05
A150: =IF('DF raw data'!I150="","",'DF raw data'!I150) -> -258.5 | B150: =IF('DF raw data'!J150="","",'DF raw data'!J150) -> -2.02586e-05 | C150: =IF('DF raw data'!K150="","",'DF raw data'!K150) -> 0.000175405 | D150: =IF('DF raw data'!L150="","",'DF raw data'!L150) -> -1.93822e-05 | F150: -2.929129981e-06 | G150: 4.193987561e-06 | H150: 8.619774695e-06 | J150: -1.381641031e-06 | K150: 0.0008965062861 | L150: 0.0007977424901 | M150: 0.01958950833 | N150: 1.159593346e-05
A151: =IF('DF raw data'!I151="","",'DF raw data'!I151) -> -258 | B151: =IF('DF raw data'!J151="","",'DF raw data'!J151) -> -1.81501e-05 | C151: =IF('DF raw data'!K151="","",'DF raw data'!K151) -> 0.000176503 | D151: =IF('DF raw data'!L151="","",'DF raw data'!L151) -> -1.04415e-05 | F151: -8.100874811e-07 | G151: 5.297477561e-06 | H151: 1.76051782e-05 | J151: -1.786684772e-06 | K151: 0.0008956129437 | L151: 0.0008003912288 | M151: 0.01998970395 | N151: 1.191624812e-05
A152: =IF('DF raw data'!I152="","",'DF raw data'!I152) -> -257.5 | B152: =IF('DF raw data'!J152="","",'DF raw data'!J152) -> -2.3143e-05 | C152: =IF('DF raw data'!K152="","",'DF raw data'!K152) -> 0.000182357 | D152: =IF('DF raw data'!L152="","",'DF raw data'!L152) -> -1.78815e-05 | F152: -5.827951981e-06 | G152: 1.118074756e-05 | H152: 1.01279782e-05 | J152: -4.700660762e-06 | K152: 0.0008932626134 | L152: 0.0008059816026 | M152: 0.02039269475 | N152: 1.224106234e-05
A153: =IF('DF raw data'!I153="","",'DF raw data'!I153) -> -257 | B153: =IF('DF raw data'!J153="","",'DF raw data'!J153) -> -2.16075e-05 | C153: =IF('DF raw data'!K153="","",'DF raw data'!K153) -> 0.000181938 | D153: =IF('DF raw data'!L153="","",'DF raw data'!L153) -> -1.43728e-05 | F153: -4.284774481e-06 | G153: 1.075965256e-05 | H153: 1.36542217e-05 | J153: -6.843048003e-06 | K153: 0.0008898410894 | L153: 0.0008113614289 | M153: 0.02079837546 | N153: 1.257023943e-05
A154: =IF('DF raw data'!I154="","",'DF raw data'!I154) -> -256.5 | B154: =IF('DF raw data'!J154="","",'DF raw data'!J154) -> -2.55736e-05 | C154: =IF('DF raw data'!K154="","",'DF raw data'!K154) -> 0.000173358 | D154: =IF('DF raw data'!L154="","",'DF raw data'!L154) -> -2.43534e-05 | F154: -8.270704981e-06 | G154: 2.136752561e-06 | H154: 3.623718695e-06 | J154: -1.097840049e-05 | K154: 0.0008843518891 | L154: 0.0008124298052 | M154: 0.02120459036 | N154: 1.290032079e-05
A155: =IF('DF raw data'!I155="","",'DF raw data'!I155) -> -256 | B155: =IF('DF raw data'!J155="","",'DF raw data'!J155) -> -2.6542e-05 | C155: =IF('DF raw data'!K155="","",'DF raw data'!K155) -> 0.000186021 | D155: =IF('DF raw data'!L155="","",'DF raw data'!L155) -> -1.36108e-05 | F155: -9.243946981e-06 | G155: 1.486306756e-05 | H155: 1.44200317e-05 | J155: -1.560037398e-05 | K155: 0.0008765517021 | L155: 0.000819861339 | M155: 0.02161452103 | N155: 1.323652878e-05
A156: =IF('DF raw data'!I156="","",'DF raw data'!I156) -> -255.5 | B156: =IF('DF raw data'!J156="","",'DF raw data'!J156) -> -2.27597e-05 | C156: =IF('DF raw data'!K156="","",'DF raw data'!K156) -> 0.000180911 | D156: =IF('DF raw data'!L156="","",'DF raw data'!L156) -> -1.57323e-05 | F156: -5.442735481e-06 | G156: 9.727517561e-06 | H156: 1.22879242e-05 | J156: -1.832174172e-05 | K156: 0.0008673908313 | L156: 0.0008247250977 | M156: 0.02202688358 | N156: 1.357678237e-05
A157: =IF('DF raw data'!I157="","",'DF raw data'!I157) -> -255 | B157: =IF('DF raw data'!J157="","",'DF raw data'!J157) -> -1.35969e-05 | C157: =IF('DF raw data'!K157="","",'DF raw data'!K157) -> 0.000185539 | D157: =IF('DF raw data'!L157="","",'DF raw data'!L157) -> -1.63959e-05 | F157: 3.765878519e-06 | G157: 1.437865756e-05 | H157: 1.16210062e-05 | J157: -1.643880246e-05 | K157: 0.00085917143 | L157: 0.0008319144265 | M157: 0.0224428408 | N157: 1.392295829e-05
A158: =IF('DF raw data'!I158="","",'DF raw data'!I158) -> -254.5 | B158: =IF('DF raw data'!J158="","",'DF raw data'!J158) -> -2.82621e-05 | C158: =IF('DF raw data'!K158="","",'DF raw data'!K158) -> 0.000188052 | D158: =IF('DF raw data'!L158="","",'DF raw data'!L158) -> -2.81591e-05 | F158: -1.097264748e-05 | G158: 1.690422256e-05 | H158: -2.010098049e-07 | J158: -2.192512621e-05 | K158: 0.0008482088669 | L158: 0.0008403665378 | M158: 0.02286302407 | N158: 1.427630661e-05
A159: =IF('DF raw data'!I159="","",'DF raw data'!I159) -> -254 | B159: =IF('DF raw data'!J159="","",'DF raw data'!J159) -> -2.78183e-05 | C159: =IF('DF raw data'!K159="","",'DF raw data'!K159) -> 0.000181893 | D159: =IF('DF raw data'!L159="","",'DF raw data'!L159) -> -2.14808e-05 | F159: -1.052662848e-05 | G159: 1.071442756e-05 | H159: 6.510681695e-06 | J159: -2.718844045e-05 | K159: 0.0008346146467 | L159: 0.0008457237516 | M159: 0.02328588594 | N159: 1.463430055e-05
A160: =IF('DF raw data'!I160="","",'DF raw data'!I160) -> -253.5 | B160: =IF('DF raw data'!J160="","",'DF raw data'!J160) -> -2.32715e-05 | C160: =IF('DF raw data'!K160="","",'DF raw data'!K160) -> 0.000182308 | D160: =IF('DF raw data'!L160="","",'DF raw data'!L160) -> -1.74112e-05 | F160: -5.957094481e-06 | G160: 1.113150256e-05 | H160: 1.06006297e-05 | J160: -3.016698769e-05 | K160: 0.0008195311529 | L160: 0.0008512895029 | M160: 0.02371153069 | N160: 1.499710248e-05
A161: =IF('DF raw data'!I161="","",'DF raw data'!I161) -> -253 | B161: =IF('DF raw data'!J161="","",'DF raw data'!J161) -> -2.20559e-05 | C161: =IF('DF raw data'!K161="","",'DF raw data'!K161) -> 0.000185401 | D161: =IF('DF raw data'!L161="","",'DF raw data'!L161) -> -1.46668e-05 | F161: -4.735416481e-06 | G161: 1.423996756e-05 | H161: 1.33587517e-05 | J161: -3.253469593e-05 | K161: 0.0008032638049 | L161: 0.0008584094866 | M161: 0.02414073544 | N161: 1.536606515e-05
A162: =IF('DF raw data'!I162="","",'DF raw data'!I162) -> -252.5 | B162: =IF('DF raw data'!J162="","",'DF raw data'!J162) -> -2.59043e-05 | C162: =IF('DF raw data'!K162="","",'DF raw data'!K162) -> 0.00018365 | D162: =IF('DF raw data'!L162="","",'DF raw data'!L162) -> -8.26431e-06 | F162: -8.603058481e-06 | G162: 1.248021256e-05 | H162: 1.979325415e-05 | J162: -3.683622517e-05 | K162: 0.0007848456923 | L162: 0.0008646495929 | M162: 0.02457306023 | N162: 1.574055307e-05
A163: =IF('DF raw data'!I163="","",'DF raw data'!I163) -> -252 | B163: =IF('DF raw data'!J163="","",'DF raw data'!J163) -> -2.41114e-05 | C163: =IF('DF raw data'!K163="","",'DF raw data'!K163) -> 0.00017595 | D163: =IF('DF raw data'!L163="","",'DF raw data'!L163) -> -6.64016e-06 | F163: -6.801193981e-06 | G163: 4.741712561e-06 | H163: 2.14255249e-05 | J163: -4.023682216e-05 | K163: 0.0007647272812 | L163: 0.0008670204492 | M163: 0.02500657046 | N163: 1.61172248e-05
A164: =IF('DF raw data'!I164="","",'DF raw data'!I164) -> -251.5 | B164: =IF('DF raw data'!J164="","",'DF raw data'!J164) -> -2.94927e-05 | C164: =IF('DF raw data'!K164="","",'DF raw data'!K164) -> 0.00017062 | D164: =IF('DF raw data'!L164="","",'DF raw data'!L164) -> -8.13098e-06 | F164: -1.220940048e-05 | G164: -6.14937439e-07 | H164: 1.99272508e-05 | J164: -4.63415224e-05 | K164: 0.00074155652 | L164: 0.0008667129805 | M164: 0.02543992695 | N164: 1.649389426e-05
A165: =IF('DF raw data'!I165="","",'DF raw data'!I165) -> -251 | B165: =IF('DF raw data'!J165="","",'DF raw data'!J165) -> -2.04589e-05 | C165: =IF('DF raw data'!K165="","",'DF raw data'!K165) -> 0.000173217 | D165: =IF('DF raw data'!L165="","",'DF raw data'!L165) -> -6.92836e-06 | F165: -3.130431481e-06 | G165: 1.995047561e-06 | H165: 2.11358839e-05 | J165: -4.790673814e-05 | K165: 0.000717603151 | L165: 0.0008677105043 | M165: 0.0258737822 | N165: 1.687150255e-05
A166: =IF('DF raw data'!I166="","",'DF raw data'!I166) -> -250.5 | B166: =IF('DF raw data'!J166="","",'DF raw data'!J166) -> -2.02613e-05 | C166: =IF('DF raw data'!K166="","",'DF raw data'!K166) -> 0.000177547 | D166: =IF('DF raw data'!L166="","",'DF raw data'!L166) -> -1.54253e-05 | F166: -2.931843481e-06 | G166: 6.346697561e-06 | H166: 1.25964592e-05 | J166: -4.937265988e-05 | K166: 0.000692916821 | L166: 0.000870883853 | M166: 0.02630922413 | N166: 1.725194072e-05
A167: =IF('DF raw data'!I167="","",'DF raw data'!I167) -> -250 | B167: =IF('DF raw data'!J167="","",'DF raw data'!J167) -> -2.48122e-05 | C167: =IF('DF raw data'!K167="","",'DF raw data'!K167) -> 0.000176098 | D167: =IF('DF raw data'!L167="","",'DF raw data'!L167) -> -1.29986e-05 | F167: -7.505497981e-06 | G167: 4.890452561e-06 | H167: 1.50352927e-05 | J167: -5.312540887e-05 | K167: 0.0006663541166 | L167: 0.0008733290793 | M167: 0.02674588867 | N167: 1.763470372e-05
A168: =IF('DF raw data'!I168="","",'DF raw data'!I168) -> -249.5 | B168: =IF('DF raw data'!J168="","",'DF raw data'!J168) -> -1.67997e-05 | C168: =IF('DF raw data'!K168="","",'DF raw data'!K168) -> 0.000179061 | D168: =IF('DF raw data'!L168="","",'DF raw data'!L168) -> -1.751e-05 | F168: 5.470645189e-07 | G168: 7.868267561e-06 | H168: 1.05013357e-05 | J168: -5.285187661e-05 | K168: 0.0006399281783 | L168: 0.0008772632131 | M168: 0.02718452027 | N168: 1.802089575e-05
A169: =IF('DF raw data'!I169="","",'DF raw data'!I169) -> -249 | B169: =IF('DF raw data'!J169="","",'DF raw data'!J169) -> -3.50036e-05 | C169: =IF('DF raw data'!K169="","",'DF raw data'!K169) -> 0.000182004 | D169: =IF('DF raw data'!L169="","",'DF raw data'!L169) -> -7.60149e-06 | F169: -1.774785498e-05 | G169: 1.082598256e-05 | H169: 2.045938825e-05 | J169: -6.17258041e-05 | K169: 0.0006090652762 | L169: 0.0008826762044 | M169: 0.02762585837 | N169: 1.841235943e-05
A170: =IF('DF raw data'!I170="","",'DF raw data'!I170) -> -248.5 | B170: =IF('DF raw data'!J170="","",'DF raw data'!J170) -> -1.72523e-05 | C170: =IF('DF raw data'!K170="","",'DF raw data'!K170) -> 0.000187118 | D170: =IF('DF raw data'!L170="","",'DF raw data'!L170) -> -1.14049e-05 | F170: 9.22015189e-08 | G170: 1.596555256e-05 | H170: 1.66369612e-05 | J170: -6.167970334e-05 | K170: 0.0005782254246 | L170: 0.0008906589807 | M170: 0.02807118786 | N170: 1.881089833e-05
A171: =IF('DF raw data'!I171="","",'DF raw data'!I171) -> -248 | B171: =IF('DF raw data'!J171="","",'DF raw data'!J171) -> -3.25604e-05 | C171: =IF('DF raw data'!K171="","",'DF raw data'!K171) -> 0.000187531 | D171: =IF('DF raw data'!L171="","",'DF raw data'!L171) -> -2.01909e-05 | F171: -1.529243898e-05 | G171: 1.638061756e-05 | H171: 7.807031195e-06 | J171: -6.932592283e-05 | K171: 0.0005435624631 | L171: 0.0008988492895 | M171: 0.02852061251 | N171: 1.92172664e-05
A172: =IF('DF raw data'!I172="","",'DF raw data'!I172) -> -247.5 | B172: =IF('DF raw data'!J172="","",'DF raw data'!J172) -> -2.67348e-05 | C172: =IF('DF raw data'!K172="","",'DF raw data'!K172) -> 0.000182247 | D172: =IF('DF raw data'!L172="","",'DF raw data'!L172) -> -1.22378e-05 | F172: -9.437710981e-06 | G172: 1.107019756e-05 | H172: 1.57998967e-05 | J172: -7.404477832e-05 | K172: 0.000506540074 | L172: 0.0009043843882 | M172: 0.0289728047 | N172: 1.962896327e-05
A173: =IF('DF raw data'!I173="","",'DF raw data'!I173) -> -247 | B173: =IF('DF raw data'!J173="","",'DF raw data'!J173) -> -2.50046e-05 | C173: =IF('DF raw data'!K173="","",'DF raw data'!K173) -> 0.000177759 | D173: =IF('DF raw data'!L173="","",'DF raw data'!L173) -> -1.24203e-05 | F173: -7.698859981e-06 | G173: 6.559757561e-06 | H173: 1.56164842e-05 | J173: -7.789420831e-05 | K173: 0.0004675929698 | L173: 0.000907664267 | M173: 0.02942663684 | N173: 2.004392424e-05
A174: =IF('DF raw data'!I174="","",'DF raw data'!I174) -> -246.5 | B174: =IF('DF raw data'!J174="","",'DF raw data'!J174) -> -2.5003e-05 | C174: =IF('DF raw data'!K174="","",'DF raw data'!K174) -> 0.000177417 | D174: =IF('DF raw data'!L174="","",'DF raw data'!L174) -> -1.49597e-05 | F174: -7.697251981e-06 | G174: 6.216047561e-06 | H174: 1.30643872e-05 | J174: -8.17428343e-05 | K174: 0.0004267215527 | L174: 0.0009107722908 | M174: 0.02988202298 | N174: 2.046201826e-05
A175: =IF('DF raw data'!I175="","",'DF raw data'!I175) -> -246 | B175: =IF('DF raw data'!J175="","",'DF raw data'!J175) -> -2.48765e-05 | C175: =IF('DF raw data'!K175="","",'DF raw data'!K175) -> 0.000179451 | D175: =IF('DF raw data'!L175="","",'DF raw data'!L175) -> -1.24121e-05 | F175: -7.570119481e-06 | G175: 8.260217561e-06 | H175: 1.56247252e-05 | J175: -8.552789404e-05 | K175: 0.0003839576057 | L175: 0.0009149023996 | M175: 0.03033947418 | N175: 2.088419897e-05
A176: =IF('DF raw data'!I176="","",'DF raw data'!I176) -> -245.5 | B176: =IF('DF raw data'!J176="","",'DF raw data'!J176) -> -3.20517e-05 | C176: =IF('DF raw data'!K176="","",'DF raw data'!K176) -> 0.000160382 | D176: =IF('DF raw data'!L176="","",'DF raw data'!L176) -> -1.42947e-05 | F176: -1.478119548e-05 | G176: -1.090412744e-05 | H176: 1.37327122e-05 | J176: -9.291849179e-05 | K176: 0.0003374983598 | L176: 0.0009094503359 | M176: 0.03079419935 | N176: 2.130206585e-05
A177: =IF('DF raw data'!I177="","",'DF raw data'!I177) -> -245 | B177: =IF('DF raw data'!J177="","",'DF raw data'!J177) -> -2.51987e-05 | C177: =IF('DF raw data'!K177="","",'DF raw data'!K177) -> 0.000159901 | D177: =IF('DF raw data'!L177="","",'DF raw data'!L177) -> -9.64754e-06 | F177: -7.893930481e-06 | G177: -1.138753244e-05 | H177: 1.8403108e-05 | J177: -9.686545703e-05 | K177: 0.0002890656312 | L177: 0.0009037565696 | M177: 0.03124607763 | N177: 2.171514528e-05
A178: =IF('DF raw data'!I178="","",'DF raw data'!I178) -> -244.5 | B178: =IF('DF raw data'!J178="","",'DF raw data'!J178) -> -2.66651e-05 | C178: =IF('DF raw data'!K178="","",'DF raw data'!K178) -> 0.000170811 | D178: =IF('DF raw data'!L178="","",'DF raw data'!L178) -> -2.12292e-05 | F178: -9.367662481e-06 | G178: -4.22982439e-07 | H178: 6.763539695e-06 | J178: -0.0001015492883 | K178: 0.0002382909871 | L178: 0.0009035450784 | M178: 0.03169785017 | N178: 2.212849826e-05
A179: =IF('DF raw data'!I179="","",'DF raw data'!I179) -> -244 | B179: =IF('DF raw data'!J179="","",'DF raw data'!J179) -> -2.96736e-05 | C179: =IF('DF raw data'!K179="","",'DF raw data'!K179) -> 0.000170185 | D179: =IF('DF raw data'!L179="","",'DF raw data'!L179) -> -2.54775e-05 | F179: -1.239120498e-05 | G179: -1.052112439e-06 | H179: 2.493998195e-06 | J179: -0.0001077448908 | K179: 0.0001844185417 | L179: 0.0009030190222 | M179: 0.03214935969 | N179: 2.254202442e-05
A180: =IF('DF raw data'!I180="","",'DF raw data'!I180) -> -243.5 | B180: =IF('DF raw data'!J180="","",'DF raw data'!J180) -> -3.01276e-05 | C180: =IF('DF raw data'!K180="","",'DF raw data'!K180) -> 0.000179216 | D180: =IF('DF raw data'!L180="","",'DF raw data'!L180) -> -1.73052e-05 | F180: -1.284747498e-05 | G180: 8.024042561e-06 | H180: 1.07071597e-05 | J180: -0.0001141686282 | K180: 0.0001273342276 | L180: 0.0009070310435 | M180: 0.03260287521 | N180: 2.295989432e-05
A181: =IF('DF raw data'!I181="","",'DF raw data'!I181) -> -243 | B181: =IF('DF raw data'!J181="","",'DF raw data'!J181) -> -2.99302e-05 | C181: =IF('DF raw data'!K181="","",'DF raw data'!K181) -> 0.000180482 | D181: =IF('DF raw data'!L181="","",'DF raw data'!L181) -> -2.53479e-05 | F181: -1.264908798e-05 | G181: 9.296372561e-06 | H181: 2.624246195e-06 | J181: -0.0001204931722 | K181: 6.708764149e-05 | L181: 0.0009116792298 | M181: 0.03305871482 | N181: 2.338273313e-05
A182: =IF('DF raw data'!I182="","",'DF raw data'!I182) -> -242.5 | B182: =IF('DF raw data'!J182="","",'DF raw data'!J182) -> -4.01205e-05 | C182: =IF('DF raw data'!K182="","",'DF raw data'!K182) -> 0.000177848 | D182: =IF('DF raw data'!L182="","",'DF raw data'!L182) -> -2.186e-05 | F182: -2.289033948e-05 | G182: 6.649202561e-06 | H182: 6.129585695e-06 | J182: -0.000131938342 | K182: 1.118470505e-06 | L182: 0.000915003831 | M182: 0.03351621674 | N182: 2.3810053e-05
A183: =IF('DF raw data'!I183="","",'DF raw data'!I183) -> -242 | B183: =IF('DF raw data'!J183="","",'DF raw data'!J183) -> -2.80168e-05 | C183: =IF('DF raw data'!K183="","",'DF raw data'!K183) -> 0.000175586 | D183: =IF('DF raw data'!L183="","",'DF raw data'!L183) -> -1.1493e-05 | F183: -1.072612098e-05 | G183: 4.375892561e-06 | H183: 1.65484207e-05 | J183: -0.0001373014025 | K183: -6.753223073e-05 | L183: 0.0009171917773 | M183: 0.03397481263 | N183: 2.424009921e-05
A184: =IF('DF raw data'!I184="","",'DF raw data'!I184) -> -241.5 | B184: =IF('DF raw data'!J184="","",'DF raw data'!J184) -> -2.20029e-05 | C184: =IF('DF raw data'!K184="","",'DF raw data'!K184) -> 0.000160739 | D184: =IF('DF raw data'!L184="","",'DF raw data'!L184) -> 2.63506e-06 | F184: -4.682151481e-06 | G184: -1.054534244e-05 | H184: 3.0747121e-05 | J184: -0.0001396424782 | K184: -0.0001373534698 | L184: 0.0009119191061 | M184: 0.03443077218 | N184: 2.466564745e-05
A185: =IF('DF raw data'!I185="","",'DF raw data'!I185) -> -241 | B185: =IF('DF raw data'!J185="","",'DF raw data'!J185) -> -2.62897e-05 | C185: =IF('DF raw data'!K185="","",'DF raw data'!K185) -> 0.000169586 | D185: =IF('DF raw data'!L185="","",'DF raw data'!L185) -> -6.72412e-06 | F185: -8.990385481e-06 | G185: -1.654107439e-06 | H185: 2.13411451e-05 | J185: -0.000144137671 | K185: -0.0002094223053 | L185: 0.0009110920524 | M185: 0.03488631821 | N185: 2.509107965e-05
A186: =IF('DF raw data'!I186="","",'DF raw data'!I186) -> -240.5 | B186: =IF('DF raw data'!J186="","",'DF raw data'!J186) -> -2.37233e-05 | C186: =IF('DF raw data'!K186="","",'DF raw data'!K186) -> 0.000183894 | D186: =IF('DF raw data'!L186="","",'DF raw data'!L186) -> -1.23013e-05 | F186: -6.411153481e-06 | G186: 1.272543256e-05 | H186: 1.57360792e-05 | J186: -0.0001473432477 | K186: -0.0002830939292 | L186: 0.0009174547687 | M186: 0.03534504559 | N186: 2.552279629e-05
A187: =IF('DF raw data'!I187="","",'DF raw data'!I187) -> -240 | B187: =IF('DF raw data'!J187="","",'DF raw data'!J187) -> -2.1097e-05 | C187: =IF('DF raw data'!K187="","",'DF raw data'!K187) -> 0.000180884 | D187: =IF('DF raw data'!L187="","",'DF raw data'!L187) -> -1.09578e-05 | F187: -3.771721981e-06 | G187: 9.700382561e-06 | H187: 1.70862967e-05 | J187: -0.0001492291087 | K187: -0.0003577084835 | L187: 0.0009223049599 | M187: 0.03580619807 | N187: 2.595925418e-05
A188: =IF('DF raw data'!I188="","",'DF raw data'!I188) -> -239.5 | B188: =IF('DF raw data'!J188="","",'DF raw data'!J188) -> -2.02552e-05 | C188: =IF('DF raw data'!K188="","",'DF raw data'!K188) -> 0.000176361 | D188: =IF('DF raw data'!L188="","",'DF raw data'!L188) -> -2.48892e-05 | F188: -2.925712981e-06 | G188: 5.154767561e-06 | H188: 3.085239695e-06 | J188: -0.0001506919652 | K188: -0.0004330544661 | L188: 0.0009248823437 | M188: 0.03626863924 | N188: 2.639831188e-05
A189: =IF('DF raw data'!I189="","",'DF raw data'!I189) -> -239 | B189: =IF('DF raw data'!J189="","",'DF raw data'!J189) -> -2.08435e-05 | C189: =IF('DF raw data'!K189="","",'DF raw data'!K189) -> 0.000187552 | D189: =IF('DF raw data'!L189="","",'DF raw data'!L189) -> -6.65637e-06 | F189: -3.516954481e-06 | G189: 1.640172256e-05 | H189: 2.140923385e-05 | J189: -0.0001524504424 | K189: -0.0005092796873 | L189: 0.000933083205 | M189: 0.03673518084 | N189: 2.684525459e-05
A190: =IF('DF raw data'!I190="","",'DF raw data'!I190) -> -238.5 | B190: =IF('DF raw data'!J190="","",'DF raw data'!J190) -> -2.75034e-05 | C190: =IF('DF raw data'!K190="","",'DF raw data'!K190) -> 0.000187585 | D190: =IF('DF raw data'!L190="","",'DF raw data'!L190) -> -1.26828e-05 | F190: -1.021015398e-05 | G190: 1.643488756e-05 | H190: 1.53526717e-05 | J190: -0.0001575555194 | K190: -0.000588057447 | L190: 0.0009413006488 | M190: 0.03720583117 | N190: 2.730068991e-05
A191: =IF('DF raw data'!I191="","",'DF raw data'!I191) -> -238 | B191: =IF('DF raw data'!J191="","",'DF raw data'!J191) -> -2.26337e-05 | C191: =IF('DF raw data'!K191="","",'DF raw data'!K191) -> 0.000174572 | D191: =IF('DF raw data'!L191="","",'DF raw data'!L191) -> -1.25329e-05 | F191: -5.316105481e-06 | G191: 3.356822561e-06 | H191: 1.55033212e-05 | J191: -0.0001602135721 | K191: -0.0006681642331 | L191: 0.0009429790601 | M191: 0.0376773207 | N191: 2.775812886e-05
A192: =IF('DF raw data'!I192="","",'DF raw data'!I192) -> -237.5 | B192: =IF('DF raw data'!J192="","",'DF raw data'!J192) -> -3.75054e-05 | C192: =IF('DF raw data'!K192="","",'DF raw data'!K192) -> 0.000177697 | D192: =IF('DF raw data'!L192="","",'DF raw data'!L192) -> -3.26281e-06 | F192: -2.026216398e-05 | G192: 6.497447561e-06 | H192: 2.481976165e-05 | J192: -0.0001703446541 | K192: -0.0007533365601 | L192: 0.0009462277838 | M192: 0.03815043459 | N192: 2.822031102e-05
A193: =IF('DF raw data'!I193="","",'DF raw data'!I193) -> -237 | B193: =IF('DF raw data'!J193="","",'DF raw data'!J193) -> -2.55185e-05 | C193: =IF('DF raw data'!K193="","",'DF raw data'!K193) -> 0.000185826 | D193: =IF('DF raw data'!L193="","",'DF raw data'!L193) -> -1.03413e-05 | F193: -8.215329481e-06 | G193: 1.466709256e-05 | H193: 1.77058792e-05 | J193: -0.0001744523189 | K193: -0.0008405627196 | L193: 0.0009535613301 | M193: 0.03862721526 | N193: 2.869016743e-05
A194: =IF('DF raw data'!I194="","",'DF raw data'!I194) -> -236.5 | B194: =IF('DF raw data'!J194="","",'DF raw data'!J194) -> -2.71306e-05 | C194: =IF('DF raw data'!K194="","",'DF raw data'!K194) -> 0.000187774 | D194: =IF('DF raw data'!L194="","",'DF raw data'!L194) -> 5.21497e-06 | F194: -9.835489981e-06 | G194: 1.662483256e-05 | H194: 3.333993055e-05 | J194: -0.0001793700639 | K194: -0.0009302477515 | L194: 0.0009618737464 | M194: 0.03910815213 | N194: 2.916885479e-05
A195: =IF('DF raw data'!I195="","",'DF raw data'!I195) -> -236 | B195: =IF('DF raw data'!J195="","",'DF raw data'!J195) -> -2.40508e-05 | C195: =IF('DF raw data'!K195="","",'DF raw data'!K195) -> 0.000182257 | D195: =IF('DF raw data'!L195="","",'DF raw data'!L195) -> -1.37871e-06 | F195: =(1-$G$1*($B$54-$G$2))*(B195-F$5) -> -6.740290981e-06 | G195: =(1-$G$1*($B$54-$G$2))*(C195-G$5) -> 1.108024756e-05 | H195: =(1-$G$1*($B$54-$G$2))*(D195-H$5) -> 2.671328215e-05 | J195: -0.0001827402094 | K195: -0.001021617856 | L195: 0.0009674138702 | M195: 0.03959185906 | N195: 2.965349658e-05
A196: =IF('DF raw data'!I196="","",'DF raw data'!I196) -> -235.5 | B196: =IF('DF raw data'!J196="","",'DF raw data'!J196) -> -2.95521e-05 | C196: =IF('DF raw data'!K196="","",'DF raw data'!K196) -> 0.000180934 | D196: =IF('DF raw data'!L196="","",'DF raw data'!L196) -> -1.52873e-05 | F196: -1.226909748e-05 | G196: 9.750632561e-06 | H196: 1.27351492e-05 | J196: =F196*$G$3+J195 -> -0.0001888747581 | K196: =J196*$G$3+K195 -> -0.001116055235 | L196: =G196*$G$3+L195 -> 0.0009722891865 | M196: =L196*$G$3+M195 -> 0.04007800366 | N196: =(J196^2+L196^2)*$G$3+N195 -> 3.014400655e-05
A197: =IF('DF raw data'!I197="","",'DF raw data'!I197) -> -235 | B197: =IF('DF raw data'!J197="","",'DF raw data'!J197) -> -3.55066e-05 | C197: =IF('DF raw data'!K197="","",'DF raw data'!K197) -> 0.000185684 | D197: =IF('DF raw data'!L197="","",'DF raw data'!L197) -> -2.23187e-05 | F197: -1.825336998e-05 | G197: 1.452438256e-05 | H197: 5.668592195e-06 | J197: -0.0001980014431 | K197: -0.001215055957 | L197: 0.0009795513777 | M197: 0.04056777935 | N197: 3.064336929e-05
A198: =IF('DF raw data'!I198="","",'DF raw data'!I198) -> -234.5 | B198: =IF('DF raw data'!J198="","",'DF raw data'!J198) -> -2.76346e-05 | C198: =IF('DF raw data'!K198="","",'DF raw data'!K198) -> 0.000183756 | D198: =IF('DF raw data'!L198="","",'DF raw data'!L198) -> -7.99818e-06 | F198: -1.034200998e-05 | G198: 1.258674256e-05 | H198: 2.00607148e-05 | J198: -0.0002031724481 | K198: -0.001316642181 | L198: 0.000985844749 | M198: 0.04106070172 | N198: 3.114995375e-05
A199: =IF('DF raw data'!I199="","",'DF raw data'!I199) -> -234 | B199: =IF('DF raw data'!J199="","",'DF raw data'!J199) -> -2.13541e-05 | C199: =IF('DF raw data'!K199="","",'DF raw data'!K199) -> 0.000179483 | D199: =IF('DF raw data'!L199="","",'DF raw data'!L199) -> -9.66126e-06 | F199: -4.030107481e-06 | G199: 8.292377561e-06 | H199: 1.83893194e-05 | J199: -0.0002051875018 | K199: -0.001419235932 | L199: 0.0009899909378 | M199: 0.04155569719 | N199: 3.166104573e-05
A200: =IF('DF raw data'!I200="","",'DF raw data'!I200) -> -233.5 | B200: =IF('DF raw data'!J200="","",'DF raw data'!J200) -> -2.79426e-05 | C200: =IF('DF raw data'!K200="","",'DF raw data'!K200) -> 0.000183613 | D200: =IF('DF raw data'!L200="","",'DF raw data'!L200) -> -2.73125e-05 | F200: -1.065154998e-05 | G200: 1.244302756e-05 | H200: 6.498231951e-07 | J200: -0.0002105132768 | K200: -0.00152449257 | L200: 0.0009962124516 | M200: 0.04205380341 | N200: 3.217942327e-05
... 1079 more rows

Sheet 30 mm
A1: =IF('DF raw data'!M1="","",'DF raw data'!M1) -> Number of header lines | B1: =IF('DF raw data'!N1="","",'DF raw data'!N1) -> 54 | C1: =IF('DF raw data'!C1="","",'DF raw data'!C1) ->  | D1: =IF('DF raw data'!D1="","",'DF raw data'!D1) ->  | F1: T_coeff | G1: -0.001 | H1: /degC | J1: IBy total | K1: =J1267*1000 -> 11.59315988 | L1: muTm | M1: =L1267*1000 -> -2.228170175 | R1: DF ref | S1: 1
A2: =IF('DF raw data'!M2="","",'DF raw data'!M2) -> Measured by | B2: =IF('DF raw data'!N2="","",'DF raw data'!N2) -> Danfysik | C2: =IF('DF raw data'!C2="","",'DF raw data'!C2) ->  | D2: =IF('DF raw data'!D2="","",'DF raw data'!D2) ->  | F2: Tcorr | G2: 20 | H2: degC | J2: JBy total | K2: =K1267 -> 1.557776899 | L2: muTm^2 | M2: =M1267 -> 2.225769345
A3: =IF('DF raw data'!M3="","",'DF raw data'!M3) -> Operator | B3: =IF('DF raw data'!N3="","",'DF raw data'!N3) -> PMHA | C3: =IF('DF raw data'!C3="","",'DF raw data'!C3) ->  | D3: =IF('DF raw data'!D3="","",'DF raw data'!D3) ->  | F3: Step | G3: =A68-A67 -> 0.5 | H3: mm | J3: PI total | K3: =N1267 -> 2423.782143 | L3: T^2mm^3
A4: =IF('DF raw data'!M4="","",'DF raw data'!M4) -> Data-time | B4: =IF('DF raw data'!N4="","",'DF raw data'!N4) -> 09-09-2024, 14:41:56 | C4: =IF('DF raw data'!C4="","",'DF raw data'!C4) ->  | D4: =IF('DF raw data'!D4="","",'DF raw data'!D4) -> 
A5: =IF('DF raw data'!M5="","",'DF raw data'!M5) -> Project | B5: =IF('DF raw data'!N5="","",'DF raw data'!N5) -> 504314 | C5: =IF('DF raw data'!C5="","",'DF raw data'!C5) ->  | D5: Bamb avr | F5: =(AVERAGE(B67:B107) + AVERAGE(B1227:B1267))/2 -> -2.098794267e-05 | G5: =(AVERAGE(C67:C107) + AVERAGE(C1227:C1267))/2 -> 0.0002079517561 | H5: =(AVERAGE(D67:D107) + AVERAGE(D1227:D1267))/2 -> -2.468849732e-05
A6: =IF('DF raw data'!M6="","",'DF raw data'!M6) -> Magnet type | B6: =IF('DF raw data'!N6="","",'DF raw data'!N6) -> Dipole | C6: =IF('DF raw data'!C6="","",'DF raw data'!C6) -> 
A7: =IF('DF raw data'!M7="","",'DF raw data'!M7) -> Magnet nr. | B7: =IF('DF raw data'!N7="","",'DF raw data'!N7) -> 2410094 | C7: =IF('DF raw data'!C7="","",'DF raw data'!C7) -> 
A8: =IF('DF raw data'!M8="","",'DF raw data'!M8) -> Meas. number | B8: =IF('DF raw data'!N8="","",'DF raw data'!N8) -> 396 | C8: =IF('DF raw data'!C8="","",'DF raw data'!C8) -> 
A9: =IF('DF raw data'!M9="","",'DF raw data'!M9) -> Add. info | B9: =IF('DF raw data'!N9="","",'DF raw data'!N9) -> X-alignment scan 3) | C9: =IF('DF raw data'!C9="","",'DF raw data'!C9) ->  | D9: =IF('DF raw data'!D9="","",'DF raw data'!D9) -> 
A10: =IF('DF raw data'!M10="","",'DF raw data'!M10) -> Device | B10: =IF('DF raw data'!N10="","",'DF raw data'!N10) -> (HAL) HALL-PROBE | C10: =IF('DF raw data'!C10="","",'DF raw data'!C10) ->  | D10: =IF('DF raw data'!D10="","",'DF raw data'!D10) -> 
A11: =IF('DF raw data'!M11="","",'DF raw data'!M11) -> Goal | B11: =IF('DF raw data'!N11="","",'DF raw data'!N11) -> (AXI) AXis Integral (Line, EFB) | C11: =IF('DF raw data'!C11="","",'DF raw data'!C11) ->  | D11: =IF('DF raw data'!D11="","",'DF raw data'!D11) -> 
A12: =IF('DF raw data'!M12="","",'DF raw data'!M12) -> Power supply mode | B12: =IF('DF raw data'!N12="","",'DF raw data'!N12) -> (PM) Permanent Magnet (no MPS in use) | C12: =IF('DF raw data'!C12="","",'DF raw data'!C12) ->  | D12: =IF('DF raw data'!D12="","",'DF raw data'!D12) -> 
A13: =IF('DF raw data'!M13="","",'DF raw data'!M13) -> Data format | B13: =IF('DF raw data'!N13="","",'DF raw data'!N13) -> Raw data text file | C13: =IF('DF raw data'!C13="","",'DF raw data'!C13) ->  | D13: =IF('DF raw data'!D13="","",'DF raw data'!D13) -> 
A14: =IF('DF raw data'!M14="","",'DF raw data'!M14) -> Direction of the pos. x-axis | B14: =IF('DF raw data'!N14="","",'DF raw data'!N14) -> See test program | C14: =IF('DF raw data'!C14="","",'DF raw data'!C14) ->  | D14: =IF('DF raw data'!D14="","",'DF raw data'!D14) -> 
A15: =IF('DF raw data'!M15="","",'DF raw data'!M15) -> Direction of the pos. y-axis | B15: =IF('DF raw data'!N15="","",'DF raw data'!N15) -> Vertical up | C15: =IF('DF raw data'!C15="","",'DF raw data'!C15) ->  | D15: =IF('DF raw data'!D15="","",'DF raw data'!D15) -> 
A16: =IF('DF raw data'!M16="","",'DF raw data'!M16) -> Direction of the pos. z-axis | B16: =IF('DF raw data'!N16="","",'DF raw data'!N16) -> See test program | C16: =IF('DF raw data'!C16="","",'DF raw data'!C16) ->  | D16: =IF('DF raw data'!D16="","",'DF raw data'!D16) -> 
A17: =IF('DF raw data'!M17="","",'DF raw data'!M17) -> Mapper type | B17: =IF('DF raw data'!N17="","",'DF raw data'!N17) -> Precision Hall Mapper | C17: =IF('DF raw data'!C17="","",'DF raw data'!C17) ->  | D17: =IF('DF raw data'!D17="","",'DF raw data'!D17) -> 
A18: =IF('DF raw data'!M18="","",'DF raw data'!M18) -> Mapper Danfysik Reg. Number | B18: =IF('DF raw data'!N18="","",'DF raw data'!N18) -> 2033-D (mapper 1) | C18: =IF('DF raw data'!C18="","",'DF raw data'!C18) ->  | D18: =IF('DF raw data'!D18="","",'DF raw data'!D18) -> 
A19: =IF('DF raw data'!M19="","",'DF raw data'!M19) -> Measurement consept | B19: =IF('DF raw data'!N19="","",'DF raw data'!N19) -> Square line grid | C19: =IF('DF raw data'!C19="","",'DF raw data'!C19) ->  | D19: =IF('DF raw data'!D19="","",'DF raw data'!D19) -> 
A20: =IF('DF raw data'!M20="","",'DF raw data'!M20) -> Mode | B20: =IF('DF raw data'!N20="","",'DF raw data'!N20) -> On-the-fly measurement | C20: =IF('DF raw data'!C20="","",'DF raw data'!C20) ->  | D20: =IF('DF raw data'!D20="","",'DF raw data'!D20) -> 
A21: =IF('DF raw data'!M21="","",'DF raw data'!M21) ->  | B21: =IF('DF raw data'!N21="","",'DF raw data'!N21) ->  | C21: =IF('DF raw data'!C21="","",'DF raw data'!C21) ->  | D21: =IF('DF raw data'!D21="","",'DF raw data'!D21) -> 
A22: =IF('DF raw data'!M22="","",'DF raw data'!M22) -> Probe Name | B22: =IF('DF raw data'!N22="","",'DF raw data'!N22) -> ID12_By | C22: =IF('DF raw data'!C22="","",'DF raw data'!C22) ->  | D22: =IF('DF raw data'!D22="","",'DF raw data'!D22) -> 
A23: =IF('DF raw data'!M23="","",'DF raw data'!M23) -> Probe Type | B23: =IF('DF raw data'!N23="","",'DF raw data'!N23) -> DF_ID_3D_Bxyz | C23: =IF('DF raw data'!C23="","",'DF raw data'!C23) ->  | D23: =IF('DF raw data'!D23="","",'DF raw data'!D23) -> 
A24: =IF('DF raw data'!M24="","",'DF raw data'!M24) -> Probe Danfysik Reg. Number | B24: =IF('DF raw data'!N24="","",'DF raw data'!N24) -> 2277 | C24: =IF('DF raw data'!C24="","",'DF raw data'!C24) ->  | D24: =IF('DF raw data'!D24="","",'DF raw data'!D24) -> 
A25: =IF('DF raw data'!M25="","",'DF raw data'!M25) -> Probe Axis | B25: =IF('DF raw data'!N25="","",'DF raw data'!N25) -> By | C25: =IF('DF raw data'!C25="","",'DF raw data'!C25) ->  | D25: =IF('DF raw data'!D25="","",'DF raw data'!D25) -> 
A26: =IF('DF raw data'!M26="","",'DF raw data'!M26) -> Probe Current Supply | B26: =IF('DF raw data'!N26="","",'DF raw data'!N26) -> 1825-D | C26: =IF('DF raw data'!C26="","",'DF raw data'!C26) ->  | D26: =IF('DF raw data'!D26="","",'DF raw data'!D26) -> 
A27: =IF('DF raw data'!M27="","",'DF raw data'!M27) -> Probe Gain Correction | B27: =IF('DF raw data'!N27="","",'DF raw data'!N27) -> 0.99606 | C27: =IF('DF raw data'!C27="","",'DF raw data'!C27) ->  | D27: =IF('DF raw data'!D27="","",'DF raw data'!D27) -> 
A28: =IF('DF raw data'!M28="","",'DF raw data'!M28) -> Probe Offset Correction | B28: =IF('DF raw data'!N28="","",'DF raw data'!N28) -> 0.002758 | C28: =IF('DF raw data'!C28="","",'DF raw data'!C28) ->  | D28: =IF('DF raw data'!D28="","",'DF raw data'!D28) -> 
A29: =IF('DF raw data'!M29="","",'DF raw data'!M29) -> DVM Number | B29: =IF('DF raw data'!N29="","",'DF raw data'!N29) -> 2 | C29: =IF('DF raw data'!C29="","",'DF raw data'!C29) ->  | D29: =IF('DF raw data'!D29="","",'DF raw data'!D29) -> 
A30: =IF('DF raw data'!M30="","",'DF raw data'!M30) -> DVM Type | B30: =IF('DF raw data'!N30="","",'DF raw data'!N30) -> K2701 | C30: =IF('DF raw data'!C30="","",'DF raw data'!C30) ->  | D30: =IF('DF raw data'!D30="","",'DF raw data'!D30) -> 
A31: =IF('DF raw data'!M31="","",'DF raw data'!M31) -> DVM Danfysik Reg. Number | B31: =IF('DF raw data'!N31="","",'DF raw data'!N31) -> 1743-D | C31: =IF('DF raw data'!C31="","",'DF raw data'!C31) ->  | D31: =IF('DF raw data'!D31="","",'DF raw data'!D31) -> 
A32: =IF('DF raw data'!M32="","",'DF raw data'!M32) -> Probe Name | B32: =IF('DF raw data'!N32="","",'DF raw data'!N32) -> ID12_Bx | C32: =IF('DF raw data'!C32="","",'DF raw data'!C32) ->  | D32: =IF('DF raw data'!D32="","",'DF raw data'!D32) -> 
A33: =IF('DF raw data'!M33="","",'DF raw data'!M33) -> Probe Type | B33: =IF('DF raw data'!N33="","",'DF raw data'!N33) -> DF_ID_3D_Bxyz | C33: =IF('DF raw data'!C33="","",'DF raw data'!C33) ->  | D33: =IF('DF raw data'!D33="","",'DF raw data'!D33) -> 
A34: =IF('DF raw data'!M34="","",'DF raw data'!M34) -> Probe Danfysik Reg. Number | B34: =IF('DF raw data'!N34="","",'DF raw data'!N34) -> 2277 | C34: =IF('DF raw data'!C34="","",'DF raw data'!C34) ->  | D34: =IF('DF raw data'!D34="","",'DF raw data'!D34) -> 
A35: =IF('DF raw data'!M35="","",'DF raw data'!M35) -> Probe Axis | B35: =IF('DF raw data'!N35="","",'DF raw data'!N35) -> Bx | C35: =IF('DF raw data'!C35="","",'DF raw data'!C35) ->  | D35: =IF('DF raw data'!D35="","",'DF raw data'!D35) -> 
A36: =IF('DF raw data'!M36="","",'DF raw data'!M36) -> Probe Current Supply | B36: =IF('DF raw data'!N36="","",'DF raw data'!N36) -> 1825-D | C36: =IF('DF raw data'!C36="","",'DF raw data'!C36) ->  | D36: =IF('DF raw data'!D36="","",'DF raw data'!D36) -> 
A37: =IF('DF raw data'!M37="","",'DF raw data'!M37) -> Probe Gain Correction | B37: =IF('DF raw data'!N37="","",'DF raw data'!N37) -> 1 | C37: =IF('DF raw data'!C37="","",'DF raw data'!C37) ->  | D37: =IF('DF raw data'!D37="","",'DF raw data'!D37) -> 
A38: =IF('DF raw data'!M38="","",'DF raw data'!M38) -> Probe Offset Correction | B38: =IF('DF raw data'!N38="","",'DF raw data'!N38) -> -0.17551 | C38: =IF('DF raw data'!C38="","",'DF raw data'!C38) ->  | D38: =IF('DF raw data'!D38="","",'DF raw data'!D38) -> 
A39: =IF('DF raw data'!M39="","",'DF raw data'!M39) -> DVM Number | B39: =IF('DF raw data'!N39="","",'DF raw data'!N39) -> 3 | C39: =IF('DF raw data'!C39="","",'DF raw data'!C39) ->  | D39: =IF('DF raw data'!D39="","",'DF raw data'!D39) -> 
A40: =IF('DF raw data'!M40="","",'DF raw data'!M40) -> DVM Type | B40: =IF('DF raw data'!N40="","",'DF raw data'!N40) -> K2701 | C40: =IF('DF raw data'!C40="","",'DF raw data'!C40) ->  | D40: =IF('DF raw data'!D40="","",'DF raw data'!D40) -> 
A41: =IF('DF raw data'!M41="","",'DF raw data'!M41) -> DVM Danfysik Reg. Number | B41: =IF('DF raw data'!N41="","",'DF raw data'!N41) -> 1744-D | C41: =IF('DF raw data'!C41="","",'DF raw data'!C41) ->  | D41: =IF('DF raw data'!D41="","",'DF raw data'!D41) -> 
A42: =IF('DF raw data'!M42="","",'DF raw data'!M42) -> Probe Name | B42: =IF('DF raw data'!N42="","",'DF raw data'!N42) -> ID12_Bz | C42: =IF('DF raw data'!C42="","",'DF raw data'!C42) ->  | D42: =IF('DF raw data'!D42="","",'DF raw data'!D42) -> 
A43: =IF('DF raw data'!M43="","",'DF raw data'!M43) -> Probe Type | B43: =IF('DF raw data'!N43="","",'DF raw data'!N43) -> DF_ID_3D_Bxyz | C43: =IF('DF raw data'!C43="","",'DF raw data'!C43) ->  | D43: =IF('DF raw data'!D43="","",'DF raw data'!D43) -> 
A44: =IF('DF raw data'!M44="","",'DF raw data'!M44) -> Probe Danfysik Reg. Number | B44: =IF('DF raw data'!N44="","",'DF raw data'!N44) -> 2277 | C44: =IF('DF raw data'!C44="","",'DF raw data'!C44) ->  | D44: =IF('DF raw data'!D44="","",'DF raw data'!D44) -> 
A45: =IF('DF raw data'!M45="","",'DF raw data'!M45) -> Probe Axis | B45: =IF('DF raw data'!N45="","",'DF raw data'!N45) -> Bz | C45: =IF('DF raw data'!C45="","",'DF raw data'!C45) ->  | D45: =IF('DF raw data'!D45="","",'DF raw data'!D45) -> 
A46: =IF('DF raw data'!M46="","",'DF raw data'!M46) -> Probe Current Supply | B46: =IF('DF raw data'!N46="","",'DF raw data'!N46) -> 1825-D | C46: =IF('DF raw data'!C46="","",'DF raw data'!C46) ->  | D46: =IF('DF raw data'!D46="","",'DF raw data'!D46) -> 
A47: =IF('DF raw data'!M47="","",'DF raw data'!M47) -> Probe Gain Correction | B47: =IF('DF raw data'!N47="","",'DF raw data'!N47) -> 1 | C47: =IF('DF raw data'!C47="","",'DF raw data'!C47) ->  | D47: =IF('DF raw data'!D47="","",'DF raw data'!D47) -> 
A48: =IF('DF raw data'!M48="","",'DF raw data'!M48) -> Probe Offset Correction | B48: =IF('DF raw data'!N48="","",'DF raw data'!N48) -> 0.0073096 | C48: =IF('DF raw data'!C48="","",'DF raw data'!C48) ->  | D48: =IF('DF raw data'!D48="","",'DF raw data'!D48) -> 
A49: =IF('DF raw data'!M49="","",'DF raw data'!M49) -> DVM Number | B49: =IF('DF raw data'!N49="","",'DF raw data'!N49) -> 8 | C49: =IF('DF raw data'!C49="","",'DF raw data'!C49) ->  | D49: =IF('DF raw data'!D49="","",'DF raw data'!D49) -> 
A50: =IF('DF raw data'!M50="","",'DF raw data'!M50) -> DVM Type | B50: =IF('DF raw data'!N50="","",'DF raw data'!N50) -> K2700 | C50: =IF('DF raw data'!C50="","",'DF raw data'!C50) ->  | D50: =IF('DF raw data'!D50="","",'DF raw data'!D50) -> 
A51: =IF('DF raw data'!M51="","",'DF raw data'!M51) -> DVM Danfysik Reg. Number | B51: =IF('DF raw data'!N51="","",'DF raw data'!N51) -> 1756-D | C51: =IF('DF raw data'!C51="","",'DF raw data'!C51) ->  | D51: =IF('DF raw data'!D51="","",'DF raw data'!D51) -> 
A52: =IF('DF raw data'!M52="","",'DF raw data'!M52) -> NTC voltage | B52: =IF('DF raw data'!N52="","",'DF raw data'!N52) -> 0.40584 | C52: =IF('DF raw data'!C52="","",'DF raw data'!C52) ->  | D52: =IF('DF raw data'!D52="","",'DF raw data'!D52) -> 
A53: =IF('DF raw data'!M53="","",'DF raw data'!M53) -> PS-Gap: | B53: =IF('DF raw data'!N53="","",'DF raw data'!N53) -> 30 | C53: =IF('DF raw data'!C53="","",'DF raw data'!C53) ->  | D53: =IF('DF raw data'!D53="","",'DF raw data'!D53) -> 
A54: =IF('DF raw data'!M54="","",'DF raw data'!M54) -> PS-Temperature: | B54: =IF('DF raw data'!N54="","",'DF raw data'!N54) -> 25 | C54: =IF('DF raw data'!C54="","",'DF raw data'!C54) ->  | D54: =IF('DF raw data'!D54="","",'DF raw data'!D54) -> 
A55: =IF('DF raw data'!M55="","",'DF raw data'!M55) -> PS-Encoder: | B55: =IF('DF raw data'!N55="","",'DF raw data'!N55) -> 39.8225 | C55: =IF('DF raw data'!C55="","",'DF raw data'!C55) ->  | D55: =IF('DF raw data'!D55="","",'DF raw data'!D55) -> 
A56: =IF('DF raw data'!M56="","",'DF raw data'!M56) ->  | B56: =IF('DF raw data'!N56="","",'DF raw data'!N56) -> 
A57: =IF('DF raw data'!M57="","",'DF raw data'!M57) -> Monitor-Index | B57: =IF('DF raw data'!N57="","",'DF raw data'!N57) -> [1,1,4]
A58: =IF('DF raw data'!M58="","",'DF raw data'!M58) ->  | B58: =IF('DF raw data'!N58="","",'DF raw data'!N58) -> 
A59: =IF('DF raw data'!M59="","",'DF raw data'!M59) -> Time [s] | B59: =IF('DF raw data'!N59="","",'DF raw data'!N59) -> Y [mm]
A60: =IF('DF raw data'!M60="","",'DF raw data'!M60) ->  | B60: =IF('DF raw data'!N60="","",'DF raw data'!N60) -> 
A61: =IF('DF raw data'!M61="","",'DF raw data'!M61) -> 207.3 | B61: =IF('DF raw data'!N61="","",'DF raw data'!N61) -> 31.76
A62: =IF('DF raw data'!M62="","",'DF raw data'!M62) ->  | B62: =IF('DF raw data'!N62="","",'DF raw data'!N62) -> 
A63: =IF('DF raw data'!M63="","",'DF raw data'!M63) -> Measurement-Index | B63: =IF('DF raw data'!N63="","",'DF raw data'!N63) -> [1,1,1201,2]
A64: =IF('DF raw data'!M64="","",'DF raw data'!M64) ->  | B64: =IF('DF raw data'!N64="","",'DF raw data'!N64) -> 
A65: =IF('DF raw data'!M65="","",'DF raw data'!M65) -> Z [mm] | B65: =IF('DF raw data'!N65="","",'DF raw data'!N65) -> By [T] | C65: =IF('DF raw data'!O65="","",'DF raw data'!O65) -> Bx [T] | D65: =IF('DF raw data'!P65="","",'DF raw data'!P65) -> Bz [T] | F65: By_corr | G65: Bx_corr | H65: Bz_corr | J65: Iy | K65: Jy | L65: Ix | M65: Jx | N65: PI
B66: =IF('DF raw data'!N66="","",'DF raw data'!N66) ->  | C66: =IF('DF raw data'!O66="","",'DF raw data'!O66) ->  | D66: =IF('DF raw data'!P66="","",'DF raw data'!P66) -> 
A67: =IF('DF raw data'!M67="","",'DF raw data'!M67) -> -300 | B67: =IF('DF raw data'!N67="","",'DF raw data'!N67) -> -2.54558e-05 | C67: =IF('DF raw data'!O67="","",'DF raw data'!O67) -> 0.000166019 | D67: =IF('DF raw data'!P67="","",'DF raw data'!P67) -> -2.57742e-05 | F67: =(1-$G$1*($B$54-$G$2))*(B67-F$5) -> -4.490196616e-06 | G67: =(1-$G$1*($B$54-$G$2))*(C67-G$5) -> -4.214241988e-05 | H67: =(1-$G$1*($B$54-$G$2))*(D67-H$5) -> -1.091131196e-06 | J67: =F67*$G$3+J66 -> -2.245098308e-06 | K67: =J67*$G$3+K66 -> -1.122549154e-06 | L67: =G67*$G$3+L66 -> -2.107120994e-05 | M67: =L67*$G$3+M66 -> -1.053560497e-05 | N67: =(J67^2+L67^2)*$G$3+N66 -> 2.245181774e-10
A68: =IF('DF raw data'!M68="","",'DF raw data'!M68) -> -299.5 | B68: =IF('DF raw data'!N68="","",'DF raw data'!N68) -> -2.23157e-05 | C68: =IF('DF raw data'!O68="","",'DF raw data'!O68) -> 0.000168288 | D68: =IF('DF raw data'!P68="","",'DF raw data'!P68) -> -2.61495e-05 | F68: -1.334396116e-06 | G68: -3.986207488e-05 | H68: -1.468307696e-06 | J68: =F68*$G$3+J67 -> -2.912296366e-06 | K68: =J68*$G$3+K67 -> -2.578697337e-06 | L68: =G68*$G$3+L67 -> -4.100224738e-05 | M68: =L68*$G$3+M67 -> -3.103672866e-05 | N68: =(J68^2+L68^2)*$G$3+N67 -> 1.069351057e-09
A69: =IF('DF raw data'!M69="","",'DF raw data'!M69) -> -299 | B69: =IF('DF raw data'!N69="","",'DF raw data'!N69) -> -2.57757e-05 | C69: =IF('DF raw data'!O69="","",'DF raw data'!O69) -> 0.000171615 | D69: =IF('DF raw data'!P69="","",'DF raw data'!P69) -> -2.64249e-05 | F69: -4.811696116e-06 | G69: -3.651843988e-05 | H69: -1.745084696e-06 | J69: -5.318144424e-06 | K69: -5.237769549e-06 | L69: -5.926146732e-05 | M69: -6.066746232e-05 | N69: 2.839453142e-09
A70: =IF('DF raw data'!M70="","",'DF raw data'!M70) -> -298.5 | B70: =IF('DF raw data'!N70="","",'DF raw data'!N70) -> -3.16709e-05 | C70: =IF('DF raw data'!O70="","",'DF raw data'!O70) -> 0.000167631 | D70: =IF('DF raw data'!P70="","",'DF raw data'!P70) -> -2.55621e-05 | F70: -1.073637212e-05 | G70: -4.052235988e-05 | H70: -8.779706963e-07 | J70: -1.068633048e-05 | K70: -1.058093479e-05 | L70: -7.952264726e-05 | M70: -0.0001004287859 | N70: 6.058477685e-09
A71: =IF('DF raw data'!M71="","",'DF raw data'!M71) -> -298 | B71: =IF('DF raw data'!N71="","",'DF raw data'!N71) -> -3.11591e-05 | C71: =IF('DF raw data'!O71="","",'DF raw data'!O71) -> 0.000173244 | D71: =IF('DF raw data'!P71="","",'DF raw data'!P71) -> -2.45774e-05 | F71: -1.022201312e-05 | G71: -3.488129488e-05 | H71: 1.116528037e-07 | J71: -1.579733704e-05 | K71: -1.847960331e-05 | L71: -9.69632947e-05 | M71: -0.0001489104333 | N71: 1.088419587e-08
A72: =IF('DF raw data'!M72="","",'DF raw data'!M72) -> -297.5 | B72: =IF('DF raw data'!N72="","",'DF raw data'!N72) -> -7.38699e-06 | C72: =IF('DF raw data'!O72="","",'DF raw data'!O72) -> 0.000175996 | D72: =IF('DF raw data'!P72="","",'DF raw data'!P72) -> -2.52233e-05 | F72: 1.366895743e-05 | G72: -3.211553488e-05 | H72: -5.374766963e-07 | J72: -8.962858323e-06 | K72: -2.296103247e-05 | L72: -0.0001130210621 | M72: -0.0002054209644 | N72: 1.731124253e-08
A73: =IF('DF raw data'!M73="","",'DF raw data'!M73) -> -297 | B73: =IF('DF raw data'!N73="","",'DF raw data'!N73) -> -2.26999e-05 | C73: =IF('DF raw data'!O73="","",'DF raw data'!O73) -> 0.00017024 | D73: =IF('DF raw data'!P73="","",'DF raw data'!P73) -> -2.65035e-05 | F73: -1.720517116e-06 | G73: -3.790031488e-05 | H73: -1.824077696e-06 | J73: -9.823116881e-06 | K73: -2.787259091e-05 | L73: -0.0001319712196 | M73: -0.0002714065741 | N73: 2.606769074e-08
A74: =IF('DF raw data'!M74="","",'DF raw data'!M74) -> -296.5 | B74: =IF('DF raw data'!N74="","",'DF raw data'!N74) -> -2.24434e-05 | C74: =IF('DF raw data'!O74="","",'DF raw data'!O74) -> 0.000175352 | D74: =IF('DF raw data'!P74="","",'DF raw data'!P74) -> -2.68621e-05 | F74: -1.462734616e-06 | G74: -3.276275488e-05 | H74: -2.184470696e-06 | J74: -1.055448419e-05 | K74: -3.314983301e-05 | L74: -0.000148352597 | M74: -0.0003455828727 | N74: 3.712763583e-08
A75: =IF('DF raw data'!M75="","",'DF raw data'!M75) -> -296 | B75: =IF('DF raw data'!N75="","",'DF raw data'!N75) -> -2.82104e-05 | C75: =IF('DF raw data'!O75="","",'DF raw data'!O75) -> 0.000174155 | D75: =IF('DF raw data'!P75="","",'DF raw data'!P75) -> -2.6592e-05 | F75: -7.258569616e-06 | G75: -3.396573988e-05 | H75: -1.913020196e-06 | J75: -1.4183769e-05 | K75: -4.02417175e-05 | L75: -0.000165335467 | M75: -0.0004282506061 | N75: 5.08961338e-08
A76: =IF('DF raw data'!M76="","",'DF raw data'!M76) -> -295.5 | B76: =IF('DF raw data'!N76="","",'DF raw data'!N76) -> -2.34047e-05 | C76: =IF('DF raw data'!O76="","",'DF raw data'!O76) -> 0.000175622 | D76: =IF('DF raw data'!P76="","",'DF raw data'!P76) -> -2.67579e-05 | F76: -2.428841116e-06 | G76: -3.249140488e-05 | H76: -2.079749696e-06 | J76: -1.539818955e-05 | K76: -4.794081228e-05 | L76: -0.0001815811694 | M76: -0.0005190411908 | N76: 6.750054646e-08
A77: =IF('DF raw data'!M77="","",'DF raw data'!M77) -> -295 | B77: =IF('DF raw data'!N77="","",'DF raw data'!N77) -> -3.03249e-05 | C77: =IF('DF raw data'!O77="","",'DF raw data'!O77) -> 0.000187646 | D77: =IF('DF raw data'!P77="","",'DF raw data'!P77) -> -2.67137e-05 | F77: -9.383642116e-06 | G77: -2.040728488e-05 | H77: -2.035328696e-06 | J77: -2.009001061e-05 | K77: -5.798581759e-05 | L77: -0.0001917848118 | M77: -0.0006149335967 | N77: 8.609305774e-08
A78: =IF('DF raw data'!M78="","",'DF raw data'!M78) -> -294.5 | B78: =IF('DF raw data'!N78="","",'DF raw data'!N78) -> -3.78222e-05 | C78: =IF('DF raw data'!O78="","",'DF raw data'!O78) -> 0.000179459 | D78: =IF('DF raw data'!P78="","",'DF raw data'!P78) -> -2.55648e-05 | F78: -1.691842862e-05 | G78: -2.863521988e-05 | H78: -8.806841963e-07 | J78: -2.854922492e-05 | K78: -7.226043005e-05 | L78: -0.0002061024218 | M78: -0.0007179848076 | N78: 1.07739691e-07
A79: =IF('DF raw data'!M79="","",'DF raw data'!M79) -> -294 | B79: =IF('DF raw data'!N79="","",'DF raw data'!N79) -> -3.13516e-05 | C79: =IF('DF raw data'!O79="","",'DF raw data'!O79) -> 0.000177855 | D79: =IF('DF raw data'!P79="","",'DF raw data'!P79) -> -2.43067e-05 | F79: -1.041547562e-05 | G79: -3.024723988e-05 | H79: 3.837063037e-07 | J79: -3.375696273e-05 | K79: -8.913891141e-05 | L79: -0.0002212260417 | M79: -0.0008285978285 | N79: 1.32779938e-07
A80: =IF('DF raw data'!M80="","",'DF raw data'!M80) -> -293.5 | B80: =IF('DF raw data'!N80="","",'DF raw data'!N80) -> -1.62937e-05 | C80: =IF('DF raw data'!O80="","",'DF raw data'!O80) -> 0.000181687 | D80: =IF('DF raw data'!P80="","",'DF raw data'!P80) -> -2.44201e-05 | F80: 4.717713884e-06 | G80: -2.639607988e-05 | H80: 2.697393037e-07 | J80: -3.139810579e-05 | K80: -0.0001048379643 | L80: -0.0002344240816 | M80: -0.0009458098693 | N80: 1.607501836e-07
A81: =IF('DF raw data'!M81="","",'DF raw data'!M81) -> -293 | B81: =IF('DF raw data'!N81="","",'DF raw data'!N81) -> -1.81514e-05 | C81: =IF('DF raw data'!O81="","",'DF raw data'!O81) -> 0.00017558 | D81: =IF('DF raw data'!P81="","",'DF raw data'!P81) -> -2.54154e-05 | F81: 2.850725384e-06 | G81: -3.253361488e-05 | H81: -7.305371963e-07 | J81: -2.997274309e-05 | K81: -0.0001198243359 | L81: -0.0002506908891 | M81: -0.001071155314 | N81: 1.926223272e-07
A82: =IF('DF raw data'!M82="","",'DF raw data'!M82) -> -292.5 | B82: =IF('DF raw data'!N82="","",'DF raw data'!N82) -> -1.93041e-05 | C82: =IF('DF raw data'!O82="","",'DF raw data'!O82) -> 0.000180094 | D82: =IF('DF raw data'!P82="","",'DF raw data'!P82) -> -2.62743e-05 | F82: 1.692261884e-06 | G82: -2.799704488e-05 | H82: -1.593731696e-06 | J82: -2.912661215e-05 | K82: -0.0001343876419 | L82: -0.0002646894115 | M82: -0.00120350002 | N82: 2.280767492e-07
A83: =IF('DF raw data'!M83="","",'DF raw data'!M83) -> -292 | B83: =IF('DF raw data'!N83="","",'DF raw data'!N83) -> -1.65485e-05 | C83: =IF('DF raw data'!O83="","",'DF raw data'!O83) -> 0.000174 | D83: =IF('DF raw data'!P83="","",'DF raw data'!P83) -> -2.67793e-05 | F83: 4.461639884e-06 | G83: -3.412151488e-05 | H83: -2.101256696e-06 | J83: -2.689579221e-05 | K83: -0.000147835538 | L83: -0.000281750169 | M83: -0.001344375104 | N83: 2.681300199e-07
A84: =IF('DF raw data'!M84="","",'DF raw data'!M84) -> -291.5 | B84: =IF('DF raw data'!N84="","",'DF raw data'!N84) -> -2.76242e-05 | C84: =IF('DF raw data'!O84="","",'DF raw data'!O84) -> 0.000158326 | D84: =IF('DF raw data'!P84="","",'DF raw data'!P84) -> -4.11141e-05 | F84: -6.669438616e-06 | G84: -4.987388488e-05 | H84: -1.65077307e-05 | J84: -3.023051152e-05 | K84: -0.0001629507938 | L84: -0.0003066871114 | M84: -0.00149771866 | N84: 3.15615454e-07
A85: =IF('DF raw data'!M85="","",'DF raw data'!M85) -> -291 | B85: =IF('DF raw data'!N85="","",'DF raw data'!N85) -> -2.53957e-05 | C85: =IF('DF raw data'!O85="","",'DF raw data'!O85) -> 0.000158964 | D85: =IF('DF raw data'!P85="","",'DF raw data'!P85) -> -1.97069e-05 | F85: -4.429796116e-06 | G85: -4.923269488e-05 | H85: 5.006505304e-06 | J85: -3.244540958e-05 | K85: -0.0001791734986 | L85: -0.0003313034588 | M85: -0.001663370389 | N85: 3.710227972e-07
A86: =IF('DF raw data'!M86="","",'DF raw data'!M86) -> -290.5 | B86: =IF('DF raw data'!N86="","",'DF raw data'!N86) -> -2.64131e-05 | C86: =IF('DF raw data'!O86="","",'DF raw data'!O86) -> 0.000166847 | D86: =IF('DF raw data'!P86="","",'DF raw data'!P86) -> -3.16328e-05 | F86: -5.452283116e-06 | G86: -4.131027988e-05 | H86: -6.979024196e-06 | J86: -3.517155113e-05 | K86: -0.0001967592741 | L86: -0.0003519585988 | M86: -0.001839349689 | N86: 4.335787438e-07
A87: =IF('DF raw data'!M87="","",'DF raw data'!M87) -> -290 | B87: =IF('DF raw data'!N87="","",'DF raw data'!N87) -> -2.05862e-05 | C87: =IF('DF raw data'!O87="","",'DF raw data'!O87) -> 0.00017275 | D87: =IF('DF raw data'!P87="","",'DF raw data'!P87) -> -2.52416e-05 | F87: 4.037513841e-07 | G87: -3.537776488e-05 | H87: -5.558681963e-07 | J87: -3.496967544e-05 | K87: -0.0002142441119 | L87: -0.0003696474812 | M87: -0.002024173429 | N87: 5.025098131e-07
A88: =IF('DF raw data'!M88="","",'DF raw data'!M88) -> -289.5 | B88: =IF('DF raw data'!N88="","",'DF raw data'!N88) -> -4.05774e-05 | C88: =IF('DF raw data'!O88="","",'DF raw data'!O88) -> 0.000168509 | D88: =IF('DF raw data'!P88="","",'DF raw data'!P88) -> -2.56444e-05 | F88: -1.968740462e-05 | G88: -3.963996988e-05 | H88: -9.606821963e-07 | J88: -4.481337775e-05 | K88: -0.0002366508007 | L88: -0.0003894674662 | M88: -0.002218907162 | N88: 5.793563861e-07
A89: =IF('DF raw data'!M89="","",'DF raw data'!M89) -> -289 | B89: =IF('DF raw data'!N89="","",'DF raw data'!N89) -> -3.73032e-05 | C89: =IF('DF raw data'!O89="","",'DF raw data'!O89) -> 0.000165147 | D89: =IF('DF raw data'!P89="","",'DF raw data'!P89) -> -3.55588e-05 | F89: -1.639683362e-05 | G89: -4.301877988e-05 | H89: -1.09246542e-05 | J89: -5.301179456e-05 | K89: -0.000263156698 | L89: -0.0004109768561 | M89: -0.00242439559 | N89: 6.652124994e-07
A90: =IF('DF raw data'!M90="","",'DF raw data'!M90) -> -288.5 | B90: =IF('DF raw data'!N90="","",'DF raw data'!N90) -> -3.74358e-05 | C90: =IF('DF raw data'!O90="","",'DF raw data'!O90) -> 0.000169501 | D90: =IF('DF raw data'!P90="","",'DF raw data'!P90) -> -2.85766e-05 | F90: -1.653009662e-05 | G90: -3.864300988e-05 | H90: -3.907543196e-06 | J90: -6.127684287e-05 | K90: -0.0002937951195 | L90: -0.000430298361 | M90: -0.002639544771 | N90: 7.596682649e-07
A91: =IF('DF raw data'!M91="","",'DF raw data'!M91) -> -288 | B91: =IF('DF raw data'!N91="","",'DF raw data'!N91) -> -2.86469e-05 | C91: =IF('DF raw data'!O91="","",'DF raw data'!O91) -> 0.000173804 | D91: =IF('DF raw data'!P91="","",'DF raw data'!P91) -> -4.49642e-05 | F91: -7.697252116e-06 | G91: -3.431849488e-05 | H91: -2.03770812e-05 | J91: -6.512546892e-05 | K91: -0.0003263578539 | L91: -0.0004474576085 | M91: -0.002863273575 | N91: 8.61898084e-07
A92: =IF('DF raw data'!M92="","",'DF raw data'!M92) -> -287.5 | B92: =IF('DF raw data'!N92="","",'DF raw data'!N92) -> -2.12876e-05 | C92: =IF('DF raw data'!O92="","",'DF raw data'!O92) -> 0.000176737 | D92: =IF('DF raw data'!P92="","",'DF raw data'!P92) -> -3.06895e-05 | F92: -3.011556159e-07 | G92: -3.137082988e-05 | H92: -6.031007696e-06 | J92: -6.527604673e-05 | K92: -0.0003589958773 | L92: -0.0004631430234 | M92: -0.003094845087 | N92: 9.712792952e-07
A93: =IF('DF raw data'!M93="","",'DF raw data'!M93) -> -287 | B93: =IF('DF raw data'!N93="","",'DF raw data'!N93) -> -3.36553e-05 | C93: =IF('DF raw data'!O93="","",'DF raw data'!O93) -> 0.00017866 | D93: =IF('DF raw data'!P93="","",'DF raw data'!P93) -> -2.87204e-05 | F93: -1.273069412e-05 | G93: -2.943821488e-05 | H93: -4.052062196e-06 | J93: -7.164139379e-05 | K93: -0.0003948165742 | L93: -0.0004778621309 | M93: -0.003333776152 | N93: 1.088021648e-06
A94: =IF('DF raw data'!M94="","",'DF raw data'!M94) -> -286.5 | B94: =IF('DF raw data'!N94="","",'DF raw data'!N94) -> -2.73081e-05 | C94: =IF('DF raw data'!O94="","",'DF raw data'!O94) -> 0.000173454 | D94: =IF('DF raw data'!P94="","",'DF raw data'!P94) -> -3.46598e-05 | F94: -6.351758116e-06 | G94: -3.467024488e-05 | H94: -1.00211592e-05 | J94: -7.481727285e-05 | K94: -0.0004322252106 | L94: -0.0004951972533 | M94: -0.003581374779 | N94: 1.21343062e-06
A95: =IF('DF raw data'!M95="","",'DF raw data'!M95) -> -286 | B95: =IF('DF raw data'!N95="","",'DF raw data'!N95) -> -2.83956e-05 | C95: =IF('DF raw data'!O95="","",'DF raw data'!O95) -> 0.000174723 | D95: =IF('DF raw data'!P95="","",'DF raw data'!P95) -> -3.71981e-05 | F95: -7.444695616e-06 | G95: -3.339489988e-05 | H95: -1.25721507e-05 | J95: -7.853962066e-05 | K95: -0.0004714950209 | L95: -0.0005118947032 | M95: -0.00383732213 | N95: 1.347532949e-06
A96: =IF('DF raw data'!M96="","",'DF raw data'!M96) -> -285.5 | B96: =IF('DF raw data'!N96="","",'DF raw data'!N96) -> -1.89176e-05 | C96: =IF('DF raw data'!O96="","",'DF raw data'!O96) -> 0.000174503 | D96: =IF('DF raw data'!P96="","",'DF raw data'!P96) -> -2.93921e-05 | F96: 2.080694384e-06 | G96: -3.361599988e-05 | H96: -4.727120696e-06 | J96: -7.749927346e-05 | K96: -0.0005102446577 | L96: -0.0005287027032 | M96: -0.004101673482 | N96: 1.490299292e-06
A97: =IF('DF raw data'!M97="","",'DF raw data'!M97) -> -285 | B97: =IF('DF raw data'!N97="","",'DF raw data'!N97) -> -2.69271e-05 | C97: =IF('DF raw data'!O97="","",'DF raw data'!O97) -> 0.000175597 | D97: =IF('DF raw data'!P97="","",'DF raw data'!P97) -> -2.94473e-05 | F97: -5.968853116e-06 | G97: -3.251652988e-05 | H97: -4.782596696e-06 | J97: -8.048370002e-05 | K97: -0.0005504865077 | L97: -0.0005449609681 | M97: -0.004374153966 | N97: 1.642029334e-06
A98: =IF('DF raw data'!M98="","",'DF raw data'!M98) -> -284.5 | B98: =IF('DF raw data'!N98="","",'DF raw data'!N98) -> -2.90354e-05 | C98: =IF('DF raw data'!O98="","",'DF raw data'!O98) -> 0.000175056 | D98: =IF('DF raw data'!P98="","",'DF raw data'!P98) -> -3.8999e-05 | F98: -8.087694616e-06 | G98: -3.306023488e-05 | H98: -1.43820552e-05 | J98: -8.452754733e-05 | K98: -0.0005927502813 | L98: -0.0005614910855 | M98: -0.004654899509 | N98: 1.803237906e-06
A99: =IF('DF raw data'!M99="","",'DF raw data'!M99) -> -284 | B99: =IF('DF raw data'!N99="","",'DF raw data'!N99) -> -3.161e-05 | C99: =IF('DF raw data'!O99="","",'DF raw data'!O99) -> 0.000185193 | D99: =IF('DF raw data'!P99="","",'DF raw data'!P99) -> -2.09735e-05 | F99: -1.067516762e-05 | G99: -2.287254988e-05 | H99: 3.733572304e-06 | J99: -8.986513114e-05 | K99: -0.0006376828469 | L99: -0.0005729273605 | M99: -0.004941363189 | N99: 1.971398657e-06
A100: =IF('DF raw data'!M100="","",'DF raw data'!M100) -> -283.5 | B100: =IF('DF raw data'!N100="","",'DF raw data'!N100) -> -2.76941e-05 | C100: =IF('DF raw data'!O100="","",'DF raw data'!O100) -> 0.000184428 | D100: =IF('DF raw data'!P100="","",'DF raw data'!P100) -> -3.23225e-05 | F100: -6.739688116e-06 | G100: -2.364137488e-05 | H100: -7.672172696e-06 | J100: -9.32349752e-05 | K100: -0.0006843003345 | L100: -0.0005847480479 | M100: -0.005233737213 | N100: 2.146710178e-06
A101: =IF('DF raw data'!M101="","",'DF raw data'!M101) -> -283 | B101: =IF('DF raw data'!N101="","",'DF raw data'!N101) -> -2.01323e-05 | C101: =IF('DF raw data'!O101="","",'DF raw data'!O101) -> 0.000183021 | D101: =IF('DF raw data'!P101="","",'DF raw data'!P101) -> -3.3847e-05 | F101: 8.599208841e-07 | G101: -2.505540988e-05 | H101: -9.204295196e-06 | J101: -9.280501475e-05 | K101: -0.0007307028419 | L101: -0.0005972757529 | M101: -0.00553237509 | N101: 2.329385725e-06
A102: =IF('DF raw data'!M102="","",'DF raw data'!M102) -> -282.5 | B102: =IF('DF raw data'!N102="","",'DF raw data'!N102) -> -1.68639e-05 | C102: =IF('DF raw data'!O102="","",'DF raw data'!O102) -> 0.000192018 | D102: =IF('DF raw data'!P102="","",'DF raw data'!P102) -> -3.46639e-05 | F102: 4.144662884e-06 | G102: -1.601342488e-05 | H102: -1.00252797e-05 | J102: -9.073268331e-05 | K102: -0.0007760691835 | L102: -0.0006052824653 | M102: -0.005835016322 | N102: 2.516685367e-06
A103: =IF('DF raw data'!M103="","",'DF raw data'!M103) -> -282 | B103: =IF('DF raw data'!N103="","",'DF raw data'!N103) -> -3.29478e-05 | C103: =IF('DF raw data'!O103="","",'DF raw data'!O103) -> 0.000189499 | D103: =IF('DF raw data'!P103="","",'DF raw data'!P103) -> -3.31925e-05 | F103: -1.201965662e-05 | G103: -1.854501988e-05 | H103: -8.546522696e-06 | J103: -9.674251162e-05 | K103: -0.0008244404393 | L103: -0.0006145549752 | M103: -0.00614229381 | N103: 2.710203832e-06
A104: =IF('DF raw data'!M104="","",'DF raw data'!M104) -> -281.5 | B104: =IF('DF raw data'!N104="","",'DF raw data'!N104) -> -2.56472e-05 | C104: =IF('DF raw data'!O104="","",'DF raw data'!O104) -> 0.000181223 | D104: =IF('DF raw data'!P104="","",'DF raw data'!P104) -> -2.70487e-05 | F104: -4.682553616e-06 | G104: -2.686239988e-05 | H104: -2.372003696e-06 | J104: -9.908378843e-05 | K104: -0.0008739823336 | L104: -0.0006279861752 | M104: -0.006456286897 | N104: 2.912295949e-06
A105: =IF('DF raw data'!M105="","",'DF raw data'!M105) -> -281 | B105: =IF('DF raw data'!N105="","",'DF raw data'!N105) -> -3.19963e-05 | C105: =IF('DF raw data'!O105="","",'DF raw data'!O105) -> 0.000188824 | D105: =IF('DF raw data'!P105="","",'DF raw data'!P105) -> -1.81566e-05 | F105: -1.106339912e-05 | G105: -1.922339488e-05 | H105: 6.564556804e-06 | J105: -0.000104615488 | K105: -0.0009262900776 | L105: -0.0006375978726 | M105: -0.006775085834 | N105: 3.121033673e-06
A106: =IF('DF raw data'!M106="","",'DF raw data'!M106) -> -280.5 | B106: =IF('DF raw data'!N106="","",'DF raw data'!N106) -> -3.33339e-05 | C106: =IF('DF raw data'!O106="","",'DF raw data'!O106) -> 0.000190692 | D106: =IF('DF raw data'!P106="","",'DF raw data'!P106) -> -3.05634e-05 | F106: -1.240768712e-05 | G106: -1.734605488e-05 | H106: -5.904277196e-06 | J106: -0.0001108193315 | K106: -0.0009816997433 | L106: -0.0006462709001 | M106: -0.007098221284 | N106: 3.336007173e-06
A107: =IF('DF raw data'!M107="","",'DF raw data'!M107) -> -280 | B107: =IF('DF raw data'!N107="","",'DF raw data'!N107) -> -3.01275e-05 | C107: =IF('DF raw data'!O107="","",'DF raw data'!O107) -> 0.000186966 | D107: =IF('DF raw data'!P107="","",'DF raw data'!P107) -> -3.44209e-05 | F107: -9.185255116e-06 | G107: -2.109068488e-05 | H107: -9.781064696e-06 | J107: -0.0001154119591 | K107: -0.001039405723 | L107: -0.0006568162425 | M107: -0.007426629405 | N107: 3.558370921e-06
A108: =IF('DF raw data'!M108="","",'DF raw data'!M108) -> -279.5 | B108: =IF('DF raw data'!N108="","",'DF raw data'!N108) -> -2.50646e-05 | C108: =IF('DF raw data'!O108="","",'DF raw data'!O108) -> 0.000184643 | D108: =IF('DF raw data'!P108="","",'DF raw data'!P108) -> -3.58544e-05 | F108: -4.097040616e-06 | G108: -2.342529988e-05 | H108: -1.12217322e-05 | J108: -0.0001174604794 | K108: -0.001098135963 | L108: -0.0006685288924 | M108: -0.007760893851 | N108: 3.788734843e-06
A109: =IF('DF raw data'!M109="","",'DF raw data'!M109) -> -279 | B109: =IF('DF raw data'!N109="","",'DF raw data'!N109) -> -2.77003e-05 | C109: =IF('DF raw data'!O109="","",'DF raw data'!O109) -> 0.000178675 | D109: =IF('DF raw data'!P109="","",'DF raw data'!P109) -> -2.30373e-05 | F109: -6.745919116e-06 | G109: -2.942313988e-05 | H109: 1.659453304e-06 | J109: -0.000120833439 | K109: -0.001158552682 | L109: -0.0006832404624 | M109: -0.008102514082 | N109: 4.029443968e-06
A110: =IF('DF raw data'!M110="","",'DF raw data'!M110) -> -278.5 | B110: =IF('DF raw data'!N110="","",'DF raw data'!N110) -> -3.2951e-05 | C110: =IF('DF raw data'!O110="","",'DF raw data'!O110) -> 0.000183059 | D110: =IF('DF raw data'!P110="","",'DF raw data'!P110) -> -2.75692e-05 | F110: -1.202287262e-05 | G110: -2.501721988e-05 | H110: -2.895106196e-06 | J110: -0.0001268448753 | K110: -0.00122197512 | L110: -0.0006957490723 | M110: -0.008450388619 | N110: 4.279522165e-06
A111: =IF('DF raw data'!M111="","",'DF raw data'!M111) -> -278 | B111: =IF('DF raw data'!N111="","",'DF raw data'!N111) -> -2.60969e-05 | C111: =IF('DF raw data'!O111="","",'DF raw data'!O111) -> 0.000187775 | D111: =IF('DF raw data'!P111="","",'DF raw data'!P111) -> -2.55306e-05 | F111: -5.134502116e-06 | G111: -2.027763988e-05 | H111: -8.463131963e-07 | J111: -0.0001294121263 | K111: -0.001286681183 | L111: -0.0007058878923 | M111: -0.008803332565 | N111: 4.537034773e-06
A112: =IF('DF raw data'!M112="","",'DF raw data'!M112) -> -277.5 | B112: =IF('DF raw data'!N112="","",'DF raw data'!N112) -> -2.33403e-05 | C112: =IF('DF raw data'!O112="","",'DF raw data'!O112) -> 0.000181253 | D112: =IF('DF raw data'!P112="","",'DF raw data'!P112) -> -2.63907e-05 | F112: -2.364119116e-06 | G112: -2.683224988e-05 | H112: -1.710713696e-06 | J112: -0.0001305941859 | K112: -0.001351978276 | L112: -0.0007193040172 | M112: -0.009162984573 | N112: 4.804261328e-06
A113: =IF('DF raw data'!M113="","",'DF raw data'!M113) -> -277 | B113: =IF('DF raw data'!N113="","",'DF raw data'!N113) -> -1.96242e-05 | C113: =IF('DF raw data'!O113="","",'DF raw data'!O113) -> 0.000181229 | D113: =IF('DF raw data'!P113="","",'DF raw data'!P113) -> -2.73792e-05 | F113: 1.370561384e-06 | G113: -2.685636988e-05 | H113: -2.704156196e-06 | J113: -0.0001299089052 | K113: -0.001416932728 | L113: -0.0007327322021 | M113: -0.009529350674 | N113: 5.08114773e-06
A114: =IF('DF raw data'!M114="","",'DF raw data'!M114) -> -276.5 | B114: =IF('DF raw data'!N114="","",'DF raw data'!N114) -> -3.87186e-05 | C114: =IF('DF raw data'!O114="","",'DF raw data'!O114) -> 0.000172151 | D114: =IF('DF raw data'!P114="","",'DF raw data'!P114) -> -2.5457e-05 | F114: -1.781931062e-05 | G114: -3.597975988e-05 | H114: -7.723451963e-07 | J114: -0.0001388185605 | K114: -0.001486342009 | L114: -0.0007507220821 | M114: -0.009904711715 | N114: 5.372574848e-06
A115: =IF('DF raw data'!M115="","",'DF raw data'!M115) -> -276 | B115: =IF('DF raw data'!N115="","",'DF raw data'!N115) -> -2.81473e-05 | C115: =IF('DF raw data'!O115="","",'DF raw data'!O115) -> 0.000180083 | D115: =IF('DF raw data'!P115="","",'DF raw data'!P115) -> -2.57129e-05 | F115: -7.195154116e-06 | G115: -2.800809988e-05 | H115: -1.029524696e-06 | J115: -0.0001424161376 | K115: -0.001557550077 | L115: -0.000764726132 | M115: -0.01028707478 | N115: 5.675119055e-06
A116: =IF('DF raw data'!M116="","",'DF raw data'!M116) -> -275.5 | B116: =IF('DF raw data'!N116="","",'DF raw data'!N116) -> -3.33352e-05 | C116: =IF('DF raw data'!O116="","",'DF raw data'!O116) -> 0.000179649 | D116: =IF('DF raw data'!P116="","",'DF raw data'!P116) -> -2.74203e-05 | F116: -1.240899362e-05 | G116: -2.844426988e-05 | H116: -2.745461696e-06 | J116: -0.0001486206344 | K116: -0.001631860395 | L116: -0.000778948267 | M116: -0.01067654891 | N116: 5.989543303e-06
A117: =IF('DF raw data'!M117="","",'DF raw data'!M117) -> -275 | B117: =IF('DF raw data'!N117="","",'DF raw data'!N117) -> -2.96189e-05 | C117: =IF('DF raw data'!O117="","",'DF raw data'!O117) -> 0.000177493 | D117: =IF('DF raw data'!P117="","",'DF raw data'!P117) -> -2.91677e-05 | F117: -8.674112116e-06 | G117: -3.061104988e-05 | H117: -4.501598696e-06 | J117: -0.0001529576904 | K117: -0.00170833924 | L117: -0.0007942537919 | M117: -0.01107367581 | N117: 6.316660873e-06
A118: =IF('DF raw data'!M118="","",'DF raw data'!M118) -> -274.5 | B118: =IF('DF raw data'!N118="","",'DF raw data'!N118) -> -3.25673e-05 | C118: =IF('DF raw data'!O118="","",'DF raw data'!O118) -> 0.000168917 | D118: =IF('DF raw data'!P118="","",'DF raw data'!P118) -> -2.57567e-05 | F118: -1.163725412e-05 | G118: -3.922992988e-05 | H118: -1.073543696e-06 | J118: -0.0001587763175 | K118: -0.001787727399 | L118: -0.0008138687568 | M118: -0.01148061019 | N118: 6.660457009e-06
A119: =IF('DF raw data'!M119="","",'DF raw data'!M119) -> -274 | B119: =IF('DF raw data'!N119="","",'DF raw data'!N119) -> -2.63628e-05 | C119: =IF('DF raw data'!O119="","",'DF raw data'!O119) -> 0.0001729 | D119: =IF('DF raw data'!P119="","",'DF raw data'!P119) -> -1.10289e-05 | F119: -5.401731616e-06 | G119: -3.522701488e-05 | H119: 1.37278953e-05 | J119: -0.0001614771833 | K119: -0.00186846599 | L119: -0.0008314822643 | M119: -0.01189635132 | N119: 7.019175828e-06
A120: =IF('DF raw data'!M120="","",'DF raw data'!M120) -> -273.5 | B120: =IF('DF raw data'!N120="","",'DF raw data'!N120) -> -3.57082e-05 | C120: =IF('DF raw data'!O120="","",'DF raw data'!O120) -> 0.000178541 | D120: =IF('DF raw data'!P120="","",'DF raw data'!P120) -> -2.35579e-05 | F120: -1.479385862e-05 | G120: -2.955780988e-05 | H120: 1.136250304e-06 | J120: -0.0001688741126 | K120: -0.001952903047 | L120: -0.0008462611692 | M120: -0.01231948191 | N120: 7.391514044e-06
A121: =IF('DF raw data'!M121="","",'DF raw data'!M121) -> -273 | B121: =IF('DF raw data'!N121="","",'DF raw data'!N121) -> -3.16755e-05 | C121: =IF('DF raw data'!O121="","",'DF raw data'!O121) -> 0.000182992 | D121: =IF('DF raw data'!P121="","",'DF raw data'!P121) -> -1.97331e-05 | F121: -1.074099512e-05 | G121: -2.508455488e-05 | H121: 4.980174304e-06 | J121: -0.0001742446102 | K121: -0.002040025352 | L121: -0.0008588034466 | M121: -0.01274888363 | N121: 7.775466316e-06
A122: =IF('DF raw data'!M122="","",'DF raw data'!M122) -> -272.5 | B122: =IF('DF raw data'!N122="","",'DF raw data'!N122) -> -3.35921e-05 | C122: =IF('DF raw data'!O122="","",'DF raw data'!O122) -> 0.000177614 | D122: =IF('DF raw data'!P122="","",'DF raw data'!P122) -> -2.63601e-05 | F122: -1.266717812e-05 | G122: -3.048944488e-05 | H122: -1.679960696e-06 | J122: -0.0001805781992 | K122: -0.002130314451 | L122: -0.0008740481691 | M122: -0.01318590771 | N122: 8.17375066e-06
A123: =IF('DF raw data'!M123="","",'DF raw data'!M123) -> -272 | B123: =IF('DF raw data'!N123="","",'DF raw data'!N123) -> -2.49419e-05 | C123: =IF('DF raw data'!O123="","",'DF raw data'!O123) -> 0.000176184 | D123: =IF('DF raw data'!P123="","",'DF raw data'!P123) -> -2.8527e-05 | F123: -3.973727116e-06 | G123: -3.192659488e-05 | H123: -3.857695196e-06 | J123: -0.0001825650628 | K123: -0.002221596983 | L123: -0.0008900114665 | M123: -0.01363091345 | N123: 8.586475866e-06
A124: =IF('DF raw data'!M124="","",'DF raw data'!M124) -> -271.5 | B124: =IF('DF raw data'!N124="","",'DF raw data'!N124) -> -3.66643e-05 | C124: =IF('DF raw data'!O124="","",'DF raw data'!O124) -> 0.000177006 | D124: =IF('DF raw data'!P124="","",'DF raw data'!P124) -> -3.13784e-05 | F124: -1.575473912e-05 | G124: -3.110048488e-05 | H124: -6.723352196e-06 | J124: -0.0001904424323 | K124: -0.002316818199 | L124: -0.000905561709 | M124: -0.0140836943 | N124: 9.014631031e-06
A125: =IF('DF raw data'!M125="","",'DF raw data'!M125) -> -271 | B125: =IF('DF raw data'!N125="","",'DF raw data'!N125) -> -2.4874e-05 | C125: =IF('DF raw data'!O125="","",'DF raw data'!O125) -> 0.000181988 | D125: =IF('DF raw data'!P125="","",'DF raw data'!P125) -> -3.40902e-05 | F125: -3.905487616e-06 | G125: -2.609357488e-05 | H125: -9.448711196e-06 | J125: -0.0001923951761 | K125: -0.002413015787 | L125: -0.0009186084964 | M125: -0.01454299855 | N125: 9.455059767e-06
A126: =IF('DF raw data'!M126="","",'DF raw data'!M126) -> -270.5 | B126: =IF('DF raw data'!N126="","",'DF raw data'!N126) -> -4.11512e-05 | C126: =IF('DF raw data'!O126="","",'DF raw data'!O126) -> 0.000179938 | D126: =IF('DF raw data'!P126="","",'DF raw data'!P126) -> -2.84744e-05 | F126: -2.026407362e-05 | G126: -2.815382488e-05 | H126: -3.804832196e-06 | J126: -0.000202527213 | K126: -0.002514279393 | L126: -0.0009326854088 | M126: -0.01500934125 | N126: 9.910519439e-06
A127: =IF('DF raw data'!M127="","",'DF raw data'!M127) -> -270 | B127: =IF('DF raw data'!N127="","",'DF raw data'!N127) -> -3.49368e-05 | C127: =IF('DF raw data'!O127="","",'DF raw data'!O127) -> 0.000180835 | D127: =IF('DF raw data'!P127="","",'DF raw data'!P127) -> -2.9832e-05 | F127: -1.401860162e-05 | G127: -2.725233988e-05 | H127: -5.169220196e-06 | J127: -0.0002095365138 | K127: -0.00261904765 | L127: -0.0009463115788 | M127: -0.01548249704 | N127: 1.038022502e-05
A128: =IF('DF raw data'!M128="","",'DF raw data'!M128) -> -269.5 | B128: =IF('DF raw data'!N128="","",'DF raw data'!N128) -> -3.91655e-05 | C128: =IF('DF raw data'!O128="","",'DF raw data'!O128) -> 0.000193185 | D128: =IF('DF raw data'!P128="","",'DF raw data'!P128) -> -2.74846e-05 | F128: -1.826844512e-05 | G128: -1.484058988e-05 | H128: -2.810083196e-06 | J128: -0.0002186707363 | K128: -0.002728383018 | L128: -0.0009537318737 | M128: -0.01595936298 | N128: 1.085893571e-05
A129: =IF('DF raw data'!M129="","",'DF raw data'!M129) -> -269 | B129: =IF('DF raw data'!N129="","",'DF raw data'!N129) -> -1.63541e-05 | C129: =IF('DF raw data'!O129="","",'DF raw data'!O129) -> 0.00019293 | D129: =IF('DF raw data'!P129="","",'DF raw data'!P129) -> -3.09385e-05 | F129: 4.657011884e-06 | G129: -1.509686488e-05 | H129: -6.281252696e-06 | J129: -0.0002163422304 | K129: -0.002836554134 | L129: -0.0009612803062 | M129: -0.01644000313 | N129: 1.13443676e-05
A130: =IF('DF raw data'!M130="","",'DF raw data'!M130) -> -268.5 | B130: =IF('DF raw data'!N130="","",'DF raw data'!N130) -> -3.60189e-05 | C130: =IF('DF raw data'!O130="","",'DF raw data'!O130) -> 0.000185494 | D130: =IF('DF raw data'!P130="","",'DF raw data'!P130) -> -3.83289e-05 | F130: -1.510611212e-05 | G130: -2.257004488e-05 | H130: -1.37086047e-05 | J130: -0.0002238952864 | K130: -0.002948501777 | L130: -0.0009725653286 | M130: -0.0169262858 | N130: 1.184237381e-05
A131: =IF('DF raw data'!M131="","",'DF raw data'!M131) -> -268 | B131: =IF('DF raw data'!N131="","",'DF raw data'!N131) -> -2.34058e-05 | C131: =IF('DF raw data'!O131="","",'DF raw data'!O131) -> 0.000180834 | D131: =IF('DF raw data'!P131="","",'DF raw data'!P131) -> -2.59189e-05 | F131: =(1-$G$1*($B$54-$G$2))*(B131-F$5) -> -2.429946616e-06 | G131: =(1-$G$1*($B$54-$G$2))*(C131-G$5) -> -2.725334488e-05 | H131: =(1-$G$1*($B$54-$G$2))*(D131-H$5) -> -1.236554696e-06 | J131: -0.0002251102597 | K131: -0.003061056907 | L131: -0.000986192001 | M131: -0.0174193818 | N131: 1.235399845e-05
A132: =IF('DF raw data'!M132="","",'DF raw data'!M132) -> -267.5 | B132: =IF('DF raw data'!N132="","",'DF raw data'!N132) -> -2.8854e-05 | C132: =IF('DF raw data'!O132="","",'DF raw data'!O132) -> 0.00018336 | D132: =IF('DF raw data'!P132="","",'DF raw data'!P132) -> -2.0897e-05 | F132: -7.905387616e-06 | G132: -2.471471488e-05 | H132: 3.810454804e-06 | J132: =F132*$G$3+J131 -> -0.0002290629536 | K132: =J132*$G$3+K131 -> -0.003175588383 | L132: =G132*$G$3+L131 -> -0.0009985493585 | M132: =L132*$G$3+M131 -> -0.01791865648 | N132: =(J132^2+L132^2)*$G$3+N131 -> 1.287878378e-05
A133: =IF('DF raw data'!M133="","",'DF raw data'!M133) -> -267 | B133: =IF('DF raw data'!N133="","",'DF raw data'!N133) -> -3.05782e-05 | C133: =IF('DF raw data'!O133="","",'DF raw data'!O133) -> 0.000190876 | D133: =IF('DF raw data'!P133="","",'DF raw data'!P133) -> -3.25463e-05 | F133: -9.638208616e-06 | G133: -1.716113488e-05 | H133: -7.897091696e-06 | J133: -0.0002338820579 | K133: -0.003292529412 | L133: -0.001007129926 | M133: -0.01842222144 | N133: 1.341328954e-05
A134: =IF('DF raw data'!M134="","",'DF raw data'!M134) -> -266.5 | B134: =IF('DF raw data'!N134="","",'DF raw data'!N134) -> -3.73725e-05 | C134: =IF('DF raw data'!O134="","",'DF raw data'!O134) -> 0.000185565 | D134: =IF('DF raw data'!P134="","",'DF raw data'!P134) -> -2.55444e-05 | F134: -1.646648012e-05 | G134: -2.249868988e-05 | H134: -8.601821963e-07 | J134: -0.0002421152979 | K134: -0.003413587061 | L134: -0.001018379271 | M134: -0.01893141108 | N134: 1.396114761e-05
A135: =IF('DF raw data'!M135="","",'DF raw data'!M135) -> -266 | B135: =IF('DF raw data'!N135="","",'DF raw data'!N135) -> -2.78224e-05 | C135: =IF('DF raw data'!O135="","",'DF raw data'!O135) -> 0.000178098 | D135: =IF('DF raw data'!P135="","",'DF raw data'!P135) -> -3.3504e-05 | F135: -6.868629616e-06 | G135: -3.000302488e-05 | H135: -8.859580196e-06 | J135: -0.0002455496127 | K135: -0.003536361868 | L135: -0.001033380783 | M135: -0.01944810147 | N135: 1.452523284e-05
A136: =IF('DF raw data'!M136="","",'DF raw data'!M136) -> -265.5 | B136: =IF('DF raw data'!N136="","",'DF raw data'!N136) -> -2.69343e-05 | C136: =IF('DF raw data'!O136="","",'DF raw data'!O136) -> 0.000183059 | D136: =IF('DF raw data'!P136="","",'DF raw data'!P136) -> -1.68627e-05 | F136: -5.976089116e-06 | G136: -2.501721988e-05 | H136: 7.864926304e-06 | J136: -0.0002485376573 | K136: -0.003660630696 | L136: -0.001045889393 | M136: -0.01997104616 | N136: 1.510306064e-05
A137: =IF('DF raw data'!M137="","",'DF raw data'!M137) -> -265 | B137: =IF('DF raw data'!N137="","",'DF raw data'!N137) -> -2.91718e-05 | C137: =IF('DF raw data'!O137="","",'DF raw data'!O137) -> 0.000186453 | D137: =IF('DF raw data'!P137="","",'DF raw data'!P137) -> -2.77604e-05 | F137: -8.224776616e-06 | G137: -2.160624988e-05 | H137: -3.087262196e-06 | J137: -0.0002526500456 | K137: -0.003786955719 | L137: -0.001056692518 | M137: -0.02049939242 | N137: 1.56932762e-05
A138: =IF('DF raw data'!M138="","",'DF raw data'!M138) -> -264.5 | B138: =IF('DF raw data'!N138="","",'DF raw data'!N138) -> -3.67331e-05 | C138: =IF('DF raw data'!O138="","",'DF raw data'!O138) -> 0.000183681 | D138: =IF('DF raw data'!P138="","",'DF raw data'!P138) -> -2.34576e-05 | F138: -1.582388312e-05 | G138: -2.439210988e-05 | H138: 1.237051804e-06 | J138: -0.0002605619871 | K138: -0.003917236713 | L138: -0.001068888573 | M138: -0.02103383671 | N138: 1.629848386e-05
A139: =IF('DF raw data'!M139="","",'DF raw data'!M139) -> -264 | B139: =IF('DF raw data'!N139="","",'DF raw data'!N139) -> -2.16151e-05 | C139: =IF('DF raw data'!O139="","",'DF raw data'!O139) -> 0.000193133 | D139: =IF('DF raw data'!P139="","",'DF raw data'!P139) -> -2.10981e-05 | F139: -6.302931159e-07 | G139: -1.489284988e-05 | H139: 3.608349304e-06 | J139: -0.0002608771337 | K139: -0.00404767528 | L139: -0.001076334998 | M139: -0.02157200421 | N139: 1.691176082e-05
A140: =IF('DF raw data'!M140="","",'DF raw data'!M140) -> -263.5 | B140: =IF('DF raw data'!N140="","",'DF raw data'!N140) -> -3.40393e-05 | C140: =IF('DF raw data'!O140="","",'DF raw data'!O140) -> 0.000190914 | D140: =IF('DF raw data'!P140="","",'DF raw data'!P140) -> -2.7394e-05 | F140: -1.311661412e-05 | G140: -1.712294488e-05 | H140: -2.719030196e-06 | J140: -0.0002674354408 | K140: -0.004181393 | L140: -0.00108489647 | M140: -0.02211445244 | N140: 1.753602185e-05
A141: =IF('DF raw data'!M141="","",'DF raw data'!M141) -> -263 | B141: =IF('DF raw data'!N141="","",'DF raw data'!N141) -> -2.82144e-05 | C141: =IF('DF raw data'!O141="","",'DF raw data'!O141) -> 0.000191955 | D141: =IF('DF raw data'!P141="","",'DF raw data'!P141) -> -2.22404e-05 | F141: -7.262589616e-06 | G141: -1.607673988e-05 | H141: 2.460337804e-06 | J141: -0.0002710667356 | K141: -0.004316926368 | L141: -0.00109293484 | M141: -0.02266091986 | N141: 1.817001372e-05
A142: =IF('DF raw data'!M142="","",'DF raw data'!M142) -> -262.5 | B142: =IF('DF raw data'!N142="","",'DF raw data'!N142) -> -3.75001e-05 | C142: =IF('DF raw data'!O142="","",'DF raw data'!O142) -> 0.000191892 | D142: =IF('DF raw data'!P142="","",'DF raw data'!P142) -> -2.58554e-05 | F142: -1.659471812e-05 | G142: -1.614005488e-05 | H142: -1.172737196e-06 | J142: -0.0002793640946 | K142: -0.004456608415 | L142: -0.001101004868 | M142: -0.0232114223 | N142: 1.881514173e-05
A143: =IF('DF raw data'!M143="","",'DF raw data'!M143) -> -262 | B143: =IF('DF raw data'!N143="","",'DF raw data'!N143) -> -3.24367e-05 | C143: =IF('DF raw data'!O143="","",'DF raw data'!O143) -> 0.000182741 | D143: =IF('DF raw data'!P143="","",'DF raw data'!P143) -> -3.26431e-05 | F143: -1.150600112e-05 | G143: -2.533680988e-05 | H143: -7.994375696e-06 | J143: -0.0002851170952 | K143: -0.004599166963 | L143: -0.001113673273 | M143: -0.02376825893 | N143: 1.947592169e-05
A144: =IF('DF raw data'!M144="","",'DF raw data'!M144) -> -261.5 | B144: =IF('DF raw data'!N144="","",'DF raw data'!N144) -> -2.9365e-05 | C144: =IF('DF raw data'!O144="","",'DF raw data'!O144) -> 0.000185888 | D144: =IF('DF raw data'!P144="","",'DF raw data'!P144) -> -2.24135e-05 | F144: -8.418942616e-06 | G144: -2.217407488e-05 | H144: 2.286372304e-06 | J144: -0.0002893265665 | K144: -0.004743830246 | L144: -0.00112476031 | M144: -0.02433063909 | N144: 2.01503195e-05
A145: =IF('DF raw data'!M145="","",'DF raw data'!M145) -> -261 | B145: =IF('DF raw data'!N145="","",'DF raw data'!N145) -> -2.66051e-05 | C145: =IF('DF raw data'!O145="","",'DF raw data'!O145) -> 0.000190742 | D145: =IF('DF raw data'!P145="","",'DF raw data'!P145) -> -3.36958e-05 | F145: -5.645243116e-06 | G145: -1.729580488e-05 | H145: -9.052339196e-06 | J145: -0.0002921491881 | K145: -0.00488990484 | L145: -0.001133408213 | M145: -0.0248973432 | N145: 2.083530216e-05
A146: =IF('DF raw data'!M146="","",'DF raw data'!M146) -> -260.5 | B146: =IF('DF raw data'!N146="","",'DF raw data'!N146) -> -4.01287e-05 | C146: =IF('DF raw data'!O146="","",'DF raw data'!O146) -> 0.00019327 | D146: =IF('DF raw data'!P146="","",'DF raw data'!P146) -> -2.31621e-05 | F146: -1.923646112e-05 | G146: -1.475516488e-05 | H146: 1.534029304e-06 | J146: -0.0003017674186 | K146: -0.005040788549 | L146: -0.001140785795 | M146: -0.02546773609 | N146: 2.153153006e-05
A147: =IF('DF raw data'!M147="","",'DF raw data'!M147) -> -260 | B147: =IF('DF raw data'!N147="","",'DF raw data'!N147) -> -3.23696e-05 | C147: =IF('DF raw data'!O147="","",'DF raw data'!O147) -> 0.000193729 | D147: =IF('DF raw data'!P147="","",'DF raw data'!P147) -> -3.75869e-05 | F147: -1.143856562e-05 | G147: -1.429386988e-05 | H147: -1.29628947e-05 | J147: -0.0003074867014 | K147: -0.0051945319 | L147: -0.00114793273 | M147: -0.02604170246 | N147: 2.223767887e-05
A148: =IF('DF raw data'!M148="","",'DF raw data'!M148) -> -259.5 | B148: =IF('DF raw data'!N148="","",'DF raw data'!N148) -> -3.2502e-05 | C148: =IF('DF raw data'!O148="","",'DF raw data'!O148) -> 0.000193348 | D148: =IF('DF raw data'!P148="","",'DF raw data'!P148) -> -2.62769e-05 | F148: -1.157162762e-05 | G148: -1.467677488e-05 | H148: -1.596344696e-06 | J148: -0.0003132725152 | K148: -0.005351168158 | L148: -0.001155271118 | M148: -0.02661933802 | N148: 2.295407439e-05
A149: =IF('DF raw data'!M149="","",'DF raw data'!M149) -> -259 | B149: =IF('DF raw data'!N149="","",'DF raw data'!N149) -> -2.25129e-05 | C149: =IF('DF raw data'!O149="","",'DF raw data'!O149) -> 0.000181677 | D149: =IF('DF raw data'!P149="","",'DF raw data'!P149) -> -2.03442e-05 | F149: -1.532582116e-06 | G149: -2.640612988e-05 | H149: 4.366018804e-06 | J149: -0.0003140388063 | K149: -0.005508187561 | L149: -0.001168474182 | M149: -0.02720357511 | N149: 2.368605053e-05
A150: =IF('DF raw data'!M150="","",'DF raw data'!M150) -> -258.5 | B150: =IF('DF raw data'!N150="","",'DF raw data'!N150) -> -3.71863e-05 | C150: =IF('DF raw data'!O150="","",'DF raw data'!O150) -> 0.000173899 | D150: =IF('DF raw data'!P150="","",'DF raw data'!P150) -> -1.52625e-05 | F150: -1.627934912e-05 | G150: -3.422301988e-05 | H150: 9.473127304e-06 | J150: -0.0003221784808 | K150: -0.005669276801 | L150: -0.001185585692 | M150: -0.02779636795 | N150: 2.444075673e-05
A151: =IF('DF raw data'!M151="","",'DF raw data'!M151) -> -258 | B151: =IF('DF raw data'!N151="","",'DF raw data'!N151) -> -2.19967e-05 | C151: =IF('DF raw data'!O151="","",'DF raw data'!O151) -> 0.000176005 | D151: =IF('DF raw data'!P151="","",'DF raw data'!P151) -> -2.59289e-05 | F151: -1.013801116e-06 | G151: -3.210648988e-05 | H151: -1.246604696e-06 | J151: -0.0003226853814 | K151: -0.005830619492 | L151: -0.001201638937 | M151: -0.02839718742 | N151: 2.521478773e-05
A152: =IF('DF raw data'!M152="","",'DF raw data'!M152) -> -257.5 | B152: =IF('DF raw data'!N152="","",'DF raw data'!N152) -> -3.98629e-05 | C152: =IF('DF raw data'!O152="","",'DF raw data'!O152) -> 0.00017183 | D152: =IF('DF raw data'!P152="","",'DF raw data'!P152) -> -3.75811e-05 | F152: -1.896933212e-05 | G152: -3.630236488e-05 | H152: -1.29570657e-05 | J152: -0.0003321700475 | K152: -0.005996704516 | L152: -0.00121979012 | M152: -0.02900708248 | N152: 2.601390017e-05
A153: =IF('DF raw data'!M153="","",'DF raw data'!M153) -> -257 | B153: =IF('DF raw data'!N153="","",'DF raw data'!N153) -> -2.97461e-05 | C153: =IF('DF raw data'!O153="","",'DF raw data'!O153) -> 0.000175637 | D153: =IF('DF raw data'!P153="","",'DF raw data'!P153) -> -3.19701e-05 | F153: -8.801948116e-06 | G153: -3.247632988e-05 | H153: -7.318010696e-06 | J153: -0.0003365710215 | K153: -0.006164990026 | L153: -0.001236028285 | M153: -0.02962509663 | N153: 2.683442315e-05
A154: =IF('DF raw data'!M154="","",'DF raw data'!M154) -> -256.5 | B154: =IF('DF raw data'!N154="","",'DF raw data'!N154) -> -3.61555e-05 | C154: =IF('DF raw data'!O154="","",'DF raw data'!O154) -> 0.00018332 | D154: =IF('DF raw data'!P154="","",'DF raw data'!P154) -> -2.41232e-05 | F154: -1.524339512e-05 | G154: -2.475491488e-05 | H154: 5.681238037e-07 | J154: -0.0003441927191 | K154: -0.006337086386 | L154: -0.001248405742 | M154: -0.0302492995 | N154: 2.767291592e-05
A155: =IF('DF raw data'!M155="","",'DF raw data'!M155) -> -256 | B155: =IF('DF raw data'!N155="","",'DF raw data'!N155) -> -2.18073e-05 | C155: =IF('DF raw data'!O155="","",'DF raw data'!O155) -> 0.000182726 | D155: =IF('DF raw data'!P155="","",'DF raw data'!P155) -> -2.14038e-05 | F155: -8.234541159e-07 | G155: -2.535188488e-05 | H155: 3.301120804e-06 | J155: -0.0003446044461 | K155: -0.006509388609 | L155: -0.001261081685 | M155: -0.03087984034 | N155: 2.852745554e-05
A156: =IF('DF raw data'!M156="","",'DF raw data'!M156) -> -255.5 | B156: =IF('DF raw data'!N156="","",'DF raw data'!N156) -> -4.03214e-05 | C156: =IF('DF raw data'!O156="","",'DF raw data'!O156) -> 0.000183547 | D156: =IF('DF raw data'!P156="","",'DF raw data'!P156) -> -2.21531e-05 | F156: -1.943012462e-05 | G156: -2.452677988e-05 | H156: 2.548074304e-06 | J156: -0.0003543195084 | K156: -0.006686548363 | L156: -0.001273345075 | M156: -0.03151651288 | N156: 2.940093053e-05
A157: =IF('DF raw data'!M157="","",'DF raw data'!M157) -> -255 | B157: =IF('DF raw data'!N157="","",'DF raw data'!N157) -> -3.74259e-05 | C157: =IF('DF raw data'!O157="","",'DF raw data'!O157) -> 0.000189603 | D157: =IF('DF raw data'!P157="","",'DF raw data'!P157) -> -4.67436e-05 | F157: -1.652014712e-05 | G157: -1.844049988e-05 | H157: -2.21653782e-05 | J157: -0.000362579582 | K157: -0.006867838154 | L157: -0.001282565324 | M157: -0.03215779554 | N157: 3.028914941e-05
A158: =IF('DF raw data'!M158="","",'DF raw data'!M158) -> -254.5 | B158: =IF('DF raw data'!N158="","",'DF raw data'!N158) -> -3.12206e-05 | C158: =IF('DF raw data'!O158="","",'DF raw data'!O158) -> 0.00019257 | D158: =IF('DF raw data'!P158="","",'DF raw data'!P158) -> -2.62244e-05 | F158: -1.028382062e-05 | G158: -1.545866488e-05 | H158: -1.543582196e-06 | J158: -0.0003677214923 | K158: -0.0070516989 | L158: -0.001290294657 | M158: -0.03280294287 | N158: 3.118918911e-05
A159: =IF('DF raw data'!M159="","",'DF raw data'!M159) -> -254 | B159: =IF('DF raw data'!N159="","",'DF raw data'!N159) -> -3.3146e-05 | C159: =IF('DF raw data'!O159="","",'DF raw data'!O159) -> 0.00018891 | D159: =IF('DF raw data'!P159="","",'DF raw data'!P159) -> -2.61615e-05 | F159: -1.221884762e-05 | G159: -1.913696488e-05 | H159: -1.480367696e-06 | J159: -0.0003738309161 | K159: -0.007238614358 | L159: -0.001299863139 | M159: -0.03345287444 | N159: 3.210388598e-05
A160: =IF('DF raw data'!M160="","",'DF raw data'!M160) -> -253.5 | B160: =IF('DF raw data'!N160="","",'DF raw data'!N160) -> -4.51922e-05 | C160: =IF('DF raw data'!O160="","",'DF raw data'!O160) -> 0.000189723 | D160: =IF('DF raw data'!P160="","",'DF raw data'!P160) -> -2.00675e-05 | F160: -2.432527862e-05 | G160: -1.831989988e-05 | H160: 4.644102304e-06 | J160: -0.0003859935554 | K160: -0.007431611136 | L160: -0.001309023089 | M160: -0.03410738598 | N160: 3.303515222e-05
